Workbook

Sheet Parametros tecnológicos
A1: Parámetros tecnológicos
A3: Componente | B3: Parametro | C3: Incluir | D3: Valor | E3: Descripción | F3: Referencia
A4: General | B4: Tecnología | C4: 5G | E4: Tipologia de tecnologia presentada | F4: NA
B5: Dificultad de acceso | C5: 1 | E5: =+IF(TipoEspecifico=1,"Acceso Facil",IF(TipoEspecifico=2,"Acceso Dificil","Complejo")) -> Acceso Facil | F5: NA
B6: Tipo de red | C6: Móvil | E6: Servicio móvil o fija
A7: Obra civil | B7: Altura de torre | C7: S | D7: 30 | E7: mts | F7: =+IF(C7="N","",IF(D7="","",IF(AND(D7>=12,D7<=18),"12-18",IF(AND(D7>=19,D7<=35),"19-35",IF(AND(D7>=36,D7<=45),"36-45",IF(AND(D7>=46,D7<=60),"46-60",IF(D7>60,90,"Verificar"))))))) -> 19-35
B8: Tipo de torre | D8: Convencional | E8: Monopolo o convencional | F8: NA
B9: Eventos mantenimiento <= 2 años | D9: 0
B10: Eventos mantenimiento > 2 años | D10: 2 | E10: Eventos mantenimiento correctivo por año
A11: Red de energia | B11: Topología de terreno | C11: S | D11: Plano | E11: Plano u ondulado | F11: =+"Terreno "&Tipo_Terreno -> Terreno Plano
B12: Distancia red de MT | D12: 500 | E12: mts lineales (500,750,1000,1500+) | F12: =+IF(D12="","",IF(D12<=500,500,IF(AND(D12>500,D12<=1000),1000,IF(D12>1000,1500,"Verificar")))) -> 500
B13: KW - energía | D13: 25 | E13: 15 o 25 KW | F13: NA
B14: Eventos mantenimiento <= 2 años | D14: 0
B15: Eventos mantenimiento > 2 años | D15: 2
B16: Planta eléctrica | C16: S | D16: 25 | E16: Tipo de planta BT (KW)
A17: 4G / 5G / FWA | B17: BW (MHz) | C17: S | D17: 30 | E17: Tecnología de acceso | F17: =+TmcBw*SectorEnodeb*D25*IF(C6="Fija",1,0.5) -> 585
B18: Sectores | D18: 3 | E18: Número de sectores
B19: Eventos mantenimiento <= 2 años | D19: 0
B20: Eventos mantenimiento > 2 años | D20: 2
B21: Relacion contención / Porcentaje de uso | D21: 0.3 | E21: Promedio red fija / Promedio red móvil
A22: Red de transmisión - MW | B22: Diámetro de antena | C22: S | D22: 1.2 | E22: mts | F22: NA
B23: Microondas | D23: 28/30 MHz < 10 GHz | E23: Equipos terminales enlace MW - HTSB
A24: Calidad / Capacidad | B24: Calidad de servicio | D24: 20 Mbps / 250 GB | E24: Velocidad (Mbps) / Capacidad (GB) | F24: =+LEFT(Velocidad_Capacidad,2) -> 20
B25: Eficiencia espectral | D25: =IF(Tipologia_Campo="TMC 4G",IF(TipoRed="Fija",VLOOKUP(Tipologia_Campo,$K$49:$M$54,3,0),VLOOKUP(Tipologia_Campo,$K$49:$M$54,2,0)),VLOOKUP(Tipologia_Campo,$K$49:$M$54,3,0)) -> 13 | E25: DL (Valor recomendado)
A26: Satelital | B26: VSAT | C26: S | E26: Incluir terminal en el modelo
A27: FWA | B27: CPE | C27: N | D27: =+IFERROR(ROUND(IF(C27="N","",Modelo!B13),0),"") ->  | E27: Subscriptores / Hogares | F27: NA
A28: =+IF(Tipologia_Campo<>"FTTH","","FTTH") -> 
A29: =+IF(Tipologia_Campo<>"FTTH","","Longitud Backhaul (Km)") -> 
A30: =+IF(Tipologia_Campo<>"FTTH","","Cantidad Postes") -> 
A31: =+IF(Tipologia_Campo<>"FTTH","","Splitters") -> 
A32: =+IF(Tipologia_Campo<>"FTTH","","Longitud Acometida (Metros / Hogar)") -> 
A33: Velocidad de transporte Mbps
A34: Parametros Energía Solar - Repetidora | B34: Potencia (W) | C34: =+IF(Tipologia_Campo="Repetidora","S","N") -> N | E34: W
B35: Costo | E35: W/USD
B36: Factor Potencia de Diseño | E36: Int.
A48: 4G - BW (MHz) | D48: 4G - Enlace De Transmision Mw Htsb (Diametro de antena Mts) | G48: Tipo de planta | I48: Energia - Kw | K48: Tipologia | L48: movil | M48: fija
K49: TMC 4G | L49: 1.7 | M49: 13
A50: 10 | D50: 1.2 | G50: A | I50: 15 | K50: FTTH | L50: 0 | M50: 0
A51: 20 | D51: 1.8 | G51: B | I51: 25 | K51: LTE No Lic BH Microondas | M51: 7
A52: 30 | D52: 2.4 | K52: LTE No Lic BH Satelital | M52: 7
D53: 3.7 | K53: 5G | M53: 13
K54: Repetidora
A55: Mto 4G | D55: WiFi LTE - Velocidad (Mbps) / Capacidad (Gb) | G55: Red de Energia - Tipo de terreno | I55: Equipos | K55: Clase torre
A56: 1 | D56: 5 Mbps / 50 GB | G56: Ondulado | I56: 5G (1+0+0) 10 MHz | K56: Monopolo
A57: 2 | D57: 5 Mbps / 100 GB | G57: Plano | I57: 5G (1+1+0) 10 MHz | K57: Convencional
D58: 5 Mbps / 150 GB | I58: 5G (1+1+1) 10 MHz
D59: 5 Mbps / 200 GB | I59: 5G (1+1+0) 20 MHz
D60: 5 Mbps / 250 GB | I60: 5G (1+1+1) 20 MHz
A61: Sector enodeb | D61: 10 Mbps / 50 GB | I61: 5G (1+1+1) 30 MHz
A62: 1 | D62: 10 Mbps / 100 GB
A63: 2 | D63: 10 Mbps / 150 GB
A64: 3 | D64: 10 Mbps / 200 GB
D65: 10 Mbps / 250 GB
D66: 20 Mbps / 50 GB
D67: 20 Mbps / 100 GB
D68: 20 Mbps / 150 GB
D69: 20 Mbps / 200 GB
A70: Equipos terminales enlace MW - HTSB | D70: 20 Mbps / 250 GB
A71: 28/30 MHz < 10 GHz
A72: 28/30 MHz >10 GHz
A73: 56 MHz < 10 GHz | D73: Planta electrica | G73: Incluir
A74: 56 MHz > 10 GHz | D74: 5 | G74: S
D75: 15 | G75: N
D76: 25
A77: Tipo dificultad acceso
A78: 1
A79: 2 | D79: Tipo de red
A80: 3 | D80: Fija
D81: Móvil

Sheet Espectro MW
A1: Calculo del Valor Anual de Contraprestaciones (VAC)
A3: Variable | B3: Descripción | C3: Valor
A4: Valor publicado por el MINTIC | C4: 859584.41
A5: Ancho de Banda (MHz) | C5: 28
A6: Valores del factor de valoracióńn de banda (MHz) | B6: 7200 | C6: =+IF(B6<=1000,1,IF(AND(B6>1000,B6<=3000),0.8,IF(AND(B6>3000,B6<=3700),0.7,IF(AND(B6>3700,B6<=7100),0.612,IF(AND(B6>7100,B6<=14000),0.544,IF(AND(B6>14000,B6<=20000),0.476,IF(AND(B6>20000,B6<=30000),0.408,IF(AND(B6>30000,B6<=70000),0.0375,IF(AND(B6>70000,B6<=300000),0.0055,0))))))))) -> 0.544
A7: Valores del factor de distancia | B7: Satisface la distancia mínima del CNABF | C7: =+VLOOKUP(B7,'Tablas Espectro MW'!$A$43:$C$46,2,0) -> 0.9
A8: Valores del factor de priorizacióń | B8: Cabeceras municipales que no se ubican en departamentos priorizados | C8: =+VLOOKUP(B8,'Tablas Espectro MW'!$A$20:$B$23,2,0) -> 0.8
A9: Valor Anual de Contraprestaciones (Para un enlace simétrico - La resolución no es clara en como se aplica para cada segmento) | C9: =+(C4*(C5)*C6*C7)*C8*2 -> 18854193.22

Sheet Modelo
A1: Modelo Financiero - MinTIC
A3: Parámetros | B3: Valor | D3: Concepto | E3: =+YEAR(B7) -> 2020 | F3: =+E3+1 -> 2021 | G3: 2022 | H3: 2023 | I3: 2024 | J3: 2025 | K3: 2026 | L3: 2027 | M3: 2028 | N3: 2029 | O3: 2030
A4: TRM | B4: 4000 | D4: IPC | E4: 0.03 | F4: 0.03 | G4: 0.03 | H4: 0.03 | I4: 0.03 | J4: 0.03 | K4: 0.03 | L4: 0.03 | M4: 0.03 | N4: 0.03 | O4: 0.03
A5: Valor del proyecto | B5: =+SUM(F9:DV10) -> 1701697652 | D5: Acumulado | E5: 1 | F5: =(1+E4)*E5 -> 1.03 | G5: 1.0609 | H5: 1.092727 | I5: 1.12550881 | J5: 1.159274074 | K5: 1.194052297 | L5: 1.229873865 | M5: 1.266770081 | N5: 1.304773184 | O5: 1.343916379
A6: Imprevistos | B6: 0.05 | D6: Pagos anuales CAPEX | E6: =+SUMIF($F$8:$DW$8,E3,$F$9:$DV$9) -> 596915003.4 | F6: =+SUMIF($F$8:$DV$8,F3,$F$9:$DV$9) -> 0 | G6: 0 | H6: 0 | I6: 0 | J6: 0 | K6: 0 | L6: 0 | M6: 0 | N6: 0 | O6: 0
A7: Fecha inicio obra | B7: 2020-05-28 | D7: Pagos anuales OPEX | E7: =+SUMIF($F$8:$DV$8,E3,$F$10:$DV$10) -> 117931973.7 | F7: 208290767.1 | G7: 239882393.6 | H7: 254284080 | I7: 261912602.4 | J7: 22480831.7 | K7: 0 | L7: 0 | M7: 0 | N7: 0 | O7: 0
A8: Fecha inicio funcionamiento | B8: 2020-07-01 | F8: =+YEAR(F16) -> 2020 | G8: 2020 | H8: 2020 | I8: 2020 | J8: 2020 | K8: 2020 | L8: 2020 | M8: 2020 | N8: 2021 | O8: 2021 | P8: 2021 | Q8: 2021 | R8: 2021 | S8: 2021 | T8: 2021 | U8: 2021 | V8: 2021 | W8: 2021 | X8: 2021 | Y8: 2021 | Z8: 2022 | AA8: 2022 | AB8: 2022 | AC8: 2022 | AD8: 2022 | AE8: 2022 | AF8: 2022 | AG8: 2022 | AH8: 2022 | AI8: 2022 | AJ8: 2022 | AK8: 2022 | AL8: =+YEAR(AL16) -> 2023 | AM8: 2023 | AN8: 2023 | AO8: 2023 | AP8: 2023 | AQ8: 2023 | AR8: 2023 | AS8: 2023 | AT8: 2023 | AU8: 2023 | AV8: 2023 | AW8: 2023 | AX8: 2024 | AY8: 2024 | AZ8: 2024 | BA8: 2024 | BB8: 2024 | BC8: 2024 | BD8: 2024 | BE8: 2024 | BF8: 2024 | BG8: 2024 | BH8: 2024 | BI8: 2024 | BJ8: 2025 | BK8: 2025 | BL8: 2025 | BM8: 2025 | BN8: 2025 | BO8: 2025 | BP8: 2025 | BQ8: 2025 | BR8: =+YEAR(BR16) -> 2025 | BS8: 2025 | BT8: 2025 | BU8: 2025 | BV8: 2026 | BW8: 2026 | BX8: 2026 | BY8: 2026 | BZ8: 2026 | CA8: 2026 | CB8: 2026 | CC8: 2026 | CD8: 2026 | CE8: 2026 | CF8: 2026 | CG8: 2026 | CH8: 2027 | CI8: 2027 | CJ8: 2027 | CK8: 2027 | CL8: 2027 | CM8: 2027 | CN8: 2027 | CO8: 2027 | CP8: 2027 | CQ8: 2027 | CR8: 2027 | CS8: 2027 | CT8: 2028 | CU8: 2028 | CV8: 2028 | CW8: 2028 | CX8: =+YEAR(CX16) -> 2028 | CY8: 2028 | CZ8: 2028 | DA8: 2028 | DB8: 2028 | DC8: 2028 | DD8: 2028 | DE8: 2028 | DF8: 2029 | DG8: 2029 | DH8: 2029 | DI8: 2029 | DJ8: 2029 | DK8: 2029 | DL8: 2029 | DM8: 2029 | DN8: 2029 | DO8: 2029 | DP8: 2029 | DQ8: 2029 | DR8: 2030 | DS8: 2030 | DT8: 2030 | DU8: 2030 | DV8: 2030
A9: Tiempo reconocimiento OPEX (meses) | B9: 56 | E9: Flujo de Caja CAPEX | F9: =+SUM(F20:F26,F36:F40,F44:F46,F50:F52,F59:F61,F66:F74,F77:F86,F90:F91) -> 596915003.4 | G9: 0 | H9: 0 | I9: 0 | J9: 0 | K9: 0 | L9: 0 | M9: 0 | N9: 0 | O9: 0 | P9: 0 | Q9: 0 | R9: 0 | S9: 0 | T9: 0 | U9: 0 | V9: 0 | W9: 0 | X9: 0 | Y9: 0 | Z9: 0 | AA9: 0 | AB9: 0 | AC9: 0 | AD9: 0 | AE9: 0 | AF9: 0 | AG9: 0 | AH9: 0 | AI9: 0 | AJ9: 0 | AK9: 0 | AL9: =+SUM(AL20:AL26,AL36:AL40,AL44:AL46,AL50:AL52,AL59:AL61,AL66:AL74,AL77:AL86,AL90:AL91) -> 0 | AM9: 0 | AN9: 0 | AO9: 0 | AP9: 0 | AQ9: 0 | AR9: 0 | AS9: 0 | AT9: 0 | AU9: 0 | AV9: 0 | AW9: 0 | AX9: 0 | AY9: 0 | AZ9: 0 | BA9: 0 | BB9: 0 | BC9: 0 | BD9: 0 | BE9: 0 | BF9: 0 | BG9: 0 | BH9: 0 | BI9: 0 | BJ9: 0 | BK9: 0 | BL9: 0 | BM9: 0 | BN9: 0 | BO9: 0 | BP9: 0 | BQ9: 0 | BR9: =+SUM(BR20:BR26,BR36:BR40,BR44:BR46,BR50:BR52,BR59:BR61,BR66:BR74,BR77:BR86,BR90:BR91) -> 0 | BS9: 0 | BT9: 0 | BU9: 0 | BV9: 0 | BW9: 0 | BX9: 0 | BY9: 0 | BZ9: 0 | CA9: 0 | CB9: 0 | CC9: 0 | CD9: 0 | CE9: 0 | CF9: 0 | CG9: 0 | CH9: 0 | CI9: 0 | CJ9: 0 | CK9: 0 | CL9: 0 | CM9: 0 | CN9: 0 | CO9: 0 | CP9: 0 | CQ9: 0 | CR9: 0 | CS9: 0 | CT9: 0 | CU9: 0 | CV9: 0 | CW9: 0 | CX9: =+SUM(CX20:CX26,CX36:CX40,CX44:CX46,CX50:CX52,CX59:CX61,CX66:CX74,CX77:CX86,CX90:CX91) -> 0 | CY9: 0 | CZ9: 0 | DA9: 0 | DB9: 0 | DC9: 0 | DD9: 0 | DE9: 0 | DF9: 0 | DG9: 0 | DH9: 0 | DI9: 0 | DJ9: 0 | DK9: 0 | DL9: 0 | DM9: 0 | DN9: 0 | DO9: 0 | DP9: 0 | DQ9: 0 | DR9: 0 | DS9: 0 | DT9: 0 | DU9: 0 | DV9: 0
A10: Tiempo reconocimiento OPEX (Recomendado) | B10: =IF(IF((F9/(B11*B12-AVERAGEIF(G10:DV10,">0")))>120,120,(F9/(B11*B12-AVERAGEIF(G10:DV10,">0"))))<0,120,IF((F9/(B11*B12-AVERAGEIF(G10:DV10,">0")))>120,120,(F9/(B11*B12-AVERAGEIF(G10:DV10,">0"))))) -> 4.868376403 | E10: Flujo de Caja OPEX | F10: =+SUM(F19,F27:F35,F43,F47:F48,F54:F57,F62:F65,F75,F89)+F11+F12 -> 29845750.17 | G10: 0 | H10: 15247230.7 | I10: 15247230.7 | J10: 15247230.7 | K10: 12060445.7 | L10: 15142042.84 | M10: 15142042.84 | N10: 15596304.12 | O10: 15596304.12 | P10: 15596304.12 | Q10: 15596304.12 | R10: 15596304.12 | S10: 18615606.64 | T10: 18615606.64 | U10: 18615606.64 | V10: 18615606.64 | W10: 18615606.64 | X10: 18615606.64 | Y10: 18615606.64 | Z10: 19174074.84 | AA10: 19174074.84 | AB10: 19174074.84 | AC10: 19174074.84 | AD10: 19174074.84 | AE10: 20573145.63 | AF10: 20573145.63 | AG10: 20573145.63 | AH10: 20573145.63 | AI10: 20573145.63 | AJ10: 20573145.63 | AK10: 20573145.63 | AL10: =+SUM(AL19,AL27:AL35,AL43,AL47:AL48,AL54:AL57,AL62:AL65,AL75,AL89)+AL11+AL12 -> 21190340 | AM10: 21190340 | AN10: 21190340 | AO10: 21190340 | AP10: 21190340 | AQ10: 21190340 | AR10: 21190340 | AS10: 21190340 | AT10: 21190340 | AU10: 21190340 | AV10: 21190340 | AW10: 21190340 | AX10: 21826050.2 | AY10: 21826050.2 | AZ10: 21826050.2 | BA10: 21826050.2 | BB10: 21826050.2 | BC10: 21826050.2 | BD10: 21826050.2 | BE10: 21826050.2 | BF10: 21826050.2 | BG10: 21826050.2 | BH10: 21826050.2 | BI10: 21826050.2 | BJ10: 22480831.7 | BK10: 0 | BL10: 0 | BM10: 0 | BN10: 0 | BO10: 0 | BP10: 0 | BQ10: 0 | BR10: =+SUM(BR19,BR27:BR35,BR43,BR47:BR48,BR54:BR57,BR62:BR65,BR75,BR89)+BR11+BR12 -> 0 | BS10: 0 | BT10: 0 | BU10: 0 | BV10: 0 | BW10: 0 | BX10: 0 | BY10: 0 | BZ10: 0 | CA10: 0 | CB10: 0 | CC10: 0 | CD10: 0 | CE10: 0 | CF10: 0 | CG10: 0 | CH10: 0 | CI10: 0 | CJ10: 0 | CK10: 0 | CL10: 0 | CM10: 0 | CN10: 0 | CO10: 0 | CP10: 0 | CQ10: 0 | CR10: 0 | CS10: 0 | CT10: 0 | CU10: 0 | CV10: 0 | CW10: 0 | CX10: =+SUM(CX19,CX27:CX35,CX43,CX47:CX48,CX54:CX57,CX62:CX65,CX75,CX89)+CX11+CX12 -> 0 | CY10: 0 | CZ10: 0 | DA10: 0 | DB10: 0 | DC10: 0 | DD10: 0 | DE10: 0 | DF10: 0 | DG10: 0 | DH10: 0 | DI10: 0 | DJ10: 0 | DK10: 0 | DL10: 0 | DM10: 0 | DN10: 0 | DO10: 0 | DP10: 0 | DQ10: 0 | DR10: 0 | DS10: 0 | DT10: 0 | DU10: 0 | DV10: 0
A11: ARPU | B11: 50000 | E11: Gastos administrativos | F11: =+SUM(F19,F27:F35,F43,F47:F48,F54:F57,F62:F65,F75,F89)*4.7% -> 0 | G11: 0 | H11: 653254.1868 | I11: 653254.1868 | J11: 653254.1868 | K11: 516719.1868 | L11: 648747.5054 | M11: 648747.5054 | N11: 668209.9305 | O11: 668209.9305 | P11: 668209.9305 | Q11: 668209.9305 | R11: 668209.9305 | S11: 797070.5968 | T11: 797070.5968 | U11: 797070.5968 | V11: 797070.5968 | W11: 797070.5968 | X11: 797070.5968 | Y11: 797070.5968 | Z11: 820982.7147 | AA11: 820982.7147 | AB11: 820982.7147 | AC11: 820982.7147 | AD11: 820982.7147 | AE11: 880924.6719 | AF11: 880924.6719 | AG11: 880924.6719 | AH11: 880924.6719 | AI11: 880924.6719 | AJ11: 880924.6719 | AK11: 880924.6719 | AL11: =+SUM(AL19,AL27:AL35,AL43,AL47:AL48,AL54:AL57,AL62:AL65,AL75,AL89)*4.7% -> 907352.4121 | AM11: 907352.4121 | AN11: 907352.4121 | AO11: 907352.4121 | AP11: 907352.4121 | AQ11: 907352.4121 | AR11: 907352.4121 | AS11: 907352.4121 | AT11: 907352.4121 | AU11: 907352.4121 | AV11: 907352.4121 | AW11: 907352.4121 | AX11: 934572.9845 | AY11: 934572.9845 | AZ11: 934572.9845 | BA11: 934572.9845 | BB11: 934572.9845 | BC11: 934572.9845 | BD11: 934572.9845 | BE11: 934572.9845 | BF11: 934572.9845 | BG11: 934572.9845 | BH11: 934572.9845 | BI11: 934572.9845 | BJ11: 962610.174 | BK11: 0 | BL11: 0 | BM11: 0 | BN11: 0 | BO11: 0 | BP11: 0 | BQ11: 0 | BR11: =+SUM(BR19,BR27:BR35,BR43,BR47:BR48,BR54:BR57,BR62:BR65,BR75,BR89)*4.7% -> 0 | BS11: 0 | BT11: 0 | BU11: 0 | BV11: 0 | BW11: 0 | BX11: 0 | BY11: 0 | BZ11: 0 | CA11: 0 | CB11: 0 | CC11: 0 | CD11: 0 | CE11: 0 | CF11: 0 | CG11: 0 | CH11: 0 | CI11: 0 | CJ11: 0 | CK11: 0 | CL11: 0 | CM11: 0 | CN11: 0 | CO11: 0 | CP11: 0 | CQ11: 0 | CR11: 0 | CS11: 0 | CT11: 0 | CU11: 0 | CV11: 0 | CW11: 0 | CX11: =+SUM(CX19,CX27:CX35,CX43,CX47:CX48,CX54:CX57,CX62:CX65,CX75,CX89)*4.7% -> 0 | CY11: 0 | CZ11: 0 | DA11: 0 | DB11: 0 | DC11: 0 | DD11: 0 | DE11: 0 | DF11: 0 | DG11: 0 | DH11: 0 | DI11: 0 | DJ11: 0 | DK11: 0 | DL11: 0 | DM11: 0 | DN11: 0 | DO11: 0 | DP11: 0 | DQ11: 0 | DR11: 0 | DS11: 0 | DT11: 0 | DU11: 0 | DV11: 0
A12: Subscriptores / hogares | B12: =SubscriptoresSugeridos -> 2843.1 | E12: Imprevistos | F12: =+SUM(F17:F91)*$B$6 -> 29845750.17 | G12: 0 | H12: 694951.2626 | I12: 694951.2626 | J12: 694951.2626 | K12: 549701.2626 | L12: 690156.9206 | M12: 690156.9206 | N12: 710861.6282 | O12: 710861.6282 | P12: 710861.6282 | Q12: 710861.6282 | R12: 710861.6282 | S12: 859587.1755 | T12: 859587.1755 | U12: 859587.1755 | V12: 859587.1755 | W12: 859587.1755 | X12: 859587.1755 | Y12: 859587.1755 | Z12: 885374.7908 | AA12: 885374.7908 | AB12: 885374.7908 | AC12: 885374.7908 | AD12: 885374.7908 | AE12: 949142.8304 | AF12: 949142.8304 | AG12: 949142.8304 | AH12: 949142.8304 | AI12: 949142.8304 | AJ12: 949142.8304 | AK12: 949142.8304 | AL12: =+SUM(AL17:AL91)*$B$6 -> 977617.1153 | AM12: 977617.1153 | AN12: 977617.1153 | AO12: 977617.1153 | AP12: 977617.1153 | AQ12: 977617.1153 | AR12: 977617.1153 | AS12: 977617.1153 | AT12: 977617.1153 | AU12: 977617.1153 | AV12: 977617.1153 | AW12: 977617.1153 | AX12: 1006945.629 | AY12: 1006945.629 | AZ12: 1006945.629 | BA12: 1006945.629 | BB12: 1006945.629 | BC12: 1006945.629 | BD12: 1006945.629 | BE12: 1006945.629 | BF12: 1006945.629 | BG12: 1006945.629 | BH12: 1006945.629 | BI12: 1006945.629 | BJ12: 1037153.998 | BK12: 0 | BL12: 0 | BM12: 0 | BN12: 0 | BO12: 0 | BP12: 0 | BQ12: 0 | BR12: =+SUM(BR17:BR91)*$B$6 -> 0 | BS12: 0 | BT12: 0 | BU12: 0 | BV12: 0 | BW12: 0 | BX12: 0 | BY12: 0 | BZ12: 0 | CA12: 0 | CB12: 0 | CC12: 0 | CD12: 0 | CE12: 0 | CF12: 0 | CG12: 0 | CH12: 0 | CI12: 0 | CJ12: 0 | CK12: 0 | CL12: 0 | CM12: 0 | CN12: 0 | CO12: 0 | CP12: 0 | CQ12: 0 | CR12: 0 | CS12: 0 | CT12: 0 | CU12: 0 | CV12: 0 | CW12: 0 | CX12: =+SUM(CX17:CX91)*$B$6 -> 0 | CY12: 0 | CZ12: 0 | DA12: 0 | DB12: 0 | DC12: 0 | DD12: 0 | DE12: 0 | DF12: 0 | DG12: 0 | DH12: 0 | DI12: 0 | DJ12: 0 | DK12: 0 | DL12: 0 | DM12: 0 | DN12: 0 | DO12: 0 | DP12: 0 | DQ12: 0 | DR12: 0 | DS12: 0 | DT12: 0 | DU12: 0 | DV12: 0
A13: Subscriptores / hogares recomendados | B13: =IFERROR(IF(TipoRed="Fija",ValocidadPromedioDL/(RelacionContencion*Velocidad),(ValocidadPromedioDL*RelacionContencion*3600*24*30)/(8000*Velocidad)),0) -> 2843.1 | E13: =+DAY(F16) -> 1 | F13: 1 | G13: 2 | H13: 2 | I13: 2 | J13: 3 | K13: 3 | L13: 4 | M13: 4 | N13: 4 | O13: 7 | P13: 7 | Q13: 8 | R13: 8 | S13: 9 | T13: 9 | U13: 9 | V13: 10 | W13: 10 | X13: 11 | Y13: 11 | Z13: 11 | AA13: 14 | AB13: 14 | AC13: 15 | AD13: 15 | AE13: 16 | AF13: 16 | AG13: 16 | AH13: 17 | AI13: 17 | AJ13: 18 | AK13: 18 | AL13: 18 | AM13: 21 | AN13: 21 | AO13: 22 | AP13: 22 | AQ13: 23 | AR13: 23 | AS13: 23 | AT13: 24 | AU13: 24 | AV13: 25 | AW13: 3 | AX13: =+DAY(AY16) -> 3 | AY13: =+DAY(AZ16) -> 5 | AZ13: =+DAY(BA16) -> 5 | BA13: =+DAY(BB16) -> 6 | BB13: 6 | BC13: 7 | BD13: 7 | BE13: 7 | BF13: 8 | BG13: 8 | BH13: 9 | BI13: 9 | BJ13: 9 | BK13: 12 | BL13: 12 | BM13: 13 | BN13: =+DAY(BO16) -> 13 | BO13: 14 | BP13: 14 | BQ13: 14 | BR13: 15 | BS13: 15 | BT13: 16 | BU13: 16 | BV13: 16 | BW13: 19 | BX13: 19 | BY13: 20 | BZ13: 20 | CA13: 21 | CB13: 21 | CC13: 21 | CD13: 22 | CE13: 22 | CF13: 23 | CG13: 23 | CH13: 23 | CI13: 26 | CJ13: 26 | CK13: 27 | CL13: =+DAY(CM16) -> 27 | CM13: 28 | CN13: 28 | CO13: 28 | CP13: 29 | CQ13: 29 | CR13: 30 | CS13: 8 | CT13: 8 | CU13: 10 | CV13: 10 | CW13: 11 | CX13: 11 | CY13: 12 | CZ13: 12 | DA13: 12 | DB13: 13 | DC13: 13 | DD13: 14 | DE13: 14 | DF13: 14 | DG13: 17 | DH13: 17 | DI13: 18 | DJ13: 18 | DK13: 19 | DL13: 19 | DM13: 19 | DN13: 20 | DO13: 20 | DP13: 21 | DQ13: 21 | DR13: 21 | DS13: 24 | DT13: 24 | DU13: 25
A14: CAPEX total | B14: =+SUM(B20:B26,B36:B40,B44:B46,B50:B52,B59:B61,B66:B74,B78:B86,B90:B91) -> 596915003.4 | E14: 1 | F14: 2 | G14: 3 | H14: 4 | I14: 5 | J14: 6 | K14: 7 | L14: 8 | M14: 9 | N14: 10 | O14: 11 | P14: 12 | Q14: 13 | R14: 14 | S14: 15 | T14: 16 | U14: 17 | V14: 18 | W14: 19 | X14: 20 | Y14: 21 | Z14: 22 | AA14: 23 | AB14: 24 | AC14: 25 | AD14: 26 | AE14: 27 | AF14: 28 | AG14: 29 | AH14: 30 | AI14: 31 | AJ14: 32 | AK14: 33 | AL14: 34 | AM14: 35 | AN14: 36 | AO14: 37 | AP14: 38 | AQ14: 39 | AR14: 40 | AS14: 41 | AT14: 42 | AU14: 43 | AV14: 44 | AW14: 45 | AX14: 46 | AY14: 47 | AZ14: 48 | BA14: 49 | BB14: 50 | BC14: 51 | BD14: 52 | BE14: 53 | BF14: 54 | BG14: 55 | BH14: 56 | BI14: 57 | BJ14: 58 | BK14: 59 | BL14: 60 | BM14: 61 | BN14: 62 | BO14: 63 | BP14: 64 | BQ14: 65 | BR14: 66 | BS14: 67 | BT14: 68 | BU14: 69 | BV14: 70 | BW14: 71 | BX14: 72 | BY14: 73 | BZ14: 74 | CA14: 75 | CB14: 76 | CC14: 77 | CD14: 78 | CE14: 79 | CF14: 80 | CG14: 81 | CH14: 82 | CI14: 83 | CJ14: 84 | CK14: 85 | CL14: 86 | CM14: 87 | CN14: 88 | CO14: 89 | CP14: 90 | CQ14: 91 | CR14: 92 | CS14: 93 | CT14: 94 | CU14: 95 | CV14: 96 | CW14: 97 | CX14: 98 | CY14: 99 | CZ14: 100 | DA14: 101 | DB14: 102 | DC14: 103 | DD14: 104 | DE14: 105 | DF14: 106 | DG14: 107 | DH14: 108 | DI14: 109 | DJ14: 110 | DK14: 111 | DL14: 112 | DM14: 113 | DN14: 114 | DO14: 115 | DP14: 116 | DQ14: 117 | DR14: 118 | DS14: 119 | DT14: 120 | DU14: 121
A15: Costo total por Usuario | B15: =B5/SubscriptoresSugeridos -> 598535.9825 | F15: 0 | G15: 1 | H15: 2 | I15: 3 | J15: 4 | K15: 5 | L15: 6 | M15: 7 | N15: 8 | O15: 9 | P15: 10 | Q15: 11 | R15: 12 | S15: 13 | T15: 14 | U15: 15 | V15: 16 | W15: 17 | X15: 18 | Y15: 19 | Z15: 20 | AA15: 21 | AB15: 22 | AC15: 23 | AD15: 24 | AE15: 25 | AF15: 26 | AG15: 27 | AH15: 28 | AI15: 29 | AJ15: 30 | AK15: 31 | AL15: 32 | AM15: 33 | AN15: 34 | AO15: 35 | AP15: 36 | AQ15: 37 | AR15: 38 | AS15: 39 | AT15: 40 | AU15: 41 | AV15: 42 | AW15: 43 | AX15: 44 | AY15: 45 | AZ15: 46 | BA15: 47 | BB15: 48 | BC15: 49 | BD15: 50 | BE15: 51 | BF15: 52 | BG15: 53 | BH15: 54 | BI15: 55 | BJ15: 56 | BK15: 57 | BL15: 58 | BM15: 59 | BN15: 60 | BO15: 61 | BP15: 62 | BQ15: 63 | BR15: 64 | BS15: 65 | BT15: 66 | BU15: 67 | BV15: 68 | BW15: 69 | BX15: 70 | BY15: 71 | BZ15: 72 | CA15: 73 | CB15: 74 | CC15: 75 | CD15: 76 | CE15: 77 | CF15: 78 | CG15: 79 | CH15: 80 | CI15: 81 | CJ15: 82 | CK15: 83 | CL15: 84 | CM15: 85 | CN15: 86 | CO15: 87 | CP15: 88 | CQ15: 89 | CR15: 90 | CS15: 91 | CT15: 92 | CU15: 93 | CV15: 94 | CW15: 95 | CX15: 96 | CY15: 97 | CZ15: 98 | DA15: 99 | DB15: 100 | DC15: 101 | DD15: 102 | DE15: 103 | DF15: 104 | DG15: 105 | DH15: 106 | DI15: 107 | DJ15: 108 | DK15: 109 | DL15: 110 | DM15: 111 | DN15: 112 | DO15: 113 | DP15: 114 | DQ15: 115 | DR15: 116 | DS15: 117 | DT15: 118 | DU15: 119 | DV15: 120
A16: CONCEPTO | B16: CAPEX | C16: OPEX | D16: Periodo de Inicio | E16: Periodos a reconocer | F16: =+DATE(YEAR($B$7),MONTH(B7),1) -> 2020-05-01 | G16: =+IF(AND(MONTH(F16)=12,OR(YEAR(F16)=2023,YEAR(F16)=2027)),F16+Datos!$A$11-22,F16+Datos!$A$11) -> 2020-06-01 | H16: =+IF(AND(MONTH(G16)=12,OR(YEAR(G16)=2023,YEAR(G16)=2027)),G16+Datos!$A$11-22,G16+Datos!$A$11) -> 2020-07-02 | I16: =+IF(AND(MONTH(H16)=12,OR(YEAR(H16)=2023,YEAR(H16)=2027)),H16+Datos!$A$11-22,H16+Datos!$A$11) -> 2020-08-02 | J16: =+IF(AND(MONTH(I16)=12,OR(YEAR(I16)=2023,YEAR(I16)=2027)),I16+Datos!$A$11-22,I16+Datos!$A$11) -> 2020-09-02 | K16: =+IF(AND(MONTH(J16)=12,OR(YEAR(J16)=2023,YEAR(J16)=2027)),J16+Datos!$A$11-22,J16+Datos!$A$11) -> 2020-10-03 | L16: =+IF(AND(MONTH(K16)=12,OR(YEAR(K16)=2023,YEAR(K16)=2027)),K16+Datos!$A$11-22,K16+Datos!$A$11) -> 2020-11-03 | M16: =+IF(AND(MONTH(L16)=12,OR(YEAR(L16)=2023,YEAR(L16)=2027)),L16+Datos!$A$11-22,L16+Datos!$A$11) -> 2020-12-04 | N16: =+IF(AND(MONTH(M16)=12,OR(YEAR(M16)=2023,YEAR(M16)=2027)),M16+Datos!$A$11-22,M16+Datos!$A$11) -> 2021-01-04 | O16: =+IF(AND(MONTH(N16)=12,OR(YEAR(N16)=2023,YEAR(N16)=2027)),N16+Datos!$A$11-22,N16+Datos!$A$11) -> 2021-02-04 | P16: =+IF(AND(MONTH(O16)=12,OR(YEAR(O16)=2023,YEAR(O16)=2027)),O16+Datos!$A$11-22,O16+Datos!$A$11) -> 2021-03-07 | Q16: =+IF(AND(MONTH(P16)=12,OR(YEAR(P16)=2023,YEAR(P16)=2027)),P16+Datos!$A$11-22,P16+Datos!$A$11) -> 2021-04-07 | R16: =+IF(AND(MONTH(Q16)=12,OR(YEAR(Q16)=2023,YEAR(Q16)=2027)),Q16+Datos!$A$11-22,Q16+Datos!$A$11) -> 2021-05-08 | S16: =+IF(AND(MONTH(R16)=12,OR(YEAR(R16)=2023,YEAR(R16)=2027)),R16+Datos!$A$11-22,R16+Datos!$A$11) -> 2021-06-08 | T16: =+IF(AND(MONTH(S16)=12,OR(YEAR(S16)=2023,YEAR(S16)=2027)),S16+Datos!$A$11-22,S16+Datos!$A$11) -> 2021-07-09 | U16: =+IF(AND(MONTH(T16)=12,OR(YEAR(T16)=2023,YEAR(T16)=2027)),T16+Datos!$A$11-22,T16+Datos!$A$11) -> 2021-08-09 | V16: =+IF(AND(MONTH(U16)=12,OR(YEAR(U16)=2023,YEAR(U16)=2027)),U16+Datos!$A$11-22,U16+Datos!$A$11) -> 2021-09-09 | W16: =+IF(AND(MONTH(V16)=12,OR(YEAR(V16)=2023,YEAR(V16)=2027)),V16+Datos!$A$11-22,V16+Datos!$A$11) -> 2021-10-10 | X16: =+IF(AND(MONTH(W16)=12,OR(YEAR(W16)=2023,YEAR(W16)=2027)),W16+Datos!$A$11-22,W16+Datos!$A$11) -> 2021-11-10 | Y16: =+IF(AND(MONTH(X16)=12,OR(YEAR(X16)=2023,YEAR(X16)=2027)),X16+Datos!$A$11-22,X16+Datos!$A$11) -> 2021-12-11 | Z16: =+IF(AND(MONTH(Y16)=12,OR(YEAR(Y16)=2023,YEAR(Y16)=2027)),Y16+Datos!$A$11-22,Y16+Datos!$A$11) -> 2022-01-11 | AA16: =+IF(AND(MONTH(Z16)=12,OR(YEAR(Z16)=2023,YEAR(Z16)=2027)),Z16+Datos!$A$11-22,Z16+Datos!$A$11) -> 2022-02-11 | AB16: =+IF(AND(MONTH(AA16)=12,OR(YEAR(AA16)=2023,YEAR(AA16)=2027)),AA16+Datos!$A$11-22,AA16+Datos!$A$11) -> 2022-03-14 | AC16: =+IF(AND(MONTH(AB16)=12,OR(YEAR(AB16)=2023,YEAR(AB16)=2027)),AB16+Datos!$A$11-22,AB16+Datos!$A$11) -> 2022-04-14 | AD16: =+IF(AND(MONTH(AC16)=12,OR(YEAR(AC16)=2023,YEAR(AC16)=2027)),AC16+Datos!$A$11-22,AC16+Datos!$A$11) -> 2022-05-15 | AE16: =+IF(AND(MONTH(AD16)=12,OR(YEAR(AD16)=2023,YEAR(AD16)=2027)),AD16+Datos!$A$11-22,AD16+Datos!$A$11) -> 2022-06-15 | AF16: =+IF(AND(MONTH(AE16)=12,OR(YEAR(AE16)=2023,YEAR(AE16)=2027)),AE16+Datos!$A$11-22,AE16+Datos!$A$11) -> 2022-07-16 | AG16: =+IF(AND(MONTH(AF16)=12,OR(YEAR(AF16)=2023,YEAR(AF16)=2027)),AF16+Datos!$A$11-22,AF16+Datos!$A$11) -> 2022-08-16 | AH16: =+IF(AND(MONTH(AG16)=12,OR(YEAR(AG16)=2023,YEAR(AG16)=2027)),AG16+Datos!$A$11-22,AG16+Datos!$A$11) -> 2022-09-16 | AI16: =+IF(AND(MONTH(AH16)=12,OR(YEAR(AH16)=2023,YEAR(AH16)=2027)),AH16+Datos!$A$11-22,AH16+Datos!$A$11) -> 2022-10-17 | AJ16: =+IF(AND(MONTH(AI16)=12,OR(YEAR(AI16)=2023,YEAR(AI16)=2027)),AI16+Datos!$A$11-22,AI16+Datos!$A$11) -> 2022-11-17 | AK16: =+IF(AND(MONTH(AJ16)=12,OR(YEAR(AJ16)=2023,YEAR(AJ16)=2027)),AJ16+Datos!$A$11-22,AJ16+Datos!$A$11) -> 2022-12-18 | AL16: =+IF(AND(MONTH(AK16)=12,OR(YEAR(AK16)=2023,YEAR(AK16)=2027)),AK16+Datos!$A$11-22,AK16+Datos!$A$11) -> 2023-01-18 | AM16: =+IF(AND(MONTH(AL16)=12,OR(YEAR(AL16)=2023,YEAR(AL16)=2027)),AL16+Datos!$A$11-22,AL16+Datos!$A$11) -> 2023-02-18 | AN16: =+IF(AND(MONTH(AM16)=12,OR(YEAR(AM16)=2023,YEAR(AM16)=2027)),AM16+Datos!$A$11-22,AM16+Datos!$A$11) -> 2023-03-21 | AO16: =+IF(AND(MONTH(AN16)=12,OR(YEAR(AN16)=2023,YEAR(AN16)=2027)),AN16+Datos!$A$11-22,AN16+Datos!$A$11) -> 2023-04-21 | AP16: =+IF(AND(MONTH(AO16)=12,OR(YEAR(AO16)=2023,YEAR(AO16)=2027)),AO16+Datos!$A$11-22,AO16+Datos!$A$11) -> 2023-05-22 | AQ16: =+IF(AND(MONTH(AP16)=12,OR(YEAR(AP16)=2023,YEAR(AP16)=2027)),AP16+Datos!$A$11-22,AP16+Datos!$A$11) -> 2023-06-22 | AR16: =+IF(AND(MONTH(AQ16)=12,OR(YEAR(AQ16)=2023,YEAR(AQ16)=2027)),AQ16+Datos!$A$11-22,AQ16+Datos!$A$11) -> 2023-07-23 | AS16: =+IF(AND(MONTH(AR16)=12,OR(YEAR(AR16)=2023,YEAR(AR16)=2027)),AR16+Datos!$A$11-22,AR16+Datos!$A$11) -> 2023-08-23 | AT16: =+IF(AND(MONTH(AS16)=12,OR(YEAR(AS16)=2023,YEAR(AS16)=2027)),AS16+Datos!$A$11-22,AS16+Datos!$A$11) -> 2023-09-23 | AU16: =+IF(AND(MONTH(AT16)=12,OR(YEAR(AT16)=2023,YEAR(AT16)=2027)),AT16+Datos!$A$11-22,AT16+Datos!$A$11) -> 2023-10-24 | AV16: =+IF(AND(MONTH(AU16)=12,OR(YEAR(AU16)=2023,YEAR(AU16)=2027)),AU16+Datos!$A$11-22,AU16+Datos!$A$11) -> 2023-11-24 | AW16: =+IF(AND(MONTH(AV16)=12,OR(YEAR(AV16)=2023,YEAR(AV16)=2027)),AV16+Datos!$A$11-22,AV16+Datos!$A$11) -> 2023-12-25 | AX16: =+IF(AND(MONTH(AW16)=12,OR(YEAR(AW16)=2023,YEAR(AW16)=2027)),AW16+Datos!$A$11-22,AW16+Datos!$A$11) -> 2024-01-03 | AY16: =+IF(AND(MONTH(AX16)=12,OR(YEAR(AX16)=2023,YEAR(AX16)=2027)),AX16+Datos!$A$11-22,AX16+Datos!$A$11) -> 2024-02-03 | AZ16: =+IF(AND(MONTH(AY16)=12,OR(YEAR(AY16)=2023,YEAR(AY16)=2027)),AY16+Datos!$A$11-22,AY16+Datos!$A$11) -> 2024-03-05 | BA16: =+IF(AND(MONTH(AZ16)=12,OR(YEAR(AZ16)=2023,YEAR(AZ16)=2027)),AZ16+Datos!$A$11-22,AZ16+Datos!$A$11) -> 2024-04-05 | BB16: =+IF(AND(MONTH(BA16)=12,OR(YEAR(BA16)=2023,YEAR(BA16)=2027)),BA16+Datos!$A$11-22,BA16+Datos!$A$11) -> 2024-05-06 | BC16: =+IF(AND(MONTH(BB16)=12,OR(YEAR(BB16)=2023,YEAR(BB16)=2027)),BB16+Datos!$A$11-22,BB16+Datos!$A$11) -> 2024-06-06 | BD16: =+IF(AND(MONTH(BC16)=12,OR(YEAR(BC16)=2023,YEAR(BC16)=2027)),BC16+Datos!$A$11-22,BC16+Datos!$A$11) -> 2024-07-07 | BE16: =+IF(AND(MONTH(BD16)=12,OR(YEAR(BD16)=2023,YEAR(BD16)=2027)),BD16+Datos!$A$11-22,BD16+Datos!$A$11) -> 2024-08-07 | BF16: =+IF(AND(MONTH(BE16)=12,OR(YEAR(BE16)=2023,YEAR(BE16)=2027)),BE16+Datos!$A$11-22,BE16+Datos!$A$11) -> 2024-09-07 | BG16: =+IF(AND(MONTH(BF16)=12,OR(YEAR(BF16)=2023,YEAR(BF16)=2027)),BF16+Datos!$A$11-22,BF16+Datos!$A$11) -> 2024-10-08 | BH16: =+IF(AND(MONTH(BG16)=12,OR(YEAR(BG16)=2023,YEAR(BG16)=2027)),BG16+Datos!$A$11-22,BG16+Datos!$A$11) -> 2024-11-08 | BI16: =+IF(AND(MONTH(BH16)=12,OR(YEAR(BH16)=2023,YEAR(BH16)=2027)),BH16+Datos!$A$11-22,BH16+Datos!$A$11) -> 2024-12-09 | BJ16: =+IF(AND(MONTH(BI16)=12,OR(YEAR(BI16)=2023,YEAR(BI16)=2027)),BI16+Datos!$A$11-22,BI16+Datos!$A$11) -> 2025-01-09 | BK16: =+IF(AND(MONTH(BJ16)=12,OR(YEAR(BJ16)=2023,YEAR(BJ16)=2027)),BJ16+Datos!$A$11-22,BJ16+Datos!$A$11) -> 2025-02-09 | BL16: =+IF(AND(MONTH(BK16)=12,OR(YEAR(BK16)=2023,YEAR(BK16)=2027)),BK16+Datos!$A$11-22,BK16+Datos!$A$11) -> 2025-03-12 | BM16: =+IF(AND(MONTH(BL16)=12,OR(YEAR(BL16)=2023,YEAR(BL16)=2027)),BL16+Datos!$A$11-22,BL16+Datos!$A$11) -> 2025-04-12 | BN16: =+IF(AND(MONTH(BM16)=12,OR(YEAR(BM16)=2023,YEAR(BM16)=2027)),BM16+Datos!$A$11-22,BM16+Datos!$A$11) -> 2025-05-13 | BO16: =+IF(AND(MONTH(BN16)=12,OR(YEAR(BN16)=2023,YEAR(BN16)=2027)),BN16+Datos!$A$11-22,BN16+Datos!$A$11) -> 2025-06-13 | BP16: =+IF(AND(MONTH(BO16)=12,OR(YEAR(BO16)=2023,YEAR(BO16)=2027)),BO16+Datos!$A$11-22,BO16+Datos!$A$11) -> 2025-07-14 | BQ16: =+IF(AND(MONTH(BP16)=12,OR(YEAR(BP16)=2023,YEAR(BP16)=2027)),BP16+Datos!$A$11-22,BP16+Datos!$A$11) -> 2025-08-14 | BR16: =+IF(AND(MONTH(BQ16)=12,OR(YEAR(BQ16)=2023,YEAR(BQ16)=2027)),BQ16+Datos!$A$11-22,BQ16+Datos!$A$11) -> 2025-09-14 | BS16: =+IF(AND(MONTH(BR16)=12,OR(YEAR(BR16)=2023,YEAR(BR16)=2027)),BR16+Datos!$A$11-22,BR16+Datos!$A$11) -> 2025-10-15 | BT16: =+IF(AND(MONTH(BS16)=12,OR(YEAR(BS16)=2023,YEAR(BS16)=2027)),BS16+Datos!$A$11-22,BS16+Datos!$A$11) -> 2025-11-15 | BU16: =+IF(AND(MONTH(BT16)=12,OR(YEAR(BT16)=2023,YEAR(BT16)=2027)),BT16+Datos!$A$11-22,BT16+Datos!$A$11) -> 2025-12-16 | BV16: =+IF(AND(MONTH(BU16)=12,OR(YEAR(BU16)=2023,YEAR(BU16)=2027)),BU16+Datos!$A$11-22,BU16+Datos!$A$11) -> 2026-01-16 | BW16: =+IF(AND(MONTH(BV16)=12,OR(YEAR(BV16)=2023,YEAR(BV16)=2027)),BV16+Datos!$A$11-22,BV16+Datos!$A$11) -> 2026-02-16 | BX16: =+IF(AND(MONTH(BW16)=12,OR(YEAR(BW16)=2023,YEAR(BW16)=2027)),BW16+Datos!$A$11-22,BW16+Datos!$A$11) -> 2026-03-19 | BY16: =+IF(AND(MONTH(BX16)=12,OR(YEAR(BX16)=2023,YEAR(BX16)=2027)),BX16+Datos!$A$11-22,BX16+Datos!$A$11) -> 2026-04-19 | BZ16: =+IF(AND(MONTH(BY16)=12,OR(YEAR(BY16)=2023,YEAR(BY16)=2027)),BY16+Datos!$A$11-22,BY16+Datos!$A$11) -> 2026-05-20 | CA16: =+IF(AND(MONTH(BZ16)=12,OR(YEAR(BZ16)=2023,YEAR(BZ16)=2027)),BZ16+Datos!$A$11-22,BZ16+Datos!$A$11) -> 2026-06-20 | CB16: =+IF(AND(MONTH(CA16)=12,OR(YEAR(CA16)=2023,YEAR(CA16)=2027)),CA16+Datos!$A$11-22,CA16+Datos!$A$11) -> 2026-07-21 | CC16: =+IF(AND(MONTH(CB16)=12,OR(YEAR(CB16)=2023,YEAR(CB16)=2027)),CB16+Datos!$A$11-22,CB16+Datos!$A$11) -> 2026-08-21 | CD16: =+IF(AND(MONTH(CC16)=12,OR(YEAR(CC16)=2023,YEAR(CC16)=2027)),CC16+Datos!$A$11-22,CC16+Datos!$A$11) -> 2026-09-21 | CE16: =+IF(AND(MONTH(CD16)=12,OR(YEAR(CD16)=2023,YEAR(CD16)=2027)),CD16+Datos!$A$11-22,CD16+Datos!$A$11) -> 2026-10-22 | CF16: =+IF(AND(MONTH(CE16)=12,OR(YEAR(CE16)=2023,YEAR(CE16)=2027)),CE16+Datos!$A$11-22,CE16+Datos!$A$11) -> 2026-11-22 | CG16: =+IF(AND(MONTH(CF16)=12,OR(YEAR(CF16)=2023,YEAR(CF16)=2027)),CF16+Datos!$A$11-22,CF16+Datos!$A$11) -> 2026-12-23 | CH16: =+IF(AND(MONTH(CG16)=12,OR(YEAR(CG16)=2023,YEAR(CG16)=2027)),CG16+Datos!$A$11-22,CG16+Datos!$A$11) -> 2027-01-23 | CI16: =+IF(AND(MONTH(CH16)=12,OR(YEAR(CH16)=2023,YEAR(CH16)=2027)),CH16+Datos!$A$11-22,CH16+Datos!$A$11) -> 2027-02-23 | CJ16: =+IF(AND(MONTH(CI16)=12,OR(YEAR(CI16)=2023,YEAR(CI16)=2027)),CI16+Datos!$A$11-22,CI16+Datos!$A$11) -> 2027-03-26 | CK16: =+IF(AND(MONTH(CJ16)=12,OR(YEAR(CJ16)=2023,YEAR(CJ16)=2027)),CJ16+Datos!$A$11-22,CJ16+Datos!$A$11) -> 2027-04-26 | CL16: =+IF(AND(MONTH(CK16)=12,OR(YEAR(CK16)=2023,YEAR(CK16)=2027)),CK16+Datos!$A$11-22,CK16+Datos!$A$11) -> 2027-05-27 | CM16: =+IF(AND(MONTH(CL16)=12,OR(YEAR(CL16)=2023,YEAR(CL16)=2027)),CL16+Datos!$A$11-22,CL16+Datos!$A$11) -> 2027-06-27 | CN16: =+IF(AND(MONTH(CM16)=12,OR(YEAR(CM16)=2023,YEAR(CM16)=2027)),CM16+Datos!$A$11-22,CM16+Datos!$A$11) -> 2027-07-28 | CO16: =+IF(AND(MONTH(CN16)=12,OR(YEAR(CN16)=2023,YEAR(CN16)=2027)),CN16+Datos!$A$11-22,CN16+Datos!$A$11) -> 2027-08-28 | CP16: =+IF(AND(MONTH(CO16)=12,OR(YEAR(CO16)=2023,YEAR(CO16)=2027)),CO16+Datos!$A$11-22,CO16+Datos!$A$11) -> 2027-09-28 | CQ16: =+IF(AND(MONTH(CP16)=12,OR(YEAR(CP16)=2023,YEAR(CP16)=2027)),CP16+Datos!$A$11-22,CP16+Datos!$A$11) -> 2027-10-29 | CR16: =+IF(AND(MONTH(CQ16)=12,OR(YEAR(CQ16)=2023,YEAR(CQ16)=2027)),CQ16+Datos!$A$11-22,CQ16+Datos!$A$11) -> 2027-11-29 | CS16: =+IF(AND(MONTH(CR16)=12,OR(YEAR(CR16)=2023,YEAR(CR16)=2027)),CR16+Datos!$A$11-22,CR16+Datos!$A$11) -> 2027-12-30 | CT16: =+IF(AND(MONTH(CS16)=12,OR(YEAR(CS16)=2023,YEAR(CS16)=2027)),CS16+Datos!$A$11-22,CS16+Datos!$A$11) -> 2028-01-08 | CU16: =+IF(AND(MONTH(CT16)=12,OR(YEAR(CT16)=2023,YEAR(CT16)=2027)),CT16+Datos!$A$11-22,CT16+Datos!$A$11) -> 2028-02-08 | CV16: =+IF(AND(MONTH(CU16)=12,OR(YEAR(CU16)=2023,YEAR(CU16)=2027)),CU16+Datos!$A$11-22,CU16+Datos!$A$11) -> 2028-03-10 | CW16: =+IF(AND(MONTH(CV16)=12,OR(YEAR(CV16)=2023,YEAR(CV16)=2027)),CV16+Datos!$A$11-22,CV16+Datos!$A$11) -> 2028-04-10 | CX16: =+IF(AND(MONTH(CW16)=12,OR(YEAR(CW16)=2023,YEAR(CW16)=2027)),CW16+Datos!$A$11-22,CW16+Datos!$A$11) -> 2028-05-11 | CY16: =+IF(AND(MONTH(CX16)=12,OR(YEAR(CX16)=2023,YEAR(CX16)=2027)),CX16+Datos!$A$11-22,CX16+Datos!$A$11) -> 2028-06-11 | CZ16: =+IF(AND(MONTH(CY16)=12,OR(YEAR(CY16)=2023,YEAR(CY16)=2027)),CY16+Datos!$A$11-22,CY16+Datos!$A$11) -> 2028-07-12 | DA16: =+IF(AND(MONTH(CZ16)=12,OR(YEAR(CZ16)=2023,YEAR(CZ16)=2027)),CZ16+Datos!$A$11-22,CZ16+Datos!$A$11) -> 2028-08-12 | DB16: =+IF(AND(MONTH(DA16)=12,OR(YEAR(DA16)=2023,YEAR(DA16)=2027)),DA16+Datos!$A$11-22,DA16+Datos!$A$11) -> 2028-09-12 | DC16: =+IF(AND(MONTH(DB16)=12,OR(YEAR(DB16)=2023,YEAR(DB16)=2027)),DB16+Datos!$A$11-22,DB16+Datos!$A$11) -> 2028-10-13 | DD16: =+IF(AND(MONTH(DC16)=12,OR(YEAR(DC16)=2023,YEAR(DC16)=2027)),DC16+Datos!$A$11-22,DC16+Datos!$A$11) -> 2028-11-13 | DE16: =+IF(AND(MONTH(DD16)=12,OR(YEAR(DD16)=2023,YEAR(DD16)=2027)),DD16+Datos!$A$11-22,DD16+Datos!$A$11) -> 2028-12-14 | DF16: =+IF(AND(MONTH(DE16)=12,OR(YEAR(DE16)=2023,YEAR(DE16)=2027)),DE16+Datos!$A$11-22,DE16+Datos!$A$11) -> 2029-01-14 | DG16: =+IF(AND(MONTH(DF16)=12,OR(YEAR(DF16)=2023,YEAR(DF16)=2027)),DF16+Datos!$A$11-22,DF16+Datos!$A$11) -> 2029-02-14 | DH16: =+IF(AND(MONTH(DG16)=12,OR(YEAR(DG16)=2023,YEAR(DG16)=2027)),DG16+Datos!$A$11-22,DG16+Datos!$A$11) -> 2029-03-17 | DI16: =+IF(AND(MONTH(DH16)=12,OR(YEAR(DH16)=2023,YEAR(DH16)=2027)),DH16+Datos!$A$11-22,DH16+Datos!$A$11) -> 2029-04-17 | DJ16: =+IF(AND(MONTH(DI16)=12,OR(YEAR(DI16)=2023,YEAR(DI16)=2027)),DI16+Datos!$A$11-22,DI16+Datos!$A$11) -> 2029-05-18 | DK16: =+IF(AND(MONTH(DJ16)=12,OR(YEAR(DJ16)=2023,YEAR(DJ16)=2027)),DJ16+Datos!$A$11-22,DJ16+Datos!$A$11) -> 2029-06-18 | DL16: =+IF(AND(MONTH(DK16)=12,OR(YEAR(DK16)=2023,YEAR(DK16)=2027)),DK16+Datos!$A$11-22,DK16+Datos!$A$11) -> 2029-07-19 | DM16: =+IF(AND(MONTH(DL16)=12,OR(YEAR(DL16)=2023,YEAR(DL16)=2027)),DL16+Datos!$A$11-22,DL16+Datos!$A$11) -> 2029-08-19 | DN16: =+IF(AND(MONTH(DM16)=12,OR(YEAR(DM16)=2023,YEAR(DM16)=2027)),DM16+Datos!$A$11-22,DM16+Datos!$A$11) -> 2029-09-19 | DO16: =+IF(AND(MONTH(DN16)=12,OR(YEAR(DN16)=2023,YEAR(DN16)=2027)),DN16+Datos!$A$11-22,DN16+Datos!$A$11) -> 2029-10-20 | DP16: =+IF(AND(MONTH(DO16)=12,OR(YEAR(DO16)=2023,YEAR(DO16)=2027)),DO16+Datos!$A$11-22,DO16+Datos!$A$11) -> 2029-11-20 | DQ16: =+IF(AND(MONTH(DP16)=12,OR(YEAR(DP16)=2023,YEAR(DP16)=2027)),DP16+Datos!$A$11-22,DP16+Datos!$A$11) -> 2029-12-21 | DR16: =+IF(AND(MONTH(DQ16)=12,OR(YEAR(DQ16)=2023,YEAR(DQ16)=2027)),DQ16+Datos!$A$11-22,DQ16+Datos!$A$11) -> 2030-01-21 | DS16: =+IF(AND(MONTH(DR16)=12,OR(YEAR(DR16)=2023,YEAR(DR16)=2027)),DR16+Datos!$A$11-22,DR16+Datos!$A$11) -> 2030-02-21 | DT16: =+IF(AND(MONTH(DS16)=12,OR(YEAR(DS16)=2023,YEAR(DS16)=2027)),DS16+Datos!$A$11-22,DS16+Datos!$A$11) -> 2030-03-24 | DU16: =+IF(AND(MONTH(DT16)=12,OR(YEAR(DT16)=2023,YEAR(DT16)=2027)),DT16+Datos!$A$11-22,DT16+Datos!$A$11) -> 2030-04-24 | DV16: =+IF(AND(MONTH(DU16)=12,OR(YEAR(DU16)=2023,YEAR(DU16)=2027)),DU16+Datos!$A$11-22,DU16+Datos!$A$11) -> 2030-05-25
A17: =+'Parametros tecnológicos'!C4 -> 5G | F17: =+IF($A17="","",$B17+IF(MONTH($B$8)-MONTH($B$7)+$E$14=E$14,$C17,0)) -> 0 | G17: =+(IF($A17="","",IF($D17>MONTH(G$16)-MONTH(InicioFuncion)+12*(YEAR(G$16)-YEAR(InicioFuncion))+1,0,IF($E17<=(MONTH(G$16)-MONTH(InicioFuncion)+12*(YEAR(G$16)-YEAR(InicioFuncion)))-$D17,0,IF(G$15>$B$9,0,IF((YEAR($B$8)-YEAR($B$7))*12+(MONTH($B$8)-MONTH($B$7))+$E$14<=F$14,$C17))))*HLOOKUP(YEAR(G$16),$E$3:$O$5,3,0))) -> 0 | H17: 0 | I17: 0 | J17: 0 | K17: 0 | L17: 0 | M17: 0 | N17: 0 | O17: 0 | P17: 0 | Q17: 0 | R17: 0 | S17: 0 | T17: 0 | U17: 0 | V17: 0 | W17: 0 | X17: 0 | Y17: 0 | Z17: 0 | AA17: 0 | AB17: 0 | AC17: 0 | AD17: 0 | AE17: 0 | AF17: 0 | AG17: 0 | AH17: 0 | AI17: 0 | AJ17: 0 | AK17: 0 | AL17: 0 | AM17: =+(IF($A17="","",IF($D17>MONTH(AM$16)-MONTH(InicioFuncion)+12*(YEAR(AM$16)-YEAR(InicioFuncion))+1,0,IF($E17<=(MONTH(AM$16)-MONTH(InicioFuncion)+12*(YEAR(AM$16)-YEAR(InicioFuncion)))-$D17,0,IF(AM$15>$B$9,0,IF((YEAR($B$8)-YEAR($B$7))*12+(MONTH($B$8)-MONTH($B$7))+$E$14<=AL$14,$C17))))*HLOOKUP(YEAR(AM$16),$E$3:$O$5,3,0))) -> 0 | AN17: 0 | AO17: 0 | AP17: 0 | AQ17: 0 | AR17: 0 | AS17: 0 | AT17: 0 | AU17: 0 | AV17: 0 | AW17: 0 | AX17: 0 | AY17: 0 | AZ17: 0 | BA17: 0 | BB17: 0 | BC17: 0 | BD17: 0 | BE17: 0 | BF17: 0 | BG17: 0 | BH17: 0 | BI17: 0 | BJ17: 0 | BK17: 0 | BL17: 0 | BM17: 0 | BN17: 0 | BO17: 0 | BP17: 0 | BQ17: 0 | BR17: 0 | BS17: =+(IF($A17="","",IF($D17>MONTH(BS$16)-MONTH(InicioFuncion)+12*(YEAR(BS$16)-YEAR(InicioFuncion))+1,0,IF($E17<=(MONTH(BS$16)-MONTH(InicioFuncion)+12*(YEAR(BS$16)-YEAR(InicioFuncion)))-$D17,0,IF(BS$15>$B$9,0,IF((YEAR($B$8)-YEAR($B$7))*12+(MONTH($B$8)-MONTH($B$7))+$E$14<=BR$14,$C17))))*HLOOKUP(YEAR(BS$16),$E$3:$O$5,3,0))) -> 0 | BT17: 0 | BU17: 0 | BV17: 0 | BW17: 0 | BX17: 0 | BY17: 0 | BZ17: 0 | CA17: 0 | CB17: 0 | CC17: 0 | CD17: 0 | CE17: 0 | CF17: 0 | CG17: 0 | CH17: 0 | CI17: 0 | CJ17: 0 | CK17: 0 | CL17: 0 | CM17: 0 | CN17: 0 | CO17: 0 | CP17: 0 | CQ17: 0 | CR17: 0 | CS17: 0 | CT17: 0 | CU17: 0 | CV17: 0 | CW17: 0 | CX17: 0 | CY17: =+(IF($A17="","",IF($D17>MONTH(CY$16)-MONTH(InicioFuncion)+12*(YEAR(CY$16)-YEAR(InicioFuncion))+1,0,IF($E17<=(MONTH(CY$16)-MONTH(InicioFuncion)+12*(YEAR(CY$16)-YEAR(InicioFuncion)))-$D17,0,IF(CY$15>$B$9,0,IF((YEAR($B$8)-YEAR($B$7))*12+(MONTH($B$8)-MONTH($B$7))+$E$14<=CX$14,$C17))))*HLOOKUP(YEAR(CY$16),$E$3:$O$5,3,0))) -> 0 | CZ17: 0 | DA17: 0 | DB17: 0 | DC17: 0 | DD17: 0 | DE17: 0 | DF17: 0 | DG17: 0 | DH17: 0 | DI17: 0 | DJ17: 0 | DK17: 0 | DL17: 0 | DM17: 0 | DN17: 0 | DO17: 0 | DP17: 0 | DQ17: 0 | DR17: 0 | DS17: 0 | DT17: 0 | DU17: 0 | DV17: 0
A18: 4G / 5G / FWA | F18: 0 | G18: =+(IF($A18="","",IF($D18>MONTH(G$16)-MONTH(InicioFuncion)+12*(YEAR(G$16)-YEAR(InicioFuncion))+1,0,IF($E18<=(MONTH(G$16)-MONTH(InicioFuncion)+12*(YEAR(G$16)-YEAR(InicioFuncion)))-$D18,0,IF(G$15>$B$9,0,IF((YEAR($B$8)-YEAR($B$7))*12+(MONTH($B$8)-MONTH($B$7))+$E$14<=F$14,$C18))))*HLOOKUP(YEAR(G$16),$E$3:$O$5,3,0))) -> 0 | H18: 0 | I18: 0 | J18: 0 | K18: 0 | L18: 0 | M18: 0 | N18: 0 | O18: 0 | P18: 0 | Q18: 0 | R18: 0 | S18: 0 | T18: 0 | U18: 0 | V18: 0 | W18: 0 | X18: 0 | Y18: 0 | Z18: 0 | AA18: 0 | AB18: 0 | AC18: 0 | AD18: 0 | AE18: 0 | AF18: 0 | AG18: 0 | AH18: 0 | AI18: 0 | AJ18: 0 | AK18: 0 | AL18: 0 | AM18: =+(IF($A18="","",IF($D18>MONTH(AM$16)-MONTH(InicioFuncion)+12*(YEAR(AM$16)-YEAR(InicioFuncion))+1,0,IF($E18<=(MONTH(AM$16)-MONTH(InicioFuncion)+12*(YEAR(AM$16)-YEAR(InicioFuncion)))-$D18,0,IF(AM$15>$B$9,0,IF((YEAR($B$8)-YEAR($B$7))*12+(MONTH($B$8)-MONTH($B$7))+$E$14<=AL$14,$C18))))*HLOOKUP(YEAR(AM$16),$E$3:$O$5,3,0))) -> 0 | AN18: 0 | AO18: 0 | AP18: 0 | AQ18: 0 | AR18: 0 | AS18: 0 | AT18: 0 | AU18: 0 | AV18: 0 | AW18: 0 | AX18: 0 | AY18: 0 | AZ18: 0 | BA18: 0 | BB18: 0 | BC18: 0 | BD18: 0 | BE18: 0 | BF18: 0 | BG18: 0 | BH18: 0 | BI18: 0 | BJ18: 0 | BK18: 0 | BL18: 0 | BM18: 0 | BN18: 0 | BO18: 0 | BP18: 0 | BQ18: 0 | BR18: 0 | BS18: =+(IF($A18="","",IF($D18>MONTH(BS$16)-MONTH(InicioFuncion)+12*(YEAR(BS$16)-YEAR(InicioFuncion))+1,0,IF($E18<=(MONTH(BS$16)-MONTH(InicioFuncion)+12*(YEAR(BS$16)-YEAR(InicioFuncion)))-$D18,0,IF(BS$15>$B$9,0,IF((YEAR($B$8)-YEAR($B$7))*12+(MONTH($B$8)-MONTH($B$7))+$E$14<=BR$14,$C18))))*HLOOKUP(YEAR(BS$16),$E$3:$O$5,3,0))) -> 0 | BT18: 0 | BU18: 0 | BV18: 0 | BW18: 0 | BX18: 0 | BY18: 0 | BZ18: 0 | CA18: 0 | CB18: 0 | CC18: 0 | CD18: 0 | CE18: 0 | CF18: 0 | CG18: 0 | CH18: 0 | CI18: 0 | CJ18: 0 | CK18: 0 | CL18: 0 | CM18: 0 | CN18: 0 | CO18: 0 | CP18: 0 | CQ18: 0 | CR18: 0 | CS18: 0 | CT18: 0 | CU18: 0 | CV18: 0 | CW18: 0 | CX18: 0 | CY18: =+(IF($A18="","",IF($D18>MONTH(CY$16)-MONTH(InicioFuncion)+12*(YEAR(CY$16)-YEAR(InicioFuncion))+1,0,IF($E18<=(MONTH(CY$16)-MONTH(InicioFuncion)+12*(YEAR(CY$16)-YEAR(InicioFuncion)))-$D18,0,IF(CY$15>$B$9,0,IF((YEAR($B$8)-YEAR($B$7))*12+(MONTH($B$8)-MONTH($B$7))+$E$14<=CX$14,$C18))))*HLOOKUP(YEAR(CY$16),$E$3:$O$5,3,0))) -> 0 | CZ18: 0 | DA18: 0 | DB18: 0 | DC18: 0 | DD18: 0 | DE18: 0 | DF18: 0 | DG18: 0 | DH18: 0 | DI18: 0 | DJ18: 0 | DK18: 0 | DL18: 0 | DM18: 0 | DN18: 0 | DO18: 0 | DP18: 0 | DQ18: 0 | DR18: 0 | DS18: 0 | DT18: 0 | DU18: 0 | DV18: 0
A19: Consumo Combustible / Mensual | C19: =+SUMIFS(ValoresMercado,Conceptos,A19,Tipo,TipoEspecifico,Relacion,KW_EnergiaValor) -> 2809113.16 | D19: 5 | E19: =+MesesReconocimiento -> 56 | F19: 0 | G19: =+(IF($A19="","",IF($D19>MONTH(G$16)-MONTH(InicioFuncion)+12*(YEAR(G$16)-YEAR(InicioFuncion))+1,0,IF($E19<=(MONTH(G$16)-MONTH(InicioFuncion)+12*(YEAR(G$16)-YEAR(InicioFuncion)))-$D19+IF($D19<>"",1,0),0,IF(G$15>$B$9,0,IF((YEAR($B$8)-YEAR($B$7))*12+(MONTH($B$8)-MONTH($B$7))+$E$14<=F$14,$C19))))*HLOOKUP(YEAR(G$16),$E$3:$O$5,3,0))) -> 0 | H19: 0 | I19: 0 | J19: 0 | K19: 0 | L19: 2809113.16 | M19: 2809113.16 | N19: 2893386.555 | O19: 2893386.555 | P19: 2893386.555 | Q19: 2893386.555 | R19: 2893386.555 | S19: 2893386.555 | T19: 2893386.555 | U19: 2893386.555 | V19: 2893386.555 | W19: 2893386.555 | X19: 2893386.555 | Y19: 2893386.555 | Z19: 2980188.151 | AA19: 2980188.151 | AB19: 2980188.151 | AC19: 2980188.151 | AD19: 2980188.151 | AE19: 2980188.151 | AF19: 2980188.151 | AG19: 2980188.151 | AH19: 2980188.151 | AI19: 2980188.151 | AJ19: 2980188.151 | AK19: 2980188.151 | AL19: 3069593.796 | AM19: =+(IF($A19="","",IF($D19>MONTH(AM$16)-MONTH(InicioFuncion)+12*(YEAR(AM$16)-YEAR(InicioFuncion))+1,0,IF($E19<=(MONTH(AM$16)-MONTH(InicioFuncion)+12*(YEAR(AM$16)-YEAR(InicioFuncion)))-$D19+IF($D19<>"",1,0),0,IF(AM$15>$B$9,0,IF((YEAR($B$8)-YEAR($B$7))*12+(MONTH($B$8)-MONTH($B$7))+$E$14<=AL$14,$C19))))*HLOOKUP(YEAR(AM$16),$E$3:$O$5,3,0))) -> 3069593.796 | AN19: 3069593.796 | AO19: 3069593.796 | AP19: 3069593.796 | AQ19: 3069593.796 | AR19: 3069593.796 | AS19: 3069593.796 | AT19: 3069593.796 | AU19: 3069593.796 | AV19: 3069593.796 | AW19: 3069593.796 | AX19: 3161681.61 | AY19: 3161681.61 | AZ19: 3161681.61 | BA19: 3161681.61 | BB19: 3161681.61 | BC19: 3161681.61 | BD19: 3161681.61 | BE19: 3161681.61 | BF19: 3161681.61 | BG19: 3161681.61 | BH19: 3161681.61 | BI19: 3161681.61 | BJ19: 3256532.058 | BK19: 0 | BL19: 0 | BM19: 0 | BN19: 0 | BO19: 0 | BP19: 0 | BQ19: 0 | BR19: 0 | BS19: =+(IF($A19="","",IF($D19>MONTH(BS$16)-MONTH(InicioFuncion)+12*(YEAR(BS$16)-YEAR(InicioFuncion))+1,0,IF($E19<=(MONTH(BS$16)-MONTH(InicioFuncion)+12*(YEAR(BS$16)-YEAR(InicioFuncion)))-$D19+IF($D19<>"",1,0),0,IF(BS$15>$B$9,0,IF((YEAR($B$8)-YEAR($B$7))*12+(MONTH($B$8)-MONTH($B$7))+$E$14<=BR$14,$C19))))*HLOOKUP(YEAR(BS$16),$E$3:$O$5,3,0))) -> 0 | BT19: 0 | BU19: 0 | BV19: 0 | BW19: 0 | BX19: 0 | BY19: 0 | BZ19: 0 | CA19: 0 | CB19: 0 | CC19: 0 | CD19: 0 | CE19: 0 | CF19: 0 | CG19: 0 | CH19: 0 | CI19: 0 | CJ19: 0 | CK19: 0 | CL19: 0 | CM19: 0 | CN19: 0 | CO19: 0 | CP19: 0 | CQ19: 0 | CR19: 0 | CS19: 0 | CT19: 0 | CU19: 0 | CV19: 0 | CW19: 0 | CX19: 0 | CY19: =+(IF($A19="","",IF($D19>MONTH(CY$16)-MONTH(InicioFuncion)+12*(YEAR(CY$16)-YEAR(InicioFuncion))+1,0,IF($E19<=(MONTH(CY$16)-MONTH(InicioFuncion)+12*(YEAR(CY$16)-YEAR(InicioFuncion)))-$D19+IF($D19<>"",1,0),0,IF(CY$15>$B$9,0,IF((YEAR($B$8)-YEAR($B$7))*12+(MONTH($B$8)-MONTH($B$7))+$E$14<=CX$14,$C19))))*HLOOKUP(YEAR(CY$16),$E$3:$O$5,3,0))) -> 0 | CZ19: 0 | DA19: 0 | DB19: 0 | DC19: 0 | DD19: 0 | DE19: 0 | DF19: 0 | DG19: 0 | DH19: 0 | DI19: 0 | DJ19: 0 | DK19: 0 | DL19: 0 | DM19: 0 | DN19: 0 | DO19: 0 | DP19: 0 | DQ19: 0 | DR19: 0 | DS19: 0 | DT19: 0 | DU19: 0 | DV19: 0
A20: Digital EnodeB | B20: =+SUMIFS(ValoresMercado,Conceptos,A20,Relacion,TmcBw,RangoSectorEnodeb,SectorEnodeb) -> 76824981.92 | E20: 56 | F20: =+IF($A20="","",IF($D20=F$15,$B20+IF(MONTH($B$8)-MONTH($B$7)+$E$14=E$14,$C20,0),0)) -> 76824981.92 | G20: =+IF($A20="","",IF($D20=G$15,$B20+IF(MONTH($B$8)-MONTH($B$7)+$E$14=F$14,$C20,0),0)) -> 0 | H20: 0 | I20: 0 | J20: 0 | K20: 0 | L20: 0 | M20: 0 | N20: 0 | O20: 0 | P20: 0 | Q20: 0 | R20: 0 | S20: 0 | T20: 0 | U20: 0 | V20: 0 | W20: 0 | X20: 0 | Y20: 0 | Z20: 0 | AA20: 0 | AB20: 0 | AC20: 0 | AD20: 0 | AE20: 0 | AF20: 0 | AG20: 0 | AH20: 0 | AI20: 0 | AJ20: 0 | AK20: 0 | AL20: 0 | AM20: 0 | AN20: 0 | AO20: 0 | AP20: 0 | AQ20: 0 | AR20: 0 | AS20: 0 | AT20: 0 | AU20: 0 | AV20: 0 | AW20: 0 | AX20: 0 | AY20: 0 | AZ20: 0 | BA20: 0 | BB20: 0 | BC20: 0 | BD20: 0 | BE20: 0 | BF20: 0 | BG20: 0 | BH20: 0 | BI20: 0 | BJ20: 0 | BK20: 0 | BL20: 0 | BM20: 0 | BN20: 0 | BO20: 0 | BP20: 0 | BQ20: 0 | BR20: 0 | BS20: =+IF($A20="","",IF($D20=BS$15,$B20+IF(MONTH($B$8)-MONTH($B$7)+$E$14=BR$14,$C20,0),0)) -> 0 | BT20: 0 | BU20: 0 | BV20: 0 | BW20: 0 | BX20: 0 | BY20: 0 | BZ20: 0 | CA20: 0 | CB20: 0 | CC20: 0 | CD20: 0 | CE20: 0 | CF20: 0 | CG20: 0 | CH20: 0 | CI20: 0 | CJ20: 0 | CK20: 0 | CL20: 0 | CM20: 0 | CN20: 0 | CO20: 0 | CP20: 0 | CQ20: 0 | CR20: 0 | CS20: 0 | CT20: 0 | CU20: 0 | CV20: 0 | CW20: 0 | CX20: 0 | CY20: 0 | CZ20: 0 | DA20: 0 | DB20: 0 | DC20: 0 | DD20: 0 | DE20: 0 | DF20: 0 | DG20: 0 | DH20: 0 | DI20: 0 | DJ20: 0 | DK20: 0 | DL20: 0 | DM20: 0 | DN20: 0 | DO20: 0 | DP20: 0 | DQ20: 0 | DR20: 0 | DS20: 0 | DT20: 0 | DU20: 0 | DV20: 0
A21: Antena De Transmision | B21: =+SUMIFS(ValoresMercado,Conceptos,A21,Relacion,DiametroAntenaMts) -> 5501720 | E21: 56 | F21: 5501720 | G21: 0 | H21: 0 | I21: 0 | J21: 0 | K21: 0 | L21: 0 | M21: 0 | N21: 0 | O21: 0 | P21: 0 | Q21: 0 | R21: 0 | S21: 0 | T21: 0 | U21: 0 | V21: 0 | W21: 0 | X21: 0 | Y21: 0 | Z21: 0 | AA21: 0 | AB21: 0 | AC21: 0 | AD21: 0 | AE21: 0 | AF21: 0 | AG21: 0 | AH21: 0 | AI21: 0 | AJ21: 0 | AK21: 0 | AL21: 0 | AM21: 0 | AN21: 0 | AO21: 0 | AP21: 0 | AQ21: 0 | AR21: 0 | AS21: 0 | AT21: 0 | AU21: 0 | AV21: 0 | AW21: 0 | AX21: 0 | AY21: 0 | AZ21: 0 | BA21: 0 | BB21: 0 | BC21: 0 | BD21: 0 | BE21: 0 | BF21: 0 | BG21: 0 | BH21: 0 | BI21: 0 | BJ21: 0 | BK21: 0 | BL21: 0 | BM21: 0 | BN21: 0 | BO21: 0 | BP21: 0 | BQ21: 0 | BR21: 0 | BS21: 0 | BT21: 0 | BU21: 0 | BV21: 0 | BW21: 0 | BX21: 0 | BY21: 0 | BZ21: 0 | CA21: 0 | CB21: 0 | CC21: 0 | CD21: 0 | CE21: 0 | CF21: 0 | CG21: 0 | CH21: 0 | CI21: 0 | CJ21: 0 | CK21: 0 | CL21: 0 | CM21: 0 | CN21: 0 | CO21: 0 | CP21: 0 | CQ21: 0 | CR21: 0 | CS21: 0 | CT21: 0 | CU21: 0 | CV21: 0 | CW21: 0 | CX21: 0 | CY21: 0 | CZ21: 0 | DA21: 0 | DB21: 0 | DC21: 0 | DD21: 0 | DE21: 0 | DF21: 0 | DG21: 0 | DH21: 0 | DI21: 0 | DJ21: 0 | DK21: 0 | DL21: 0 | DM21: 0 | DN21: 0 | DO21: 0 | DP21: 0 | DQ21: 0 | DR21: 0 | DS21: 0 | DT21: 0 | DU21: 0 | DV21: 0
A22: Equipos terminales enlace MW - HTSB | B22: =+SUMIFS(ValoresMercado,Conceptos,A22,Detalle,MWEquiposHTSB) -> 162609440 | E22: 56 | F22: 162609440 | G22: 0 | H22: 0 | I22: 0 | J22: 0 | K22: 0 | L22: 0 | M22: 0 | N22: 0 | O22: 0 | P22: 0 | Q22: 0 | R22: 0 | S22: 0 | T22: 0 | U22: 0 | V22: 0 | W22: 0 | X22: 0 | Y22: 0 | Z22: 0 | AA22: 0 | AB22: 0 | AC22: 0 | AD22: 0 | AE22: 0 | AF22: 0 | AG22: 0 | AH22: 0 | AI22: 0 | AJ22: 0 | AK22: 0 | AL22: 0 | AM22: 0 | AN22: 0 | AO22: 0 | AP22: 0 | AQ22: 0 | AR22: 0 | AS22: 0 | AT22: 0 | AU22: 0 | AV22: 0 | AW22: 0 | AX22: 0 | AY22: 0 | AZ22: 0 | BA22: 0 | BB22: 0 | BC22: 0 | BD22: 0 | BE22: 0 | BF22: 0 | BG22: 0 | BH22: 0 | BI22: 0 | BJ22: 0 | BK22: 0 | BL22: 0 | BM22: 0 | BN22: 0 | BO22: 0 | BP22: 0 | BQ22: 0 | BR22: 0 | BS22: 0 | BT22: 0 | BU22: 0 | BV22: 0 | BW22: 0 | BX22: 0 | BY22: 0 | BZ22: 0 | CA22: 0 | CB22: 0 | CC22: 0 | CD22: 0 | CE22: 0 | CF22: 0 | CG22: 0 | CH22: 0 | CI22: 0 | CJ22: 0 | CK22: 0 | CL22: 0 | CM22: 0 | CN22: 0 | CO22: 0 | CP22: 0 | CQ22: 0 | CR22: 0 | CS22: 0 | CT22: 0 | CU22: 0 | CV22: 0 | CW22: 0 | CX22: 0 | CY22: 0 | CZ22: 0 | DA22: 0 | DB22: 0 | DC22: 0 | DD22: 0 | DE22: 0 | DF22: 0 | DG22: 0 | DH22: 0 | DI22: 0 | DJ22: 0 | DK22: 0 | DL22: 0 | DM22: 0 | DN22: 0 | DO22: 0 | DP22: 0 | DQ22: 0 | DR22: 0 | DS22: 0 | DT22: 0 | DU22: 0 | DV22: 0
A23: Instalación Enodeb Tipo1 | B23: =+SUMIFS(ValoresMercado,Conceptos,A23,Relacion,TmcBw,Tipo,TipoEspecifico) -> 14587755.86 | E23: 56 | F23: 14587755.86 | G23: =+IF($A23="","",IF($D23=G$15,$B23+IF(MONTH($B$8)-MONTH($B$7)+$E$14=F$14,$C23,0),0)) -> 0 | H23: 0 | I23: 0 | J23: 0 | K23: 0 | L23: 0 | M23: 0 | N23: 0 | O23: 0 | P23: 0 | Q23: 0 | R23: 0 | S23: 0 | T23: 0 | U23: 0 | V23: 0 | W23: 0 | X23: 0 | Y23: 0 | Z23: 0 | AA23: 0 | AB23: 0 | AC23: 0 | AD23: 0 | AE23: 0 | AF23: 0 | AG23: 0 | AH23: 0 | AI23: 0 | AJ23: 0 | AK23: 0 | AL23: 0 | AM23: 0 | AN23: 0 | AO23: 0 | AP23: 0 | AQ23: 0 | AR23: 0 | AS23: 0 | AT23: 0 | AU23: 0 | AV23: 0 | AW23: 0 | AX23: 0 | AY23: 0 | AZ23: 0 | BA23: 0 | BB23: 0 | BC23: 0 | BD23: 0 | BE23: 0 | BF23: 0 | BG23: 0 | BH23: 0 | BI23: 0 | BJ23: 0 | BK23: 0 | BL23: 0 | BM23: 0 | BN23: 0 | BO23: 0 | BP23: 0 | BQ23: 0 | BR23: 0 | BS23: 0 | BT23: 0 | BU23: 0 | BV23: 0 | BW23: 0 | BX23: 0 | BY23: 0 | BZ23: 0 | CA23: 0 | CB23: 0 | CC23: 0 | CD23: 0 | CE23: 0 | CF23: 0 | CG23: 0 | CH23: 0 | CI23: 0 | CJ23: 0 | CK23: 0 | CL23: 0 | CM23: 0 | CN23: 0 | CO23: 0 | CP23: 0 | CQ23: 0 | CR23: 0 | CS23: 0 | CT23: 0 | CU23: 0 | CV23: 0 | CW23: 0 | CX23: =+IF($A23="","",IF($D23=CX$15,$B23+IF(MONTH($B$8)-MONTH($B$7)+$E$14=CW$14,$C23,0),0)) -> 0 | CY23: 0 | CZ23: 0 | DA23: 0 | DB23: 0 | DC23: 0 | DD23: 0 | DE23: 0 | DF23: 0 | DG23: 0 | DH23: 0 | DI23: 0 | DJ23: 0 | DK23: 0 | DL23: 0 | DM23: 0 | DN23: 0 | DO23: 0 | DP23: 0 | DQ23: 0 | DR23: 0 | DS23: 0 | DT23: 0 | DU23: 0 | DV23: 0
A24: Instalación Enodeb Tipo2 | B24: =+SUMIFS(ValoresMercado,Conceptos,A24,Relacion,TmcBw,Tipo,TipoEspecifico) -> 0 | E24: 56 | F24: 0 | G24: 0 | H24: 0 | I24: 0 | J24: 0 | K24: 0 | L24: 0 | M24: 0 | N24: 0 | O24: 0 | P24: 0 | Q24: 0 | R24: 0 | S24: 0 | T24: 0 | U24: 0 | V24: 0 | W24: 0 | X24: 0 | Y24: 0 | Z24: 0 | AA24: 0 | AB24: 0 | AC24: 0 | AD24: 0 | AE24: 0 | AF24: 0 | AG24: 0 | AH24: 0 | AI24: 0 | AJ24: 0 | AK24: 0 | AL24: 0 | AM24: 0 | AN24: 0 | AO24: 0 | AP24: 0 | AQ24: 0 | AR24: 0 | AS24: 0 | AT24: 0 | AU24: 0 | AV24: 0 | AW24: 0 | AX24: 0 | AY24: 0 | AZ24: 0 | BA24: 0 | BB24: 0 | BC24: 0 | BD24: 0 | BE24: 0 | BF24: 0 | BG24: 0 | BH24: 0 | BI24: 0 | BJ24: 0 | BK24: 0 | BL24: 0 | BM24: 0 | BN24: 0 | BO24: 0 | BP24: 0 | BQ24: 0 | BR24: 0 | BS24: =+IF($A24="","",IF($D24=BS$15,$B24+IF(MONTH($B$8)-MONTH($B$7)+$E$14=BR$14,$C24,0),0)) -> 0 | BT24: 0 | BU24: 0 | BV24: 0 | BW24: 0 | BX24: 0 | BY24: 0 | BZ24: 0 | CA24: 0 | CB24: 0 | CC24: 0 | CD24: 0 | CE24: 0 | CF24: 0 | CG24: 0 | CH24: 0 | CI24: 0 | CJ24: 0 | CK24: 0 | CL24: 0 | CM24: 0 | CN24: 0 | CO24: 0 | CP24: 0 | CQ24: 0 | CR24: 0 | CS24: 0 | CT24: 0 | CU24: 0 | CV24: 0 | CW24: 0 | CX24: 0 | CY24: 0 | CZ24: 0 | DA24: 0 | DB24: 0 | DC24: 0 | DD24: 0 | DE24: 0 | DF24: 0 | DG24: 0 | DH24: 0 | DI24: 0 | DJ24: 0 | DK24: 0 | DL24: 0 | DM24: 0 | DN24: 0 | DO24: 0 | DP24: 0 | DQ24: 0 | DR24: 0 | DS24: 0 | DT24: 0 | DU24: 0 | DV24: 0
A25: Instalación Enodeb Tipo3 | B25: =+SUMIFS(ValoresMercado,Conceptos,A25,Relacion,TmcBw,Tipo,TipoEspecifico) -> 0 | E25: 56 | F25: 0 | G25: 0 | H25: 0 | I25: 0 | J25: 0 | K25: 0 | L25: 0 | M25: 0 | N25: 0 | O25: 0 | P25: 0 | Q25: 0 | R25: 0 | S25: 0 | T25: 0 | U25: 0 | V25: 0 | W25: 0 | X25: 0 | Y25: 0 | Z25: 0 | AA25: 0 | AB25: 0 | AC25: 0 | AD25: 0 | AE25: 0 | AF25: 0 | AG25: 0 | AH25: 0 | AI25: 0 | AJ25: 0 | AK25: 0 | AL25: 0 | AM25: 0 | AN25: 0 | AO25: 0 | AP25: 0 | AQ25: 0 | AR25: 0 | AS25: 0 | AT25: 0 | AU25: 0 | AV25: 0 | AW25: 0 | AX25: 0 | AY25: 0 | AZ25: 0 | BA25: 0 | BB25: 0 | BC25: 0 | BD25: 0 | BE25: 0 | BF25: 0 | BG25: 0 | BH25: 0 | BI25: 0 | BJ25: 0 | BK25: 0 | BL25: 0 | BM25: 0 | BN25: 0 | BO25: 0 | BP25: 0 | BQ25: 0 | BR25: 0 | BS25: 0 | BT25: 0 | BU25: 0 | BV25: 0 | BW25: 0 | BX25: 0 | BY25: 0 | BZ25: 0 | CA25: 0 | CB25: 0 | CC25: 0 | CD25: 0 | CE25: 0 | CF25: 0 | CG25: 0 | CH25: 0 | CI25: 0 | CJ25: 0 | CK25: 0 | CL25: 0 | CM25: 0 | CN25: 0 | CO25: 0 | CP25: 0 | CQ25: 0 | CR25: 0 | CS25: 0 | CT25: 0 | CU25: 0 | CV25: 0 | CW25: 0 | CX25: 0 | CY25: 0 | CZ25: 0 | DA25: 0 | DB25: 0 | DC25: 0 | DD25: 0 | DE25: 0 | DF25: 0 | DG25: 0 | DH25: 0 | DI25: 0 | DJ25: 0 | DK25: 0 | DL25: 0 | DM25: 0 | DN25: 0 | DO25: 0 | DP25: 0 | DQ25: 0 | DR25: 0 | DS25: 0 | DT25: 0 | DU25: 0 | DV25: 0
A26: Licencias | B26: =+SUMIFS(ValoresMercado,Conceptos,A26,Relacion,TmcBw,RangoSectorEnodeb,SectorEnodeb) -> 36785280 | E26: 56 | F26: 36785280 | G26: =+IF($A26="","",IF($D26=G$15,$B26+IF(MONTH($B$8)-MONTH($B$7)+$E$14=F$14,$C26,0),0)) -> 0 | H26: 0 | I26: 0 | J26: 0 | K26: 0 | L26: 0 | M26: 0 | N26: 0 | O26: 0 | P26: 0 | Q26: 0 | R26: 0 | S26: 0 | T26: 0 | U26: 0 | V26: 0 | W26: 0 | X26: 0 | Y26: 0 | Z26: 0 | AA26: 0 | AB26: 0 | AC26: 0 | AD26: 0 | AE26: 0 | AF26: 0 | AG26: 0 | AH26: 0 | AI26: 0 | AJ26: 0 | AK26: 0 | AL26: 0 | AM26: 0 | AN26: 0 | AO26: 0 | AP26: 0 | AQ26: 0 | AR26: 0 | AS26: 0 | AT26: 0 | AU26: 0 | AV26: 0 | AW26: 0 | AX26: 0 | AY26: 0 | AZ26: 0 | BA26: 0 | BB26: 0 | BC26: 0 | BD26: 0 | BE26: 0 | BF26: 0 | BG26: 0 | BH26: 0 | BI26: 0 | BJ26: 0 | BK26: 0 | BL26: 0 | BM26: 0 | BN26: 0 | BO26: 0 | BP26: 0 | BQ26: 0 | BR26: 0 | BS26: 0 | BT26: 0 | BU26: 0 | BV26: 0 | BW26: 0 | BX26: 0 | BY26: 0 | BZ26: 0 | CA26: 0 | CB26: 0 | CC26: 0 | CD26: 0 | CE26: 0 | CF26: 0 | CG26: 0 | CH26: 0 | CI26: 0 | CJ26: 0 | CK26: 0 | CL26: 0 | CM26: 0 | CN26: 0 | CO26: 0 | CP26: 0 | CQ26: 0 | CR26: 0 | CS26: 0 | CT26: 0 | CU26: 0 | CV26: 0 | CW26: 0 | CX26: 0 | CY26: 0 | CZ26: 0 | DA26: 0 | DB26: 0 | DC26: 0 | DD26: 0 | DE26: 0 | DF26: 0 | DG26: 0 | DH26: 0 | DI26: 0 | DJ26: 0 | DK26: 0 | DL26: 0 | DM26: 0 | DN26: 0 | DO26: 0 | DP26: 0 | DQ26: 0 | DR26: 0 | DS26: 0 | DT26: 0 | DU26: 0 | DV26: 0
A27: Mto Correctivo Enlace De Transmision Mw /Evento | C27: =+IF(EventosMmto="",0,SUMIFS(ValoresMercado,Conceptos,A27,Tipo,TipoEspecifico)/(12/EventosMmtoEquipos)) -> 333333.3333 | E27: =+MesesReconocimiento -> 56 | F27: 0 | G27: =+(IF($A27="","",IF($D27>MONTH(G$16)-MONTH(InicioFuncion)+12*(YEAR(G$16)-YEAR(InicioFuncion))+1,0,IF($E27<=(MONTH(G$16)-MONTH(InicioFuncion)+12*(YEAR(G$16)-YEAR(InicioFuncion)))-$D27+IF($D27<>"",1,0),0,IF(G$15>$B$9,0,IF((YEAR($B$8)-YEAR($B$7))*12+(MONTH($B$8)-MONTH($B$7))+$E$14<=F$14,$C27))))*HLOOKUP(YEAR(G$16),$E$3:$O$5,3,0)))*IF(G$15<=24,MmtoGarantia3,1) -> 0 | H27: 0 | I27: 0 | J27: 0 | K27: 0 | L27: 0 | M27: 0 | N27: 0 | O27: 0 | P27: 0 | Q27: 0 | R27: 0 | S27: 0 | T27: 0 | U27: 0 | V27: 0 | W27: 0 | X27: 0 | Y27: 0 | Z27: 0 | AA27: 0 | AB27: 0 | AC27: 0 | AD27: 0 | AE27: 353633.3333 | AF27: 353633.3333 | AG27: 353633.3333 | AH27: 353633.3333 | AI27: 353633.3333 | AJ27: 353633.3333 | AK27: 353633.3333 | AL27: 364242.3333 | AM27: =+(IF($A27="","",IF($D27>MONTH(AM$16)-MONTH(InicioFuncion)+12*(YEAR(AM$16)-YEAR(InicioFuncion))+1,0,IF($E27<=(MONTH(AM$16)-MONTH(InicioFuncion)+12*(YEAR(AM$16)-YEAR(InicioFuncion)))-$D27+IF($D27<>"",1,0),0,IF(AM$15>$B$9,0,IF((YEAR($B$8)-YEAR($B$7))*12+(MONTH($B$8)-MONTH($B$7))+$E$14<=AL$14,$C27))))*HLOOKUP(YEAR(AM$16),$E$3:$O$5,3,0)))*IF(AM$15<=24,MmtoGarantia3,1) -> 364242.3333 | AN27: 364242.3333 | AO27: 364242.3333 | AP27: 364242.3333 | AQ27: 364242.3333 | AR27: 364242.3333 | AS27: 364242.3333 | AT27: 364242.3333 | AU27: 364242.3333 | AV27: 364242.3333 | AW27: 364242.3333 | AX27: 375169.6033 | AY27: 375169.6033 | AZ27: 375169.6033 | BA27: 375169.6033 | BB27: 375169.6033 | BC27: 375169.6033 | BD27: 375169.6033 | BE27: 375169.6033 | BF27: 375169.6033 | BG27: 375169.6033 | BH27: 375169.6033 | BI27: 375169.6033 | BJ27: 386424.6914 | BK27: 0 | BL27: 0 | BM27: 0 | BN27: 0 | BO27: 0 | BP27: 0 | BQ27: 0 | BR27: 0 | BS27: =+(IF($A27="","",IF($D27>MONTH(BS$16)-MONTH(InicioFuncion)+12*(YEAR(BS$16)-YEAR(InicioFuncion))+1,0,IF($E27<=(MONTH(BS$16)-MONTH(InicioFuncion)+12*(YEAR(BS$16)-YEAR(InicioFuncion)))-$D27+IF($D27<>"",1,0),0,IF(BS$15>$B$9,0,IF((YEAR($B$8)-YEAR($B$7))*12+(MONTH($B$8)-MONTH($B$7))+$E$14<=BR$14,$C27))))*HLOOKUP(YEAR(BS$16),$E$3:$O$5,3,0)))*IF(BS$15<=24,MmtoGarantia3,1) -> 0 | BT27: 0 | BU27: 0 | BV27: 0 | BW27: 0 | BX27: 0 | BY27: 0 | BZ27: 0 | CA27: 0 | CB27: 0 | CC27: 0 | CD27: 0 | CE27: 0 | CF27: 0 | CG27: 0 | CH27: 0 | CI27: 0 | CJ27: 0 | CK27: 0 | CL27: 0 | CM27: 0 | CN27: 0 | CO27: 0 | CP27: 0 | CQ27: 0 | CR27: 0 | CS27: 0 | CT27: 0 | CU27: 0 | CV27: 0 | CW27: 0 | CX27: 0 | CY27: =+(IF($A27="","",IF($D27>MONTH(CY$16)-MONTH(InicioFuncion)+12*(YEAR(CY$16)-YEAR(InicioFuncion))+1,0,IF($E27<=(MONTH(CY$16)-MONTH(InicioFuncion)+12*(YEAR(CY$16)-YEAR(InicioFuncion)))-$D27+IF($D27<>"",1,0),0,IF(CY$15>$B$9,0,IF((YEAR($B$8)-YEAR($B$7))*12+(MONTH($B$8)-MONTH($B$7))+$E$14<=CX$14,$C27))))*HLOOKUP(YEAR(CY$16),$E$3:$O$5,3,0)))*IF(CY$15<=24,MmtoGarantia3,1) -> 0 | CZ27: 0 | DA27: 0 | DB27: 0 | DC27: 0 | DD27: 0 | DE27: 0 | DF27: 0 | DG27: 0 | DH27: 0 | DI27: 0 | DJ27: 0 | DK27: 0 | DL27: 0 | DM27: 0 | DN27: 0 | DO27: 0 | DP27: 0 | DQ27: 0 | DR27: 0 | DS27: 0 | DT27: 0 | DU27: 0 | DV27: 0
A28: Mto Correctivo Enodeb Estimado / Evento | C28: =+IF(EventosMmto="",0,SUMIFS(ValoresMercado,Conceptos,A28,Tipo,TipoEspecifico)/(12/EventosMmtoEquipos)) -> 500000 | E28: =+MesesReconocimiento -> 56 | F28: 0 | G28: =+(IF($A28="","",IF($D28>MONTH(G$16)-MONTH(InicioFuncion)+12*(YEAR(G$16)-YEAR(InicioFuncion))+1,0,IF($E28<=(MONTH(G$16)-MONTH(InicioFuncion)+12*(YEAR(G$16)-YEAR(InicioFuncion)))-$D28+IF($D28<>"",1,0),0,IF(G$15>$B$9,0,IF((YEAR($B$8)-YEAR($B$7))*12+(MONTH($B$8)-MONTH($B$7))+$E$14<=F$14,$C28))))*HLOOKUP(YEAR(G$16),$E$3:$O$5,3,0)))*IF(G$15<=24,MmtoGarantia3,1) -> 0 | H28: 0 | I28: 0 | J28: 0 | K28: 0 | L28: 0 | M28: 0 | N28: 0 | O28: 0 | P28: 0 | Q28: 0 | R28: 0 | S28: 0 | T28: 0 | U28: 0 | V28: 0 | W28: 0 | X28: 0 | Y28: 0 | Z28: 0 | AA28: 0 | AB28: 0 | AC28: 0 | AD28: 0 | AE28: 530450 | AF28: 530450 | AG28: 530450 | AH28: 530450 | AI28: 530450 | AJ28: 530450 | AK28: 530450 | AL28: 546363.5 | AM28: =+(IF($A28="","",IF($D28>MONTH(AM$16)-MONTH(InicioFuncion)+12*(YEAR(AM$16)-YEAR(InicioFuncion))+1,0,IF($E28<=(MONTH(AM$16)-MONTH(InicioFuncion)+12*(YEAR(AM$16)-YEAR(InicioFuncion)))-$D28+IF($D28<>"",1,0),0,IF(AM$15>$B$9,0,IF((YEAR($B$8)-YEAR($B$7))*12+(MONTH($B$8)-MONTH($B$7))+$E$14<=AL$14,$C28))))*HLOOKUP(YEAR(AM$16),$E$3:$O$5,3,0)))*IF(AM$15<=24,MmtoGarantia3,1) -> 546363.5 | AN28: 546363.5 | AO28: 546363.5 | AP28: 546363.5 | AQ28: 546363.5 | AR28: 546363.5 | AS28: 546363.5 | AT28: 546363.5 | AU28: 546363.5 | AV28: 546363.5 | AW28: 546363.5 | AX28: 562754.405 | AY28: 562754.405 | AZ28: 562754.405 | BA28: 562754.405 | BB28: 562754.405 | BC28: 562754.405 | BD28: 562754.405 | BE28: 562754.405 | BF28: 562754.405 | BG28: 562754.405 | BH28: 562754.405 | BI28: 562754.405 | BJ28: 579637.0371 | BK28: 0 | BL28: 0 | BM28: 0 | BN28: 0 | BO28: 0 | BP28: 0 | BQ28: 0 | BR28: 0 | BS28: =+(IF($A28="","",IF($D28>MONTH(BS$16)-MONTH(InicioFuncion)+12*(YEAR(BS$16)-YEAR(InicioFuncion))+1,0,IF($E28<=(MONTH(BS$16)-MONTH(InicioFuncion)+12*(YEAR(BS$16)-YEAR(InicioFuncion)))-$D28+IF($D28<>"",1,0),0,IF(BS$15>$B$9,0,IF((YEAR($B$8)-YEAR($B$7))*12+(MONTH($B$8)-MONTH($B$7))+$E$14<=BR$14,$C28))))*HLOOKUP(YEAR(BS$16),$E$3:$O$5,3,0)))*IF(BS$15<=24,MmtoGarantia3,1) -> 0 | BT28: 0 | BU28: 0 | BV28: 0 | BW28: 0 | BX28: 0 | BY28: 0 | BZ28: 0 | CA28: 0 | CB28: 0 | CC28: 0 | CD28: 0 | CE28: 0 | CF28: 0 | CG28: 0 | CH28: 0 | CI28: 0 | CJ28: 0 | CK28: 0 | CL28: 0 | CM28: 0 | CN28: 0 | CO28: 0 | CP28: 0 | CQ28: 0 | CR28: 0 | CS28: 0 | CT28: 0 | CU28: 0 | CV28: 0 | CW28: 0 | CX28: 0 | CY28: =+(IF($A28="","",IF($D28>MONTH(CY$16)-MONTH(InicioFuncion)+12*(YEAR(CY$16)-YEAR(InicioFuncion))+1,0,IF($E28<=(MONTH(CY$16)-MONTH(InicioFuncion)+12*(YEAR(CY$16)-YEAR(InicioFuncion)))-$D28+IF($D28<>"",1,0),0,IF(CY$15>$B$9,0,IF((YEAR($B$8)-YEAR($B$7))*12+(MONTH($B$8)-MONTH($B$7))+$E$14<=CX$14,$C28))))*HLOOKUP(YEAR(CY$16),$E$3:$O$5,3,0)))*IF(CY$15<=24,MmtoGarantia3,1) -> 0 | CZ28: 0 | DA28: 0 | DB28: 0 | DC28: 0 | DD28: 0 | DE28: 0 | DF28: 0 | DG28: 0 | DH28: 0 | DI28: 0 | DJ28: 0 | DK28: 0 | DL28: 0 | DM28: 0 | DN28: 0 | DO28: 0 | DP28: 0 | DQ28: 0 | DR28: 0 | DS28: 0 | DT28: 0 | DU28: 0 | DV28: 0
A29: Mto Correctivo Planta Electrica / Evento | C29: =+IF(EventosMmto="",0,SUMIFS(ValoresMercado,Conceptos,A29,Tipo,TipoEspecifico,Relacion,KW_EnergiaValor)/(12/EventosMmtoEquipos)) -> 202149.8659 | E29: 56 | F29: 0 | G29: =+(IF($A29="","",IF($D29>MONTH(G$16)-MONTH(InicioFuncion)+12*(YEAR(G$16)-YEAR(InicioFuncion))+1,0,IF($E29<=(MONTH(G$16)-MONTH(InicioFuncion)+12*(YEAR(G$16)-YEAR(InicioFuncion)))-$D29+IF($D29<>"",1,0),0,IF(G$15>$B$9,0,IF((YEAR($B$8)-YEAR($B$7))*12+(MONTH($B$8)-MONTH($B$7))+$E$14<=F$14,$C29))))*HLOOKUP(YEAR(G$16),$E$3:$O$5,3,0)))*IF(G$15<=24,MmtoGarantia3,1) -> 0 | H29: 0 | I29: 0 | J29: 0 | K29: 0 | L29: 0 | M29: 0 | N29: 0 | O29: 0 | P29: 0 | Q29: 0 | R29: 0 | S29: 0 | T29: 0 | U29: 0 | V29: 0 | W29: 0 | X29: 0 | Y29: 0 | Z29: 0 | AA29: 0 | AB29: 0 | AC29: 0 | AD29: 0 | AE29: 214460.7927 | AF29: 214460.7927 | AG29: 214460.7927 | AH29: 214460.7927 | AI29: 214460.7927 | AJ29: 214460.7927 | AK29: 214460.7927 | AL29: 220894.6165 | AM29: =+(IF($A29="","",IF($D29>MONTH(AM$16)-MONTH(InicioFuncion)+12*(YEAR(AM$16)-YEAR(InicioFuncion))+1,0,IF($E29<=(MONTH(AM$16)-MONTH(InicioFuncion)+12*(YEAR(AM$16)-YEAR(InicioFuncion)))-$D29+IF($D29<>"",1,0),0,IF(AM$15>$B$9,0,IF((YEAR($B$8)-YEAR($B$7))*12+(MONTH($B$8)-MONTH($B$7))+$E$14<=AL$14,$C29))))*HLOOKUP(YEAR(AM$16),$E$3:$O$5,3,0)))*IF(AM$15<=24,MmtoGarantia3,1) -> 220894.6165 | AN29: 220894.6165 | AO29: 220894.6165 | AP29: 220894.6165 | AQ29: 220894.6165 | AR29: 220894.6165 | AS29: 220894.6165 | AT29: 220894.6165 | AU29: 220894.6165 | AV29: 220894.6165 | AW29: 220894.6165 | AX29: 227521.455 | AY29: 227521.455 | AZ29: 227521.455 | BA29: 227521.455 | BB29: 227521.455 | BC29: 227521.455 | BD29: 227521.455 | BE29: 227521.455 | BF29: 227521.455 | BG29: 227521.455 | BH29: 227521.455 | BI29: 227521.455 | BJ29: 234347.0987 | BK29: 0 | BL29: 0 | BM29: 0 | BN29: 0 | BO29: 0 | BP29: 0 | BQ29: 0 | BR29: 0 | BS29: =+(IF($A29="","",IF($D29>MONTH(BS$16)-MONTH(InicioFuncion)+12*(YEAR(BS$16)-YEAR(InicioFuncion))+1,0,IF($E29<=(MONTH(BS$16)-MONTH(InicioFuncion)+12*(YEAR(BS$16)-YEAR(InicioFuncion)))-$D29+IF($D29<>"",1,0),0,IF(BS$15>$B$9,0,IF((YEAR($B$8)-YEAR($B$7))*12+(MONTH($B$8)-MONTH($B$7))+$E$14<=BR$14,$C29))))*HLOOKUP(YEAR(BS$16),$E$3:$O$5,3,0)))*IF(BS$15<=24,MmtoGarantia3,1) -> 0 | BT29: 0 | BU29: 0 | BV29: 0 | BW29: 0 | BX29: 0 | BY29: 0 | BZ29: 0 | CA29: 0 | CB29: 0 | CC29: 0 | CD29: 0 | CE29: 0 | CF29: 0 | CG29: 0 | CH29: 0 | CI29: 0 | CJ29: 0 | CK29: 0 | CL29: 0 | CM29: 0 | CN29: 0 | CO29: 0 | CP29: 0 | CQ29: 0 | CR29: 0 | CS29: 0 | CT29: 0 | CU29: 0 | CV29: 0 | CW29: 0 | CX29: 0 | CY29: =+(IF($A29="","",IF($D29>MONTH(CY$16)-MONTH(InicioFuncion)+12*(YEAR(CY$16)-YEAR(InicioFuncion))+1,0,IF($E29<=(MONTH(CY$16)-MONTH(InicioFuncion)+12*(YEAR(CY$16)-YEAR(InicioFuncion)))-$D29+IF($D29<>"",1,0),0,IF(CY$15>$B$9,0,IF((YEAR($B$8)-YEAR($B$7))*12+(MONTH($B$8)-MONTH($B$7))+$E$14<=CX$14,$C29))))*HLOOKUP(YEAR(CY$16),$E$3:$O$5,3,0)))*IF(CY$15<=24,MmtoGarantia3,1) -> 0 | CZ29: 0 | DA29: 0 | DB29: 0 | DC29: 0 | DD29: 0 | DE29: 0 | DF29: 0 | DG29: 0 | DH29: 0 | DI29: 0 | DJ29: 0 | DK29: 0 | DL29: 0 | DM29: 0 | DN29: 0 | DO29: 0 | DP29: 0 | DQ29: 0 | DR29: 0 | DS29: 0 | DT29: 0 | DU29: 0 | DV29: 0
A30: Mto Correctivo Transferencia Y Control / Evento | C30: =+IF(EventosMmto="",0,SUMIFS(ValoresMercado,Conceptos,A30,Tipo,TipoEspecifico,Relacion,KW_EnergiaValor)/(12/EventosMmtoEquipos)) -> 166666.6667 | E30: 56 | F30: 0 | G30: =+(IF($A30="","",IF($D30>MONTH(G$16)-MONTH(InicioFuncion)+12*(YEAR(G$16)-YEAR(InicioFuncion))+1,0,IF($E30<=(MONTH(G$16)-MONTH(InicioFuncion)+12*(YEAR(G$16)-YEAR(InicioFuncion)))-$D30+IF($D30<>"",1,0),0,IF(G$15>$B$9,0,IF((YEAR($B$8)-YEAR($B$7))*12+(MONTH($B$8)-MONTH($B$7))+$E$14<=F$14,$C30))))*HLOOKUP(YEAR(G$16),$E$3:$O$5,3,0)))*IF(G$15<=24,MmtoGarantia3,1) -> 0 | H30: 0 | I30: 0 | J30: 0 | K30: 0 | L30: 0 | M30: 0 | N30: 0 | O30: 0 | P30: 0 | Q30: 0 | R30: 0 | S30: 0 | T30: 0 | U30: 0 | V30: 0 | W30: 0 | X30: 0 | Y30: 0 | Z30: 0 | AA30: 0 | AB30: 0 | AC30: 0 | AD30: 0 | AE30: 176816.6667 | AF30: 176816.6667 | AG30: 176816.6667 | AH30: 176816.6667 | AI30: 176816.6667 | AJ30: 176816.6667 | AK30: 176816.6667 | AL30: 182121.1667 | AM30: =+(IF($A30="","",IF($D30>MONTH(AM$16)-MONTH(InicioFuncion)+12*(YEAR(AM$16)-YEAR(InicioFuncion))+1,0,IF($E30<=(MONTH(AM$16)-MONTH(InicioFuncion)+12*(YEAR(AM$16)-YEAR(InicioFuncion)))-$D30+IF($D30<>"",1,0),0,IF(AM$15>$B$9,0,IF((YEAR($B$8)-YEAR($B$7))*12+(MONTH($B$8)-MONTH($B$7))+$E$14<=AL$14,$C30))))*HLOOKUP(YEAR(AM$16),$E$3:$O$5,3,0)))*IF(AM$15<=24,MmtoGarantia3,1) -> 182121.1667 | AN30: 182121.1667 | AO30: 182121.1667 | AP30: 182121.1667 | AQ30: 182121.1667 | AR30: 182121.1667 | AS30: 182121.1667 | AT30: 182121.1667 | AU30: 182121.1667 | AV30: 182121.1667 | AW30: 182121.1667 | AX30: 187584.8017 | AY30: 187584.8017 | AZ30: 187584.8017 | BA30: 187584.8017 | BB30: 187584.8017 | BC30: 187584.8017 | BD30: 187584.8017 | BE30: 187584.8017 | BF30: 187584.8017 | BG30: 187584.8017 | BH30: 187584.8017 | BI30: 187584.8017 | BJ30: 193212.3457 | BK30: 0 | BL30: 0 | BM30: 0 | BN30: 0 | BO30: 0 | BP30: 0 | BQ30: 0 | BR30: 0 | BS30: =+(IF($A30="","",IF($D30>MONTH(BS$16)-MONTH(InicioFuncion)+12*(YEAR(BS$16)-YEAR(InicioFuncion))+1,0,IF($E30<=(MONTH(BS$16)-MONTH(InicioFuncion)+12*(YEAR(BS$16)-YEAR(InicioFuncion)))-$D30+IF($D30<>"",1,0),0,IF(BS$15>$B$9,0,IF((YEAR($B$8)-YEAR($B$7))*12+(MONTH($B$8)-MONTH($B$7))+$E$14<=BR$14,$C30))))*HLOOKUP(YEAR(BS$16),$E$3:$O$5,3,0)))*IF(BS$15<=24,MmtoGarantia3,1) -> 0 | BT30: 0 | BU30: 0 | BV30: 0 | BW30: 0 | BX30: 0 | BY30: 0 | BZ30: 0 | CA30: 0 | CB30: 0 | CC30: 0 | CD30: 0 | CE30: 0 | CF30: 0 | CG30: 0 | CH30: 0 | CI30: 0 | CJ30: 0 | CK30: 0 | CL30: 0 | CM30: 0 | CN30: 0 | CO30: 0 | CP30: 0 | CQ30: 0 | CR30: 0 | CS30: 0 | CT30: 0 | CU30: 0 | CV30: 0 | CW30: 0 | CX30: 0 | CY30: =+(IF($A30="","",IF($D30>MONTH(CY$16)-MONTH(InicioFuncion)+12*(YEAR(CY$16)-YEAR(InicioFuncion))+1,0,IF($E30<=(MONTH(CY$16)-MONTH(InicioFuncion)+12*(YEAR(CY$16)-YEAR(InicioFuncion)))-$D30+IF($D30<>"",1,0),0,IF(CY$15>$B$9,0,IF((YEAR($B$8)-YEAR($B$7))*12+(MONTH($B$8)-MONTH($B$7))+$E$14<=CX$14,$C30))))*HLOOKUP(YEAR(CY$16),$E$3:$O$5,3,0)))*IF(CY$15<=24,MmtoGarantia3,1) -> 0 | CZ30: 0 | DA30: 0 | DB30: 0 | DC30: 0 | DD30: 0 | DE30: 0 | DF30: 0 | DG30: 0 | DH30: 0 | DI30: 0 | DJ30: 0 | DK30: 0 | DL30: 0 | DM30: 0 | DN30: 0 | DO30: 0 | DP30: 0 | DQ30: 0 | DR30: 0 | DS30: 0 | DT30: 0 | DU30: 0 | DV30: 0
A31: Mto Digital Enodeb Soporte Fabricante /Anual | C31: =+SUMIFS(ValoresMercado,Conceptos,A31,Tipo,TipoEspecifico)/12 -> 246909.6536 | E31: 56 | F31: 0 | G31: =+(IF($A31="","",IF(G$15>12,IF($D31>MONTH(G$16)-MONTH(InicioFuncion)+12*(YEAR(G$16)-YEAR(InicioFuncion))+1,0,IF($E31<=(MONTH(G$16)-MONTH(InicioFuncion)+12*(YEAR(G$16)-YEAR(InicioFuncion)))-$D31+IF($D31<>"",1,0),0,IF(G$15>$B$9,0,IF((YEAR($B$8)-YEAR($B$7))*12+(MONTH($B$8)-MONTH($B$7))+$E$14<=F$14,$C31))))*HLOOKUP(YEAR(G$16),$E$3:$O$5,3,0),0))) -> 0 | H31: =+(IF($A31="","",IF(H$15>12,IF($D31>MONTH(H$16)-MONTH(InicioFuncion)+12*(YEAR(H$16)-YEAR(InicioFuncion))+1,0,IF($E31<=(MONTH(H$16)-MONTH(InicioFuncion)+12*(YEAR(H$16)-YEAR(InicioFuncion)))-$D31+IF($D31<>"",1,0),0,IF(H$15>$B$9,0,IF((YEAR($B$8)-YEAR($B$7))*12+(MONTH($B$8)-MONTH($B$7))+$E$14<=G$14,$C31))))*HLOOKUP(YEAR(H$16),$E$3:$O$5,3,0),0))) -> 0 | I31: =+(IF($A31="","",IF(I$15>12,IF($D31>MONTH(I$16)-MONTH(InicioFuncion)+12*(YEAR(I$16)-YEAR(InicioFuncion))+1,0,IF($E31<=(MONTH(I$16)-MONTH(InicioFuncion)+12*(YEAR(I$16)-YEAR(InicioFuncion)))-$D31+IF($D31<>"",1,0),0,IF(I$15>$B$9,0,IF((YEAR($B$8)-YEAR($B$7))*12+(MONTH($B$8)-MONTH($B$7))+$E$14<=H$14,$C31))))*HLOOKUP(YEAR(I$16),$E$3:$O$5,3,0),0))) -> 0 | J31: =+(IF($A31="","",IF(J$15>12,IF($D31>MONTH(J$16)-MONTH(InicioFuncion)+12*(YEAR(J$16)-YEAR(InicioFuncion))+1,0,IF($E31<=(MONTH(J$16)-MONTH(InicioFuncion)+12*(YEAR(J$16)-YEAR(InicioFuncion)))-$D31+IF($D31<>"",1,0),0,IF(J$15>$B$9,0,IF((YEAR($B$8)-YEAR($B$7))*12+(MONTH($B$8)-MONTH($B$7))+$E$14<=I$14,$C31))))*HLOOKUP(YEAR(J$16),$E$3:$O$5,3,0),0))) -> 0 | K31: =+(IF($A31="","",IF(K$15>12,IF($D31>MONTH(K$16)-MONTH(InicioFuncion)+12*(YEAR(K$16)-YEAR(InicioFuncion))+1,0,IF($E31<=(MONTH(K$16)-MONTH(InicioFuncion)+12*(YEAR(K$16)-YEAR(InicioFuncion)))-$D31+IF($D31<>"",1,0),0,IF(K$15>$B$9,0,IF((YEAR($B$8)-YEAR($B$7))*12+(MONTH($B$8)-MONTH($B$7))+$E$14<=J$14,$C31))))*HLOOKUP(YEAR(K$16),$E$3:$O$5,3,0),0))) -> 0 | L31: =+(IF($A31="","",IF(L$15>12,IF($D31>MONTH(L$16)-MONTH(InicioFuncion)+12*(YEAR(L$16)-YEAR(InicioFuncion))+1,0,IF($E31<=(MONTH(L$16)-MONTH(InicioFuncion)+12*(YEAR(L$16)-YEAR(InicioFuncion)))-$D31+IF($D31<>"",1,0),0,IF(L$15>$B$9,0,IF((YEAR($B$8)-YEAR($B$7))*12+(MONTH($B$8)-MONTH($B$7))+$E$14<=K$14,$C31))))*HLOOKUP(YEAR(L$16),$E$3:$O$5,3,0),0))) -> 0 | M31: =+(IF($A31="","",IF(M$15>12,IF($D31>MONTH(M$16)-MONTH(InicioFuncion)+12*(YEAR(M$16)-YEAR(InicioFuncion))+1,0,IF($E31<=(MONTH(M$16)-MONTH(InicioFuncion)+12*(YEAR(M$16)-YEAR(InicioFuncion)))-$D31+IF($D31<>"",1,0),0,IF(M$15>$B$9,0,IF((YEAR($B$8)-YEAR($B$7))*12+(MONTH($B$8)-MONTH($B$7))+$E$14<=L$14,$C31))))*HLOOKUP(YEAR(M$16),$E$3:$O$5,3,0),0))) -> 0 | N31: =+(IF($A31="","",IF(N$15>12,IF($D31>MONTH(N$16)-MONTH(InicioFuncion)+12*(YEAR(N$16)-YEAR(InicioFuncion))+1,0,IF($E31<=(MONTH(N$16)-MONTH(InicioFuncion)+12*(YEAR(N$16)-YEAR(InicioFuncion)))-$D31+IF($D31<>"",1,0),0,IF(N$15>$B$9,0,IF((YEAR($B$8)-YEAR($B$7))*12+(MONTH($B$8)-MONTH($B$7))+$E$14<=M$14,$C31))))*HLOOKUP(YEAR(N$16),$E$3:$O$5,3,0),0))) -> 0 | O31: =+(IF($A31="","",IF(O$15>12,IF($D31>MONTH(O$16)-MONTH(InicioFuncion)+12*(YEAR(O$16)-YEAR(InicioFuncion))+1,0,IF($E31<=(MONTH(O$16)-MONTH(InicioFuncion)+12*(YEAR(O$16)-YEAR(InicioFuncion)))-$D31+IF($D31<>"",1,0),0,IF(O$15>$B$9,0,IF((YEAR($B$8)-YEAR($B$7))*12+(MONTH($B$8)-MONTH($B$7))+$E$14<=N$14,$C31))))*HLOOKUP(YEAR(O$16),$E$3:$O$5,3,0),0))) -> 0 | P31: =+(IF($A31="","",IF(P$15>12,IF($D31>MONTH(P$16)-MONTH(InicioFuncion)+12*(YEAR(P$16)-YEAR(InicioFuncion))+1,0,IF($E31<=(MONTH(P$16)-MONTH(InicioFuncion)+12*(YEAR(P$16)-YEAR(InicioFuncion)))-$D31+IF($D31<>"",1,0),0,IF(P$15>$B$9,0,IF((YEAR($B$8)-YEAR($B$7))*12+(MONTH($B$8)-MONTH($B$7))+$E$14<=O$14,$C31))))*HLOOKUP(YEAR(P$16),$E$3:$O$5,3,0),0))) -> 0 | Q31: =+(IF($A31="","",IF(Q$15>12,IF($D31>MONTH(Q$16)-MONTH(InicioFuncion)+12*(YEAR(Q$16)-YEAR(InicioFuncion))+1,0,IF($E31<=(MONTH(Q$16)-MONTH(InicioFuncion)+12*(YEAR(Q$16)-YEAR(InicioFuncion)))-$D31+IF($D31<>"",1,0),0,IF(Q$15>$B$9,0,IF((YEAR($B$8)-YEAR($B$7))*12+(MONTH($B$8)-MONTH($B$7))+$E$14<=P$14,$C31))))*HLOOKUP(YEAR(Q$16),$E$3:$O$5,3,0),0))) -> 0 | R31: =+(IF($A31="","",IF(R$15>12,IF($D31>MONTH(R$16)-MONTH(InicioFuncion)+12*(YEAR(R$16)-YEAR(InicioFuncion))+1,0,IF($E31<=(MONTH(R$16)-MONTH(InicioFuncion)+12*(YEAR(R$16)-YEAR(InicioFuncion)))-$D31+IF($D31<>"",1,0),0,IF(R$15>$B$9,0,IF((YEAR($B$8)-YEAR($B$7))*12+(MONTH($B$8)-MONTH($B$7))+$E$14<=Q$14,$C31))))*HLOOKUP(YEAR(R$16),$E$3:$O$5,3,0),0))) -> 0 | S31: =+(IF($A31="","",IF(S$15>12,IF($D31>MONTH(S$16)-MONTH(InicioFuncion)+12*(YEAR(S$16)-YEAR(InicioFuncion))+1,0,IF($E31<=(MONTH(S$16)-MONTH(InicioFuncion)+12*(YEAR(S$16)-YEAR(InicioFuncion)))-$D31+IF($D31<>"",1,0),0,IF(S$15>$B$9,0,IF((YEAR($B$8)-YEAR($B$7))*12+(MONTH($B$8)-MONTH($B$7))+$E$14<=R$14,$C31))))*HLOOKUP(YEAR(S$16),$E$3:$O$5,3,0),0))) -> 254316.9432 | T31: =+(IF($A31="","",IF(T$15>12,IF($D31>MONTH(T$16)-MONTH(InicioFuncion)+12*(YEAR(T$16)-YEAR(InicioFuncion))+1,0,IF($E31<=(MONTH(T$16)-MONTH(InicioFuncion)+12*(YEAR(T$16)-YEAR(InicioFuncion)))-$D31+IF($D31<>"",1,0),0,IF(T$15>$B$9,0,IF((YEAR($B$8)-YEAR($B$7))*12+(MONTH($B$8)-MONTH($B$7))+$E$14<=S$14,$C31))))*HLOOKUP(YEAR(T$16),$E$3:$O$5,3,0),0))) -> 254316.9432 | U31: =+(IF($A31="","",IF(U$15>12,IF($D31>MONTH(U$16)-MONTH(InicioFuncion)+12*(YEAR(U$16)-YEAR(InicioFuncion))+1,0,IF($E31<=(MONTH(U$16)-MONTH(InicioFuncion)+12*(YEAR(U$16)-YEAR(InicioFuncion)))-$D31+IF($D31<>"",1,0),0,IF(U$15>$B$9,0,IF((YEAR($B$8)-YEAR($B$7))*12+(MONTH($B$8)-MONTH($B$7))+$E$14<=T$14,$C31))))*HLOOKUP(YEAR(U$16),$E$3:$O$5,3,0),0))) -> 254316.9432 | V31: =+(IF($A31="","",IF(V$15>12,IF($D31>MONTH(V$16)-MONTH(InicioFuncion)+12*(YEAR(V$16)-YEAR(InicioFuncion))+1,0,IF($E31<=(MONTH(V$16)-MONTH(InicioFuncion)+12*(YEAR(V$16)-YEAR(InicioFuncion)))-$D31+IF($D31<>"",1,0),0,IF(V$15>$B$9,0,IF((YEAR($B$8)-YEAR($B$7))*12+(MONTH($B$8)-MONTH($B$7))+$E$14<=U$14,$C31))))*HLOOKUP(YEAR(V$16),$E$3:$O$5,3,0),0))) -> 254316.9432 | W31: =+(IF($A31="","",IF(W$15>12,IF($D31>MONTH(W$16)-MONTH(InicioFuncion)+12*(YEAR(W$16)-YEAR(InicioFuncion))+1,0,IF($E31<=(MONTH(W$16)-MONTH(InicioFuncion)+12*(YEAR(W$16)-YEAR(InicioFuncion)))-$D31+IF($D31<>"",1,0),0,IF(W$15>$B$9,0,IF((YEAR($B$8)-YEAR($B$7))*12+(MONTH($B$8)-MONTH($B$7))+$E$14<=V$14,$C31))))*HLOOKUP(YEAR(W$16),$E$3:$O$5,3,0),0))) -> 254316.9432 | X31: =+(IF($A31="","",IF(X$15>12,IF($D31>MONTH(X$16)-MONTH(InicioFuncion)+12*(YEAR(X$16)-YEAR(InicioFuncion))+1,0,IF($E31<=(MONTH(X$16)-MONTH(InicioFuncion)+12*(YEAR(X$16)-YEAR(InicioFuncion)))-$D31+IF($D31<>"",1,0),0,IF(X$15>$B$9,0,IF((YEAR($B$8)-YEAR($B$7))*12+(MONTH($B$8)-MONTH($B$7))+$E$14<=W$14,$C31))))*HLOOKUP(YEAR(X$16),$E$3:$O$5,3,0),0))) -> 254316.9432 | Y31: =+(IF($A31="","",IF(Y$15>12,IF($D31>MONTH(Y$16)-MONTH(InicioFuncion)+12*(YEAR(Y$16)-YEAR(InicioFuncion))+1,0,IF($E31<=(MONTH(Y$16)-MONTH(InicioFuncion)+12*(YEAR(Y$16)-YEAR(InicioFuncion)))-$D31+IF($D31<>"",1,0),0,IF(Y$15>$B$9,0,IF((YEAR($B$8)-YEAR($B$7))*12+(MONTH($B$8)-MONTH($B$7))+$E$14<=X$14,$C31))))*HLOOKUP(YEAR(Y$16),$E$3:$O$5,3,0),0))) -> 254316.9432 | Z31: =+(IF($A31="","",IF(Z$15>12,IF($D31>MONTH(Z$16)-MONTH(InicioFuncion)+12*(YEAR(Z$16)-YEAR(InicioFuncion))+1,0,IF($E31<=(MONTH(Z$16)-MONTH(InicioFuncion)+12*(YEAR(Z$16)-YEAR(InicioFuncion)))-$D31+IF($D31<>"",1,0),0,IF(Z$15>$B$9,0,IF((YEAR($B$8)-YEAR($B$7))*12+(MONTH($B$8)-MONTH($B$7))+$E$14<=Y$14,$C31))))*HLOOKUP(YEAR(Z$16),$E$3:$O$5,3,0),0))) -> 261946.4515 | AA31: =+(IF($A31="","",IF(AA$15>12,IF($D31>MONTH(AA$16)-MONTH(InicioFuncion)+12*(YEAR(AA$16)-YEAR(InicioFuncion))+1,0,IF($E31<=(MONTH(AA$16)-MONTH(InicioFuncion)+12*(YEAR(AA$16)-YEAR(InicioFuncion)))-$D31+IF($D31<>"",1,0),0,IF(AA$15>$B$9,0,IF((YEAR($B$8)-YEAR($B$7))*12+(MONTH($B$8)-MONTH($B$7))+$E$14<=Z$14,$C31))))*HLOOKUP(YEAR(AA$16),$E$3:$O$5,3,0),0))) -> 261946.4515 | AB31: =+(IF($A31="","",IF(AB$15>12,IF($D31>MONTH(AB$16)-MONTH(InicioFuncion)+12*(YEAR(AB$16)-YEAR(InicioFuncion))+1,0,IF($E31<=(MONTH(AB$16)-MONTH(InicioFuncion)+12*(YEAR(AB$16)-YEAR(InicioFuncion)))-$D31+IF($D31<>"",1,0),0,IF(AB$15>$B$9,0,IF((YEAR($B$8)-YEAR($B$7))*12+(MONTH($B$8)-MONTH($B$7))+$E$14<=AA$14,$C31))))*HLOOKUP(YEAR(AB$16),$E$3:$O$5,3,0),0))) -> 261946.4515 | AC31: =+(IF($A31="","",IF(AC$15>12,IF($D31>MONTH(AC$16)-MONTH(InicioFuncion)+12*(YEAR(AC$16)-YEAR(InicioFuncion))+1,0,IF($E31<=(MONTH(AC$16)-MONTH(InicioFuncion)+12*(YEAR(AC$16)-YEAR(InicioFuncion)))-$D31+IF($D31<>"",1,0),0,IF(AC$15>$B$9,0,IF((YEAR($B$8)-YEAR($B$7))*12+(MONTH($B$8)-MONTH($B$7))+$E$14<=AB$14,$C31))))*HLOOKUP(YEAR(AC$16),$E$3:$O$5,3,0),0))) -> 261946.4515 | AD31: =+(IF($A31="","",IF(AD$15>12,IF($D31>MONTH(AD$16)-MONTH(InicioFuncion)+12*(YEAR(AD$16)-YEAR(InicioFuncion))+1,0,IF($E31<=(MONTH(AD$16)-MONTH(InicioFuncion)+12*(YEAR(AD$16)-YEAR(InicioFuncion)))-$D31+IF($D31<>"",1,0),0,IF(AD$15>$B$9,0,IF((YEAR($B$8)-YEAR($B$7))*12+(MONTH($B$8)-MONTH($B$7))+$E$14<=AC$14,$C31))))*HLOOKUP(YEAR(AD$16),$E$3:$O$5,3,0),0))) -> 261946.4515 | AE31: =+(IF($A31="","",IF(AE$15>12,IF($D31>MONTH(AE$16)-MONTH(InicioFuncion)+12*(YEAR(AE$16)-YEAR(InicioFuncion))+1,0,IF($E31<=(MONTH(AE$16)-MONTH(InicioFuncion)+12*(YEAR(AE$16)-YEAR(InicioFuncion)))-$D31+IF($D31<>"",1,0),0,IF(AE$15>$B$9,0,IF((YEAR($B$8)-YEAR($B$7))*12+(MONTH($B$8)-MONTH($B$7))+$E$14<=AD$14,$C31))))*HLOOKUP(YEAR(AE$16),$E$3:$O$5,3,0),0))) -> 261946.4515 | AF31: =+(IF($A31="","",IF(AF$15>12,IF($D31>MONTH(AF$16)-MONTH(InicioFuncion)+12*(YEAR(AF$16)-YEAR(InicioFuncion))+1,0,IF($E31<=(MONTH(AF$16)-MONTH(InicioFuncion)+12*(YEAR(AF$16)-YEAR(InicioFuncion)))-$D31+IF($D31<>"",1,0),0,IF(AF$15>$B$9,0,IF((YEAR($B$8)-YEAR($B$7))*12+(MONTH($B$8)-MONTH($B$7))+$E$14<=AE$14,$C31))))*HLOOKUP(YEAR(AF$16),$E$3:$O$5,3,0),0))) -> 261946.4515 | AG31: =+(IF($A31="","",IF(AG$15>12,IF($D31>MONTH(AG$16)-MONTH(InicioFuncion)+12*(YEAR(AG$16)-YEAR(InicioFuncion))+1,0,IF($E31<=(MONTH(AG$16)-MONTH(InicioFuncion)+12*(YEAR(AG$16)-YEAR(InicioFuncion)))-$D31+IF($D31<>"",1,0),0,IF(AG$15>$B$9,0,IF((YEAR($B$8)-YEAR($B$7))*12+(MONTH($B$8)-MONTH($B$7))+$E$14<=AF$14,$C31))))*HLOOKUP(YEAR(AG$16),$E$3:$O$5,3,0),0))) -> 261946.4515 | AH31: =+(IF($A31="","",IF(AH$15>12,IF($D31>MONTH(AH$16)-MONTH(InicioFuncion)+12*(YEAR(AH$16)-YEAR(InicioFuncion))+1,0,IF($E31<=(MONTH(AH$16)-MONTH(InicioFuncion)+12*(YEAR(AH$16)-YEAR(InicioFuncion)))-$D31+IF($D31<>"",1,0),0,IF(AH$15>$B$9,0,IF((YEAR($B$8)-YEAR($B$7))*12+(MONTH($B$8)-MONTH($B$7))+$E$14<=AG$14,$C31))))*HLOOKUP(YEAR(AH$16),$E$3:$O$5,3,0),0))) -> 261946.4515 | AI31: =+(IF($A31="","",IF(AI$15>12,IF($D31>MONTH(AI$16)-MONTH(InicioFuncion)+12*(YEAR(AI$16)-YEAR(InicioFuncion))+1,0,IF($E31<=(MONTH(AI$16)-MONTH(InicioFuncion)+12*(YEAR(AI$16)-YEAR(InicioFuncion)))-$D31+IF($D31<>"",1,0),0,IF(AI$15>$B$9,0,IF((YEAR($B$8)-YEAR($B$7))*12+(MONTH($B$8)-MONTH($B$7))+$E$14<=AH$14,$C31))))*HLOOKUP(YEAR(AI$16),$E$3:$O$5,3,0),0))) -> 261946.4515 | AJ31: =+(IF($A31="","",IF(AJ$15>12,IF($D31>MONTH(AJ$16)-MONTH(InicioFuncion)+12*(YEAR(AJ$16)-YEAR(InicioFuncion))+1,0,IF($E31<=(MONTH(AJ$16)-MONTH(InicioFuncion)+12*(YEAR(AJ$16)-YEAR(InicioFuncion)))-$D31+IF($D31<>"",1,0),0,IF(AJ$15>$B$9,0,IF((YEAR($B$8)-YEAR($B$7))*12+(MONTH($B$8)-MONTH($B$7))+$E$14<=AI$14,$C31))))*HLOOKUP(YEAR(AJ$16),$E$3:$O$5,3,0),0))) -> 261946.4515 | AK31: =+(IF($A31="","",IF(AK$15>12,IF($D31>MONTH(AK$16)-MONTH(InicioFuncion)+12*(YEAR(AK$16)-YEAR(InicioFuncion))+1,0,IF($E31<=(MONTH(AK$16)-MONTH(InicioFuncion)+12*(YEAR(AK$16)-YEAR(InicioFuncion)))-$D31+IF($D31<>"",1,0),0,IF(AK$15>$B$9,0,IF((YEAR($B$8)-YEAR($B$7))*12+(MONTH($B$8)-MONTH($B$7))+$E$14<=AJ$14,$C31))))*HLOOKUP(YEAR(AK$16),$E$3:$O$5,3,0),0))) -> 261946.4515 | AL31: =+(IF($A31="","",IF(AL$15>12,IF($D31>MONTH(AL$16)-MONTH(InicioFuncion)+12*(YEAR(AL$16)-YEAR(InicioFuncion))+1,0,IF($E31<=(MONTH(AL$16)-MONTH(InicioFuncion)+12*(YEAR(AL$16)-YEAR(InicioFuncion)))-$D31+IF($D31<>"",1,0),0,IF(AL$15>$B$9,0,IF((YEAR($B$8)-YEAR($B$7))*12+(MONTH($B$8)-MONTH($B$7))+$E$14<=AK$14,$C31))))*HLOOKUP(YEAR(AL$16),$E$3:$O$5,3,0),0))) -> 269804.8451 | AM31: =+(IF($A31="","",IF(AM$15>12,IF($D31>MONTH(AM$16)-MONTH(InicioFuncion)+12*(YEAR(AM$16)-YEAR(InicioFuncion))+1,0,IF($E31<=(MONTH(AM$16)-MONTH(InicioFuncion)+12*(YEAR(AM$16)-YEAR(InicioFuncion)))-$D31+IF($D31<>"",1,0),0,IF(AM$15>$B$9,0,IF((YEAR($B$8)-YEAR($B$7))*12+(MONTH($B$8)-MONTH($B$7))+$E$14<=AL$14,$C31))))*HLOOKUP(YEAR(AM$16),$E$3:$O$5,3,0),0))) -> 269804.8451 | AN31: =+(IF($A31="","",IF(AN$15>12,IF($D31>MONTH(AN$16)-MONTH(InicioFuncion)+12*(YEAR(AN$16)-YEAR(InicioFuncion))+1,0,IF($E31<=(MONTH(AN$16)-MONTH(InicioFuncion)+12*(YEAR(AN$16)-YEAR(InicioFuncion)))-$D31+IF($D31<>"",1,0),0,IF(AN$15>$B$9,0,IF((YEAR($B$8)-YEAR($B$7))*12+(MONTH($B$8)-MONTH($B$7))+$E$14<=AM$14,$C31))))*HLOOKUP(YEAR(AN$16),$E$3:$O$5,3,0),0))) -> 269804.8451 | AO31: =+(IF($A31="","",IF(AO$15>12,IF($D31>MONTH(AO$16)-MONTH(InicioFuncion)+12*(YEAR(AO$16)-YEAR(InicioFuncion))+1,0,IF($E31<=(MONTH(AO$16)-MONTH(InicioFuncion)+12*(YEAR(AO$16)-YEAR(InicioFuncion)))-$D31+IF($D31<>"",1,0),0,IF(AO$15>$B$9,0,IF((YEAR($B$8)-YEAR($B$7))*12+(MONTH($B$8)-MONTH($B$7))+$E$14<=AN$14,$C31))))*HLOOKUP(YEAR(AO$16),$E$3:$O$5,3,0),0))) -> 269804.8451 | AP31: =+(IF($A31="","",IF(AP$15>12,IF($D31>MONTH(AP$16)-MONTH(InicioFuncion)+12*(YEAR(AP$16)-YEAR(InicioFuncion))+1,0,IF($E31<=(MONTH(AP$16)-MONTH(InicioFuncion)+12*(YEAR(AP$16)-YEAR(InicioFuncion)))-$D31+IF($D31<>"",1,0),0,IF(AP$15>$B$9,0,IF((YEAR($B$8)-YEAR($B$7))*12+(MONTH($B$8)-MONTH($B$7))+$E$14<=AO$14,$C31))))*HLOOKUP(YEAR(AP$16),$E$3:$O$5,3,0),0))) -> 269804.8451 | AQ31: =+(IF($A31="","",IF(AQ$15>12,IF($D31>MONTH(AQ$16)-MONTH(InicioFuncion)+12*(YEAR(AQ$16)-YEAR(InicioFuncion))+1,0,IF($E31<=(MONTH(AQ$16)-MONTH(InicioFuncion)+12*(YEAR(AQ$16)-YEAR(InicioFuncion)))-$D31+IF($D31<>"",1,0),0,IF(AQ$15>$B$9,0,IF((YEAR($B$8)-YEAR($B$7))*12+(MONTH($B$8)-MONTH($B$7))+$E$14<=AP$14,$C31))))*HLOOKUP(YEAR(AQ$16),$E$3:$O$5,3,0),0))) -> 269804.8451 | AR31: =+(IF($A31="","",IF(AR$15>12,IF($D31>MONTH(AR$16)-MONTH(InicioFuncion)+12*(YEAR(AR$16)-YEAR(InicioFuncion))+1,0,IF($E31<=(MONTH(AR$16)-MONTH(InicioFuncion)+12*(YEAR(AR$16)-YEAR(InicioFuncion)))-$D31+IF($D31<>"",1,0),0,IF(AR$15>$B$9,0,IF((YEAR($B$8)-YEAR($B$7))*12+(MONTH($B$8)-MONTH($B$7))+$E$14<=AQ$14,$C31))))*HLOOKUP(YEAR(AR$16),$E$3:$O$5,3,0),0))) -> 269804.8451 | AS31: =+(IF($A31="","",IF(AS$15>12,IF($D31>MONTH(AS$16)-MONTH(InicioFuncion)+12*(YEAR(AS$16)-YEAR(InicioFuncion))+1,0,IF($E31<=(MONTH(AS$16)-MONTH(InicioFuncion)+12*(YEAR(AS$16)-YEAR(InicioFuncion)))-$D31+IF($D31<>"",1,0),0,IF(AS$15>$B$9,0,IF((YEAR($B$8)-YEAR($B$7))*12+(MONTH($B$8)-MONTH($B$7))+$E$14<=AR$14,$C31))))*HLOOKUP(YEAR(AS$16),$E$3:$O$5,3,0),0))) -> 269804.8451 | AT31: =+(IF($A31="","",IF(AT$15>12,IF($D31>MONTH(AT$16)-MONTH(InicioFuncion)+12*(YEAR(AT$16)-YEAR(InicioFuncion))+1,0,IF($E31<=(MONTH(AT$16)-MONTH(InicioFuncion)+12*(YEAR(AT$16)-YEAR(InicioFuncion)))-$D31+IF($D31<>"",1,0),0,IF(AT$15>$B$9,0,IF((YEAR($B$8)-YEAR($B$7))*12+(MONTH($B$8)-MONTH($B$7))+$E$14<=AS$14,$C31))))*HLOOKUP(YEAR(AT$16),$E$3:$O$5,3,0),0))) -> 269804.8451 | AU31: =+(IF($A31="","",IF(AU$15>12,IF($D31>MONTH(AU$16)-MONTH(InicioFuncion)+12*(YEAR(AU$16)-YEAR(InicioFuncion))+1,0,IF($E31<=(MONTH(AU$16)-MONTH(InicioFuncion)+12*(YEAR(AU$16)-YEAR(InicioFuncion)))-$D31+IF($D31<>"",1,0),0,IF(AU$15>$B$9,0,IF((YEAR($B$8)-YEAR($B$7))*12+(MONTH($B$8)-MONTH($B$7))+$E$14<=AT$14,$C31))))*HLOOKUP(YEAR(AU$16),$E$3:$O$5,3,0),0))) -> 269804.8451 | AV31: =+(IF($A31="","",IF(AV$15>12,IF($D31>MONTH(AV$16)-MONTH(InicioFuncion)+12*(YEAR(AV$16)-YEAR(InicioFuncion))+1,0,IF($E31<=(MONTH(AV$16)-MONTH(InicioFuncion)+12*(YEAR(AV$16)-YEAR(InicioFuncion)))-$D31+IF($D31<>"",1,0),0,IF(AV$15>$B$9,0,IF((YEAR($B$8)-YEAR($B$7))*12+(MONTH($B$8)-MONTH($B$7))+$E$14<=AU$14,$C31))))*HLOOKUP(YEAR(AV$16),$E$3:$O$5,3,0),0))) -> 269804.8451 | AW31: =+(IF($A31="","",IF(AW$15>12,IF($D31>MONTH(AW$16)-MONTH(InicioFuncion)+12*(YEAR(AW$16)-YEAR(InicioFuncion))+1,0,IF($E31<=(MONTH(AW$16)-MONTH(InicioFuncion)+12*(YEAR(AW$16)-YEAR(InicioFuncion)))-$D31+IF($D31<>"",1,0),0,IF(AW$15>$B$9,0,IF((YEAR($B$8)-YEAR($B$7))*12+(MONTH($B$8)-MONTH($B$7))+$E$14<=AV$14,$C31))))*HLOOKUP(YEAR(AW$16),$E$3:$O$5,3,0),0))) -> 269804.8451 | AX31: =+(IF($A31="","",IF(AX$15>12,IF($D31>MONTH(AX$16)-MONTH(InicioFuncion)+12*(YEAR(AX$16)-YEAR(InicioFuncion))+1,0,IF($E31<=(MONTH(AX$16)-MONTH(InicioFuncion)+12*(YEAR(AX$16)-YEAR(InicioFuncion)))-$D31+IF($D31<>"",1,0),0,IF(AX$15>$B$9,0,IF((YEAR($B$8)-YEAR($B$7))*12+(MONTH($B$8)-MONTH($B$7))+$E$14<=AW$14,$C31))))*HLOOKUP(YEAR(AX$16),$E$3:$O$5,3,0),0))) -> 277898.9904 | AY31: =+(IF($A31="","",IF(AY$15>12,IF($D31>MONTH(AY$16)-MONTH(InicioFuncion)+12*(YEAR(AY$16)-YEAR(InicioFuncion))+1,0,IF($E31<=(MONTH(AY$16)-MONTH(InicioFuncion)+12*(YEAR(AY$16)-YEAR(InicioFuncion)))-$D31+IF($D31<>"",1,0),0,IF(AY$15>$B$9,0,IF((YEAR($B$8)-YEAR($B$7))*12+(MONTH($B$8)-MONTH($B$7))+$E$14<=AX$14,$C31))))*HLOOKUP(YEAR(AY$16),$E$3:$O$5,3,0),0))) -> 277898.9904 | AZ31: =+(IF($A31="","",IF(AZ$15>12,IF($D31>MONTH(AZ$16)-MONTH(InicioFuncion)+12*(YEAR(AZ$16)-YEAR(InicioFuncion))+1,0,IF($E31<=(MONTH(AZ$16)-MONTH(InicioFuncion)+12*(YEAR(AZ$16)-YEAR(InicioFuncion)))-$D31+IF($D31<>"",1,0),0,IF(AZ$15>$B$9,0,IF((YEAR($B$8)-YEAR($B$7))*12+(MONTH($B$8)-MONTH($B$7))+$E$14<=AY$14,$C31))))*HLOOKUP(YEAR(AZ$16),$E$3:$O$5,3,0),0))) -> 277898.9904 | BA31: =+(IF($A31="","",IF(BA$15>12,IF($D31>MONTH(BA$16)-MONTH(InicioFuncion)+12*(YEAR(BA$16)-YEAR(InicioFuncion))+1,0,IF($E31<=(MONTH(BA$16)-MONTH(InicioFuncion)+12*(YEAR(BA$16)-YEAR(InicioFuncion)))-$D31+IF($D31<>"",1,0),0,IF(BA$15>$B$9,0,IF((YEAR($B$8)-YEAR($B$7))*12+(MONTH($B$8)-MONTH($B$7))+$E$14<=AZ$14,$C31))))*HLOOKUP(YEAR(BA$16),$E$3:$O$5,3,0),0))) -> 277898.9904 | BB31: =+(IF($A31="","",IF(BB$15>12,IF($D31>MONTH(BB$16)-MONTH(InicioFuncion)+12*(YEAR(BB$16)-YEAR(InicioFuncion))+1,0,IF($E31<=(MONTH(BB$16)-MONTH(InicioFuncion)+12*(YEAR(BB$16)-YEAR(InicioFuncion)))-$D31+IF($D31<>"",1,0),0,IF(BB$15>$B$9,0,IF((YEAR($B$8)-YEAR($B$7))*12+(MONTH($B$8)-MONTH($B$7))+$E$14<=BA$14,$C31))))*HLOOKUP(YEAR(BB$16),$E$3:$O$5,3,0),0))) -> 277898.9904 | BC31: =+(IF($A31="","",IF(BC$15>12,IF($D31>MONTH(BC$16)-MONTH(InicioFuncion)+12*(YEAR(BC$16)-YEAR(InicioFuncion))+1,0,IF($E31<=(MONTH(BC$16)-MONTH(InicioFuncion)+12*(YEAR(BC$16)-YEAR(InicioFuncion)))-$D31+IF($D31<>"",1,0),0,IF(BC$15>$B$9,0,IF((YEAR($B$8)-YEAR($B$7))*12+(MONTH($B$8)-MONTH($B$7))+$E$14<=BB$14,$C31))))*HLOOKUP(YEAR(BC$16),$E$3:$O$5,3,0),0))) -> 277898.9904 | BD31: =+(IF($A31="","",IF(BD$15>12,IF($D31>MONTH(BD$16)-MONTH(InicioFuncion)+12*(YEAR(BD$16)-YEAR(InicioFuncion))+1,0,IF($E31<=(MONTH(BD$16)-MONTH(InicioFuncion)+12*(YEAR(BD$16)-YEAR(InicioFuncion)))-$D31+IF($D31<>"",1,0),0,IF(BD$15>$B$9,0,IF((YEAR($B$8)-YEAR($B$7))*12+(MONTH($B$8)-MONTH($B$7))+$E$14<=BC$14,$C31))))*HLOOKUP(YEAR(BD$16),$E$3:$O$5,3,0),0))) -> 277898.9904 | BE31: =+(IF($A31="","",IF(BE$15>12,IF($D31>MONTH(BE$16)-MONTH(InicioFuncion)+12*(YEAR(BE$16)-YEAR(InicioFuncion))+1,0,IF($E31<=(MONTH(BE$16)-MONTH(InicioFuncion)+12*(YEAR(BE$16)-YEAR(InicioFuncion)))-$D31+IF($D31<>"",1,0),0,IF(BE$15>$B$9,0,IF((YEAR($B$8)-YEAR($B$7))*12+(MONTH($B$8)-MONTH($B$7))+$E$14<=BD$14,$C31))))*HLOOKUP(YEAR(BE$16),$E$3:$O$5,3,0),0))) -> 277898.9904 | BF31: =+(IF($A31="","",IF(BF$15>12,IF($D31>MONTH(BF$16)-MONTH(InicioFuncion)+12*(YEAR(BF$16)-YEAR(InicioFuncion))+1,0,IF($E31<=(MONTH(BF$16)-MONTH(InicioFuncion)+12*(YEAR(BF$16)-YEAR(InicioFuncion)))-$D31+IF($D31<>"",1,0),0,IF(BF$15>$B$9,0,IF((YEAR($B$8)-YEAR($B$7))*12+(MONTH($B$8)-MONTH($B$7))+$E$14<=BE$14,$C31))))*HLOOKUP(YEAR(BF$16),$E$3:$O$5,3,0),0))) -> 277898.9904 | BG31: =+(IF($A31="","",IF(BG$15>12,IF($D31>MONTH(BG$16)-MONTH(InicioFuncion)+12*(YEAR(BG$16)-YEAR(InicioFuncion))+1,0,IF($E31<=(MONTH(BG$16)-MONTH(InicioFuncion)+12*(YEAR(BG$16)-YEAR(InicioFuncion)))-$D31+IF($D31<>"",1,0),0,IF(BG$15>$B$9,0,IF((YEAR($B$8)-YEAR($B$7))*12+(MONTH($B$8)-MONTH($B$7))+$E$14<=BF$14,$C31))))*HLOOKUP(YEAR(BG$16),$E$3:$O$5,3,0),0))) -> 277898.9904 | BH31: =+(IF($A31="","",IF(BH$15>12,IF($D31>MONTH(BH$16)-MONTH(InicioFuncion)+12*(YEAR(BH$16)-YEAR(InicioFuncion))+1,0,IF($E31<=(MONTH(BH$16)-MONTH(InicioFuncion)+12*(YEAR(BH$16)-YEAR(InicioFuncion)))-$D31+IF($D31<>"",1,0),0,IF(BH$15>$B$9,0,IF((YEAR($B$8)-YEAR($B$7))*12+(MONTH($B$8)-MONTH($B$7))+$E$14<=BG$14,$C31))))*HLOOKUP(YEAR(BH$16),$E$3:$O$5,3,0),0))) -> 277898.9904 | BI31: =+(IF($A31="","",IF(BI$15>12,IF($D31>MONTH(BI$16)-MONTH(InicioFuncion)+12*(YEAR(BI$16)-YEAR(InicioFuncion))+1,0,IF($E31<=(MONTH(BI$16)-MONTH(InicioFuncion)+12*(YEAR(BI$16)-YEAR(InicioFuncion)))-$D31+IF($D31<>"",1,0),0,IF(BI$15>$B$9,0,IF((YEAR($B$8)-YEAR($B$7))*12+(MONTH($B$8)-MONTH($B$7))+$E$14<=BH$14,$C31))))*HLOOKUP(YEAR(BI$16),$E$3:$O$5,3,0),0))) -> 277898.9904 | BJ31: =+(IF($A31="","",IF(BJ$15>12,IF($D31>MONTH(BJ$16)-MONTH(InicioFuncion)+12*(YEAR(BJ$16)-YEAR(InicioFuncion))+1,0,IF($E31<=(MONTH(BJ$16)-MONTH(InicioFuncion)+12*(YEAR(BJ$16)-YEAR(InicioFuncion)))-$D31+IF($D31<>"",1,0),0,IF(BJ$15>$B$9,0,IF((YEAR($B$8)-YEAR($B$7))*12+(MONTH($B$8)-MONTH($B$7))+$E$14<=BI$14,$C31))))*HLOOKUP(YEAR(BJ$16),$E$3:$O$5,3,0),0))) -> 286235.9601 | BK31: =+(IF($A31="","",IF(BK$15>12,IF($D31>MONTH(BK$16)-MONTH(InicioFuncion)+12*(YEAR(BK$16)-YEAR(InicioFuncion))+1,0,IF($E31<=(MONTH(BK$16)-MONTH(InicioFuncion)+12*(YEAR(BK$16)-YEAR(InicioFuncion)))-$D31+IF($D31<>"",1,0),0,IF(BK$15>$B$9,0,IF((YEAR($B$8)-YEAR($B$7))*12+(MONTH($B$8)-MONTH($B$7))+$E$14<=BJ$14,$C31))))*HLOOKUP(YEAR(BK$16),$E$3:$O$5,3,0),0))) -> 0 | BL31: =+(IF($A31="","",IF(BL$15>12,IF($D31>MONTH(BL$16)-MONTH(InicioFuncion)+12*(YEAR(BL$16)-YEAR(InicioFuncion))+1,0,IF($E31<=(MONTH(BL$16)-MONTH(InicioFuncion)+12*(YEAR(BL$16)-YEAR(InicioFuncion)))-$D31+IF($D31<>"",1,0),0,IF(BL$15>$B$9,0,IF((YEAR($B$8)-YEAR($B$7))*12+(MONTH($B$8)-MONTH($B$7))+$E$14<=BK$14,$C31))))*HLOOKUP(YEAR(BL$16),$E$3:$O$5,3,0),0))) -> 0 | BM31: =+(IF($A31="","",IF(BM$15>12,IF($D31>MONTH(BM$16)-MONTH(InicioFuncion)+12*(YEAR(BM$16)-YEAR(InicioFuncion))+1,0,IF($E31<=(MONTH(BM$16)-MONTH(InicioFuncion)+12*(YEAR(BM$16)-YEAR(InicioFuncion)))-$D31+IF($D31<>"",1,0),0,IF(BM$15>$B$9,0,IF((YEAR($B$8)-YEAR($B$7))*12+(MONTH($B$8)-MONTH($B$7))+$E$14<=BL$14,$C31))))*HLOOKUP(YEAR(BM$16),$E$3:$O$5,3,0),0))) -> 0 | BN31: =+(IF($A31="","",IF(BN$15>12,IF($D31>MONTH(BN$16)-MONTH(InicioFuncion)+12*(YEAR(BN$16)-YEAR(InicioFuncion))+1,0,IF($E31<=(MONTH(BN$16)-MONTH(InicioFuncion)+12*(YEAR(BN$16)-YEAR(InicioFuncion)))-$D31+IF($D31<>"",1,0),0,IF(BN$15>$B$9,0,IF((YEAR($B$8)-YEAR($B$7))*12+(MONTH($B$8)-MONTH($B$7))+$E$14<=BM$14,$C31))))*HLOOKUP(YEAR(BN$16),$E$3:$O$5,3,0),0))) -> 0 | BO31: =+(IF($A31="","",IF(BO$15>12,IF($D31>MONTH(BO$16)-MONTH(InicioFuncion)+12*(YEAR(BO$16)-YEAR(InicioFuncion))+1,0,IF($E31<=(MONTH(BO$16)-MONTH(InicioFuncion)+12*(YEAR(BO$16)-YEAR(InicioFuncion)))-$D31+IF($D31<>"",1,0),0,IF(BO$15>$B$9,0,IF((YEAR($B$8)-YEAR($B$7))*12+(MONTH($B$8)-MONTH($B$7))+$E$14<=BN$14,$C31))))*HLOOKUP(YEAR(BO$16),$E$3:$O$5,3,0),0))) -> 0 | BP31: =+(IF($A31="","",IF(BP$15>12,IF($D31>MONTH(BP$16)-MONTH(InicioFuncion)+12*(YEAR(BP$16)-YEAR(InicioFuncion))+1,0,IF($E31<=(MONTH(BP$16)-MONTH(InicioFuncion)+12*(YEAR(BP$16)-YEAR(InicioFuncion)))-$D31+IF($D31<>"",1,0),0,IF(BP$15>$B$9,0,IF((YEAR($B$8)-YEAR($B$7))*12+(MONTH($B$8)-MONTH($B$7))+$E$14<=BO$14,$C31))))*HLOOKUP(YEAR(BP$16),$E$3:$O$5,3,0),0))) -> 0 | BQ31: =+(IF($A31="","",IF(BQ$15>12,IF($D31>MONTH(BQ$16)-MONTH(InicioFuncion)+12*(YEAR(BQ$16)-YEAR(InicioFuncion))+1,0,IF($E31<=(MONTH(BQ$16)-MONTH(InicioFuncion)+12*(YEAR(BQ$16)-YEAR(InicioFuncion)))-$D31+IF($D31<>"",1,0),0,IF(BQ$15>$B$9,0,IF((YEAR($B$8)-YEAR($B$7))*12+(MONTH($B$8)-MONTH($B$7))+$E$14<=BP$14,$C31))))*HLOOKUP(YEAR(BQ$16),$E$3:$O$5,3,0),0))) -> 0 | BR31: =+(IF($A31="","",IF(BR$15>12,IF($D31>MONTH(BR$16)-MONTH(InicioFuncion)+12*(YEAR(BR$16)-YEAR(InicioFuncion))+1,0,IF($E31<=(MONTH(BR$16)-MONTH(InicioFuncion)+12*(YEAR(BR$16)-YEAR(InicioFuncion)))-$D31+IF($D31<>"",1,0),0,IF(BR$15>$B$9,0,IF((YEAR($B$8)-YEAR($B$7))*12+(MONTH($B$8)-MONTH($B$7))+$E$14<=BQ$14,$C31))))*HLOOKUP(YEAR(BR$16),$E$3:$O$5,3,0),0))) -> 0 | BS31: =+(IF($A31="","",IF(BS$15>12,IF($D31>MONTH(BS$16)-MONTH(InicioFuncion)+12*(YEAR(BS$16)-YEAR(InicioFuncion))+1,0,IF($E31<=(MONTH(BS$16)-MONTH(InicioFuncion)+12*(YEAR(BS$16)-YEAR(InicioFuncion)))-$D31+IF($D31<>"",1,0),0,IF(BS$15>$B$9,0,IF((YEAR($B$8)-YEAR($B$7))*12+(MONTH($B$8)-MONTH($B$7))+$E$14<=BR$14,$C31))))*HLOOKUP(YEAR(BS$16),$E$3:$O$5,3,0),0))) -> 0 | BT31: =+(IF($A31="","",IF(BT$15>12,IF($D31>MONTH(BT$16)-MONTH(InicioFuncion)+12*(YEAR(BT$16)-YEAR(InicioFuncion))+1,0,IF($E31<=(MONTH(BT$16)-MONTH(InicioFuncion)+12*(YEAR(BT$16)-YEAR(InicioFuncion)))-$D31+IF($D31<>"",1,0),0,IF(BT$15>$B$9,0,IF((YEAR($B$8)-YEAR($B$7))*12+(MONTH($B$8)-MONTH($B$7))+$E$14<=BS$14,$C31))))*HLOOKUP(YEAR(BT$16),$E$3:$O$5,3,0),0))) -> 0 | BU31: =+(IF($A31="","",IF(BU$15>12,IF($D31>MONTH(BU$16)-MONTH(InicioFuncion)+12*(YEAR(BU$16)-YEAR(InicioFuncion))+1,0,IF($E31<=(MONTH(BU$16)-MONTH(InicioFuncion)+12*(YEAR(BU$16)-YEAR(InicioFuncion)))-$D31+IF($D31<>"",1,0),0,IF(BU$15>$B$9,0,IF((YEAR($B$8)-YEAR($B$7))*12+(MONTH($B$8)-MONTH($B$7))+$E$14<=BT$14,$C31))))*HLOOKUP(YEAR(BU$16),$E$3:$O$5,3,0),0))) -> 0 | BV31: =+(IF($A31="","",IF(BV$15>12,IF($D31>MONTH(BV$16)-MONTH(InicioFuncion)+12*(YEAR(BV$16)-YEAR(InicioFuncion))+1,0,IF($E31<=(MONTH(BV$16)-MONTH(InicioFuncion)+12*(YEAR(BV$16)-YEAR(InicioFuncion)))-$D31+IF($D31<>"",1,0),0,IF(BV$15>$B$9,0,IF((YEAR($B$8)-YEAR($B$7))*12+(MONTH($B$8)-MONTH($B$7))+$E$14<=BU$14,$C31))))*HLOOKUP(YEAR(BV$16),$E$3:$O$5,3,0),0))) -> 0 | BW31: =+(IF($A31="","",IF(BW$15>12,IF($D31>MONTH(BW$16)-MONTH(InicioFuncion)+12*(YEAR(BW$16)-YEAR(InicioFuncion))+1,0,IF($E31<=(MONTH(BW$16)-MONTH(InicioFuncion)+12*(YEAR(BW$16)-YEAR(InicioFuncion)))-$D31+IF($D31<>"",1,0),0,IF(BW$15>$B$9,0,IF((YEAR($B$8)-YEAR($B$7))*12+(MONTH($B$8)-MONTH($B$7))+$E$14<=BV$14,$C31))))*HLOOKUP(YEAR(BW$16),$E$3:$O$5,3,0),0))) -> 0 | BX31: =+(IF($A31="","",IF(BX$15>12,IF($D31>MONTH(BX$16)-MONTH(InicioFuncion)+12*(YEAR(BX$16)-YEAR(InicioFuncion))+1,0,IF($E31<=(MONTH(BX$16)-MONTH(InicioFuncion)+12*(YEAR(BX$16)-YEAR(InicioFuncion)))-$D31+IF($D31<>"",1,0),0,IF(BX$15>$B$9,0,IF((YEAR($B$8)-YEAR($B$7))*12+(MONTH($B$8)-MONTH($B$7))+$E$14<=BW$14,$C31))))*HLOOKUP(YEAR(BX$16),$E$3:$O$5,3,0),0))) -> 0 | BY31: =+(IF($A31="","",IF(BY$15>12,IF($D31>MONTH(BY$16)-MONTH(InicioFuncion)+12*(YEAR(BY$16)-YEAR(InicioFuncion))+1,0,IF($E31<=(MONTH(BY$16)-MONTH(InicioFuncion)+12*(YEAR(BY$16)-YEAR(InicioFuncion)))-$D31+IF($D31<>"",1,0),0,IF(BY$15>$B$9,0,IF((YEAR($B$8)-YEAR($B$7))*12+(MONTH($B$8)-MONTH($B$7))+$E$14<=BX$14,$C31))))*HLOOKUP(YEAR(BY$16),$E$3:$O$5,3,0),0))) -> 0 | BZ31: =+(IF($A31="","",IF(BZ$15>12,IF($D31>MONTH(BZ$16)-MONTH(InicioFuncion)+12*(YEAR(BZ$16)-YEAR(InicioFuncion))+1,0,IF($E31<=(MONTH(BZ$16)-MONTH(InicioFuncion)+12*(YEAR(BZ$16)-YEAR(InicioFuncion)))-$D31+IF($D31<>"",1,0),0,IF(BZ$15>$B$9,0,IF((YEAR($B$8)-YEAR($B$7))*12+(MONTH($B$8)-MONTH($B$7))+$E$14<=BY$14,$C31))))*HLOOKUP(YEAR(BZ$16),$E$3:$O$5,3,0),0))) -> 0 | CA31: =+(IF($A31="","",IF(CA$15>12,IF($D31>MONTH(CA$16)-MONTH(InicioFuncion)+12*(YEAR(CA$16)-YEAR(InicioFuncion))+1,0,IF($E31<=(MONTH(CA$16)-MONTH(InicioFuncion)+12*(YEAR(CA$16)-YEAR(InicioFuncion)))-$D31+IF($D31<>"",1,0),0,IF(CA$15>$B$9,0,IF((YEAR($B$8)-YEAR($B$7))*12+(MONTH($B$8)-MONTH($B$7))+$E$14<=BZ$14,$C31))))*HLOOKUP(YEAR(CA$16),$E$3:$O$5,3,0),0))) -> 0 | CB31: =+(IF($A31="","",IF(CB$15>12,IF($D31>MONTH(CB$16)-MONTH(InicioFuncion)+12*(YEAR(CB$16)-YEAR(InicioFuncion))+1,0,IF($E31<=(MONTH(CB$16)-MONTH(InicioFuncion)+12*(YEAR(CB$16)-YEAR(InicioFuncion)))-$D31+IF($D31<>"",1,0),0,IF(CB$15>$B$9,0,IF((YEAR($B$8)-YEAR($B$7))*12+(MONTH($B$8)-MONTH($B$7))+$E$14<=CA$14,$C31))))*HLOOKUP(YEAR(CB$16),$E$3:$O$5,3,0),0))) -> 0 | CC31: =+(IF($A31="","",IF(CC$15>12,IF($D31>MONTH(CC$16)-MONTH(InicioFuncion)+12*(YEAR(CC$16)-YEAR(InicioFuncion))+1,0,IF($E31<=(MONTH(CC$16)-MONTH(InicioFuncion)+12*(YEAR(CC$16)-YEAR(InicioFuncion)))-$D31+IF($D31<>"",1,0),0,IF(CC$15>$B$9,0,IF((YEAR($B$8)-YEAR($B$7))*12+(MONTH($B$8)-MONTH($B$7))+$E$14<=CB$14,$C31))))*HLOOKUP(YEAR(CC$16),$E$3:$O$5,3,0),0))) -> 0 | CD31: =+(IF($A31="","",IF(CD$15>12,IF($D31>MONTH(CD$16)-MONTH(InicioFuncion)+12*(YEAR(CD$16)-YEAR(InicioFuncion))+1,0,IF($E31<=(MONTH(CD$16)-MONTH(InicioFuncion)+12*(YEAR(CD$16)-YEAR(InicioFuncion)))-$D31+IF($D31<>"",1,0),0,IF(CD$15>$B$9,0,IF((YEAR($B$8)-YEAR($B$7))*12+(MONTH($B$8)-MONTH($B$7))+$E$14<=CC$14,$C31))))*HLOOKUP(YEAR(CD$16),$E$3:$O$5,3,0),0))) -> 0 | CE31: =+(IF($A31="","",IF(CE$15>12,IF($D31>MONTH(CE$16)-MONTH(InicioFuncion)+12*(YEAR(CE$16)-YEAR(InicioFuncion))+1,0,IF($E31<=(MONTH(CE$16)-MONTH(InicioFuncion)+12*(YEAR(CE$16)-YEAR(InicioFuncion)))-$D31+IF($D31<>"",1,0),0,IF(CE$15>$B$9,0,IF((YEAR($B$8)-YEAR($B$7))*12+(MONTH($B$8)-MONTH($B$7))+$E$14<=CD$14,$C31))))*HLOOKUP(YEAR(CE$16),$E$3:$O$5,3,0),0))) -> 0 | CF31: =+(IF($A31="","",IF(CF$15>12,IF($D31>MONTH(CF$16)-MONTH(InicioFuncion)+12*(YEAR(CF$16)-YEAR(InicioFuncion))+1,0,IF($E31<=(MONTH(CF$16)-MONTH(InicioFuncion)+12*(YEAR(CF$16)-YEAR(InicioFuncion)))-$D31+IF($D31<>"",1,0),0,IF(CF$15>$B$9,0,IF((YEAR($B$8)-YEAR($B$7))*12+(MONTH($B$8)-MONTH($B$7))+$E$14<=CE$14,$C31))))*HLOOKUP(YEAR(CF$16),$E$3:$O$5,3,0),0))) -> 0 | CG31: =+(IF($A31="","",IF(CG$15>12,IF($D31>MONTH(CG$16)-MONTH(InicioFuncion)+12*(YEAR(CG$16)-YEAR(InicioFuncion))+1,0,IF($E31<=(MONTH(CG$16)-MONTH(InicioFuncion)+12*(YEAR(CG$16)-YEAR(InicioFuncion)))-$D31+IF($D31<>"",1,0),0,IF(CG$15>$B$9,0,IF((YEAR($B$8)-YEAR($B$7))*12+(MONTH($B$8)-MONTH($B$7))+$E$14<=CF$14,$C31))))*HLOOKUP(YEAR(CG$16),$E$3:$O$5,3,0),0))) -> 0 | CH31: =+(IF($A31="","",IF(CH$15>12,IF($D31>MONTH(CH$16)-MONTH(InicioFuncion)+12*(YEAR(CH$16)-YEAR(InicioFuncion))+1,0,IF($E31<=(MONTH(CH$16)-MONTH(InicioFuncion)+12*(YEAR(CH$16)-YEAR(InicioFuncion)))-$D31+IF($D31<>"",1,0),0,IF(CH$15>$B$9,0,IF((YEAR($B$8)-YEAR($B$7))*12+(MONTH($B$8)-MONTH($B$7))+$E$14<=CG$14,$C31))))*HLOOKUP(YEAR(CH$16),$E$3:$O$5,3,0),0))) -> 0 | CI31: =+(IF($A31="","",IF(CI$15>12,IF($D31>MONTH(CI$16)-MONTH(InicioFuncion)+12*(YEAR(CI$16)-YEAR(InicioFuncion))+1,0,IF($E31<=(MONTH(CI$16)-MONTH(InicioFuncion)+12*(YEAR(CI$16)-YEAR(InicioFuncion)))-$D31+IF($D31<>"",1,0),0,IF(CI$15>$B$9,0,IF((YEAR($B$8)-YEAR($B$7))*12+(MONTH($B$8)-MONTH($B$7))+$E$14<=CH$14,$C31))))*HLOOKUP(YEAR(CI$16),$E$3:$O$5,3,0),0))) -> 0 | CJ31: =+(IF($A31="","",IF(CJ$15>12,IF($D31>MONTH(CJ$16)-MONTH(InicioFuncion)+12*(YEAR(CJ$16)-YEAR(InicioFuncion))+1,0,IF($E31<=(MONTH(CJ$16)-MONTH(InicioFuncion)+12*(YEAR(CJ$16)-YEAR(InicioFuncion)))-$D31+IF($D31<>"",1,0),0,IF(CJ$15>$B$9,0,IF((YEAR($B$8)-YEAR($B$7))*12+(MONTH($B$8)-MONTH($B$7))+$E$14<=CI$14,$C31))))*HLOOKUP(YEAR(CJ$16),$E$3:$O$5,3,0),0))) -> 0 | CK31: =+(IF($A31="","",IF(CK$15>12,IF($D31>MONTH(CK$16)-MONTH(InicioFuncion)+12*(YEAR(CK$16)-YEAR(InicioFuncion))+1,0,IF($E31<=(MONTH(CK$16)-MONTH(InicioFuncion)+12*(YEAR(CK$16)-YEAR(InicioFuncion)))-$D31+IF($D31<>"",1,0),0,IF(CK$15>$B$9,0,IF((YEAR($B$8)-YEAR($B$7))*12+(MONTH($B$8)-MONTH($B$7))+$E$14<=CJ$14,$C31))))*HLOOKUP(YEAR(CK$16),$E$3:$O$5,3,0),0))) -> 0 | CL31: =+(IF($A31="","",IF(CL$15>12,IF($D31>MONTH(CL$16)-MONTH(InicioFuncion)+12*(YEAR(CL$16)-YEAR(InicioFuncion))+1,0,IF($E31<=(MONTH(CL$16)-MONTH(InicioFuncion)+12*(YEAR(CL$16)-YEAR(InicioFuncion)))-$D31+IF($D31<>"",1,0),0,IF(CL$15>$B$9,0,IF((YEAR($B$8)-YEAR($B$7))*12+(MONTH($B$8)-MONTH($B$7))+$E$14<=CK$14,$C31))))*HLOOKUP(YEAR(CL$16),$E$3:$O$5,3,0),0))) -> 0 | CM31: =+(IF($A31="","",IF(CM$15>12,IF($D31>MONTH(CM$16)-MONTH(InicioFuncion)+12*(YEAR(CM$16)-YEAR(InicioFuncion))+1,0,IF($E31<=(MONTH(CM$16)-MONTH(InicioFuncion)+12*(YEAR(CM$16)-YEAR(InicioFuncion)))-$D31+IF($D31<>"",1,0),0,IF(CM$15>$B$9,0,IF((YEAR($B$8)-YEAR($B$7))*12+(MONTH($B$8)-MONTH($B$7))+$E$14<=CL$14,$C31))))*HLOOKUP(YEAR(CM$16),$E$3:$O$5,3,0),0))) -> 0 | CN31: =+(IF($A31="","",IF(CN$15>12,IF($D31>MONTH(CN$16)-MONTH(InicioFuncion)+12*(YEAR(CN$16)-YEAR(InicioFuncion))+1,0,IF($E31<=(MONTH(CN$16)-MONTH(InicioFuncion)+12*(YEAR(CN$16)-YEAR(InicioFuncion)))-$D31+IF($D31<>"",1,0),0,IF(CN$15>$B$9,0,IF((YEAR($B$8)-YEAR($B$7))*12+(MONTH($B$8)-MONTH($B$7))+$E$14<=CM$14,$C31))))*HLOOKUP(YEAR(CN$16),$E$3:$O$5,3,0),0))) -> 0 | CO31: =+(IF($A31="","",IF(CO$15>12,IF($D31>MONTH(CO$16)-MONTH(InicioFuncion)+12*(YEAR(CO$16)-YEAR(InicioFuncion))+1,0,IF($E31<=(MONTH(CO$16)-MONTH(InicioFuncion)+12*(YEAR(CO$16)-YEAR(InicioFuncion)))-$D31+IF($D31<>"",1,0),0,IF(CO$15>$B$9,0,IF((YEAR($B$8)-YEAR($B$7))*12+(MONTH($B$8)-MONTH($B$7))+$E$14<=CN$14,$C31))))*HLOOKUP(YEAR(CO$16),$E$3:$O$5,3,0),0))) -> 0 | CP31: =+(IF($A31="","",IF(CP$15>12,IF($D31>MONTH(CP$16)-MONTH(InicioFuncion)+12*(YEAR(CP$16)-YEAR(InicioFuncion))+1,0,IF($E31<=(MONTH(CP$16)-MONTH(InicioFuncion)+12*(YEAR(CP$16)-YEAR(InicioFuncion)))-$D31+IF($D31<>"",1,0),0,IF(CP$15>$B$9,0,IF((YEAR($B$8)-YEAR($B$7))*12+(MONTH($B$8)-MONTH($B$7))+$E$14<=CO$14,$C31))))*HLOOKUP(YEAR(CP$16),$E$3:$O$5,3,0),0))) -> 0 | CQ31: =+(IF($A31="","",IF(CQ$15>12,IF($D31>MONTH(CQ$16)-MONTH(InicioFuncion)+12*(YEAR(CQ$16)-YEAR(InicioFuncion))+1,0,IF($E31<=(MONTH(CQ$16)-MONTH(InicioFuncion)+12*(YEAR(CQ$16)-YEAR(InicioFuncion)))-$D31+IF($D31<>"",1,0),0,IF(CQ$15>$B$9,0,IF((YEAR($B$8)-YEAR($B$7))*12+(MONTH($B$8)-MONTH($B$7))+$E$14<=CP$14,$C31))))*HLOOKUP(YEAR(CQ$16),$E$3:$O$5,3,0),0))) -> 0 | CR31: =+(IF($A31="","",IF(CR$15>12,IF($D31>MONTH(CR$16)-MONTH(InicioFuncion)+12*(YEAR(CR$16)-YEAR(InicioFuncion))+1,0,IF($E31<=(MONTH(CR$16)-MONTH(InicioFuncion)+12*(YEAR(CR$16)-YEAR(InicioFuncion)))-$D31+IF($D31<>"",1,0),0,IF(CR$15>$B$9,0,IF((YEAR($B$8)-YEAR($B$7))*12+(MONTH($B$8)-MONTH($B$7))+$E$14<=CQ$14,$C31))))*HLOOKUP(YEAR(CR$16),$E$3:$O$5,3,0),0))) -> 0 | CS31: =+(IF($A31="","",IF(CS$15>12,IF($D31>MONTH(CS$16)-MONTH(InicioFuncion)+12*(YEAR(CS$16)-YEAR(InicioFuncion))+1,0,IF($E31<=(MONTH(CS$16)-MONTH(InicioFuncion)+12*(YEAR(CS$16)-YEAR(InicioFuncion)))-$D31+IF($D31<>"",1,0),0,IF(CS$15>$B$9,0,IF((YEAR($B$8)-YEAR($B$7))*12+(MONTH($B$8)-MONTH($B$7))+$E$14<=CR$14,$C31))))*HLOOKUP(YEAR(CS$16),$E$3:$O$5,3,0),0))) -> 0 | CT31: =+(IF($A31="","",IF(CT$15>12,IF($D31>MONTH(CT$16)-MONTH(InicioFuncion)+12*(YEAR(CT$16)-YEAR(InicioFuncion))+1,0,IF($E31<=(MONTH(CT$16)-MONTH(InicioFuncion)+12*(YEAR(CT$16)-YEAR(InicioFuncion)))-$D31+IF($D31<>"",1,0),0,IF(CT$15>$B$9,0,IF((YEAR($B$8)-YEAR($B$7))*12+(MONTH($B$8)-MONTH($B$7))+$E$14<=CS$14,$C31))))*HLOOKUP(YEAR(CT$16),$E$3:$O$5,3,0),0))) -> 0 | CU31: =+(IF($A31="","",IF(CU$15>12,IF($D31>MONTH(CU$16)-MONTH(InicioFuncion)+12*(YEAR(CU$16)-YEAR(InicioFuncion))+1,0,IF($E31<=(MONTH(CU$16)-MONTH(InicioFuncion)+12*(YEAR(CU$16)-YEAR(InicioFuncion)))-$D31+IF($D31<>"",1,0),0,IF(CU$15>$B$9,0,IF((YEAR($B$8)-YEAR($B$7))*12+(MONTH($B$8)-MONTH($B$7))+$E$14<=CT$14,$C31))))*HLOOKUP(YEAR(CU$16),$E$3:$O$5,3,0),0))) -> 0 | CV31: =+(IF($A31="","",IF(CV$15>12,IF($D31>MONTH(CV$16)-MONTH(InicioFuncion)+12*(YEAR(CV$16)-YEAR(InicioFuncion))+1,0,IF($E31<=(MONTH(CV$16)-MONTH(InicioFuncion)+12*(YEAR(CV$16)-YEAR(InicioFuncion)))-$D31+IF($D31<>"",1,0),0,IF(CV$15>$B$9,0,IF((YEAR($B$8)-YEAR($B$7))*12+(MONTH($B$8)-MONTH($B$7))+$E$14<=CU$14,$C31))))*HLOOKUP(YEAR(CV$16),$E$3:$O$5,3,0),0))) -> 0 | CW31: =+(IF($A31="","",IF(CW$15>12,IF($D31>MONTH(CW$16)-MONTH(InicioFuncion)+12*(YEAR(CW$16)-YEAR(InicioFuncion))+1,0,IF($E31<=(MONTH(CW$16)-MONTH(InicioFuncion)+12*(YEAR(CW$16)-YEAR(InicioFuncion)))-$D31+IF($D31<>"",1,0),0,IF(CW$15>$B$9,0,IF((YEAR($B$8)-YEAR($B$7))*12+(MONTH($B$8)-MONTH($B$7))+$E$14<=CV$14,$C31))))*HLOOKUP(YEAR(CW$16),$E$3:$O$5,3,0),0))) -> 0 | CX31: =+(IF($A31="","",IF(CX$15>12,IF($D31>MONTH(CX$16)-MONTH(InicioFuncion)+12*(YEAR(CX$16)-YEAR(InicioFuncion))+1,0,IF($E31<=(MONTH(CX$16)-MONTH(InicioFuncion)+12*(YEAR(CX$16)-YEAR(InicioFuncion)))-$D31+IF($D31<>"",1,0),0,IF(CX$15>$B$9,0,IF((YEAR($B$8)-YEAR($B$7))*12+(MONTH($B$8)-MONTH($B$7))+$E$14<=CW$14,$C31))))*HLOOKUP(YEAR(CX$16),$E$3:$O$5,3,0),0))) -> 0 | CY31: =+(IF($A31="","",IF(CY$15>12,IF($D31>MONTH(CY$16)-MONTH(InicioFuncion)+12*(YEAR(CY$16)-YEAR(InicioFuncion))+1,0,IF($E31<=(MONTH(CY$16)-MONTH(InicioFuncion)+12*(YEAR(CY$16)-YEAR(InicioFuncion)))-$D31+IF($D31<>"",1,0),0,IF(CY$15>$B$9,0,IF((YEAR($B$8)-YEAR($B$7))*12+(MONTH($B$8)-MONTH($B$7))+$E$14<=CX$14,$C31))))*HLOOKUP(YEAR(CY$16),$E$3:$O$5,3,0),0))) -> 0 | CZ31: =+(IF($A31="","",IF(CZ$15>12,IF($D31>MONTH(CZ$16)-MONTH(InicioFuncion)+12*(YEAR(CZ$16)-YEAR(InicioFuncion))+1,0,IF($E31<=(MONTH(CZ$16)-MONTH(InicioFuncion)+12*(YEAR(CZ$16)-YEAR(InicioFuncion)))-$D31+IF($D31<>"",1,0),0,IF(CZ$15>$B$9,0,IF((YEAR($B$8)-YEAR($B$7))*12+(MONTH($B$8)-MONTH($B$7))+$E$14<=CY$14,$C31))))*HLOOKUP(YEAR(CZ$16),$E$3:$O$5,3,0),0))) -> 0 | DA31: =+(IF($A31="","",IF(DA$15>12,IF($D31>MONTH(DA$16)-MONTH(InicioFuncion)+12*(YEAR(DA$16)-YEAR(InicioFuncion))+1,0,IF($E31<=(MONTH(DA$16)-MONTH(InicioFuncion)+12*(YEAR(DA$16)-YEAR(InicioFuncion)))-$D31+IF($D31<>"",1,0),0,IF(DA$15>$B$9,0,IF((YEAR($B$8)-YEAR($B$7))*12+(MONTH($B$8)-MONTH($B$7))+$E$14<=CZ$14,$C31))))*HLOOKUP(YEAR(DA$16),$E$3:$O$5,3,0),0))) -> 0 | DB31: =+(IF($A31="","",IF(DB$15>12,IF($D31>MONTH(DB$16)-MONTH(InicioFuncion)+12*(YEAR(DB$16)-YEAR(InicioFuncion))+1,0,IF($E31<=(MONTH(DB$16)-MONTH(InicioFuncion)+12*(YEAR(DB$16)-YEAR(InicioFuncion)))-$D31+IF($D31<>"",1,0),0,IF(DB$15>$B$9,0,IF((YEAR($B$8)-YEAR($B$7))*12+(MONTH($B$8)-MONTH($B$7))+$E$14<=DA$14,$C31))))*HLOOKUP(YEAR(DB$16),$E$3:$O$5,3,0),0))) -> 0 | DC31: =+(IF($A31="","",IF(DC$15>12,IF($D31>MONTH(DC$16)-MONTH(InicioFuncion)+12*(YEAR(DC$16)-YEAR(InicioFuncion))+1,0,IF($E31<=(MONTH(DC$16)-MONTH(InicioFuncion)+12*(YEAR(DC$16)-YEAR(InicioFuncion)))-$D31+IF($D31<>"",1,0),0,IF(DC$15>$B$9,0,IF((YEAR($B$8)-YEAR($B$7))*12+(MONTH($B$8)-MONTH($B$7))+$E$14<=DB$14,$C31))))*HLOOKUP(YEAR(DC$16),$E$3:$O$5,3,0),0))) -> 0 | DD31: =+(IF($A31="","",IF(DD$15>12,IF($D31>MONTH(DD$16)-MONTH(InicioFuncion)+12*(YEAR(DD$16)-YEAR(InicioFuncion))+1,0,IF($E31<=(MONTH(DD$16)-MONTH(InicioFuncion)+12*(YEAR(DD$16)-YEAR(InicioFuncion)))-$D31+IF($D31<>"",1,0),0,IF(DD$15>$B$9,0,IF((YEAR($B$8)-YEAR($B$7))*12+(MONTH($B$8)-MONTH($B$7))+$E$14<=DC$14,$C31))))*HLOOKUP(YEAR(DD$16),$E$3:$O$5,3,0),0))) -> 0 | DE31: =+(IF($A31="","",IF(DE$15>12,IF($D31>MONTH(DE$16)-MONTH(InicioFuncion)+12*(YEAR(DE$16)-YEAR(InicioFuncion))+1,0,IF($E31<=(MONTH(DE$16)-MONTH(InicioFuncion)+12*(YEAR(DE$16)-YEAR(InicioFuncion)))-$D31+IF($D31<>"",1,0),0,IF(DE$15>$B$9,0,IF((YEAR($B$8)-YEAR($B$7))*12+(MONTH($B$8)-MONTH($B$7))+$E$14<=DD$14,$C31))))*HLOOKUP(YEAR(DE$16),$E$3:$O$5,3,0),0))) -> 0 | DF31: =+(IF($A31="","",IF(DF$15>12,IF($D31>MONTH(DF$16)-MONTH(InicioFuncion)+12*(YEAR(DF$16)-YEAR(InicioFuncion))+1,0,IF($E31<=(MONTH(DF$16)-MONTH(InicioFuncion)+12*(YEAR(DF$16)-YEAR(InicioFuncion)))-$D31+IF($D31<>"",1,0),0,IF(DF$15>$B$9,0,IF((YEAR($B$8)-YEAR($B$7))*12+(MONTH($B$8)-MONTH($B$7))+$E$14<=DE$14,$C31))))*HLOOKUP(YEAR(DF$16),$E$3:$O$5,3,0),0))) -> 0 | DG31: =+(IF($A31="","",IF(DG$15>12,IF($D31>MONTH(DG$16)-MONTH(InicioFuncion)+12*(YEAR(DG$16)-YEAR(InicioFuncion))+1,0,IF($E31<=(MONTH(DG$16)-MONTH(InicioFuncion)+12*(YEAR(DG$16)-YEAR(InicioFuncion)))-$D31+IF($D31<>"",1,0),0,IF(DG$15>$B$9,0,IF((YEAR($B$8)-YEAR($B$7))*12+(MONTH($B$8)-MONTH($B$7))+$E$14<=DF$14,$C31))))*HLOOKUP(YEAR(DG$16),$E$3:$O$5,3,0),0))) -> 0 | DH31: =+(IF($A31="","",IF(DH$15>12,IF($D31>MONTH(DH$16)-MONTH(InicioFuncion)+12*(YEAR(DH$16)-YEAR(InicioFuncion))+1,0,IF($E31<=(MONTH(DH$16)-MONTH(InicioFuncion)+12*(YEAR(DH$16)-YEAR(InicioFuncion)))-$D31+IF($D31<>"",1,0),0,IF(DH$15>$B$9,0,IF((YEAR($B$8)-YEAR($B$7))*12+(MONTH($B$8)-MONTH($B$7))+$E$14<=DG$14,$C31))))*HLOOKUP(YEAR(DH$16),$E$3:$O$5,3,0),0))) -> 0 | DI31: =+(IF($A31="","",IF(DI$15>12,IF($D31>MONTH(DI$16)-MONTH(InicioFuncion)+12*(YEAR(DI$16)-YEAR(InicioFuncion))+1,0,IF($E31<=(MONTH(DI$16)-MONTH(InicioFuncion)+12*(YEAR(DI$16)-YEAR(InicioFuncion)))-$D31+IF($D31<>"",1,0),0,IF(DI$15>$B$9,0,IF((YEAR($B$8)-YEAR($B$7))*12+(MONTH($B$8)-MONTH($B$7))+$E$14<=DH$14,$C31))))*HLOOKUP(YEAR(DI$16),$E$3:$O$5,3,0),0))) -> 0 | DJ31: =+(IF($A31="","",IF(DJ$15>12,IF($D31>MONTH(DJ$16)-MONTH(InicioFuncion)+12*(YEAR(DJ$16)-YEAR(InicioFuncion))+1,0,IF($E31<=(MONTH(DJ$16)-MONTH(InicioFuncion)+12*(YEAR(DJ$16)-YEAR(InicioFuncion)))-$D31+IF($D31<>"",1,0),0,IF(DJ$15>$B$9,0,IF((YEAR($B$8)-YEAR($B$7))*12+(MONTH($B$8)-MONTH($B$7))+$E$14<=DI$14,$C31))))*HLOOKUP(YEAR(DJ$16),$E$3:$O$5,3,0),0))) -> 0 | DK31: =+(IF($A31="","",IF(DK$15>12,IF($D31>MONTH(DK$16)-MONTH(InicioFuncion)+12*(YEAR(DK$16)-YEAR(InicioFuncion))+1,0,IF($E31<=(MONTH(DK$16)-MONTH(InicioFuncion)+12*(YEAR(DK$16)-YEAR(InicioFuncion)))-$D31+IF($D31<>"",1,0),0,IF(DK$15>$B$9,0,IF((YEAR($B$8)-YEAR($B$7))*12+(MONTH($B$8)-MONTH($B$7))+$E$14<=DJ$14,$C31))))*HLOOKUP(YEAR(DK$16),$E$3:$O$5,3,0),0))) -> 0 | DL31: =+(IF($A31="","",IF(DL$15>12,IF($D31>MONTH(DL$16)-MONTH(InicioFuncion)+12*(YEAR(DL$16)-YEAR(InicioFuncion))+1,0,IF($E31<=(MONTH(DL$16)-MONTH(InicioFuncion)+12*(YEAR(DL$16)-YEAR(InicioFuncion)))-$D31+IF($D31<>"",1,0),0,IF(DL$15>$B$9,0,IF((YEAR($B$8)-YEAR($B$7))*12+(MONTH($B$8)-MONTH($B$7))+$E$14<=DK$14,$C31))))*HLOOKUP(YEAR(DL$16),$E$3:$O$5,3,0),0))) -> 0 | DM31: =+(IF($A31="","",IF(DM$15>12,IF($D31>MONTH(DM$16)-MONTH(InicioFuncion)+12*(YEAR(DM$16)-YEAR(InicioFuncion))+1,0,IF($E31<=(MONTH(DM$16)-MONTH(InicioFuncion)+12*(YEAR(DM$16)-YEAR(InicioFuncion)))-$D31+IF($D31<>"",1,0),0,IF(DM$15>$B$9,0,IF((YEAR($B$8)-YEAR($B$7))*12+(MONTH($B$8)-MONTH($B$7))+$E$14<=DL$14,$C31))))*HLOOKUP(YEAR(DM$16),$E$3:$O$5,3,0),0))) -> 0 | DN31: =+(IF($A31="","",IF(DN$15>12,IF($D31>MONTH(DN$16)-MONTH(InicioFuncion)+12*(YEAR(DN$16)-YEAR(InicioFuncion))+1,0,IF($E31<=(MONTH(DN$16)-MONTH(InicioFuncion)+12*(YEAR(DN$16)-YEAR(InicioFuncion)))-$D31+IF($D31<>"",1,0),0,IF(DN$15>$B$9,0,IF((YEAR($B$8)-YEAR($B$7))*12+(MONTH($B$8)-MONTH($B$7))+$E$14<=DM$14,$C31))))*HLOOKUP(YEAR(DN$16),$E$3:$O$5,3,0),0))) -> 0 | DO31: =+(IF($A31="","",IF(DO$15>12,IF($D31>MONTH(DO$16)-MONTH(InicioFuncion)+12*(YEAR(DO$16)-YEAR(InicioFuncion))+1,0,IF($E31<=(MONTH(DO$16)-MONTH(InicioFuncion)+12*(YEAR(DO$16)-YEAR(InicioFuncion)))-$D31+IF($D31<>"",1,0),0,IF(DO$15>$B$9,0,IF((YEAR($B$8)-YEAR($B$7))*12+(MONTH($B$8)-MONTH($B$7))+$E$14<=DN$14,$C31))))*HLOOKUP(YEAR(DO$16),$E$3:$O$5,3,0),0))) -> 0 | DP31: =+(IF($A31="","",IF(DP$15>12,IF($D31>MONTH(DP$16)-MONTH(InicioFuncion)+12*(YEAR(DP$16)-YEAR(InicioFuncion))+1,0,IF($E31<=(MONTH(DP$16)-MONTH(InicioFuncion)+12*(YEAR(DP$16)-YEAR(InicioFuncion)))-$D31+IF($D31<>"",1,0),0,IF(DP$15>$B$9,0,IF((YEAR($B$8)-YEAR($B$7))*12+(MONTH($B$8)-MONTH($B$7))+$E$14<=DO$14,$C31))))*HLOOKUP(YEAR(DP$16),$E$3:$O$5,3,0),0))) -> 0 | DQ31: =+(IF($A31="","",IF(DQ$15>12,IF($D31>MONTH(DQ$16)-MONTH(InicioFuncion)+12*(YEAR(DQ$16)-YEAR(InicioFuncion))+1,0,IF($E31<=(MONTH(DQ$16)-MONTH(InicioFuncion)+12*(YEAR(DQ$16)-YEAR(InicioFuncion)))-$D31+IF($D31<>"",1,0),0,IF(DQ$15>$B$9,0,IF((YEAR($B$8)-YEAR($B$7))*12+(MONTH($B$8)-MONTH($B$7))+$E$14<=DP$14,$C31))))*HLOOKUP(YEAR(DQ$16),$E$3:$O$5,3,0),0))) -> 0 | DR31: =+(IF($A31="","",IF(DR$15>12,IF($D31>MONTH(DR$16)-MONTH(InicioFuncion)+12*(YEAR(DR$16)-YEAR(InicioFuncion))+1,0,IF($E31<=(MONTH(DR$16)-MONTH(InicioFuncion)+12*(YEAR(DR$16)-YEAR(InicioFuncion)))-$D31+IF($D31<>"",1,0),0,IF(DR$15>$B$9,0,IF((YEAR($B$8)-YEAR($B$7))*12+(MONTH($B$8)-MONTH($B$7))+$E$14<=DQ$14,$C31))))*HLOOKUP(YEAR(DR$16),$E$3:$O$5,3,0),0))) -> 0 | DS31: =+(IF($A31="","",IF(DS$15>12,IF($D31>MONTH(DS$16)-MONTH(InicioFuncion)+12*(YEAR(DS$16)-YEAR(InicioFuncion))+1,0,IF($E31<=(MONTH(DS$16)-MONTH(InicioFuncion)+12*(YEAR(DS$16)-YEAR(InicioFuncion)))-$D31+IF($D31<>"",1,0),0,IF(DS$15>$B$9,0,IF((YEAR($B$8)-YEAR($B$7))*12+(MONTH($B$8)-MONTH($B$7))+$E$14<=DR$14,$C31))))*HLOOKUP(YEAR(DS$16),$E$3:$O$5,3,0),0))) -> 0 | DT31: =+(IF($A31="","",IF(DT$15>12,IF($D31>MONTH(DT$16)-MONTH(InicioFuncion)+12*(YEAR(DT$16)-YEAR(InicioFuncion))+1,0,IF($E31<=(MONTH(DT$16)-MONTH(InicioFuncion)+12*(YEAR(DT$16)-YEAR(InicioFuncion)))-$D31+IF($D31<>"",1,0),0,IF(DT$15>$B$9,0,IF((YEAR($B$8)-YEAR($B$7))*12+(MONTH($B$8)-MONTH($B$7))+$E$14<=DS$14,$C31))))*HLOOKUP(YEAR(DT$16),$E$3:$O$5,3,0),0))) -> 0 | DU31: =+(IF($A31="","",IF(DU$15>12,IF($D31>MONTH(DU$16)-MONTH(InicioFuncion)+12*(YEAR(DU$16)-YEAR(InicioFuncion))+1,0,IF($E31<=(MONTH(DU$16)-MONTH(InicioFuncion)+12*(YEAR(DU$16)-YEAR(InicioFuncion)))-$D31+IF($D31<>"",1,0),0,IF(DU$15>$B$9,0,IF((YEAR($B$8)-YEAR($B$7))*12+(MONTH($B$8)-MONTH($B$7))+$E$14<=DT$14,$C31))))*HLOOKUP(YEAR(DU$16),$E$3:$O$5,3,0),0))) -> 0 | DV31: =+(IF($A31="","",IF(DV$15>12,IF($D31>MONTH(DV$16)-MONTH(InicioFuncion)+12*(YEAR(DV$16)-YEAR(InicioFuncion))+1,0,IF($E31<=(MONTH(DV$16)-MONTH(InicioFuncion)+12*(YEAR(DV$16)-YEAR(InicioFuncion)))-$D31+IF($D31<>"",1,0),0,IF(DV$15>$B$9,0,IF((YEAR($B$8)-YEAR($B$7))*12+(MONTH($B$8)-MONTH($B$7))+$E$14<=DU$14,$C31))))*HLOOKUP(YEAR(DV$16),$E$3:$O$5,3,0),0))) -> 0
A32: Mto Enlace De Transmision Mw Soporte Fabricante /Anual | C32: =+SUMIFS(ValoresMercado,Conceptos,A32,Tipo,TipoEspecifico)/12 -> 83333.33333 | E32: 56 | F32: 0 | G32: 0 | H32: 0 | I32: 0 | J32: 0 | K32: 0 | L32: 0 | M32: 0 | N32: 0 | O32: 0 | P32: 0 | Q32: 0 | R32: 0 | S32: 85833.33333 | T32: 85833.33333 | U32: 85833.33333 | V32: 85833.33333 | W32: 85833.33333 | X32: 85833.33333 | Y32: 85833.33333 | Z32: 88408.33333 | AA32: 88408.33333 | AB32: 88408.33333 | AC32: 88408.33333 | AD32: 88408.33333 | AE32: 88408.33333 | AF32: 88408.33333 | AG32: 88408.33333 | AH32: 88408.33333 | AI32: 88408.33333 | AJ32: 88408.33333 | AK32: 88408.33333 | AL32: 91060.58333 | AM32: 91060.58333 | AN32: 91060.58333 | AO32: 91060.58333 | AP32: 91060.58333 | AQ32: 91060.58333 | AR32: 91060.58333 | AS32: 91060.58333 | AT32: 91060.58333 | AU32: 91060.58333 | AV32: 91060.58333 | AW32: 91060.58333 | AX32: 93792.40083 | AY32: 93792.40083 | AZ32: 93792.40083 | BA32: 93792.40083 | BB32: 93792.40083 | BC32: 93792.40083 | BD32: 93792.40083 | BE32: 93792.40083 | BF32: 93792.40083 | BG32: 93792.40083 | BH32: 93792.40083 | BI32: 93792.40083 | BJ32: 96606.17286 | BK32: 0 | BL32: 0 | BM32: 0 | BN32: 0 | BO32: 0 | BP32: 0 | BQ32: 0 | BR32: 0 | BS32: 0 | BT32: 0 | BU32: 0 | BV32: 0 | BW32: 0 | BX32: 0 | BY32: 0 | BZ32: 0 | CA32: 0 | CB32: 0 | CC32: 0 | CD32: 0 | CE32: 0 | CF32: 0 | CG32: 0 | CH32: 0 | CI32: 0 | CJ32: 0 | CK32: 0 | CL32: 0 | CM32: 0 | CN32: 0 | CO32: 0 | CP32: 0 | CQ32: 0 | CR32: 0 | CS32: 0 | CT32: 0 | CU32: 0 | CV32: 0 | CW32: 0 | CX32: 0 | CY32: 0 | CZ32: 0 | DA32: 0 | DB32: 0 | DC32: 0 | DD32: 0 | DE32: 0 | DF32: 0 | DG32: 0 | DH32: 0 | DI32: 0 | DJ32: 0 | DK32: 0 | DL32: 0 | DM32: 0 | DN32: 0 | DO32: 0 | DP32: 0 | DQ32: 0 | DR32: 0 | DS32: 0 | DT32: 0 | DU32: 0 | DV32: 0
A33: Mto Preventivo Transferencia Y Control / Anual | C33: =+SUMIFS(ValoresMercado,Conceptos,A33,Tipo,TipoEspecifico,Relacion,KW_EnergiaValor)/12 -> 25000 | E33: 56 | F33: 0 | G33: =+(IF($A33="","",IF(G$15>12,IF($D33>MONTH(G$16)-MONTH(InicioFuncion)+12*(YEAR(G$16)-YEAR(InicioFuncion))+1,0,IF($E33<=(MONTH(G$16)-MONTH(InicioFuncion)+12*(YEAR(G$16)-YEAR(InicioFuncion)))-$D33+IF($D33<>"",1,0),0,IF(G$15>$B$9,0,IF((YEAR($B$8)-YEAR($B$7))*12+(MONTH($B$8)-MONTH($B$7))+$E$14<=F$14,$C33))))*HLOOKUP(YEAR(G$16),$E$3:$O$5,3,0),0))) -> 0 | H33: 0 | I33: 0 | J33: 0 | K33: 0 | L33: 0 | M33: 0 | N33: 0 | O33: 0 | P33: 0 | Q33: 0 | R33: 0 | S33: 25750 | T33: 25750 | U33: 25750 | V33: 25750 | W33: 25750 | X33: 25750 | Y33: 25750 | Z33: 26522.5 | AA33: 26522.5 | AB33: 26522.5 | AC33: 26522.5 | AD33: 26522.5 | AE33: 26522.5 | AF33: 26522.5 | AG33: 26522.5 | AH33: 26522.5 | AI33: 26522.5 | AJ33: 26522.5 | AK33: 26522.5 | AL33: 27318.175 | AM33: 27318.175 | AN33: 27318.175 | AO33: 27318.175 | AP33: 27318.175 | AQ33: 27318.175 | AR33: 27318.175 | AS33: 27318.175 | AT33: 27318.175 | AU33: 27318.175 | AV33: 27318.175 | AW33: 27318.175 | AX33: 28137.72025 | AY33: 28137.72025 | AZ33: 28137.72025 | BA33: 28137.72025 | BB33: 28137.72025 | BC33: 28137.72025 | BD33: 28137.72025 | BE33: 28137.72025 | BF33: 28137.72025 | BG33: 28137.72025 | BH33: 28137.72025 | BI33: 28137.72025 | BJ33: 28981.85186 | BK33: 0 | BL33: 0 | BM33: 0 | BN33: 0 | BO33: 0 | BP33: 0 | BQ33: 0 | BR33: 0 | BS33: 0 | BT33: 0 | BU33: 0 | BV33: 0 | BW33: 0 | BX33: 0 | BY33: 0 | BZ33: 0 | CA33: 0 | CB33: 0 | CC33: 0 | CD33: 0 | CE33: 0 | CF33: 0 | CG33: 0 | CH33: 0 | CI33: 0 | CJ33: 0 | CK33: 0 | CL33: 0 | CM33: 0 | CN33: 0 | CO33: 0 | CP33: 0 | CQ33: 0 | CR33: 0 | CS33: 0 | CT33: 0 | CU33: 0 | CV33: 0 | CW33: 0 | CX33: 0 | CY33: 0 | CZ33: 0 | DA33: 0 | DB33: 0 | DC33: 0 | DD33: 0 | DE33: 0 | DF33: 0 | DG33: 0 | DH33: 0 | DI33: 0 | DJ33: 0 | DK33: 0 | DL33: 0 | DM33: 0 | DN33: 0 | DO33: 0 | DP33: 0 | DQ33: 0 | DR33: 0 | DS33: 0 | DT33: 0 | DU33: 0 | DV33: 0
A34: Mto Preventivoplanta Electrica / Anual | C34: =+SUMIFS(ValoresMercado,Conceptos,A34,Tipo,TipoEspecifico,Relacion,KW_EnergiaValor)/12 -> 230630.1667 | E34: 56 | F34: 0 | G34: 0 | H34: 0 | I34: 0 | J34: 0 | K34: 0 | L34: 0 | M34: 0 | N34: 0 | O34: 0 | P34: 0 | Q34: 0 | R34: 0 | S34: 237549.0717 | T34: 237549.0717 | U34: 237549.0717 | V34: 237549.0717 | W34: 237549.0717 | X34: 237549.0717 | Y34: 237549.0717 | Z34: 244675.5438 | AA34: 244675.5438 | AB34: 244675.5438 | AC34: 244675.5438 | AD34: 244675.5438 | AE34: 244675.5438 | AF34: 244675.5438 | AG34: 244675.5438 | AH34: 244675.5438 | AI34: 244675.5438 | AJ34: 244675.5438 | AK34: 244675.5438 | AL34: 252015.8101 | AM34: 252015.8101 | AN34: 252015.8101 | AO34: 252015.8101 | AP34: 252015.8101 | AQ34: 252015.8101 | AR34: 252015.8101 | AS34: 252015.8101 | AT34: 252015.8101 | AU34: 252015.8101 | AV34: 252015.8101 | AW34: 252015.8101 | AX34: 259576.2844 | AY34: 259576.2844 | AZ34: 259576.2844 | BA34: 259576.2844 | BB34: 259576.2844 | BC34: 259576.2844 | BD34: 259576.2844 | BE34: 259576.2844 | BF34: 259576.2844 | BG34: 259576.2844 | BH34: 259576.2844 | BI34: 259576.2844 | BJ34: 267363.573 | BK34: 0 | BL34: 0 | BM34: 0 | BN34: 0 | BO34: 0 | BP34: 0 | BQ34: 0 | BR34: 0 | BS34: 0 | BT34: 0 | BU34: 0 | BV34: 0 | BW34: 0 | BX34: 0 | BY34: 0 | BZ34: 0 | CA34: 0 | CB34: 0 | CC34: 0 | CD34: 0 | CE34: 0 | CF34: 0 | CG34: 0 | CH34: 0 | CI34: 0 | CJ34: 0 | CK34: 0 | CL34: 0 | CM34: 0 | CN34: 0 | CO34: 0 | CP34: 0 | CQ34: 0 | CR34: 0 | CS34: 0 | CT34: 0 | CU34: 0 | CV34: 0 | CW34: 0 | CX34: 0 | CY34: 0 | CZ34: 0 | DA34: 0 | DB34: 0 | DC34: 0 | DD34: 0 | DE34: 0 | DF34: 0 | DG34: 0 | DH34: 0 | DI34: 0 | DJ34: 0 | DK34: 0 | DL34: 0 | DM34: 0 | DN34: 0 | DO34: 0 | DP34: 0 | DQ34: 0 | DR34: 0 | DS34: 0 | DT34: 0 | DU34: 0 | DV34: 0
A35: Mto Sistema De Seguridad Electronica | C35: =+SUMIFS(ValoresMercado,Conceptos,A35)/12 -> 806980.1017 | E35: 56 | F35: 0 | G35: 0 | H35: 0 | I35: 0 | J35: 0 | K35: 0 | L35: 0 | M35: 0 | N35: 0 | O35: 0 | P35: 0 | Q35: 0 | R35: 0 | S35: 831189.5047 | T35: 831189.5047 | U35: 831189.5047 | V35: 831189.5047 | W35: 831189.5047 | X35: 831189.5047 | Y35: 831189.5047 | Z35: 856125.1899 | AA35: 856125.1899 | AB35: 856125.1899 | AC35: 856125.1899 | AD35: 856125.1899 | AE35: 856125.1899 | AF35: 856125.1899 | AG35: 856125.1899 | AH35: 856125.1899 | AI35: 856125.1899 | AJ35: 856125.1899 | AK35: 856125.1899 | AL35: 881808.9456 | AM35: 881808.9456 | AN35: 881808.9456 | AO35: 881808.9456 | AP35: 881808.9456 | AQ35: 881808.9456 | AR35: 881808.9456 | AS35: 881808.9456 | AT35: 881808.9456 | AU35: 881808.9456 | AV35: 881808.9456 | AW35: 881808.9456 | AX35: 908263.2139 | AY35: 908263.2139 | AZ35: 908263.2139 | BA35: 908263.2139 | BB35: 908263.2139 | BC35: 908263.2139 | BD35: 908263.2139 | BE35: 908263.2139 | BF35: 908263.2139 | BG35: 908263.2139 | BH35: 908263.2139 | BI35: 908263.2139 | BJ35: 935511.1103 | BK35: 0 | BL35: 0 | BM35: 0 | BN35: 0 | BO35: 0 | BP35: 0 | BQ35: 0 | BR35: 0 | BS35: 0 | BT35: 0 | BU35: 0 | BV35: 0 | BW35: 0 | BX35: 0 | BY35: 0 | BZ35: 0 | CA35: 0 | CB35: 0 | CC35: 0 | CD35: 0 | CE35: 0 | CF35: 0 | CG35: 0 | CH35: 0 | CI35: 0 | CJ35: 0 | CK35: 0 | CL35: 0 | CM35: 0 | CN35: 0 | CO35: 0 | CP35: 0 | CQ35: 0 | CR35: 0 | CS35: 0 | CT35: 0 | CU35: 0 | CV35: 0 | CW35: 0 | CX35: 0 | CY35: 0 | CZ35: 0 | DA35: 0 | DB35: 0 | DC35: 0 | DD35: 0 | DE35: 0 | DF35: 0 | DG35: 0 | DH35: 0 | DI35: 0 | DJ35: 0 | DK35: 0 | DL35: 0 | DM35: 0 | DN35: 0 | DO35: 0 | DP35: 0 | DQ35: 0 | DR35: 0 | DS35: 0 | DT35: 0 | DU35: 0 | DV35: 0
A36: Planta Electrica | B36: =+SUMIFS(ValoresMercado,Conceptos,A36,Tipo,TipoEspecifico,Relacion,PlantaElectrica) -> 66997840 | E36: 56 | F36: =+IF($A36="","",IF($D36=F$15,$B36+IF(MONTH($B$8)-MONTH($B$7)+$E$14=E$14,$C36,0),0)) -> 66997840 | G36: 0 | H36: 0 | I36: 0 | J36: 0 | K36: 0 | L36: 0 | M36: 0 | N36: 0 | O36: 0 | P36: 0 | Q36: 0 | R36: 0 | S36: 0 | T36: 0 | U36: 0 | V36: 0 | W36: 0 | X36: 0 | Y36: 0 | Z36: 0 | AA36: 0 | AB36: 0 | AC36: 0 | AD36: 0 | AE36: 0 | AF36: 0 | AG36: 0 | AH36: 0 | AI36: 0 | AJ36: 0 | AK36: 0 | AL36: 0 | AM36: 0 | AN36: 0 | AO36: 0 | AP36: 0 | AQ36: 0 | AR36: 0 | AS36: 0 | AT36: 0 | AU36: 0 | AV36: 0 | AW36: 0 | AX36: 0 | AY36: 0 | AZ36: 0 | BA36: 0 | BB36: 0 | BC36: 0 | BD36: 0 | BE36: 0 | BF36: 0 | BG36: 0 | BH36: 0 | BI36: 0 | BJ36: 0 | BK36: 0 | BL36: 0 | BM36: 0 | BN36: 0 | BO36: 0 | BP36: 0 | BQ36: 0 | BR36: =+IF($A36="","",IF($D36=BR$15,$B36+IF(MONTH($B$8)-MONTH($B$7)+$E$14=BQ$14,$C36,0),0)) -> 0 | BS36: 0 | BT36: 0 | BU36: 0 | BV36: 0 | BW36: 0 | BX36: 0 | BY36: 0 | BZ36: 0 | CA36: 0 | CB36: 0 | CC36: 0 | CD36: 0 | CE36: 0 | CF36: 0 | CG36: 0 | CH36: 0 | CI36: 0 | CJ36: 0 | CK36: 0 | CL36: 0 | CM36: 0 | CN36: 0 | CO36: 0 | CP36: 0 | CQ36: 0 | CR36: 0 | CS36: 0 | CT36: 0 | CU36: 0 | CV36: 0 | CW36: 0 | CX36: 0 | CY36: 0 | CZ36: 0 | DA36: 0 | DB36: 0 | DC36: 0 | DD36: 0 | DE36: 0 | DF36: 0 | DG36: 0 | DH36: 0 | DI36: 0 | DJ36: 0 | DK36: 0 | DL36: 0 | DM36: 0 | DN36: 0 | DO36: 0 | DP36: 0 | DQ36: 0 | DR36: 0 | DS36: 0 | DT36: 0 | DU36: 0 | DV36: 0
A37: Rectificador Y Baterias Para Enodob | B37: =+SUMIFS(ValoresMercado,Conceptos,A37,Relacion,TmcBw,RangoSectorEnodeb,SectorEnodeb) -> 26695200 | E37: 56 | F37: =+IF($A37="","",IF($D37=F$15,$B37+IF(MONTH($B$8)-MONTH($B$7)+$E$14=E$14,$C37,0),0)) -> 26695200 | G37: 0 | H37: 0 | I37: 0 | J37: 0 | K37: 0 | L37: 0 | M37: 0 | N37: 0 | O37: 0 | P37: 0 | Q37: 0 | R37: 0 | S37: 0 | T37: 0 | U37: 0 | V37: 0 | W37: 0 | X37: 0 | Y37: 0 | Z37: 0 | AA37: 0 | AB37: 0 | AC37: 0 | AD37: 0 | AE37: 0 | AF37: 0 | AG37: 0 | AH37: 0 | AI37: 0 | AJ37: 0 | AK37: 0 | AL37: 0 | AM37: 0 | AN37: 0 | AO37: 0 | AP37: 0 | AQ37: 0 | AR37: 0 | AS37: 0 | AT37: 0 | AU37: 0 | AV37: 0 | AW37: 0 | AX37: 0 | AY37: 0 | AZ37: 0 | BA37: 0 | BB37: 0 | BC37: 0 | BD37: 0 | BE37: 0 | BF37: 0 | BG37: 0 | BH37: 0 | BI37: 0 | BJ37: 0 | BK37: 0 | BL37: 0 | BM37: 0 | BN37: 0 | BO37: 0 | BP37: 0 | BQ37: 0 | BR37: 0 | BS37: 0 | BT37: 0 | BU37: 0 | BV37: 0 | BW37: 0 | BX37: 0 | BY37: 0 | BZ37: 0 | CA37: 0 | CB37: 0 | CC37: 0 | CD37: 0 | CE37: 0 | CF37: 0 | CG37: 0 | CH37: 0 | CI37: 0 | CJ37: 0 | CK37: 0 | CL37: 0 | CM37: 0 | CN37: 0 | CO37: 0 | CP37: 0 | CQ37: 0 | CR37: 0 | CS37: 0 | CT37: 0 | CU37: 0 | CV37: 0 | CW37: 0 | CX37: 0 | CY37: 0 | CZ37: 0 | DA37: 0 | DB37: 0 | DC37: 0 | DD37: 0 | DE37: 0 | DF37: 0 | DG37: 0 | DH37: 0 | DI37: 0 | DJ37: 0 | DK37: 0 | DL37: 0 | DM37: 0 | DN37: 0 | DO37: 0 | DP37: 0 | DQ37: 0 | DR37: 0 | DS37: 0 | DT37: 0 | DU37: 0 | DV37: 0
A38: Sistema De Seguridad Electronica | B38: =+SUMIFS(ValoresMercado,Conceptos,A38,Tipo,TipoEspecifico) -> 21061031.2 | E38: 56 | F38: 21061031.2 | G38: 0 | H38: 0 | I38: 0 | J38: 0 | K38: 0 | L38: 0 | M38: 0 | N38: 0 | O38: 0 | P38: 0 | Q38: 0 | R38: 0 | S38: 0 | T38: 0 | U38: 0 | V38: 0 | W38: 0 | X38: 0 | Y38: 0 | Z38: 0 | AA38: 0 | AB38: 0 | AC38: 0 | AD38: 0 | AE38: 0 | AF38: 0 | AG38: 0 | AH38: 0 | AI38: 0 | AJ38: 0 | AK38: 0 | AL38: 0 | AM38: 0 | AN38: 0 | AO38: 0 | AP38: 0 | AQ38: 0 | AR38: 0 | AS38: 0 | AT38: 0 | AU38: 0 | AV38: 0 | AW38: 0 | AX38: 0 | AY38: 0 | AZ38: 0 | BA38: 0 | BB38: 0 | BC38: 0 | BD38: 0 | BE38: 0 | BF38: 0 | BG38: 0 | BH38: 0 | BI38: 0 | BJ38: 0 | BK38: 0 | BL38: 0 | BM38: 0 | BN38: 0 | BO38: 0 | BP38: 0 | BQ38: 0 | BR38: 0 | BS38: 0 | BT38: 0 | BU38: 0 | BV38: 0 | BW38: 0 | BX38: 0 | BY38: 0 | BZ38: 0 | CA38: 0 | CB38: 0 | CC38: 0 | CD38: 0 | CE38: 0 | CF38: 0 | CG38: 0 | CH38: 0 | CI38: 0 | CJ38: 0 | CK38: 0 | CL38: 0 | CM38: 0 | CN38: 0 | CO38: 0 | CP38: 0 | CQ38: 0 | CR38: 0 | CS38: 0 | CT38: 0 | CU38: 0 | CV38: 0 | CW38: 0 | CX38: 0 | CY38: 0 | CZ38: 0 | DA38: 0 | DB38: 0 | DC38: 0 | DD38: 0 | DE38: 0 | DF38: 0 | DG38: 0 | DH38: 0 | DI38: 0 | DJ38: 0 | DK38: 0 | DL38: 0 | DM38: 0 | DN38: 0 | DO38: 0 | DP38: 0 | DQ38: 0 | DR38: 0 | DS38: 0 | DT38: 0 | DU38: 0 | DV38: 0
A39: Transferencia Y Control | B39: =+SUMIFS(ValoresMercado,Conceptos,A39,Tipo,TipoEspecifico,Relacion,KW_EnergiaValor) -> 0 | E39: 56 | F39: 0 | G39: 0 | H39: 0 | I39: 0 | J39: 0 | K39: 0 | L39: 0 | M39: 0 | N39: 0 | O39: 0 | P39: 0 | Q39: 0 | R39: 0 | S39: 0 | T39: 0 | U39: 0 | V39: 0 | W39: 0 | X39: 0 | Y39: 0 | Z39: 0 | AA39: 0 | AB39: 0 | AC39: 0 | AD39: 0 | AE39: 0 | AF39: 0 | AG39: 0 | AH39: 0 | AI39: 0 | AJ39: 0 | AK39: 0 | AL39: 0 | AM39: 0 | AN39: 0 | AO39: 0 | AP39: 0 | AQ39: 0 | AR39: 0 | AS39: 0 | AT39: 0 | AU39: 0 | AV39: 0 | AW39: 0 | AX39: 0 | AY39: 0 | AZ39: 0 | BA39: 0 | BB39: 0 | BC39: 0 | BD39: 0 | BE39: 0 | BF39: 0 | BG39: 0 | BH39: 0 | BI39: 0 | BJ39: 0 | BK39: 0 | BL39: 0 | BM39: 0 | BN39: 0 | BO39: 0 | BP39: 0 | BQ39: 0 | BR39: 0 | BS39: 0 | BT39: 0 | BU39: 0 | BV39: 0 | BW39: 0 | BX39: 0 | BY39: 0 | BZ39: 0 | CA39: 0 | CB39: 0 | CC39: 0 | CD39: 0 | CE39: 0 | CF39: 0 | CG39: 0 | CH39: 0 | CI39: 0 | CJ39: 0 | CK39: 0 | CL39: 0 | CM39: 0 | CN39: 0 | CO39: 0 | CP39: 0 | CQ39: 0 | CR39: 0 | CS39: 0 | CT39: 0 | CU39: 0 | CV39: 0 | CW39: 0 | CX39: 0 | CY39: 0 | CZ39: 0 | DA39: 0 | DB39: 0 | DC39: 0 | DD39: 0 | DE39: 0 | DF39: 0 | DG39: 0 | DH39: 0 | DI39: 0 | DJ39: 0 | DK39: 0 | DL39: 0 | DM39: 0 | DN39: 0 | DO39: 0 | DP39: 0 | DQ39: 0 | DR39: 0 | DS39: 0 | DT39: 0 | DU39: 0 | DV39: 0
A40: CPE | B40: =+IF('Parametros tecnológicos'!C27="S",Detalle!P966,0) -> 0 | E40: 56 | F40: 0 | G40: 0 | H40: 0 | I40: =+IF($A40="","",IF($D40=I$15,$B40+IF(MONTH($B$8)-MONTH($B$7)+$E$14=H$14,$C40,0),0)) -> 0 | J40: 0 | K40: 0 | L40: 0 | M40: 0 | N40: 0 | O40: 0 | P40: 0 | Q40: 0 | R40: 0 | S40: 0 | T40: 0 | U40: 0 | V40: 0 | W40: 0 | X40: 0 | Y40: 0 | Z40: 0 | AA40: 0 | AB40: 0 | AC40: 0 | AD40: 0 | AE40: 0 | AF40: 0 | AG40: 0 | AH40: 0 | AI40: 0 | AJ40: 0 | AK40: 0 | AL40: 0 | AM40: 0 | AN40: 0 | AO40: 0 | AP40: 0 | AQ40: 0 | AR40: 0 | AS40: 0 | AT40: 0 | AU40: 0 | AV40: 0 | AW40: 0 | AX40: 0 | AY40: 0 | AZ40: 0 | BA40: 0 | BB40: 0 | BC40: 0 | BD40: 0 | BE40: 0 | BF40: 0 | BG40: 0 | BH40: 0 | BI40: 0 | BJ40: 0 | BK40: 0 | BL40: 0 | BM40: 0 | BN40: 0 | BO40: 0 | BP40: 0 | BQ40: 0 | BR40: 0 | BS40: 0 | BT40: 0 | BU40: 0 | BV40: 0 | BW40: 0 | BX40: 0 | BY40: 0 | BZ40: 0 | CA40: 0 | CB40: 0 | CC40: 0 | CD40: 0 | CE40: 0 | CF40: 0 | CG40: 0 | CH40: 0 | CI40: 0 | CJ40: 0 | CK40: 0 | CL40: 0 | CM40: 0 | CN40: 0 | CO40: 0 | CP40: 0 | CQ40: 0 | CR40: 0 | CS40: 0 | CT40: =+IF($A40="","",IF($D40=CT$15,$B40+IF(MONTH($B$8)-MONTH($B$7)+$E$14=CS$14,$C40,0),0)) -> 0 | CU40: 0 | CV40: 0 | CW40: 0 | CX40: 0 | CY40: 0 | CZ40: 0 | DA40: 0 | DB40: 0 | DC40: 0 | DD40: 0 | DE40: 0 | DF40: 0 | DG40: 0 | DH40: 0 | DI40: 0 | DJ40: 0 | DK40: 0 | DL40: 0 | DM40: 0 | DN40: 0 | DO40: 0 | DP40: 0 | DQ40: 0 | DR40: 0 | DS40: 0 | DT40: 0 | DU40: 0 | DV40: 0
A41: Energia Solar - Repetidora | B41: =+IF('Parametros tecnológicos'!$C$34="S",Detalle!$P$967,0) -> 0 | E41: 56 | F41: =+IF($A41="","",IF($D41=F$15,$B41+IF(MONTH($B$8)-MONTH($B$7)+$E$14=E$14,$C41,0),0)) -> 0 | G41: 0 | H41: 0 | I41: 0 | J41: 0 | K41: 0 | L41: 0 | M41: 0 | N41: 0 | O41: 0 | P41: 0 | Q41: 0 | R41: 0 | S41: 0 | T41: 0 | U41: 0 | V41: 0 | W41: 0 | X41: 0 | Y41: 0 | Z41: 0 | AA41: 0 | AB41: 0 | AC41: 0 | AD41: 0 | AE41: 0 | AF41: 0 | AG41: 0 | AH41: 0 | AI41: 0 | AJ41: 0 | AK41: 0 | AL41: 0 | AM41: 0 | AN41: 0 | AO41: 0 | AP41: 0 | AQ41: 0 | AR41: 0 | AS41: 0 | AT41: 0 | AU41: 0 | AV41: 0 | AW41: 0 | AX41: 0 | AY41: 0 | AZ41: 0 | BA41: 0 | BB41: 0 | BC41: 0 | BD41: 0 | BE41: 0 | BF41: 0 | BG41: 0 | BH41: 0 | BI41: 0 | BJ41: 0 | BK41: 0 | BL41: 0 | BM41: 0 | BN41: 0 | BO41: 0 | BP41: 0 | BQ41: 0 | BR41: 0 | BS41: =+IF($A41="","",IF($D41=BS$15,$B41+IF(MONTH($B$8)-MONTH($B$7)+$E$14=BR$14,$C41,0),0)) -> 0 | BT41: 0 | BU41: 0 | BV41: 0 | BW41: 0 | BX41: 0 | BY41: 0 | BZ41: 0 | CA41: 0 | CB41: 0 | CC41: 0 | CD41: 0 | CE41: 0 | CF41: 0 | CG41: 0 | CH41: 0 | CI41: 0 | CJ41: 0 | CK41: 0 | CL41: 0 | CM41: 0 | CN41: 0 | CO41: 0 | CP41: 0 | CQ41: 0 | CR41: 0 | CS41: 0 | CT41: 0 | CU41: 0 | CV41: 0 | CW41: 0 | CX41: 0 | CY41: 0 | CZ41: 0 | DA41: 0 | DB41: 0 | DC41: 0 | DD41: 0 | DE41: 0 | DF41: 0 | DG41: 0 | DH41: 0 | DI41: 0 | DJ41: 0 | DK41: 0 | DL41: 0 | DM41: 0 | DN41: 0 | DO41: 0 | DP41: 0 | DQ41: 0 | DR41: 0 | DS41: 0 | DT41: 0 | DU41: 0 | DV41: 0
A42: OBRA CIVIL | E42: 56 | F42: 0 | G42: =+(IF($A42="","",IF($D42>MONTH(G$16)-MONTH(InicioFuncion)+12*(YEAR(G$16)-YEAR(InicioFuncion))+1,0,IF($E42<=(MONTH(G$16)-MONTH(InicioFuncion)+12*(YEAR(G$16)-YEAR(InicioFuncion)))-$D42,0,IF(G$15>$B$9,0,IF((YEAR($B$8)-YEAR($B$7))*12+(MONTH($B$8)-MONTH($B$7))+$E$14<=F$14,$C42))))*HLOOKUP(YEAR(G$16),$E$3:$O$5,3,0))) -> 0 | H42: 0 | I42: 0 | J42: 0 | K42: 0 | L42: 0 | M42: 0 | N42: 0 | O42: 0 | P42: 0 | Q42: 0 | R42: 0 | S42: 0 | T42: 0 | U42: 0 | V42: 0 | W42: 0 | X42: 0 | Y42: 0 | Z42: 0 | AA42: 0 | AB42: 0 | AC42: 0 | AD42: 0 | AE42: 0 | AF42: 0 | AG42: 0 | AH42: 0 | AI42: 0 | AJ42: 0 | AK42: 0 | AL42: 0 | AM42: =+(IF($A42="","",IF($D42>MONTH(AM$16)-MONTH(InicioFuncion)+12*(YEAR(AM$16)-YEAR(InicioFuncion))+1,0,IF($E42<=(MONTH(AM$16)-MONTH(InicioFuncion)+12*(YEAR(AM$16)-YEAR(InicioFuncion)))-$D42,0,IF(AM$15>$B$9,0,IF((YEAR($B$8)-YEAR($B$7))*12+(MONTH($B$8)-MONTH($B$7))+$E$14<=AL$14,$C42))))*HLOOKUP(YEAR(AM$16),$E$3:$O$5,3,0))) -> 0 | AN42: 0 | AO42: 0 | AP42: 0 | AQ42: 0 | AR42: 0 | AS42: 0 | AT42: 0 | AU42: 0 | AV42: 0 | AW42: 0 | AX42: 0 | AY42: 0 | AZ42: 0 | BA42: 0 | BB42: 0 | BC42: 0 | BD42: 0 | BE42: 0 | BF42: 0 | BG42: 0 | BH42: 0 | BI42: 0 | BJ42: 0 | BK42: 0 | BL42: 0 | BM42: 0 | BN42: 0 | BO42: 0 | BP42: 0 | BQ42: 0 | BR42: 0 | BS42: =+(IF($A42="","",IF($D42>MONTH(BS$16)-MONTH(InicioFuncion)+12*(YEAR(BS$16)-YEAR(InicioFuncion))+1,0,IF($E42<=(MONTH(BS$16)-MONTH(InicioFuncion)+12*(YEAR(BS$16)-YEAR(InicioFuncion)))-$D42,0,IF(BS$15>$B$9,0,IF((YEAR($B$8)-YEAR($B$7))*12+(MONTH($B$8)-MONTH($B$7))+$E$14<=BR$14,$C42))))*HLOOKUP(YEAR(BS$16),$E$3:$O$5,3,0))) -> 0 | BT42: 0 | BU42: 0 | BV42: 0 | BW42: 0 | BX42: 0 | BY42: 0 | BZ42: 0 | CA42: 0 | CB42: 0 | CC42: 0 | CD42: 0 | CE42: 0 | CF42: 0 | CG42: 0 | CH42: 0 | CI42: 0 | CJ42: 0 | CK42: 0 | CL42: 0 | CM42: 0 | CN42: 0 | CO42: 0 | CP42: 0 | CQ42: 0 | CR42: 0 | CS42: 0 | CT42: 0 | CU42: 0 | CV42: 0 | CW42: 0 | CX42: 0 | CY42: =+(IF($A42="","",IF($D42>MONTH(CY$16)-MONTH(InicioFuncion)+12*(YEAR(CY$16)-YEAR(InicioFuncion))+1,0,IF($E42<=(MONTH(CY$16)-MONTH(InicioFuncion)+12*(YEAR(CY$16)-YEAR(InicioFuncion)))-$D42,0,IF(CY$15>$B$9,0,IF((YEAR($B$8)-YEAR($B$7))*12+(MONTH($B$8)-MONTH($B$7))+$E$14<=CX$14,$C42))))*HLOOKUP(YEAR(CY$16),$E$3:$O$5,3,0))) -> 0 | CZ42: 0 | DA42: 0 | DB42: 0 | DC42: 0 | DD42: 0 | DE42: 0 | DF42: 0 | DG42: 0 | DH42: 0 | DI42: 0 | DJ42: 0 | DK42: 0 | DL42: 0 | DM42: 0 | DN42: 0 | DO42: 0 | DP42: 0 | DQ42: 0 | DR42: 0 | DS42: 0 | DT42: 0 | DU42: 0 | DV42: 0
A43: Arriendo | C43: =+SUMIFS(ValoresMercado,Conceptos,A43,Tipo,TipoEspecifico,Relacion,'Parametros tecnológicos'!$F$7) -> 7067789.5 | E43: 56 | F43: 0 | G43: =+(IF($A43="","",IF($D43>MONTH(G$16)-MONTH(InicioFuncion)+12*(YEAR(G$16)-YEAR(InicioFuncion))+1,0,IF($E43<=(MONTH(G$16)-MONTH(InicioFuncion)+12*(YEAR(G$16)-YEAR(InicioFuncion)))-$D43+IF($D43<>"",1,0),0,IF(G$15>$B$9,0,IF((YEAR($B$8)-YEAR($B$7))*12+(MONTH($B$8)-MONTH($B$7))+$E$14<=F$14,$C43))))*HLOOKUP(YEAR(G$16),$E$3:$O$5,3,0))) -> 0 | H43: 7067789.5 | I43: 7067789.5 | J43: 7067789.5 | K43: 7067789.5 | L43: 7067789.5 | M43: 7067789.5 | N43: 7279823.185 | O43: 7279823.185 | P43: 7279823.185 | Q43: 7279823.185 | R43: 7279823.185 | S43: 7279823.185 | T43: 7279823.185 | U43: 7279823.185 | V43: 7279823.185 | W43: 7279823.185 | X43: 7279823.185 | Y43: 7279823.185 | Z43: 7498217.881 | AA43: 7498217.881 | AB43: 7498217.881 | AC43: 7498217.881 | AD43: 7498217.881 | AE43: 7498217.881 | AF43: 7498217.881 | AG43: 7498217.881 | AH43: 7498217.881 | AI43: 7498217.881 | AJ43: 7498217.881 | AK43: 7498217.881 | AL43: 7723164.417 | AM43: =+(IF($A43="","",IF($D43>MONTH(AM$16)-MONTH(InicioFuncion)+12*(YEAR(AM$16)-YEAR(InicioFuncion))+1,0,IF($E43<=(MONTH(AM$16)-MONTH(InicioFuncion)+12*(YEAR(AM$16)-YEAR(InicioFuncion)))-$D43+IF($D43<>"",1,0),0,IF(AM$15>$B$9,0,IF((YEAR($B$8)-YEAR($B$7))*12+(MONTH($B$8)-MONTH($B$7))+$E$14<=AL$14,$C43))))*HLOOKUP(YEAR(AM$16),$E$3:$O$5,3,0))) -> 7723164.417 | AN43: 7723164.417 | AO43: 7723164.417 | AP43: 7723164.417 | AQ43: 7723164.417 | AR43: 7723164.417 | AS43: 7723164.417 | AT43: 7723164.417 | AU43: 7723164.417 | AV43: 7723164.417 | AW43: 7723164.417 | AX43: 7954859.349 | AY43: 7954859.349 | AZ43: 7954859.349 | BA43: 7954859.349 | BB43: 7954859.349 | BC43: 7954859.349 | BD43: 7954859.349 | BE43: 7954859.349 | BF43: 7954859.349 | BG43: 7954859.349 | BH43: 7954859.349 | BI43: 7954859.349 | BJ43: 8193505.13 | BK43: 0 | BL43: 0 | BM43: 0 | BN43: 0 | BO43: 0 | BP43: 0 | BQ43: 0 | BR43: 0 | BS43: =+(IF($A43="","",IF($D43>MONTH(BS$16)-MONTH(InicioFuncion)+12*(YEAR(BS$16)-YEAR(InicioFuncion))+1,0,IF($E43<=(MONTH(BS$16)-MONTH(InicioFuncion)+12*(YEAR(BS$16)-YEAR(InicioFuncion)))-$D43+IF($D43<>"",1,0),0,IF(BS$15>$B$9,0,IF((YEAR($B$8)-YEAR($B$7))*12+(MONTH($B$8)-MONTH($B$7))+$E$14<=BR$14,$C43))))*HLOOKUP(YEAR(BS$16),$E$3:$O$5,3,0))) -> 0 | BT43: 0 | BU43: 0 | BV43: 0 | BW43: 0 | BX43: 0 | BY43: 0 | BZ43: 0 | CA43: 0 | CB43: 0 | CC43: 0 | CD43: 0 | CE43: 0 | CF43: 0 | CG43: 0 | CH43: 0 | CI43: 0 | CJ43: 0 | CK43: 0 | CL43: 0 | CM43: 0 | CN43: 0 | CO43: 0 | CP43: 0 | CQ43: 0 | CR43: 0 | CS43: 0 | CT43: 0 | CU43: 0 | CV43: 0 | CW43: 0 | CX43: 0 | CY43: =+(IF($A43="","",IF($D43>MONTH(CY$16)-MONTH(InicioFuncion)+12*(YEAR(CY$16)-YEAR(InicioFuncion))+1,0,IF($E43<=(MONTH(CY$16)-MONTH(InicioFuncion)+12*(YEAR(CY$16)-YEAR(InicioFuncion)))-$D43+IF($D43<>"",1,0),0,IF(CY$15>$B$9,0,IF((YEAR($B$8)-YEAR($B$7))*12+(MONTH($B$8)-MONTH($B$7))+$E$14<=CX$14,$C43))))*HLOOKUP(YEAR(CY$16),$E$3:$O$5,3,0))) -> 0 | CZ43: 0 | DA43: 0 | DB43: 0 | DC43: 0 | DD43: 0 | DE43: 0 | DF43: 0 | DG43: 0 | DH43: 0 | DI43: 0 | DJ43: 0 | DK43: 0 | DL43: 0 | DM43: 0 | DN43: 0 | DO43: 0 | DP43: 0 | DQ43: 0 | DR43: 0 | DS43: 0 | DT43: 0 | DU43: 0 | DV43: 0
A44: Obra civil - Caseta Para Equipos | B44: =+SUMIFS(ValoresMercado,Conceptos,A44,Relacion,'Parametros tecnológicos'!$F$7,Tipo,TipoEspecifico) -> 6329992.5 | E44: 56 | F44: =+IF($A44="","",IF($D44=F$15,$B44+IF(MONTH($B$8)-MONTH($B$7)+$E$14=E$14,$C44,0),0)) -> 6329992.5 | G44: 0 | H44: 0 | I44: 0 | J44: 0 | K44: 0 | L44: 0 | M44: 0 | N44: 0 | O44: 0 | P44: 0 | Q44: 0 | R44: 0 | S44: 0 | T44: 0 | U44: 0 | V44: 0 | W44: 0 | X44: 0 | Y44: 0 | Z44: 0 | AA44: 0 | AB44: 0 | AC44: 0 | AD44: 0 | AE44: 0 | AF44: 0 | AG44: 0 | AH44: 0 | AI44: 0 | AJ44: 0 | AK44: 0 | AL44: 0 | AM44: 0 | AN44: 0 | AO44: 0 | AP44: 0 | AQ44: 0 | AR44: 0 | AS44: 0 | AT44: 0 | AU44: 0 | AV44: 0 | AW44: 0 | AX44: 0 | AY44: 0 | AZ44: 0 | BA44: 0 | BB44: 0 | BC44: 0 | BD44: 0 | BE44: 0 | BF44: 0 | BG44: 0 | BH44: 0 | BI44: 0 | BJ44: 0 | BK44: 0 | BL44: 0 | BM44: 0 | BN44: 0 | BO44: 0 | BP44: 0 | BQ44: 0 | BR44: =+IF($A44="","",IF($D44=BR$15,$B44+IF(MONTH($B$8)-MONTH($B$7)+$E$14=BQ$14,$C44,0),0)) -> 0 | BS44: 0 | BT44: 0 | BU44: 0 | BV44: 0 | BW44: 0 | BX44: 0 | BY44: 0 | BZ44: 0 | CA44: 0 | CB44: 0 | CC44: 0 | CD44: 0 | CE44: 0 | CF44: 0 | CG44: 0 | CH44: 0 | CI44: 0 | CJ44: 0 | CK44: 0 | CL44: 0 | CM44: 0 | CN44: 0 | CO44: 0 | CP44: 0 | CQ44: 0 | CR44: 0 | CS44: 0 | CT44: 0 | CU44: 0 | CV44: 0 | CW44: 0 | CX44: 0 | CY44: 0 | CZ44: 0 | DA44: 0 | DB44: 0 | DC44: 0 | DD44: 0 | DE44: 0 | DF44: 0 | DG44: 0 | DH44: 0 | DI44: 0 | DJ44: 0 | DK44: 0 | DL44: 0 | DM44: 0 | DN44: 0 | DO44: 0 | DP44: 0 | DQ44: 0 | DR44: 0 | DS44: 0 | DT44: 0 | DU44: 0 | DV44: 0
A45: Obra civil - Encerramiento | B45: =+SUMIFS(ValoresMercado,Conceptos,A45,Relacion,'Parametros tecnológicos'!$F$7,Tipo,TipoEspecifico) -> 23430725 | E45: 56 | F45: =+IF($A45="","",IF($D45=F$15,$B45+IF(MONTH($B$8)-MONTH($B$7)+$E$14=E$14,$C45,0),0)) -> 23430725 | G45: 0 | H45: 0 | I45: 0 | J45: 0 | K45: 0 | L45: 0 | M45: 0 | N45: 0 | O45: 0 | P45: 0 | Q45: 0 | R45: 0 | S45: 0 | T45: 0 | U45: 0 | V45: 0 | W45: 0 | X45: 0 | Y45: 0 | Z45: 0 | AA45: 0 | AB45: 0 | AC45: 0 | AD45: 0 | AE45: 0 | AF45: 0 | AG45: 0 | AH45: 0 | AI45: 0 | AJ45: 0 | AK45: 0 | AL45: 0 | AM45: 0 | AN45: 0 | AO45: 0 | AP45: 0 | AQ45: 0 | AR45: 0 | AS45: 0 | AT45: 0 | AU45: 0 | AV45: 0 | AW45: 0 | AX45: 0 | AY45: 0 | AZ45: 0 | BA45: 0 | BB45: 0 | BC45: 0 | BD45: 0 | BE45: 0 | BF45: 0 | BG45: 0 | BH45: 0 | BI45: 0 | BJ45: 0 | BK45: 0 | BL45: 0 | BM45: 0 | BN45: 0 | BO45: 0 | BP45: 0 | BQ45: 0 | BR45: 0 | BS45: 0 | BT45: 0 | BU45: 0 | BV45: 0 | BW45: 0 | BX45: 0 | BY45: 0 | BZ45: 0 | CA45: 0 | CB45: 0 | CC45: 0 | CD45: 0 | CE45: 0 | CF45: 0 | CG45: 0 | CH45: 0 | CI45: 0 | CJ45: 0 | CK45: 0 | CL45: 0 | CM45: 0 | CN45: 0 | CO45: 0 | CP45: 0 | CQ45: 0 | CR45: 0 | CS45: 0 | CT45: 0 | CU45: 0 | CV45: 0 | CW45: 0 | CX45: 0 | CY45: 0 | CZ45: 0 | DA45: 0 | DB45: 0 | DC45: 0 | DD45: 0 | DE45: 0 | DF45: 0 | DG45: 0 | DH45: 0 | DI45: 0 | DJ45: 0 | DK45: 0 | DL45: 0 | DM45: 0 | DN45: 0 | DO45: 0 | DP45: 0 | DQ45: 0 | DR45: 0 | DS45: 0 | DT45: 0 | DU45: 0 | DV45: 0
A46: Obra civil - Trasiegos | B46: =+SUMIFS(ValoresMercado,Conceptos,A46,Relacion,'Parametros tecnológicos'!$F$7,Tipo,TipoEspecifico) -> 12000000 | E46: 56 | F46: 12000000 | G46: 0 | H46: 0 | I46: 0 | J46: 0 | K46: 0 | L46: 0 | M46: 0 | N46: 0 | O46: 0 | P46: 0 | Q46: 0 | R46: 0 | S46: 0 | T46: 0 | U46: 0 | V46: 0 | W46: 0 | X46: 0 | Y46: 0 | Z46: 0 | AA46: 0 | AB46: 0 | AC46: 0 | AD46: 0 | AE46: 0 | AF46: 0 | AG46: 0 | AH46: 0 | AI46: 0 | AJ46: 0 | AK46: 0 | AL46: 0 | AM46: 0 | AN46: 0 | AO46: 0 | AP46: 0 | AQ46: 0 | AR46: 0 | AS46: 0 | AT46: 0 | AU46: 0 | AV46: 0 | AW46: 0 | AX46: 0 | AY46: 0 | AZ46: 0 | BA46: 0 | BB46: 0 | BC46: 0 | BD46: 0 | BE46: 0 | BF46: 0 | BG46: 0 | BH46: 0 | BI46: 0 | BJ46: 0 | BK46: 0 | BL46: 0 | BM46: 0 | BN46: 0 | BO46: 0 | BP46: 0 | BQ46: 0 | BR46: 0 | BS46: 0 | BT46: 0 | BU46: 0 | BV46: 0 | BW46: 0 | BX46: 0 | BY46: 0 | BZ46: 0 | CA46: 0 | CB46: 0 | CC46: 0 | CD46: 0 | CE46: 0 | CF46: 0 | CG46: 0 | CH46: 0 | CI46: 0 | CJ46: 0 | CK46: 0 | CL46: 0 | CM46: 0 | CN46: 0 | CO46: 0 | CP46: 0 | CQ46: 0 | CR46: 0 | CS46: 0 | CT46: 0 | CU46: 0 | CV46: 0 | CW46: 0 | CX46: 0 | CY46: 0 | CZ46: 0 | DA46: 0 | DB46: 0 | DC46: 0 | DD46: 0 | DE46: 0 | DF46: 0 | DG46: 0 | DH46: 0 | DI46: 0 | DJ46: 0 | DK46: 0 | DL46: 0 | DM46: 0 | DN46: 0 | DO46: 0 | DP46: 0 | DQ46: 0 | DR46: 0 | DS46: 0 | DT46: 0 | DU46: 0 | DV46: 0
A47: Mto Torre (Incluye: Tierra, Pararrayo) - Convencional (*) | C47: =+SUMIFS(ValoresMercado,Conceptos,A47,Tipo,TipoEspecifico,Relacion,'Parametros tecnológicos'!$F$7,ClaseTorreRango,ClaseTorre)/12 -> 592410 | E47: 56 | F47: 0 | G47: =+(IF($A47="","",IF(G$15>12,IF($D47>MONTH(G$16)-MONTH(InicioFuncion)+12*(YEAR(G$16)-YEAR(InicioFuncion))+1,0,IF($E47<=(MONTH(G$16)-MONTH(InicioFuncion)+12*(YEAR(G$16)-YEAR(InicioFuncion)))-$D47+IF($D47<>"",1,0),0,IF(G$15>$B$9,0,IF((YEAR($B$8)-YEAR($B$7))*12+(MONTH($B$8)-MONTH($B$7))+$E$14<=F$14,$C47))))*HLOOKUP(YEAR(G$16),$E$3:$O$5,3,0),0))) -> 0 | H47: =+(IF($A47="","",IF(H$15>12,IF($D47>MONTH(H$16)-MONTH(InicioFuncion)+12*(YEAR(H$16)-YEAR(InicioFuncion))+1,0,IF($E47<=(MONTH(H$16)-MONTH(InicioFuncion)+12*(YEAR(H$16)-YEAR(InicioFuncion)))-$D47+IF($D47<>"",1,0),0,IF(H$15>$B$9,0,IF((YEAR($B$8)-YEAR($B$7))*12+(MONTH($B$8)-MONTH($B$7))+$E$14<=G$14,$C47))))*HLOOKUP(YEAR(H$16),$E$3:$O$5,3,0),0))) -> 0 | I47: =+(IF($A47="","",IF(I$15>12,IF($D47>MONTH(I$16)-MONTH(InicioFuncion)+12*(YEAR(I$16)-YEAR(InicioFuncion))+1,0,IF($E47<=(MONTH(I$16)-MONTH(InicioFuncion)+12*(YEAR(I$16)-YEAR(InicioFuncion)))-$D47+IF($D47<>"",1,0),0,IF(I$15>$B$9,0,IF((YEAR($B$8)-YEAR($B$7))*12+(MONTH($B$8)-MONTH($B$7))+$E$14<=H$14,$C47))))*HLOOKUP(YEAR(I$16),$E$3:$O$5,3,0),0))) -> 0 | J47: =+(IF($A47="","",IF(J$15>12,IF($D47>MONTH(J$16)-MONTH(InicioFuncion)+12*(YEAR(J$16)-YEAR(InicioFuncion))+1,0,IF($E47<=(MONTH(J$16)-MONTH(InicioFuncion)+12*(YEAR(J$16)-YEAR(InicioFuncion)))-$D47+IF($D47<>"",1,0),0,IF(J$15>$B$9,0,IF((YEAR($B$8)-YEAR($B$7))*12+(MONTH($B$8)-MONTH($B$7))+$E$14<=I$14,$C47))))*HLOOKUP(YEAR(J$16),$E$3:$O$5,3,0),0))) -> 0 | K47: =+(IF($A47="","",IF(K$15>12,IF($D47>MONTH(K$16)-MONTH(InicioFuncion)+12*(YEAR(K$16)-YEAR(InicioFuncion))+1,0,IF($E47<=(MONTH(K$16)-MONTH(InicioFuncion)+12*(YEAR(K$16)-YEAR(InicioFuncion)))-$D47+IF($D47<>"",1,0),0,IF(K$15>$B$9,0,IF((YEAR($B$8)-YEAR($B$7))*12+(MONTH($B$8)-MONTH($B$7))+$E$14<=J$14,$C47))))*HLOOKUP(YEAR(K$16),$E$3:$O$5,3,0),0))) -> 0 | L47: =+(IF($A47="","",IF(L$15>12,IF($D47>MONTH(L$16)-MONTH(InicioFuncion)+12*(YEAR(L$16)-YEAR(InicioFuncion))+1,0,IF($E47<=(MONTH(L$16)-MONTH(InicioFuncion)+12*(YEAR(L$16)-YEAR(InicioFuncion)))-$D47+IF($D47<>"",1,0),0,IF(L$15>$B$9,0,IF((YEAR($B$8)-YEAR($B$7))*12+(MONTH($B$8)-MONTH($B$7))+$E$14<=K$14,$C47))))*HLOOKUP(YEAR(L$16),$E$3:$O$5,3,0),0))) -> 0 | M47: =+(IF($A47="","",IF(M$15>12,IF($D47>MONTH(M$16)-MONTH(InicioFuncion)+12*(YEAR(M$16)-YEAR(InicioFuncion))+1,0,IF($E47<=(MONTH(M$16)-MONTH(InicioFuncion)+12*(YEAR(M$16)-YEAR(InicioFuncion)))-$D47+IF($D47<>"",1,0),0,IF(M$15>$B$9,0,IF((YEAR($B$8)-YEAR($B$7))*12+(MONTH($B$8)-MONTH($B$7))+$E$14<=L$14,$C47))))*HLOOKUP(YEAR(M$16),$E$3:$O$5,3,0),0))) -> 0 | N47: =+(IF($A47="","",IF(N$15>12,IF($D47>MONTH(N$16)-MONTH(InicioFuncion)+12*(YEAR(N$16)-YEAR(InicioFuncion))+1,0,IF($E47<=(MONTH(N$16)-MONTH(InicioFuncion)+12*(YEAR(N$16)-YEAR(InicioFuncion)))-$D47+IF($D47<>"",1,0),0,IF(N$15>$B$9,0,IF((YEAR($B$8)-YEAR($B$7))*12+(MONTH($B$8)-MONTH($B$7))+$E$14<=M$14,$C47))))*HLOOKUP(YEAR(N$16),$E$3:$O$5,3,0),0))) -> 0 | O47: =+(IF($A47="","",IF(O$15>12,IF($D47>MONTH(O$16)-MONTH(InicioFuncion)+12*(YEAR(O$16)-YEAR(InicioFuncion))+1,0,IF($E47<=(MONTH(O$16)-MONTH(InicioFuncion)+12*(YEAR(O$16)-YEAR(InicioFuncion)))-$D47+IF($D47<>"",1,0),0,IF(O$15>$B$9,0,IF((YEAR($B$8)-YEAR($B$7))*12+(MONTH($B$8)-MONTH($B$7))+$E$14<=N$14,$C47))))*HLOOKUP(YEAR(O$16),$E$3:$O$5,3,0),0))) -> 0 | P47: =+(IF($A47="","",IF(P$15>12,IF($D47>MONTH(P$16)-MONTH(InicioFuncion)+12*(YEAR(P$16)-YEAR(InicioFuncion))+1,0,IF($E47<=(MONTH(P$16)-MONTH(InicioFuncion)+12*(YEAR(P$16)-YEAR(InicioFuncion)))-$D47+IF($D47<>"",1,0),0,IF(P$15>$B$9,0,IF((YEAR($B$8)-YEAR($B$7))*12+(MONTH($B$8)-MONTH($B$7))+$E$14<=O$14,$C47))))*HLOOKUP(YEAR(P$16),$E$3:$O$5,3,0),0))) -> 0 | Q47: =+(IF($A47="","",IF(Q$15>12,IF($D47>MONTH(Q$16)-MONTH(InicioFuncion)+12*(YEAR(Q$16)-YEAR(InicioFuncion))+1,0,IF($E47<=(MONTH(Q$16)-MONTH(InicioFuncion)+12*(YEAR(Q$16)-YEAR(InicioFuncion)))-$D47+IF($D47<>"",1,0),0,IF(Q$15>$B$9,0,IF((YEAR($B$8)-YEAR($B$7))*12+(MONTH($B$8)-MONTH($B$7))+$E$14<=P$14,$C47))))*HLOOKUP(YEAR(Q$16),$E$3:$O$5,3,0),0))) -> 0 | R47: =+(IF($A47="","",IF(R$15>12,IF($D47>MONTH(R$16)-MONTH(InicioFuncion)+12*(YEAR(R$16)-YEAR(InicioFuncion))+1,0,IF($E47<=(MONTH(R$16)-MONTH(InicioFuncion)+12*(YEAR(R$16)-YEAR(InicioFuncion)))-$D47+IF($D47<>"",1,0),0,IF(R$15>$B$9,0,IF((YEAR($B$8)-YEAR($B$7))*12+(MONTH($B$8)-MONTH($B$7))+$E$14<=Q$14,$C47))))*HLOOKUP(YEAR(R$16),$E$3:$O$5,3,0),0))) -> 0 | S47: =+(IF($A47="","",IF(S$15>12,IF($D47>MONTH(S$16)-MONTH(InicioFuncion)+12*(YEAR(S$16)-YEAR(InicioFuncion))+1,0,IF($E47<=(MONTH(S$16)-MONTH(InicioFuncion)+12*(YEAR(S$16)-YEAR(InicioFuncion)))-$D47+IF($D47<>"",1,0),0,IF(S$15>$B$9,0,IF((YEAR($B$8)-YEAR($B$7))*12+(MONTH($B$8)-MONTH($B$7))+$E$14<=R$14,$C47))))*HLOOKUP(YEAR(S$16),$E$3:$O$5,3,0),0))) -> 610182.3 | T47: =+(IF($A47="","",IF(T$15>12,IF($D47>MONTH(T$16)-MONTH(InicioFuncion)+12*(YEAR(T$16)-YEAR(InicioFuncion))+1,0,IF($E47<=(MONTH(T$16)-MONTH(InicioFuncion)+12*(YEAR(T$16)-YEAR(InicioFuncion)))-$D47+IF($D47<>"",1,0),0,IF(T$15>$B$9,0,IF((YEAR($B$8)-YEAR($B$7))*12+(MONTH($B$8)-MONTH($B$7))+$E$14<=S$14,$C47))))*HLOOKUP(YEAR(T$16),$E$3:$O$5,3,0),0))) -> 610182.3 | U47: =+(IF($A47="","",IF(U$15>12,IF($D47>MONTH(U$16)-MONTH(InicioFuncion)+12*(YEAR(U$16)-YEAR(InicioFuncion))+1,0,IF($E47<=(MONTH(U$16)-MONTH(InicioFuncion)+12*(YEAR(U$16)-YEAR(InicioFuncion)))-$D47+IF($D47<>"",1,0),0,IF(U$15>$B$9,0,IF((YEAR($B$8)-YEAR($B$7))*12+(MONTH($B$8)-MONTH($B$7))+$E$14<=T$14,$C47))))*HLOOKUP(YEAR(U$16),$E$3:$O$5,3,0),0))) -> 610182.3 | V47: =+(IF($A47="","",IF(V$15>12,IF($D47>MONTH(V$16)-MONTH(InicioFuncion)+12*(YEAR(V$16)-YEAR(InicioFuncion))+1,0,IF($E47<=(MONTH(V$16)-MONTH(InicioFuncion)+12*(YEAR(V$16)-YEAR(InicioFuncion)))-$D47+IF($D47<>"",1,0),0,IF(V$15>$B$9,0,IF((YEAR($B$8)-YEAR($B$7))*12+(MONTH($B$8)-MONTH($B$7))+$E$14<=U$14,$C47))))*HLOOKUP(YEAR(V$16),$E$3:$O$5,3,0),0))) -> 610182.3 | W47: =+(IF($A47="","",IF(W$15>12,IF($D47>MONTH(W$16)-MONTH(InicioFuncion)+12*(YEAR(W$16)-YEAR(InicioFuncion))+1,0,IF($E47<=(MONTH(W$16)-MONTH(InicioFuncion)+12*(YEAR(W$16)-YEAR(InicioFuncion)))-$D47+IF($D47<>"",1,0),0,IF(W$15>$B$9,0,IF((YEAR($B$8)-YEAR($B$7))*12+(MONTH($B$8)-MONTH($B$7))+$E$14<=V$14,$C47))))*HLOOKUP(YEAR(W$16),$E$3:$O$5,3,0),0))) -> 610182.3 | X47: =+(IF($A47="","",IF(X$15>12,IF($D47>MONTH(X$16)-MONTH(InicioFuncion)+12*(YEAR(X$16)-YEAR(InicioFuncion))+1,0,IF($E47<=(MONTH(X$16)-MONTH(InicioFuncion)+12*(YEAR(X$16)-YEAR(InicioFuncion)))-$D47+IF($D47<>"",1,0),0,IF(X$15>$B$9,0,IF((YEAR($B$8)-YEAR($B$7))*12+(MONTH($B$8)-MONTH($B$7))+$E$14<=W$14,$C47))))*HLOOKUP(YEAR(X$16),$E$3:$O$5,3,0),0))) -> 610182.3 | Y47: =+(IF($A47="","",IF(Y$15>12,IF($D47>MONTH(Y$16)-MONTH(InicioFuncion)+12*(YEAR(Y$16)-YEAR(InicioFuncion))+1,0,IF($E47<=(MONTH(Y$16)-MONTH(InicioFuncion)+12*(YEAR(Y$16)-YEAR(InicioFuncion)))-$D47+IF($D47<>"",1,0),0,IF(Y$15>$B$9,0,IF((YEAR($B$8)-YEAR($B$7))*12+(MONTH($B$8)-MONTH($B$7))+$E$14<=X$14,$C47))))*HLOOKUP(YEAR(Y$16),$E$3:$O$5,3,0),0))) -> 610182.3 | Z47: =+(IF($A47="","",IF(Z$15>12,IF($D47>MONTH(Z$16)-MONTH(InicioFuncion)+12*(YEAR(Z$16)-YEAR(InicioFuncion))+1,0,IF($E47<=(MONTH(Z$16)-MONTH(InicioFuncion)+12*(YEAR(Z$16)-YEAR(InicioFuncion)))-$D47+IF($D47<>"",1,0),0,IF(Z$15>$B$9,0,IF((YEAR($B$8)-YEAR($B$7))*12+(MONTH($B$8)-MONTH($B$7))+$E$14<=Y$14,$C47))))*HLOOKUP(YEAR(Z$16),$E$3:$O$5,3,0),0))) -> 628487.769 | AA47: =+(IF($A47="","",IF(AA$15>12,IF($D47>MONTH(AA$16)-MONTH(InicioFuncion)+12*(YEAR(AA$16)-YEAR(InicioFuncion))+1,0,IF($E47<=(MONTH(AA$16)-MONTH(InicioFuncion)+12*(YEAR(AA$16)-YEAR(InicioFuncion)))-$D47+IF($D47<>"",1,0),0,IF(AA$15>$B$9,0,IF((YEAR($B$8)-YEAR($B$7))*12+(MONTH($B$8)-MONTH($B$7))+$E$14<=Z$14,$C47))))*HLOOKUP(YEAR(AA$16),$E$3:$O$5,3,0),0))) -> 628487.769 | AB47: =+(IF($A47="","",IF(AB$15>12,IF($D47>MONTH(AB$16)-MONTH(InicioFuncion)+12*(YEAR(AB$16)-YEAR(InicioFuncion))+1,0,IF($E47<=(MONTH(AB$16)-MONTH(InicioFuncion)+12*(YEAR(AB$16)-YEAR(InicioFuncion)))-$D47+IF($D47<>"",1,0),0,IF(AB$15>$B$9,0,IF((YEAR($B$8)-YEAR($B$7))*12+(MONTH($B$8)-MONTH($B$7))+$E$14<=AA$14,$C47))))*HLOOKUP(YEAR(AB$16),$E$3:$O$5,3,0),0))) -> 628487.769 | AC47: =+(IF($A47="","",IF(AC$15>12,IF($D47>MONTH(AC$16)-MONTH(InicioFuncion)+12*(YEAR(AC$16)-YEAR(InicioFuncion))+1,0,IF($E47<=(MONTH(AC$16)-MONTH(InicioFuncion)+12*(YEAR(AC$16)-YEAR(InicioFuncion)))-$D47+IF($D47<>"",1,0),0,IF(AC$15>$B$9,0,IF((YEAR($B$8)-YEAR($B$7))*12+(MONTH($B$8)-MONTH($B$7))+$E$14<=AB$14,$C47))))*HLOOKUP(YEAR(AC$16),$E$3:$O$5,3,0),0))) -> 628487.769 | AD47: =+(IF($A47="","",IF(AD$15>12,IF($D47>MONTH(AD$16)-MONTH(InicioFuncion)+12*(YEAR(AD$16)-YEAR(InicioFuncion))+1,0,IF($E47<=(MONTH(AD$16)-MONTH(InicioFuncion)+12*(YEAR(AD$16)-YEAR(InicioFuncion)))-$D47+IF($D47<>"",1,0),0,IF(AD$15>$B$9,0,IF((YEAR($B$8)-YEAR($B$7))*12+(MONTH($B$8)-MONTH($B$7))+$E$14<=AC$14,$C47))))*HLOOKUP(YEAR(AD$16),$E$3:$O$5,3,0),0))) -> 628487.769 | AE47: =+(IF($A47="","",IF(AE$15>12,IF($D47>MONTH(AE$16)-MONTH(InicioFuncion)+12*(YEAR(AE$16)-YEAR(InicioFuncion))+1,0,IF($E47<=(MONTH(AE$16)-MONTH(InicioFuncion)+12*(YEAR(AE$16)-YEAR(InicioFuncion)))-$D47+IF($D47<>"",1,0),0,IF(AE$15>$B$9,0,IF((YEAR($B$8)-YEAR($B$7))*12+(MONTH($B$8)-MONTH($B$7))+$E$14<=AD$14,$C47))))*HLOOKUP(YEAR(AE$16),$E$3:$O$5,3,0),0))) -> 628487.769 | AF47: =+(IF($A47="","",IF(AF$15>12,IF($D47>MONTH(AF$16)-MONTH(InicioFuncion)+12*(YEAR(AF$16)-YEAR(InicioFuncion))+1,0,IF($E47<=(MONTH(AF$16)-MONTH(InicioFuncion)+12*(YEAR(AF$16)-YEAR(InicioFuncion)))-$D47+IF($D47<>"",1,0),0,IF(AF$15>$B$9,0,IF((YEAR($B$8)-YEAR($B$7))*12+(MONTH($B$8)-MONTH($B$7))+$E$14<=AE$14,$C47))))*HLOOKUP(YEAR(AF$16),$E$3:$O$5,3,0),0))) -> 628487.769 | AG47: =+(IF($A47="","",IF(AG$15>12,IF($D47>MONTH(AG$16)-MONTH(InicioFuncion)+12*(YEAR(AG$16)-YEAR(InicioFuncion))+1,0,IF($E47<=(MONTH(AG$16)-MONTH(InicioFuncion)+12*(YEAR(AG$16)-YEAR(InicioFuncion)))-$D47+IF($D47<>"",1,0),0,IF(AG$15>$B$9,0,IF((YEAR($B$8)-YEAR($B$7))*12+(MONTH($B$8)-MONTH($B$7))+$E$14<=AF$14,$C47))))*HLOOKUP(YEAR(AG$16),$E$3:$O$5,3,0),0))) -> 628487.769 | AH47: =+(IF($A47="","",IF(AH$15>12,IF($D47>MONTH(AH$16)-MONTH(InicioFuncion)+12*(YEAR(AH$16)-YEAR(InicioFuncion))+1,0,IF($E47<=(MONTH(AH$16)-MONTH(InicioFuncion)+12*(YEAR(AH$16)-YEAR(InicioFuncion)))-$D47+IF($D47<>"",1,0),0,IF(AH$15>$B$9,0,IF((YEAR($B$8)-YEAR($B$7))*12+(MONTH($B$8)-MONTH($B$7))+$E$14<=AG$14,$C47))))*HLOOKUP(YEAR(AH$16),$E$3:$O$5,3,0),0))) -> 628487.769 | AI47: =+(IF($A47="","",IF(AI$15>12,IF($D47>MONTH(AI$16)-MONTH(InicioFuncion)+12*(YEAR(AI$16)-YEAR(InicioFuncion))+1,0,IF($E47<=(MONTH(AI$16)-MONTH(InicioFuncion)+12*(YEAR(AI$16)-YEAR(InicioFuncion)))-$D47+IF($D47<>"",1,0),0,IF(AI$15>$B$9,0,IF((YEAR($B$8)-YEAR($B$7))*12+(MONTH($B$8)-MONTH($B$7))+$E$14<=AH$14,$C47))))*HLOOKUP(YEAR(AI$16),$E$3:$O$5,3,0),0))) -> 628487.769 | AJ47: =+(IF($A47="","",IF(AJ$15>12,IF($D47>MONTH(AJ$16)-MONTH(InicioFuncion)+12*(YEAR(AJ$16)-YEAR(InicioFuncion))+1,0,IF($E47<=(MONTH(AJ$16)-MONTH(InicioFuncion)+12*(YEAR(AJ$16)-YEAR(InicioFuncion)))-$D47+IF($D47<>"",1,0),0,IF(AJ$15>$B$9,0,IF((YEAR($B$8)-YEAR($B$7))*12+(MONTH($B$8)-MONTH($B$7))+$E$14<=AI$14,$C47))))*HLOOKUP(YEAR(AJ$16),$E$3:$O$5,3,0),0))) -> 628487.769 | AK47: =+(IF($A47="","",IF(AK$15>12,IF($D47>MONTH(AK$16)-MONTH(InicioFuncion)+12*(YEAR(AK$16)-YEAR(InicioFuncion))+1,0,IF($E47<=(MONTH(AK$16)-MONTH(InicioFuncion)+12*(YEAR(AK$16)-YEAR(InicioFuncion)))-$D47+IF($D47<>"",1,0),0,IF(AK$15>$B$9,0,IF((YEAR($B$8)-YEAR($B$7))*12+(MONTH($B$8)-MONTH($B$7))+$E$14<=AJ$14,$C47))))*HLOOKUP(YEAR(AK$16),$E$3:$O$5,3,0),0))) -> 628487.769 | AL47: =+(IF($A47="","",IF(AL$15>12,IF($D47>MONTH(AL$16)-MONTH(InicioFuncion)+12*(YEAR(AL$16)-YEAR(InicioFuncion))+1,0,IF($E47<=(MONTH(AL$16)-MONTH(InicioFuncion)+12*(YEAR(AL$16)-YEAR(InicioFuncion)))-$D47+IF($D47<>"",1,0),0,IF(AL$15>$B$9,0,IF((YEAR($B$8)-YEAR($B$7))*12+(MONTH($B$8)-MONTH($B$7))+$E$14<=AK$14,$C47))))*HLOOKUP(YEAR(AL$16),$E$3:$O$5,3,0),0))) -> 647342.4021 | AM47: =+(IF($A47="","",IF(AM$15>12,IF($D47>MONTH(AM$16)-MONTH(InicioFuncion)+12*(YEAR(AM$16)-YEAR(InicioFuncion))+1,0,IF($E47<=(MONTH(AM$16)-MONTH(InicioFuncion)+12*(YEAR(AM$16)-YEAR(InicioFuncion)))-$D47+IF($D47<>"",1,0),0,IF(AM$15>$B$9,0,IF((YEAR($B$8)-YEAR($B$7))*12+(MONTH($B$8)-MONTH($B$7))+$E$14<=AL$14,$C47))))*HLOOKUP(YEAR(AM$16),$E$3:$O$5,3,0),0))) -> 647342.4021 | AN47: =+(IF($A47="","",IF(AN$15>12,IF($D47>MONTH(AN$16)-MONTH(InicioFuncion)+12*(YEAR(AN$16)-YEAR(InicioFuncion))+1,0,IF($E47<=(MONTH(AN$16)-MONTH(InicioFuncion)+12*(YEAR(AN$16)-YEAR(InicioFuncion)))-$D47+IF($D47<>"",1,0),0,IF(AN$15>$B$9,0,IF((YEAR($B$8)-YEAR($B$7))*12+(MONTH($B$8)-MONTH($B$7))+$E$14<=AM$14,$C47))))*HLOOKUP(YEAR(AN$16),$E$3:$O$5,3,0),0))) -> 647342.4021 | AO47: =+(IF($A47="","",IF(AO$15>12,IF($D47>MONTH(AO$16)-MONTH(InicioFuncion)+12*(YEAR(AO$16)-YEAR(InicioFuncion))+1,0,IF($E47<=(MONTH(AO$16)-MONTH(InicioFuncion)+12*(YEAR(AO$16)-YEAR(InicioFuncion)))-$D47+IF($D47<>"",1,0),0,IF(AO$15>$B$9,0,IF((YEAR($B$8)-YEAR($B$7))*12+(MONTH($B$8)-MONTH($B$7))+$E$14<=AN$14,$C47))))*HLOOKUP(YEAR(AO$16),$E$3:$O$5,3,0),0))) -> 647342.4021 | AP47: =+(IF($A47="","",IF(AP$15>12,IF($D47>MONTH(AP$16)-MONTH(InicioFuncion)+12*(YEAR(AP$16)-YEAR(InicioFuncion))+1,0,IF($E47<=(MONTH(AP$16)-MONTH(InicioFuncion)+12*(YEAR(AP$16)-YEAR(InicioFuncion)))-$D47+IF($D47<>"",1,0),0,IF(AP$15>$B$9,0,IF((YEAR($B$8)-YEAR($B$7))*12+(MONTH($B$8)-MONTH($B$7))+$E$14<=AO$14,$C47))))*HLOOKUP(YEAR(AP$16),$E$3:$O$5,3,0),0))) -> 647342.4021 | AQ47: =+(IF($A47="","",IF(AQ$15>12,IF($D47>MONTH(AQ$16)-MONTH(InicioFuncion)+12*(YEAR(AQ$16)-YEAR(InicioFuncion))+1,0,IF($E47<=(MONTH(AQ$16)-MONTH(InicioFuncion)+12*(YEAR(AQ$16)-YEAR(InicioFuncion)))-$D47+IF($D47<>"",1,0),0,IF(AQ$15>$B$9,0,IF((YEAR($B$8)-YEAR($B$7))*12+(MONTH($B$8)-MONTH($B$7))+$E$14<=AP$14,$C47))))*HLOOKUP(YEAR(AQ$16),$E$3:$O$5,3,0),0))) -> 647342.4021 | AR47: =+(IF($A47="","",IF(AR$15>12,IF($D47>MONTH(AR$16)-MONTH(InicioFuncion)+12*(YEAR(AR$16)-YEAR(InicioFuncion))+1,0,IF($E47<=(MONTH(AR$16)-MONTH(InicioFuncion)+12*(YEAR(AR$16)-YEAR(InicioFuncion)))-$D47+IF($D47<>"",1,0),0,IF(AR$15>$B$9,0,IF((YEAR($B$8)-YEAR($B$7))*12+(MONTH($B$8)-MONTH($B$7))+$E$14<=AQ$14,$C47))))*HLOOKUP(YEAR(AR$16),$E$3:$O$5,3,0),0))) -> 647342.4021 | AS47: =+(IF($A47="","",IF(AS$15>12,IF($D47>MONTH(AS$16)-MONTH(InicioFuncion)+12*(YEAR(AS$16)-YEAR(InicioFuncion))+1,0,IF($E47<=(MONTH(AS$16)-MONTH(InicioFuncion)+12*(YEAR(AS$16)-YEAR(InicioFuncion)))-$D47+IF($D47<>"",1,0),0,IF(AS$15>$B$9,0,IF((YEAR($B$8)-YEAR($B$7))*12+(MONTH($B$8)-MONTH($B$7))+$E$14<=AR$14,$C47))))*HLOOKUP(YEAR(AS$16),$E$3:$O$5,3,0),0))) -> 647342.4021 | AT47: =+(IF($A47="","",IF(AT$15>12,IF($D47>MONTH(AT$16)-MONTH(InicioFuncion)+12*(YEAR(AT$16)-YEAR(InicioFuncion))+1,0,IF($E47<=(MONTH(AT$16)-MONTH(InicioFuncion)+12*(YEAR(AT$16)-YEAR(InicioFuncion)))-$D47+IF($D47<>"",1,0),0,IF(AT$15>$B$9,0,IF((YEAR($B$8)-YEAR($B$7))*12+(MONTH($B$8)-MONTH($B$7))+$E$14<=AS$14,$C47))))*HLOOKUP(YEAR(AT$16),$E$3:$O$5,3,0),0))) -> 647342.4021 | AU47: =+(IF($A47="","",IF(AU$15>12,IF($D47>MONTH(AU$16)-MONTH(InicioFuncion)+12*(YEAR(AU$16)-YEAR(InicioFuncion))+1,0,IF($E47<=(MONTH(AU$16)-MONTH(InicioFuncion)+12*(YEAR(AU$16)-YEAR(InicioFuncion)))-$D47+IF($D47<>"",1,0),0,IF(AU$15>$B$9,0,IF((YEAR($B$8)-YEAR($B$7))*12+(MONTH($B$8)-MONTH($B$7))+$E$14<=AT$14,$C47))))*HLOOKUP(YEAR(AU$16),$E$3:$O$5,3,0),0))) -> 647342.4021 | AV47: =+(IF($A47="","",IF(AV$15>12,IF($D47>MONTH(AV$16)-MONTH(InicioFuncion)+12*(YEAR(AV$16)-YEAR(InicioFuncion))+1,0,IF($E47<=(MONTH(AV$16)-MONTH(InicioFuncion)+12*(YEAR(AV$16)-YEAR(InicioFuncion)))-$D47+IF($D47<>"",1,0),0,IF(AV$15>$B$9,0,IF((YEAR($B$8)-YEAR($B$7))*12+(MONTH($B$8)-MONTH($B$7))+$E$14<=AU$14,$C47))))*HLOOKUP(YEAR(AV$16),$E$3:$O$5,3,0),0))) -> 647342.4021 | AW47: =+(IF($A47="","",IF(AW$15>12,IF($D47>MONTH(AW$16)-MONTH(InicioFuncion)+12*(YEAR(AW$16)-YEAR(InicioFuncion))+1,0,IF($E47<=(MONTH(AW$16)-MONTH(InicioFuncion)+12*(YEAR(AW$16)-YEAR(InicioFuncion)))-$D47+IF($D47<>"",1,0),0,IF(AW$15>$B$9,0,IF((YEAR($B$8)-YEAR($B$7))*12+(MONTH($B$8)-MONTH($B$7))+$E$14<=AV$14,$C47))))*HLOOKUP(YEAR(AW$16),$E$3:$O$5,3,0),0))) -> 647342.4021 | AX47: =+(IF($A47="","",IF(AX$15>12,IF($D47>MONTH(AX$16)-MONTH(InicioFuncion)+12*(YEAR(AX$16)-YEAR(InicioFuncion))+1,0,IF($E47<=(MONTH(AX$16)-MONTH(InicioFuncion)+12*(YEAR(AX$16)-YEAR(InicioFuncion)))-$D47+IF($D47<>"",1,0),0,IF(AX$15>$B$9,0,IF((YEAR($B$8)-YEAR($B$7))*12+(MONTH($B$8)-MONTH($B$7))+$E$14<=AW$14,$C47))))*HLOOKUP(YEAR(AX$16),$E$3:$O$5,3,0),0))) -> 666762.6741 | AY47: =+(IF($A47="","",IF(AY$15>12,IF($D47>MONTH(AY$16)-MONTH(InicioFuncion)+12*(YEAR(AY$16)-YEAR(InicioFuncion))+1,0,IF($E47<=(MONTH(AY$16)-MONTH(InicioFuncion)+12*(YEAR(AY$16)-YEAR(InicioFuncion)))-$D47+IF($D47<>"",1,0),0,IF(AY$15>$B$9,0,IF((YEAR($B$8)-YEAR($B$7))*12+(MONTH($B$8)-MONTH($B$7))+$E$14<=AX$14,$C47))))*HLOOKUP(YEAR(AY$16),$E$3:$O$5,3,0),0))) -> 666762.6741 | AZ47: =+(IF($A47="","",IF(AZ$15>12,IF($D47>MONTH(AZ$16)-MONTH(InicioFuncion)+12*(YEAR(AZ$16)-YEAR(InicioFuncion))+1,0,IF($E47<=(MONTH(AZ$16)-MONTH(InicioFuncion)+12*(YEAR(AZ$16)-YEAR(InicioFuncion)))-$D47+IF($D47<>"",1,0),0,IF(AZ$15>$B$9,0,IF((YEAR($B$8)-YEAR($B$7))*12+(MONTH($B$8)-MONTH($B$7))+$E$14<=AY$14,$C47))))*HLOOKUP(YEAR(AZ$16),$E$3:$O$5,3,0),0))) -> 666762.6741 | BA47: =+(IF($A47="","",IF(BA$15>12,IF($D47>MONTH(BA$16)-MONTH(InicioFuncion)+12*(YEAR(BA$16)-YEAR(InicioFuncion))+1,0,IF($E47<=(MONTH(BA$16)-MONTH(InicioFuncion)+12*(YEAR(BA$16)-YEAR(InicioFuncion)))-$D47+IF($D47<>"",1,0),0,IF(BA$15>$B$9,0,IF((YEAR($B$8)-YEAR($B$7))*12+(MONTH($B$8)-MONTH($B$7))+$E$14<=AZ$14,$C47))))*HLOOKUP(YEAR(BA$16),$E$3:$O$5,3,0),0))) -> 666762.6741 | BB47: =+(IF($A47="","",IF(BB$15>12,IF($D47>MONTH(BB$16)-MONTH(InicioFuncion)+12*(YEAR(BB$16)-YEAR(InicioFuncion))+1,0,IF($E47<=(MONTH(BB$16)-MONTH(InicioFuncion)+12*(YEAR(BB$16)-YEAR(InicioFuncion)))-$D47+IF($D47<>"",1,0),0,IF(BB$15>$B$9,0,IF((YEAR($B$8)-YEAR($B$7))*12+(MONTH($B$8)-MONTH($B$7))+$E$14<=BA$14,$C47))))*HLOOKUP(YEAR(BB$16),$E$3:$O$5,3,0),0))) -> 666762.6741 | BC47: =+(IF($A47="","",IF(BC$15>12,IF($D47>MONTH(BC$16)-MONTH(InicioFuncion)+12*(YEAR(BC$16)-YEAR(InicioFuncion))+1,0,IF($E47<=(MONTH(BC$16)-MONTH(InicioFuncion)+12*(YEAR(BC$16)-YEAR(InicioFuncion)))-$D47+IF($D47<>"",1,0),0,IF(BC$15>$B$9,0,IF((YEAR($B$8)-YEAR($B$7))*12+(MONTH($B$8)-MONTH($B$7))+$E$14<=BB$14,$C47))))*HLOOKUP(YEAR(BC$16),$E$3:$O$5,3,0),0))) -> 666762.6741 | BD47: =+(IF($A47="","",IF(BD$15>12,IF($D47>MONTH(BD$16)-MONTH(InicioFuncion)+12*(YEAR(BD$16)-YEAR(InicioFuncion))+1,0,IF($E47<=(MONTH(BD$16)-MONTH(InicioFuncion)+12*(YEAR(BD$16)-YEAR(InicioFuncion)))-$D47+IF($D47<>"",1,0),0,IF(BD$15>$B$9,0,IF((YEAR($B$8)-YEAR($B$7))*12+(MONTH($B$8)-MONTH($B$7))+$E$14<=BC$14,$C47))))*HLOOKUP(YEAR(BD$16),$E$3:$O$5,3,0),0))) -> 666762.6741 | BE47: =+(IF($A47="","",IF(BE$15>12,IF($D47>MONTH(BE$16)-MONTH(InicioFuncion)+12*(YEAR(BE$16)-YEAR(InicioFuncion))+1,0,IF($E47<=(MONTH(BE$16)-MONTH(InicioFuncion)+12*(YEAR(BE$16)-YEAR(InicioFuncion)))-$D47+IF($D47<>"",1,0),0,IF(BE$15>$B$9,0,IF((YEAR($B$8)-YEAR($B$7))*12+(MONTH($B$8)-MONTH($B$7))+$E$14<=BD$14,$C47))))*HLOOKUP(YEAR(BE$16),$E$3:$O$5,3,0),0))) -> 666762.6741 | BF47: =+(IF($A47="","",IF(BF$15>12,IF($D47>MONTH(BF$16)-MONTH(InicioFuncion)+12*(YEAR(BF$16)-YEAR(InicioFuncion))+1,0,IF($E47<=(MONTH(BF$16)-MONTH(InicioFuncion)+12*(YEAR(BF$16)-YEAR(InicioFuncion)))-$D47+IF($D47<>"",1,0),0,IF(BF$15>$B$9,0,IF((YEAR($B$8)-YEAR($B$7))*12+(MONTH($B$8)-MONTH($B$7))+$E$14<=BE$14,$C47))))*HLOOKUP(YEAR(BF$16),$E$3:$O$5,3,0),0))) -> 666762.6741 | BG47: =+(IF($A47="","",IF(BG$15>12,IF($D47>MONTH(BG$16)-MONTH(InicioFuncion)+12*(YEAR(BG$16)-YEAR(InicioFuncion))+1,0,IF($E47<=(MONTH(BG$16)-MONTH(InicioFuncion)+12*(YEAR(BG$16)-YEAR(InicioFuncion)))-$D47+IF($D47<>"",1,0),0,IF(BG$15>$B$9,0,IF((YEAR($B$8)-YEAR($B$7))*12+(MONTH($B$8)-MONTH($B$7))+$E$14<=BF$14,$C47))))*HLOOKUP(YEAR(BG$16),$E$3:$O$5,3,0),0))) -> 666762.6741 | BH47: =+(IF($A47="","",IF(BH$15>12,IF($D47>MONTH(BH$16)-MONTH(InicioFuncion)+12*(YEAR(BH$16)-YEAR(InicioFuncion))+1,0,IF($E47<=(MONTH(BH$16)-MONTH(InicioFuncion)+12*(YEAR(BH$16)-YEAR(InicioFuncion)))-$D47+IF($D47<>"",1,0),0,IF(BH$15>$B$9,0,IF((YEAR($B$8)-YEAR($B$7))*12+(MONTH($B$8)-MONTH($B$7))+$E$14<=BG$14,$C47))))*HLOOKUP(YEAR(BH$16),$E$3:$O$5,3,0),0))) -> 666762.6741 | BI47: =+(IF($A47="","",IF(BI$15>12,IF($D47>MONTH(BI$16)-MONTH(InicioFuncion)+12*(YEAR(BI$16)-YEAR(InicioFuncion))+1,0,IF($E47<=(MONTH(BI$16)-MONTH(InicioFuncion)+12*(YEAR(BI$16)-YEAR(InicioFuncion)))-$D47+IF($D47<>"",1,0),0,IF(BI$15>$B$9,0,IF((YEAR($B$8)-YEAR($B$7))*12+(MONTH($B$8)-MONTH($B$7))+$E$14<=BH$14,$C47))))*HLOOKUP(YEAR(BI$16),$E$3:$O$5,3,0),0))) -> 666762.6741 | BJ47: =+(IF($A47="","",IF(BJ$15>12,IF($D47>MONTH(BJ$16)-MONTH(InicioFuncion)+12*(YEAR(BJ$16)-YEAR(InicioFuncion))+1,0,IF($E47<=(MONTH(BJ$16)-MONTH(InicioFuncion)+12*(YEAR(BJ$16)-YEAR(InicioFuncion)))-$D47+IF($D47<>"",1,0),0,IF(BJ$15>$B$9,0,IF((YEAR($B$8)-YEAR($B$7))*12+(MONTH($B$8)-MONTH($B$7))+$E$14<=BI$14,$C47))))*HLOOKUP(YEAR(BJ$16),$E$3:$O$5,3,0),0))) -> 686765.5544 | BK47: =+(IF($A47="","",IF(BK$15>12,IF($D47>MONTH(BK$16)-MONTH(InicioFuncion)+12*(YEAR(BK$16)-YEAR(InicioFuncion))+1,0,IF($E47<=(MONTH(BK$16)-MONTH(InicioFuncion)+12*(YEAR(BK$16)-YEAR(InicioFuncion)))-$D47+IF($D47<>"",1,0),0,IF(BK$15>$B$9,0,IF((YEAR($B$8)-YEAR($B$7))*12+(MONTH($B$8)-MONTH($B$7))+$E$14<=BJ$14,$C47))))*HLOOKUP(YEAR(BK$16),$E$3:$O$5,3,0),0))) -> 0 | BL47: =+(IF($A47="","",IF(BL$15>12,IF($D47>MONTH(BL$16)-MONTH(InicioFuncion)+12*(YEAR(BL$16)-YEAR(InicioFuncion))+1,0,IF($E47<=(MONTH(BL$16)-MONTH(InicioFuncion)+12*(YEAR(BL$16)-YEAR(InicioFuncion)))-$D47+IF($D47<>"",1,0),0,IF(BL$15>$B$9,0,IF((YEAR($B$8)-YEAR($B$7))*12+(MONTH($B$8)-MONTH($B$7))+$E$14<=BK$14,$C47))))*HLOOKUP(YEAR(BL$16),$E$3:$O$5,3,0),0))) -> 0 | BM47: =+(IF($A47="","",IF(BM$15>12,IF($D47>MONTH(BM$16)-MONTH(InicioFuncion)+12*(YEAR(BM$16)-YEAR(InicioFuncion))+1,0,IF($E47<=(MONTH(BM$16)-MONTH(InicioFuncion)+12*(YEAR(BM$16)-YEAR(InicioFuncion)))-$D47+IF($D47<>"",1,0),0,IF(BM$15>$B$9,0,IF((YEAR($B$8)-YEAR($B$7))*12+(MONTH($B$8)-MONTH($B$7))+$E$14<=BL$14,$C47))))*HLOOKUP(YEAR(BM$16),$E$3:$O$5,3,0),0))) -> 0 | BN47: =+(IF($A47="","",IF(BN$15>12,IF($D47>MONTH(BN$16)-MONTH(InicioFuncion)+12*(YEAR(BN$16)-YEAR(InicioFuncion))+1,0,IF($E47<=(MONTH(BN$16)-MONTH(InicioFuncion)+12*(YEAR(BN$16)-YEAR(InicioFuncion)))-$D47+IF($D47<>"",1,0),0,IF(BN$15>$B$9,0,IF((YEAR($B$8)-YEAR($B$7))*12+(MONTH($B$8)-MONTH($B$7))+$E$14<=BM$14,$C47))))*HLOOKUP(YEAR(BN$16),$E$3:$O$5,3,0),0))) -> 0 | BO47: =+(IF($A47="","",IF(BO$15>12,IF($D47>MONTH(BO$16)-MONTH(InicioFuncion)+12*(YEAR(BO$16)-YEAR(InicioFuncion))+1,0,IF($E47<=(MONTH(BO$16)-MONTH(InicioFuncion)+12*(YEAR(BO$16)-YEAR(InicioFuncion)))-$D47+IF($D47<>"",1,0),0,IF(BO$15>$B$9,0,IF((YEAR($B$8)-YEAR($B$7))*12+(MONTH($B$8)-MONTH($B$7))+$E$14<=BN$14,$C47))))*HLOOKUP(YEAR(BO$16),$E$3:$O$5,3,0),0))) -> 0 | BP47: =+(IF($A47="","",IF(BP$15>12,IF($D47>MONTH(BP$16)-MONTH(InicioFuncion)+12*(YEAR(BP$16)-YEAR(InicioFuncion))+1,0,IF($E47<=(MONTH(BP$16)-MONTH(InicioFuncion)+12*(YEAR(BP$16)-YEAR(InicioFuncion)))-$D47+IF($D47<>"",1,0),0,IF(BP$15>$B$9,0,IF((YEAR($B$8)-YEAR($B$7))*12+(MONTH($B$8)-MONTH($B$7))+$E$14<=BO$14,$C47))))*HLOOKUP(YEAR(BP$16),$E$3:$O$5,3,0),0))) -> 0 | BQ47: =+(IF($A47="","",IF(BQ$15>12,IF($D47>MONTH(BQ$16)-MONTH(InicioFuncion)+12*(YEAR(BQ$16)-YEAR(InicioFuncion))+1,0,IF($E47<=(MONTH(BQ$16)-MONTH(InicioFuncion)+12*(YEAR(BQ$16)-YEAR(InicioFuncion)))-$D47+IF($D47<>"",1,0),0,IF(BQ$15>$B$9,0,IF((YEAR($B$8)-YEAR($B$7))*12+(MONTH($B$8)-MONTH($B$7))+$E$14<=BP$14,$C47))))*HLOOKUP(YEAR(BQ$16),$E$3:$O$5,3,0),0))) -> 0 | BR47: =+(IF($A47="","",IF(BR$15>12,IF($D47>MONTH(BR$16)-MONTH(InicioFuncion)+12*(YEAR(BR$16)-YEAR(InicioFuncion))+1,0,IF($E47<=(MONTH(BR$16)-MONTH(InicioFuncion)+12*(YEAR(BR$16)-YEAR(InicioFuncion)))-$D47+IF($D47<>"",1,0),0,IF(BR$15>$B$9,0,IF((YEAR($B$8)-YEAR($B$7))*12+(MONTH($B$8)-MONTH($B$7))+$E$14<=BQ$14,$C47))))*HLOOKUP(YEAR(BR$16),$E$3:$O$5,3,0),0))) -> 0 | BS47: =+(IF($A47="","",IF(BS$15>12,IF($D47>MONTH(BS$16)-MONTH(InicioFuncion)+12*(YEAR(BS$16)-YEAR(InicioFuncion))+1,0,IF($E47<=(MONTH(BS$16)-MONTH(InicioFuncion)+12*(YEAR(BS$16)-YEAR(InicioFuncion)))-$D47+IF($D47<>"",1,0),0,IF(BS$15>$B$9,0,IF((YEAR($B$8)-YEAR($B$7))*12+(MONTH($B$8)-MONTH($B$7))+$E$14<=BR$14,$C47))))*HLOOKUP(YEAR(BS$16),$E$3:$O$5,3,0),0))) -> 0 | BT47: =+(IF($A47="","",IF(BT$15>12,IF($D47>MONTH(BT$16)-MONTH(InicioFuncion)+12*(YEAR(BT$16)-YEAR(InicioFuncion))+1,0,IF($E47<=(MONTH(BT$16)-MONTH(InicioFuncion)+12*(YEAR(BT$16)-YEAR(InicioFuncion)))-$D47+IF($D47<>"",1,0),0,IF(BT$15>$B$9,0,IF((YEAR($B$8)-YEAR($B$7))*12+(MONTH($B$8)-MONTH($B$7))+$E$14<=BS$14,$C47))))*HLOOKUP(YEAR(BT$16),$E$3:$O$5,3,0),0))) -> 0 | BU47: =+(IF($A47="","",IF(BU$15>12,IF($D47>MONTH(BU$16)-MONTH(InicioFuncion)+12*(YEAR(BU$16)-YEAR(InicioFuncion))+1,0,IF($E47<=(MONTH(BU$16)-MONTH(InicioFuncion)+12*(YEAR(BU$16)-YEAR(InicioFuncion)))-$D47+IF($D47<>"",1,0),0,IF(BU$15>$B$9,0,IF((YEAR($B$8)-YEAR($B$7))*12+(MONTH($B$8)-MONTH($B$7))+$E$14<=BT$14,$C47))))*HLOOKUP(YEAR(BU$16),$E$3:$O$5,3,0),0))) -> 0 | BV47: =+(IF($A47="","",IF(BV$15>12,IF($D47>MONTH(BV$16)-MONTH(InicioFuncion)+12*(YEAR(BV$16)-YEAR(InicioFuncion))+1,0,IF($E47<=(MONTH(BV$16)-MONTH(InicioFuncion)+12*(YEAR(BV$16)-YEAR(InicioFuncion)))-$D47+IF($D47<>"",1,0),0,IF(BV$15>$B$9,0,IF((YEAR($B$8)-YEAR($B$7))*12+(MONTH($B$8)-MONTH($B$7))+$E$14<=BU$14,$C47))))*HLOOKUP(YEAR(BV$16),$E$3:$O$5,3,0),0))) -> 0 | BW47: =+(IF($A47="","",IF(BW$15>12,IF($D47>MONTH(BW$16)-MONTH(InicioFuncion)+12*(YEAR(BW$16)-YEAR(InicioFuncion))+1,0,IF($E47<=(MONTH(BW$16)-MONTH(InicioFuncion)+12*(YEAR(BW$16)-YEAR(InicioFuncion)))-$D47+IF($D47<>"",1,0),0,IF(BW$15>$B$9,0,IF((YEAR($B$8)-YEAR($B$7))*12+(MONTH($B$8)-MONTH($B$7))+$E$14<=BV$14,$C47))))*HLOOKUP(YEAR(BW$16),$E$3:$O$5,3,0),0))) -> 0 | BX47: =+(IF($A47="","",IF(BX$15>12,IF($D47>MONTH(BX$16)-MONTH(InicioFuncion)+12*(YEAR(BX$16)-YEAR(InicioFuncion))+1,0,IF($E47<=(MONTH(BX$16)-MONTH(InicioFuncion)+12*(YEAR(BX$16)-YEAR(InicioFuncion)))-$D47+IF($D47<>"",1,0),0,IF(BX$15>$B$9,0,IF((YEAR($B$8)-YEAR($B$7))*12+(MONTH($B$8)-MONTH($B$7))+$E$14<=BW$14,$C47))))*HLOOKUP(YEAR(BX$16),$E$3:$O$5,3,0),0))) -> 0 | BY47: =+(IF($A47="","",IF(BY$15>12,IF($D47>MONTH(BY$16)-MONTH(InicioFuncion)+12*(YEAR(BY$16)-YEAR(InicioFuncion))+1,0,IF($E47<=(MONTH(BY$16)-MONTH(InicioFuncion)+12*(YEAR(BY$16)-YEAR(InicioFuncion)))-$D47+IF($D47<>"",1,0),0,IF(BY$15>$B$9,0,IF((YEAR($B$8)-YEAR($B$7))*12+(MONTH($B$8)-MONTH($B$7))+$E$14<=BX$14,$C47))))*HLOOKUP(YEAR(BY$16),$E$3:$O$5,3,0),0))) -> 0 | BZ47: =+(IF($A47="","",IF(BZ$15>12,IF($D47>MONTH(BZ$16)-MONTH(InicioFuncion)+12*(YEAR(BZ$16)-YEAR(InicioFuncion))+1,0,IF($E47<=(MONTH(BZ$16)-MONTH(InicioFuncion)+12*(YEAR(BZ$16)-YEAR(InicioFuncion)))-$D47+IF($D47<>"",1,0),0,IF(BZ$15>$B$9,0,IF((YEAR($B$8)-YEAR($B$7))*12+(MONTH($B$8)-MONTH($B$7))+$E$14<=BY$14,$C47))))*HLOOKUP(YEAR(BZ$16),$E$3:$O$5,3,0),0))) -> 0 | CA47: =+(IF($A47="","",IF(CA$15>12,IF($D47>MONTH(CA$16)-MONTH(InicioFuncion)+12*(YEAR(CA$16)-YEAR(InicioFuncion))+1,0,IF($E47<=(MONTH(CA$16)-MONTH(InicioFuncion)+12*(YEAR(CA$16)-YEAR(InicioFuncion)))-$D47+IF($D47<>"",1,0),0,IF(CA$15>$B$9,0,IF((YEAR($B$8)-YEAR($B$7))*12+(MONTH($B$8)-MONTH($B$7))+$E$14<=BZ$14,$C47))))*HLOOKUP(YEAR(CA$16),$E$3:$O$5,3,0),0))) -> 0 | CB47: =+(IF($A47="","",IF(CB$15>12,IF($D47>MONTH(CB$16)-MONTH(InicioFuncion)+12*(YEAR(CB$16)-YEAR(InicioFuncion))+1,0,IF($E47<=(MONTH(CB$16)-MONTH(InicioFuncion)+12*(YEAR(CB$16)-YEAR(InicioFuncion)))-$D47+IF($D47<>"",1,0),0,IF(CB$15>$B$9,0,IF((YEAR($B$8)-YEAR($B$7))*12+(MONTH($B$8)-MONTH($B$7))+$E$14<=CA$14,$C47))))*HLOOKUP(YEAR(CB$16),$E$3:$O$5,3,0),0))) -> 0 | CC47: =+(IF($A47="","",IF(CC$15>12,IF($D47>MONTH(CC$16)-MONTH(InicioFuncion)+12*(YEAR(CC$16)-YEAR(InicioFuncion))+1,0,IF($E47<=(MONTH(CC$16)-MONTH(InicioFuncion)+12*(YEAR(CC$16)-YEAR(InicioFuncion)))-$D47+IF($D47<>"",1,0),0,IF(CC$15>$B$9,0,IF((YEAR($B$8)-YEAR($B$7))*12+(MONTH($B$8)-MONTH($B$7))+$E$14<=CB$14,$C47))))*HLOOKUP(YEAR(CC$16),$E$3:$O$5,3,0),0))) -> 0 | CD47: =+(IF($A47="","",IF(CD$15>12,IF($D47>MONTH(CD$16)-MONTH(InicioFuncion)+12*(YEAR(CD$16)-YEAR(InicioFuncion))+1,0,IF($E47<=(MONTH(CD$16)-MONTH(InicioFuncion)+12*(YEAR(CD$16)-YEAR(InicioFuncion)))-$D47+IF($D47<>"",1,0),0,IF(CD$15>$B$9,0,IF((YEAR($B$8)-YEAR($B$7))*12+(MONTH($B$8)-MONTH($B$7))+$E$14<=CC$14,$C47))))*HLOOKUP(YEAR(CD$16),$E$3:$O$5,3,0),0))) -> 0 | CE47: =+(IF($A47="","",IF(CE$15>12,IF($D47>MONTH(CE$16)-MONTH(InicioFuncion)+12*(YEAR(CE$16)-YEAR(InicioFuncion))+1,0,IF($E47<=(MONTH(CE$16)-MONTH(InicioFuncion)+12*(YEAR(CE$16)-YEAR(InicioFuncion)))-$D47+IF($D47<>"",1,0),0,IF(CE$15>$B$9,0,IF((YEAR($B$8)-YEAR($B$7))*12+(MONTH($B$8)-MONTH($B$7))+$E$14<=CD$14,$C47))))*HLOOKUP(YEAR(CE$16),$E$3:$O$5,3,0),0))) -> 0 | CF47: =+(IF($A47="","",IF(CF$15>12,IF($D47>MONTH(CF$16)-MONTH(InicioFuncion)+12*(YEAR(CF$16)-YEAR(InicioFuncion))+1,0,IF($E47<=(MONTH(CF$16)-MONTH(InicioFuncion)+12*(YEAR(CF$16)-YEAR(InicioFuncion)))-$D47+IF($D47<>"",1,0),0,IF(CF$15>$B$9,0,IF((YEAR($B$8)-YEAR($B$7))*12+(MONTH($B$8)-MONTH($B$7))+$E$14<=CE$14,$C47))))*HLOOKUP(YEAR(CF$16),$E$3:$O$5,3,0),0))) -> 0 | CG47: =+(IF($A47="","",IF(CG$15>12,IF($D47>MONTH(CG$16)-MONTH(InicioFuncion)+12*(YEAR(CG$16)-YEAR(InicioFuncion))+1,0,IF($E47<=(MONTH(CG$16)-MONTH(InicioFuncion)+12*(YEAR(CG$16)-YEAR(InicioFuncion)))-$D47+IF($D47<>"",1,0),0,IF(CG$15>$B$9,0,IF((YEAR($B$8)-YEAR($B$7))*12+(MONTH($B$8)-MONTH($B$7))+$E$14<=CF$14,$C47))))*HLOOKUP(YEAR(CG$16),$E$3:$O$5,3,0),0))) -> 0 | CH47: =+(IF($A47="","",IF(CH$15>12,IF($D47>MONTH(CH$16)-MONTH(InicioFuncion)+12*(YEAR(CH$16)-YEAR(InicioFuncion))+1,0,IF($E47<=(MONTH(CH$16)-MONTH(InicioFuncion)+12*(YEAR(CH$16)-YEAR(InicioFuncion)))-$D47+IF($D47<>"",1,0),0,IF(CH$15>$B$9,0,IF((YEAR($B$8)-YEAR($B$7))*12+(MONTH($B$8)-MONTH($B$7))+$E$14<=CG$14,$C47))))*HLOOKUP(YEAR(CH$16),$E$3:$O$5,3,0),0))) -> 0 | CI47: =+(IF($A47="","",IF(CI$15>12,IF($D47>MONTH(CI$16)-MONTH(InicioFuncion)+12*(YEAR(CI$16)-YEAR(InicioFuncion))+1,0,IF($E47<=(MONTH(CI$16)-MONTH(InicioFuncion)+12*(YEAR(CI$16)-YEAR(InicioFuncion)))-$D47+IF($D47<>"",1,0),0,IF(CI$15>$B$9,0,IF((YEAR($B$8)-YEAR($B$7))*12+(MONTH($B$8)-MONTH($B$7))+$E$14<=CH$14,$C47))))*HLOOKUP(YEAR(CI$16),$E$3:$O$5,3,0),0))) -> 0 | CJ47: =+(IF($A47="","",IF(CJ$15>12,IF($D47>MONTH(CJ$16)-MONTH(InicioFuncion)+12*(YEAR(CJ$16)-YEAR(InicioFuncion))+1,0,IF($E47<=(MONTH(CJ$16)-MONTH(InicioFuncion)+12*(YEAR(CJ$16)-YEAR(InicioFuncion)))-$D47+IF($D47<>"",1,0),0,IF(CJ$15>$B$9,0,IF((YEAR($B$8)-YEAR($B$7))*12+(MONTH($B$8)-MONTH($B$7))+$E$14<=CI$14,$C47))))*HLOOKUP(YEAR(CJ$16),$E$3:$O$5,3,0),0))) -> 0 | CK47: =+(IF($A47="","",IF(CK$15>12,IF($D47>MONTH(CK$16)-MONTH(InicioFuncion)+12*(YEAR(CK$16)-YEAR(InicioFuncion))+1,0,IF($E47<=(MONTH(CK$16)-MONTH(InicioFuncion)+12*(YEAR(CK$16)-YEAR(InicioFuncion)))-$D47+IF($D47<>"",1,0),0,IF(CK$15>$B$9,0,IF((YEAR($B$8)-YEAR($B$7))*12+(MONTH($B$8)-MONTH($B$7))+$E$14<=CJ$14,$C47))))*HLOOKUP(YEAR(CK$16),$E$3:$O$5,3,0),0))) -> 0 | CL47: =+(IF($A47="","",IF(CL$15>12,IF($D47>MONTH(CL$16)-MONTH(InicioFuncion)+12*(YEAR(CL$16)-YEAR(InicioFuncion))+1,0,IF($E47<=(MONTH(CL$16)-MONTH(InicioFuncion)+12*(YEAR(CL$16)-YEAR(InicioFuncion)))-$D47+IF($D47<>"",1,0),0,IF(CL$15>$B$9,0,IF((YEAR($B$8)-YEAR($B$7))*12+(MONTH($B$8)-MONTH($B$7))+$E$14<=CK$14,$C47))))*HLOOKUP(YEAR(CL$16),$E$3:$O$5,3,0),0))) -> 0 | CM47: =+(IF($A47="","",IF(CM$15>12,IF($D47>MONTH(CM$16)-MONTH(InicioFuncion)+12*(YEAR(CM$16)-YEAR(InicioFuncion))+1,0,IF($E47<=(MONTH(CM$16)-MONTH(InicioFuncion)+12*(YEAR(CM$16)-YEAR(InicioFuncion)))-$D47+IF($D47<>"",1,0),0,IF(CM$15>$B$9,0,IF((YEAR($B$8)-YEAR($B$7))*12+(MONTH($B$8)-MONTH($B$7))+$E$14<=CL$14,$C47))))*HLOOKUP(YEAR(CM$16),$E$3:$O$5,3,0),0))) -> 0 | CN47: =+(IF($A47="","",IF(CN$15>12,IF($D47>MONTH(CN$16)-MONTH(InicioFuncion)+12*(YEAR(CN$16)-YEAR(InicioFuncion))+1,0,IF($E47<=(MONTH(CN$16)-MONTH(InicioFuncion)+12*(YEAR(CN$16)-YEAR(InicioFuncion)))-$D47+IF($D47<>"",1,0),0,IF(CN$15>$B$9,0,IF((YEAR($B$8)-YEAR($B$7))*12+(MONTH($B$8)-MONTH($B$7))+$E$14<=CM$14,$C47))))*HLOOKUP(YEAR(CN$16),$E$3:$O$5,3,0),0))) -> 0 | CO47: =+(IF($A47="","",IF(CO$15>12,IF($D47>MONTH(CO$16)-MONTH(InicioFuncion)+12*(YEAR(CO$16)-YEAR(InicioFuncion))+1,0,IF($E47<=(MONTH(CO$16)-MONTH(InicioFuncion)+12*(YEAR(CO$16)-YEAR(InicioFuncion)))-$D47+IF($D47<>"",1,0),0,IF(CO$15>$B$9,0,IF((YEAR($B$8)-YEAR($B$7))*12+(MONTH($B$8)-MONTH($B$7))+$E$14<=CN$14,$C47))))*HLOOKUP(YEAR(CO$16),$E$3:$O$5,3,0),0))) -> 0 | CP47: =+(IF($A47="","",IF(CP$15>12,IF($D47>MONTH(CP$16)-MONTH(InicioFuncion)+12*(YEAR(CP$16)-YEAR(InicioFuncion))+1,0,IF($E47<=(MONTH(CP$16)-MONTH(InicioFuncion)+12*(YEAR(CP$16)-YEAR(InicioFuncion)))-$D47+IF($D47<>"",1,0),0,IF(CP$15>$B$9,0,IF((YEAR($B$8)-YEAR($B$7))*12+(MONTH($B$8)-MONTH($B$7))+$E$14<=CO$14,$C47))))*HLOOKUP(YEAR(CP$16),$E$3:$O$5,3,0),0))) -> 0 | CQ47: =+(IF($A47="","",IF(CQ$15>12,IF($D47>MONTH(CQ$16)-MONTH(InicioFuncion)+12*(YEAR(CQ$16)-YEAR(InicioFuncion))+1,0,IF($E47<=(MONTH(CQ$16)-MONTH(InicioFuncion)+12*(YEAR(CQ$16)-YEAR(InicioFuncion)))-$D47+IF($D47<>"",1,0),0,IF(CQ$15>$B$9,0,IF((YEAR($B$8)-YEAR($B$7))*12+(MONTH($B$8)-MONTH($B$7))+$E$14<=CP$14,$C47))))*HLOOKUP(YEAR(CQ$16),$E$3:$O$5,3,0),0))) -> 0 | CR47: =+(IF($A47="","",IF(CR$15>12,IF($D47>MONTH(CR$16)-MONTH(InicioFuncion)+12*(YEAR(CR$16)-YEAR(InicioFuncion))+1,0,IF($E47<=(MONTH(CR$16)-MONTH(InicioFuncion)+12*(YEAR(CR$16)-YEAR(InicioFuncion)))-$D47+IF($D47<>"",1,0),0,IF(CR$15>$B$9,0,IF((YEAR($B$8)-YEAR($B$7))*12+(MONTH($B$8)-MONTH($B$7))+$E$14<=CQ$14,$C47))))*HLOOKUP(YEAR(CR$16),$E$3:$O$5,3,0),0))) -> 0 | CS47: =+(IF($A47="","",IF(CS$15>12,IF($D47>MONTH(CS$16)-MONTH(InicioFuncion)+12*(YEAR(CS$16)-YEAR(InicioFuncion))+1,0,IF($E47<=(MONTH(CS$16)-MONTH(InicioFuncion)+12*(YEAR(CS$16)-YEAR(InicioFuncion)))-$D47+IF($D47<>"",1,0),0,IF(CS$15>$B$9,0,IF((YEAR($B$8)-YEAR($B$7))*12+(MONTH($B$8)-MONTH($B$7))+$E$14<=CR$14,$C47))))*HLOOKUP(YEAR(CS$16),$E$3:$O$5,3,0),0))) -> 0 | CT47: =+(IF($A47="","",IF(CT$15>12,IF($D47>MONTH(CT$16)-MONTH(InicioFuncion)+12*(YEAR(CT$16)-YEAR(InicioFuncion))+1,0,IF($E47<=(MONTH(CT$16)-MONTH(InicioFuncion)+12*(YEAR(CT$16)-YEAR(InicioFuncion)))-$D47+IF($D47<>"",1,0),0,IF(CT$15>$B$9,0,IF((YEAR($B$8)-YEAR($B$7))*12+(MONTH($B$8)-MONTH($B$7))+$E$14<=CS$14,$C47))))*HLOOKUP(YEAR(CT$16),$E$3:$O$5,3,0),0))) -> 0 | CU47: =+(IF($A47="","",IF(CU$15>12,IF($D47>MONTH(CU$16)-MONTH(InicioFuncion)+12*(YEAR(CU$16)-YEAR(InicioFuncion))+1,0,IF($E47<=(MONTH(CU$16)-MONTH(InicioFuncion)+12*(YEAR(CU$16)-YEAR(InicioFuncion)))-$D47+IF($D47<>"",1,0),0,IF(CU$15>$B$9,0,IF((YEAR($B$8)-YEAR($B$7))*12+(MONTH($B$8)-MONTH($B$7))+$E$14<=CT$14,$C47))))*HLOOKUP(YEAR(CU$16),$E$3:$O$5,3,0),0))) -> 0 | CV47: =+(IF($A47="","",IF(CV$15>12,IF($D47>MONTH(CV$16)-MONTH(InicioFuncion)+12*(YEAR(CV$16)-YEAR(InicioFuncion))+1,0,IF($E47<=(MONTH(CV$16)-MONTH(InicioFuncion)+12*(YEAR(CV$16)-YEAR(InicioFuncion)))-$D47+IF($D47<>"",1,0),0,IF(CV$15>$B$9,0,IF((YEAR($B$8)-YEAR($B$7))*12+(MONTH($B$8)-MONTH($B$7))+$E$14<=CU$14,$C47))))*HLOOKUP(YEAR(CV$16),$E$3:$O$5,3,0),0))) -> 0 | CW47: =+(IF($A47="","",IF(CW$15>12,IF($D47>MONTH(CW$16)-MONTH(InicioFuncion)+12*(YEAR(CW$16)-YEAR(InicioFuncion))+1,0,IF($E47<=(MONTH(CW$16)-MONTH(InicioFuncion)+12*(YEAR(CW$16)-YEAR(InicioFuncion)))-$D47+IF($D47<>"",1,0),0,IF(CW$15>$B$9,0,IF((YEAR($B$8)-YEAR($B$7))*12+(MONTH($B$8)-MONTH($B$7))+$E$14<=CV$14,$C47))))*HLOOKUP(YEAR(CW$16),$E$3:$O$5,3,0),0))) -> 0 | CX47: =+(IF($A47="","",IF(CX$15>12,IF($D47>MONTH(CX$16)-MONTH(InicioFuncion)+12*(YEAR(CX$16)-YEAR(InicioFuncion))+1,0,IF($E47<=(MONTH(CX$16)-MONTH(InicioFuncion)+12*(YEAR(CX$16)-YEAR(InicioFuncion)))-$D47+IF($D47<>"",1,0),0,IF(CX$15>$B$9,0,IF((YEAR($B$8)-YEAR($B$7))*12+(MONTH($B$8)-MONTH($B$7))+$E$14<=CW$14,$C47))))*HLOOKUP(YEAR(CX$16),$E$3:$O$5,3,0),0))) -> 0 | CY47: =+(IF($A47="","",IF(CY$15>12,IF($D47>MONTH(CY$16)-MONTH(InicioFuncion)+12*(YEAR(CY$16)-YEAR(InicioFuncion))+1,0,IF($E47<=(MONTH(CY$16)-MONTH(InicioFuncion)+12*(YEAR(CY$16)-YEAR(InicioFuncion)))-$D47+IF($D47<>"",1,0),0,IF(CY$15>$B$9,0,IF((YEAR($B$8)-YEAR($B$7))*12+(MONTH($B$8)-MONTH($B$7))+$E$14<=CX$14,$C47))))*HLOOKUP(YEAR(CY$16),$E$3:$O$5,3,0),0))) -> 0 | CZ47: =+(IF($A47="","",IF(CZ$15>12,IF($D47>MONTH(CZ$16)-MONTH(InicioFuncion)+12*(YEAR(CZ$16)-YEAR(InicioFuncion))+1,0,IF($E47<=(MONTH(CZ$16)-MONTH(InicioFuncion)+12*(YEAR(CZ$16)-YEAR(InicioFuncion)))-$D47+IF($D47<>"",1,0),0,IF(CZ$15>$B$9,0,IF((YEAR($B$8)-YEAR($B$7))*12+(MONTH($B$8)-MONTH($B$7))+$E$14<=CY$14,$C47))))*HLOOKUP(YEAR(CZ$16),$E$3:$O$5,3,0),0))) -> 0 | DA47: =+(IF($A47="","",IF(DA$15>12,IF($D47>MONTH(DA$16)-MONTH(InicioFuncion)+12*(YEAR(DA$16)-YEAR(InicioFuncion))+1,0,IF($E47<=(MONTH(DA$16)-MONTH(InicioFuncion)+12*(YEAR(DA$16)-YEAR(InicioFuncion)))-$D47+IF($D47<>"",1,0),0,IF(DA$15>$B$9,0,IF((YEAR($B$8)-YEAR($B$7))*12+(MONTH($B$8)-MONTH($B$7))+$E$14<=CZ$14,$C47))))*HLOOKUP(YEAR(DA$16),$E$3:$O$5,3,0),0))) -> 0 | DB47: =+(IF($A47="","",IF(DB$15>12,IF($D47>MONTH(DB$16)-MONTH(InicioFuncion)+12*(YEAR(DB$16)-YEAR(InicioFuncion))+1,0,IF($E47<=(MONTH(DB$16)-MONTH(InicioFuncion)+12*(YEAR(DB$16)-YEAR(InicioFuncion)))-$D47+IF($D47<>"",1,0),0,IF(DB$15>$B$9,0,IF((YEAR($B$8)-YEAR($B$7))*12+(MONTH($B$8)-MONTH($B$7))+$E$14<=DA$14,$C47))))*HLOOKUP(YEAR(DB$16),$E$3:$O$5,3,0),0))) -> 0 | DC47: =+(IF($A47="","",IF(DC$15>12,IF($D47>MONTH(DC$16)-MONTH(InicioFuncion)+12*(YEAR(DC$16)-YEAR(InicioFuncion))+1,0,IF($E47<=(MONTH(DC$16)-MONTH(InicioFuncion)+12*(YEAR(DC$16)-YEAR(InicioFuncion)))-$D47+IF($D47<>"",1,0),0,IF(DC$15>$B$9,0,IF((YEAR($B$8)-YEAR($B$7))*12+(MONTH($B$8)-MONTH($B$7))+$E$14<=DB$14,$C47))))*HLOOKUP(YEAR(DC$16),$E$3:$O$5,3,0),0))) -> 0 | DD47: =+(IF($A47="","",IF(DD$15>12,IF($D47>MONTH(DD$16)-MONTH(InicioFuncion)+12*(YEAR(DD$16)-YEAR(InicioFuncion))+1,0,IF($E47<=(MONTH(DD$16)-MONTH(InicioFuncion)+12*(YEAR(DD$16)-YEAR(InicioFuncion)))-$D47+IF($D47<>"",1,0),0,IF(DD$15>$B$9,0,IF((YEAR($B$8)-YEAR($B$7))*12+(MONTH($B$8)-MONTH($B$7))+$E$14<=DC$14,$C47))))*HLOOKUP(YEAR(DD$16),$E$3:$O$5,3,0),0))) -> 0 | DE47: =+(IF($A47="","",IF(DE$15>12,IF($D47>MONTH(DE$16)-MONTH(InicioFuncion)+12*(YEAR(DE$16)-YEAR(InicioFuncion))+1,0,IF($E47<=(MONTH(DE$16)-MONTH(InicioFuncion)+12*(YEAR(DE$16)-YEAR(InicioFuncion)))-$D47+IF($D47<>"",1,0),0,IF(DE$15>$B$9,0,IF((YEAR($B$8)-YEAR($B$7))*12+(MONTH($B$8)-MONTH($B$7))+$E$14<=DD$14,$C47))))*HLOOKUP(YEAR(DE$16),$E$3:$O$5,3,0),0))) -> 0 | DF47: =+(IF($A47="","",IF(DF$15>12,IF($D47>MONTH(DF$16)-MONTH(InicioFuncion)+12*(YEAR(DF$16)-YEAR(InicioFuncion))+1,0,IF($E47<=(MONTH(DF$16)-MONTH(InicioFuncion)+12*(YEAR(DF$16)-YEAR(InicioFuncion)))-$D47+IF($D47<>"",1,0),0,IF(DF$15>$B$9,0,IF((YEAR($B$8)-YEAR($B$7))*12+(MONTH($B$8)-MONTH($B$7))+$E$14<=DE$14,$C47))))*HLOOKUP(YEAR(DF$16),$E$3:$O$5,3,0),0))) -> 0 | DG47: =+(IF($A47="","",IF(DG$15>12,IF($D47>MONTH(DG$16)-MONTH(InicioFuncion)+12*(YEAR(DG$16)-YEAR(InicioFuncion))+1,0,IF($E47<=(MONTH(DG$16)-MONTH(InicioFuncion)+12*(YEAR(DG$16)-YEAR(InicioFuncion)))-$D47+IF($D47<>"",1,0),0,IF(DG$15>$B$9,0,IF((YEAR($B$8)-YEAR($B$7))*12+(MONTH($B$8)-MONTH($B$7))+$E$14<=DF$14,$C47))))*HLOOKUP(YEAR(DG$16),$E$3:$O$5,3,0),0))) -> 0 | DH47: =+(IF($A47="","",IF(DH$15>12,IF($D47>MONTH(DH$16)-MONTH(InicioFuncion)+12*(YEAR(DH$16)-YEAR(InicioFuncion))+1,0,IF($E47<=(MONTH(DH$16)-MONTH(InicioFuncion)+12*(YEAR(DH$16)-YEAR(InicioFuncion)))-$D47+IF($D47<>"",1,0),0,IF(DH$15>$B$9,0,IF((YEAR($B$8)-YEAR($B$7))*12+(MONTH($B$8)-MONTH($B$7))+$E$14<=DG$14,$C47))))*HLOOKUP(YEAR(DH$16),$E$3:$O$5,3,0),0))) -> 0 | DI47: =+(IF($A47="","",IF(DI$15>12,IF($D47>MONTH(DI$16)-MONTH(InicioFuncion)+12*(YEAR(DI$16)-YEAR(InicioFuncion))+1,0,IF($E47<=(MONTH(DI$16)-MONTH(InicioFuncion)+12*(YEAR(DI$16)-YEAR(InicioFuncion)))-$D47+IF($D47<>"",1,0),0,IF(DI$15>$B$9,0,IF((YEAR($B$8)-YEAR($B$7))*12+(MONTH($B$8)-MONTH($B$7))+$E$14<=DH$14,$C47))))*HLOOKUP(YEAR(DI$16),$E$3:$O$5,3,0),0))) -> 0 | DJ47: =+(IF($A47="","",IF(DJ$15>12,IF($D47>MONTH(DJ$16)-MONTH(InicioFuncion)+12*(YEAR(DJ$16)-YEAR(InicioFuncion))+1,0,IF($E47<=(MONTH(DJ$16)-MONTH(InicioFuncion)+12*(YEAR(DJ$16)-YEAR(InicioFuncion)))-$D47+IF($D47<>"",1,0),0,IF(DJ$15>$B$9,0,IF((YEAR($B$8)-YEAR($B$7))*12+(MONTH($B$8)-MONTH($B$7))+$E$14<=DI$14,$C47))))*HLOOKUP(YEAR(DJ$16),$E$3:$O$5,3,0),0))) -> 0 | DK47: =+(IF($A47="","",IF(DK$15>12,IF($D47>MONTH(DK$16)-MONTH(InicioFuncion)+12*(YEAR(DK$16)-YEAR(InicioFuncion))+1,0,IF($E47<=(MONTH(DK$16)-MONTH(InicioFuncion)+12*(YEAR(DK$16)-YEAR(InicioFuncion)))-$D47+IF($D47<>"",1,0),0,IF(DK$15>$B$9,0,IF((YEAR($B$8)-YEAR($B$7))*12+(MONTH($B$8)-MONTH($B$7))+$E$14<=DJ$14,$C47))))*HLOOKUP(YEAR(DK$16),$E$3:$O$5,3,0),0))) -> 0 | DL47: =+(IF($A47="","",IF(DL$15>12,IF($D47>MONTH(DL$16)-MONTH(InicioFuncion)+12*(YEAR(DL$16)-YEAR(InicioFuncion))+1,0,IF($E47<=(MONTH(DL$16)-MONTH(InicioFuncion)+12*(YEAR(DL$16)-YEAR(InicioFuncion)))-$D47+IF($D47<>"",1,0),0,IF(DL$15>$B$9,0,IF((YEAR($B$8)-YEAR($B$7))*12+(MONTH($B$8)-MONTH($B$7))+$E$14<=DK$14,$C47))))*HLOOKUP(YEAR(DL$16),$E$3:$O$5,3,0),0))) -> 0 | DM47: =+(IF($A47="","",IF(DM$15>12,IF($D47>MONTH(DM$16)-MONTH(InicioFuncion)+12*(YEAR(DM$16)-YEAR(InicioFuncion))+1,0,IF($E47<=(MONTH(DM$16)-MONTH(InicioFuncion)+12*(YEAR(DM$16)-YEAR(InicioFuncion)))-$D47+IF($D47<>"",1,0),0,IF(DM$15>$B$9,0,IF((YEAR($B$8)-YEAR($B$7))*12+(MONTH($B$8)-MONTH($B$7))+$E$14<=DL$14,$C47))))*HLOOKUP(YEAR(DM$16),$E$3:$O$5,3,0),0))) -> 0 | DN47: =+(IF($A47="","",IF(DN$15>12,IF($D47>MONTH(DN$16)-MONTH(InicioFuncion)+12*(YEAR(DN$16)-YEAR(InicioFuncion))+1,0,IF($E47<=(MONTH(DN$16)-MONTH(InicioFuncion)+12*(YEAR(DN$16)-YEAR(InicioFuncion)))-$D47+IF($D47<>"",1,0),0,IF(DN$15>$B$9,0,IF((YEAR($B$8)-YEAR($B$7))*12+(MONTH($B$8)-MONTH($B$7))+$E$14<=DM$14,$C47))))*HLOOKUP(YEAR(DN$16),$E$3:$O$5,3,0),0))) -> 0 | DO47: =+(IF($A47="","",IF(DO$15>12,IF($D47>MONTH(DO$16)-MONTH(InicioFuncion)+12*(YEAR(DO$16)-YEAR(InicioFuncion))+1,0,IF($E47<=(MONTH(DO$16)-MONTH(InicioFuncion)+12*(YEAR(DO$16)-YEAR(InicioFuncion)))-$D47+IF($D47<>"",1,0),0,IF(DO$15>$B$9,0,IF((YEAR($B$8)-YEAR($B$7))*12+(MONTH($B$8)-MONTH($B$7))+$E$14<=DN$14,$C47))))*HLOOKUP(YEAR(DO$16),$E$3:$O$5,3,0),0))) -> 0 | DP47: =+(IF($A47="","",IF(DP$15>12,IF($D47>MONTH(DP$16)-MONTH(InicioFuncion)+12*(YEAR(DP$16)-YEAR(InicioFuncion))+1,0,IF($E47<=(MONTH(DP$16)-MONTH(InicioFuncion)+12*(YEAR(DP$16)-YEAR(InicioFuncion)))-$D47+IF($D47<>"",1,0),0,IF(DP$15>$B$9,0,IF((YEAR($B$8)-YEAR($B$7))*12+(MONTH($B$8)-MONTH($B$7))+$E$14<=DO$14,$C47))))*HLOOKUP(YEAR(DP$16),$E$3:$O$5,3,0),0))) -> 0 | DQ47: =+(IF($A47="","",IF(DQ$15>12,IF($D47>MONTH(DQ$16)-MONTH(InicioFuncion)+12*(YEAR(DQ$16)-YEAR(InicioFuncion))+1,0,IF($E47<=(MONTH(DQ$16)-MONTH(InicioFuncion)+12*(YEAR(DQ$16)-YEAR(InicioFuncion)))-$D47+IF($D47<>"",1,0),0,IF(DQ$15>$B$9,0,IF((YEAR($B$8)-YEAR($B$7))*12+(MONTH($B$8)-MONTH($B$7))+$E$14<=DP$14,$C47))))*HLOOKUP(YEAR(DQ$16),$E$3:$O$5,3,0),0))) -> 0 | DR47: =+(IF($A47="","",IF(DR$15>12,IF($D47>MONTH(DR$16)-MONTH(InicioFuncion)+12*(YEAR(DR$16)-YEAR(InicioFuncion))+1,0,IF($E47<=(MONTH(DR$16)-MONTH(InicioFuncion)+12*(YEAR(DR$16)-YEAR(InicioFuncion)))-$D47+IF($D47<>"",1,0),0,IF(DR$15>$B$9,0,IF((YEAR($B$8)-YEAR($B$7))*12+(MONTH($B$8)-MONTH($B$7))+$E$14<=DQ$14,$C47))))*HLOOKUP(YEAR(DR$16),$E$3:$O$5,3,0),0))) -> 0 | DS47: =+(IF($A47="","",IF(DS$15>12,IF($D47>MONTH(DS$16)-MONTH(InicioFuncion)+12*(YEAR(DS$16)-YEAR(InicioFuncion))+1,0,IF($E47<=(MONTH(DS$16)-MONTH(InicioFuncion)+12*(YEAR(DS$16)-YEAR(InicioFuncion)))-$D47+IF($D47<>"",1,0),0,IF(DS$15>$B$9,0,IF((YEAR($B$8)-YEAR($B$7))*12+(MONTH($B$8)-MONTH($B$7))+$E$14<=DR$14,$C47))))*HLOOKUP(YEAR(DS$16),$E$3:$O$5,3,0),0))) -> 0 | DT47: =+(IF($A47="","",IF(DT$15>12,IF($D47>MONTH(DT$16)-MONTH(InicioFuncion)+12*(YEAR(DT$16)-YEAR(InicioFuncion))+1,0,IF($E47<=(MONTH(DT$16)-MONTH(InicioFuncion)+12*(YEAR(DT$16)-YEAR(InicioFuncion)))-$D47+IF($D47<>"",1,0),0,IF(DT$15>$B$9,0,IF((YEAR($B$8)-YEAR($B$7))*12+(MONTH($B$8)-MONTH($B$7))+$E$14<=DS$14,$C47))))*HLOOKUP(YEAR(DT$16),$E$3:$O$5,3,0),0))) -> 0 | DU47: =+(IF($A47="","",IF(DU$15>12,IF($D47>MONTH(DU$16)-MONTH(InicioFuncion)+12*(YEAR(DU$16)-YEAR(InicioFuncion))+1,0,IF($E47<=(MONTH(DU$16)-MONTH(InicioFuncion)+12*(YEAR(DU$16)-YEAR(InicioFuncion)))-$D47+IF($D47<>"",1,0),0,IF(DU$15>$B$9,0,IF((YEAR($B$8)-YEAR($B$7))*12+(MONTH($B$8)-MONTH($B$7))+$E$14<=DT$14,$C47))))*HLOOKUP(YEAR(DU$16),$E$3:$O$5,3,0),0))) -> 0 | DV47: =+(IF($A47="","",IF(DV$15>12,IF($D47>MONTH(DV$16)-MONTH(InicioFuncion)+12*(YEAR(DV$16)-YEAR(InicioFuncion))+1,0,IF($E47<=(MONTH(DV$16)-MONTH(InicioFuncion)+12*(YEAR(DV$16)-YEAR(InicioFuncion)))-$D47+IF($D47<>"",1,0),0,IF(DV$15>$B$9,0,IF((YEAR($B$8)-YEAR($B$7))*12+(MONTH($B$8)-MONTH($B$7))+$E$14<=DU$14,$C47))))*HLOOKUP(YEAR(DV$16),$E$3:$O$5,3,0),0))) -> 0
A48: Mto Torre (Incluye: Tierra, Pararrayo) - Monopolo (*) | C48: =+SUMIFS(ValoresMercado,Conceptos,A48,Tipo,TipoEspecifico,Relacion,'Parametros tecnológicos'!$F$7,ClaseTorreRango,ClaseTorre)/12 -> 0 | E48: 56 | F48: 0 | G48: 0 | H48: 0 | I48: 0 | J48: 0 | K48: 0 | L48: 0 | M48: 0 | N48: 0 | O48: 0 | P48: 0 | Q48: 0 | R48: 0 | S48: 0 | T48: 0 | U48: 0 | V48: 0 | W48: 0 | X48: 0 | Y48: 0 | Z48: 0 | AA48: 0 | AB48: 0 | AC48: 0 | AD48: 0 | AE48: 0 | AF48: 0 | AG48: 0 | AH48: 0 | AI48: 0 | AJ48: 0 | AK48: 0 | AL48: 0 | AM48: 0 | AN48: 0 | AO48: 0 | AP48: 0 | AQ48: 0 | AR48: 0 | AS48: 0 | AT48: 0 | AU48: 0 | AV48: 0 | AW48: 0 | AX48: 0 | AY48: 0 | AZ48: 0 | BA48: 0 | BB48: 0 | BC48: 0 | BD48: 0 | BE48: 0 | BF48: 0 | BG48: 0 | BH48: 0 | BI48: 0 | BJ48: 0 | BK48: 0 | BL48: 0 | BM48: 0 | BN48: 0 | BO48: 0 | BP48: 0 | BQ48: 0 | BR48: 0 | BS48: 0 | BT48: 0 | BU48: 0 | BV48: 0 | BW48: 0 | BX48: 0 | BY48: 0 | BZ48: 0 | CA48: 0 | CB48: 0 | CC48: 0 | CD48: 0 | CE48: 0 | CF48: 0 | CG48: 0 | CH48: 0 | CI48: 0 | CJ48: 0 | CK48: 0 | CL48: 0 | CM48: 0 | CN48: 0 | CO48: 0 | CP48: 0 | CQ48: 0 | CR48: 0 | CS48: 0 | CT48: 0 | CU48: 0 | CV48: 0 | CW48: 0 | CX48: 0 | CY48: 0 | CZ48: 0 | DA48: 0 | DB48: 0 | DC48: 0 | DD48: 0 | DE48: 0 | DF48: 0 | DG48: 0 | DH48: 0 | DI48: 0 | DJ48: 0 | DK48: 0 | DL48: 0 | DM48: 0 | DN48: 0 | DO48: 0 | DP48: 0 | DQ48: 0 | DR48: 0 | DS48: 0 | DT48: 0 | DU48: 0 | DV48: 0
A49: Mto encerramiento | C49: =+SUMIFS(ValoresMercado,Conceptos,A49,Tipo,TipoEspecifico,Relacion,'Parametros tecnológicos'!$F$7)/12 -> 226014.2165 | E49: 56 | F49: =+IF($A49="","",$B49+IF(MONTH($B$8)-MONTH($B$7)+$E$14=E$14,$C49,0)) -> 0 | G49: 0 | H49: 0 | I49: 0 | J49: 0 | K49: 0 | L49: 0 | M49: 0 | N49: 0 | O49: 0 | P49: 0 | Q49: 0 | R49: 0 | S49: 232794.6429 | T49: 232794.6429 | U49: 232794.6429 | V49: 232794.6429 | W49: 232794.6429 | X49: 232794.6429 | Y49: 232794.6429 | Z49: 239778.4822 | AA49: 239778.4822 | AB49: 239778.4822 | AC49: 239778.4822 | AD49: 239778.4822 | AE49: 239778.4822 | AF49: 239778.4822 | AG49: 239778.4822 | AH49: 239778.4822 | AI49: 239778.4822 | AJ49: 239778.4822 | AK49: 239778.4822 | AL49: 246971.8367 | AM49: 246971.8367 | AN49: 246971.8367 | AO49: 246971.8367 | AP49: 246971.8367 | AQ49: 246971.8367 | AR49: 246971.8367 | AS49: 246971.8367 | AT49: 246971.8367 | AU49: 246971.8367 | AV49: 246971.8367 | AW49: 246971.8367 | AX49: 254380.9918 | AY49: 254380.9918 | AZ49: 254380.9918 | BA49: 254380.9918 | BB49: 254380.9918 | BC49: 254380.9918 | BD49: 254380.9918 | BE49: 254380.9918 | BF49: 254380.9918 | BG49: 254380.9918 | BH49: 254380.9918 | BI49: 254380.9918 | BJ49: 262012.4216 | BK49: 0 | BL49: 0 | BM49: 0 | BN49: 0 | BO49: 0 | BP49: 0 | BQ49: 0 | BR49: 0 | BS49: 0 | BT49: 0 | BU49: 0 | BV49: 0 | BW49: 0 | BX49: 0 | BY49: 0 | BZ49: 0 | CA49: 0 | CB49: 0 | CC49: 0 | CD49: 0 | CE49: 0 | CF49: 0 | CG49: 0 | CH49: 0 | CI49: 0 | CJ49: 0 | CK49: 0 | CL49: 0 | CM49: 0 | CN49: 0 | CO49: 0 | CP49: 0 | CQ49: 0 | CR49: 0 | CS49: 0 | CT49: 0 | CU49: 0 | CV49: 0 | CW49: 0 | CX49: 0 | CY49: 0 | CZ49: 0 | DA49: 0 | DB49: 0 | DC49: 0 | DD49: 0 | DE49: 0 | DF49: 0 | DG49: 0 | DH49: 0 | DI49: 0 | DJ49: 0 | DK49: 0 | DL49: 0 | DM49: 0 | DN49: 0 | DO49: 0 | DP49: 0 | DQ49: 0 | DR49: 0 | DS49: 0 | DT49: 0 | DU49: 0 | DV49: 0
A50: Servicios Profesionales: Terreno, Ambiente, Aeronautica | B50: =+SUMIFS(ValoresMercado,Conceptos,A50,Relacion,'Parametros tecnológicos'!$F$7,Tipo,TipoEspecifico) -> 17740633.5 | E50: 56 | F50: =+IF($A50="","",IF($D50=F$15,$B50+IF(MONTH($B$8)-MONTH($B$7)+$E$14=E$14,$C50,0),0)) -> 17740633.5 | G50: 0 | H50: 0 | I50: 0 | J50: 0 | K50: 0 | L50: 0 | M50: 0 | N50: 0 | O50: 0 | P50: 0 | Q50: 0 | R50: 0 | S50: 0 | T50: 0 | U50: 0 | V50: 0 | W50: 0 | X50: 0 | Y50: 0 | Z50: 0 | AA50: 0 | AB50: 0 | AC50: 0 | AD50: 0 | AE50: 0 | AF50: 0 | AG50: 0 | AH50: 0 | AI50: 0 | AJ50: 0 | AK50: 0 | AL50: 0 | AM50: 0 | AN50: 0 | AO50: 0 | AP50: 0 | AQ50: 0 | AR50: 0 | AS50: 0 | AT50: 0 | AU50: 0 | AV50: 0 | AW50: 0 | AX50: 0 | AY50: 0 | AZ50: 0 | BA50: 0 | BB50: 0 | BC50: 0 | BD50: 0 | BE50: 0 | BF50: 0 | BG50: 0 | BH50: 0 | BI50: 0 | BJ50: 0 | BK50: 0 | BL50: 0 | BM50: 0 | BN50: 0 | BO50: 0 | BP50: 0 | BQ50: 0 | BR50: =+IF($A50="","",IF($D50=BR$15,$B50+IF(MONTH($B$8)-MONTH($B$7)+$E$14=BQ$14,$C50,0),0)) -> 0 | BS50: 0 | BT50: 0 | BU50: 0 | BV50: 0 | BW50: 0 | BX50: 0 | BY50: 0 | BZ50: 0 | CA50: 0 | CB50: 0 | CC50: 0 | CD50: 0 | CE50: 0 | CF50: 0 | CG50: 0 | CH50: 0 | CI50: 0 | CJ50: 0 | CK50: 0 | CL50: 0 | CM50: 0 | CN50: 0 | CO50: 0 | CP50: 0 | CQ50: 0 | CR50: 0 | CS50: 0 | CT50: 0 | CU50: 0 | CV50: 0 | CW50: 0 | CX50: 0 | CY50: 0 | CZ50: 0 | DA50: 0 | DB50: 0 | DC50: 0 | DD50: 0 | DE50: 0 | DF50: 0 | DG50: 0 | DH50: 0 | DI50: 0 | DJ50: 0 | DK50: 0 | DL50: 0 | DM50: 0 | DN50: 0 | DO50: 0 | DP50: 0 | DQ50: 0 | DR50: 0 | DS50: 0 | DT50: 0 | DU50: 0 | DV50: 0
A51: Torre (Incluye: Tierra, Pararrayo) - Convencional (*) | B51: =+SUMIFS(ValoresMercado,Conceptos,A51,Relacion,'Parametros tecnológicos'!$F$7,Tipo,TipoEspecifico,ClaseTorreRango,ClaseTorre) -> 82415267.5 | E51: 56 | F51: =+IF($A51="","",IF($D51=F$15,$B51+IF(MONTH($B$8)-MONTH($B$7)+$E$14=E$14,$C51,0),0)) -> 82415267.5 | G51: 0 | H51: 0 | I51: 0 | J51: 0 | K51: 0 | L51: 0 | M51: 0 | N51: 0 | O51: 0 | P51: 0 | Q51: 0 | R51: 0 | S51: 0 | T51: 0 | U51: 0 | V51: 0 | W51: 0 | X51: 0 | Y51: 0 | Z51: 0 | AA51: 0 | AB51: 0 | AC51: 0 | AD51: 0 | AE51: 0 | AF51: 0 | AG51: 0 | AH51: 0 | AI51: 0 | AJ51: 0 | AK51: 0 | AL51: 0 | AM51: 0 | AN51: 0 | AO51: 0 | AP51: 0 | AQ51: 0 | AR51: 0 | AS51: 0 | AT51: 0 | AU51: 0 | AV51: 0 | AW51: 0 | AX51: 0 | AY51: 0 | AZ51: 0 | BA51: 0 | BB51: 0 | BC51: 0 | BD51: 0 | BE51: 0 | BF51: 0 | BG51: 0 | BH51: 0 | BI51: 0 | BJ51: 0 | BK51: 0 | BL51: 0 | BM51: 0 | BN51: 0 | BO51: 0 | BP51: 0 | BQ51: 0 | BR51: 0 | BS51: 0 | BT51: 0 | BU51: 0 | BV51: 0 | BW51: 0 | BX51: 0 | BY51: 0 | BZ51: 0 | CA51: 0 | CB51: 0 | CC51: 0 | CD51: 0 | CE51: 0 | CF51: 0 | CG51: 0 | CH51: 0 | CI51: 0 | CJ51: 0 | CK51: 0 | CL51: 0 | CM51: 0 | CN51: 0 | CO51: 0 | CP51: 0 | CQ51: 0 | CR51: 0 | CS51: 0 | CT51: 0 | CU51: 0 | CV51: 0 | CW51: 0 | CX51: 0 | CY51: 0 | CZ51: 0 | DA51: 0 | DB51: 0 | DC51: 0 | DD51: 0 | DE51: 0 | DF51: 0 | DG51: 0 | DH51: 0 | DI51: 0 | DJ51: 0 | DK51: 0 | DL51: 0 | DM51: 0 | DN51: 0 | DO51: 0 | DP51: 0 | DQ51: 0 | DR51: 0 | DS51: 0 | DT51: 0 | DU51: 0 | DV51: 0
A52: Torre (Incluye: Tierra, Pararrayo) - Monopolo (*) | B52: =+SUMIFS(ValoresMercado,Conceptos,A52,Relacion,'Parametros tecnológicos'!$F$7,Tipo,TipoEspecifico,ClaseTorreRango,ClaseTorre) -> 0 | E52: 56 | F52: 0 | G52: 0 | H52: 0 | I52: 0 | J52: 0 | K52: 0 | L52: 0 | M52: 0 | N52: 0 | O52: 0 | P52: 0 | Q52: 0 | R52: 0 | S52: 0 | T52: 0 | U52: 0 | V52: 0 | W52: 0 | X52: 0 | Y52: 0 | Z52: 0 | AA52: 0 | AB52: 0 | AC52: 0 | AD52: 0 | AE52: 0 | AF52: 0 | AG52: 0 | AH52: 0 | AI52: 0 | AJ52: 0 | AK52: 0 | AL52: 0 | AM52: 0 | AN52: 0 | AO52: 0 | AP52: 0 | AQ52: 0 | AR52: 0 | AS52: 0 | AT52: 0 | AU52: 0 | AV52: 0 | AW52: 0 | AX52: 0 | AY52: 0 | AZ52: 0 | BA52: 0 | BB52: 0 | BC52: 0 | BD52: 0 | BE52: 0 | BF52: 0 | BG52: 0 | BH52: 0 | BI52: 0 | BJ52: 0 | BK52: 0 | BL52: 0 | BM52: 0 | BN52: 0 | BO52: 0 | BP52: 0 | BQ52: 0 | BR52: 0 | BS52: 0 | BT52: 0 | BU52: 0 | BV52: 0 | BW52: 0 | BX52: 0 | BY52: 0 | BZ52: 0 | CA52: 0 | CB52: 0 | CC52: 0 | CD52: 0 | CE52: 0 | CF52: 0 | CG52: 0 | CH52: 0 | CI52: 0 | CJ52: 0 | CK52: 0 | CL52: 0 | CM52: 0 | CN52: 0 | CO52: 0 | CP52: 0 | CQ52: 0 | CR52: 0 | CS52: 0 | CT52: 0 | CU52: 0 | CV52: 0 | CW52: 0 | CX52: 0 | CY52: 0 | CZ52: 0 | DA52: 0 | DB52: 0 | DC52: 0 | DD52: 0 | DE52: 0 | DF52: 0 | DG52: 0 | DH52: 0 | DI52: 0 | DJ52: 0 | DK52: 0 | DL52: 0 | DM52: 0 | DN52: 0 | DO52: 0 | DP52: 0 | DQ52: 0 | DR52: 0 | DS52: 0 | DT52: 0 | DU52: 0 | DV52: 0
A53: OPEX GENERAL | E53: 56 | F53: =+IF($A53="","",$B53+IF(MONTH($B$8)-MONTH($B$7)+$E$14=E$14,$C53,0)) -> 0 | G53: =+(IF($A53="","",IF($D53>MONTH(G$16)-MONTH(InicioFuncion)+12*(YEAR(G$16)-YEAR(InicioFuncion))+1,0,IF($E53<=(MONTH(G$16)-MONTH(InicioFuncion)+12*(YEAR(G$16)-YEAR(InicioFuncion)))-$D53,0,IF(G$15>$B$9,0,IF((YEAR($B$8)-YEAR($B$7))*12+(MONTH($B$8)-MONTH($B$7))+$E$14<=F$14,$C53))))*HLOOKUP(YEAR(G$16),$E$3:$O$5,3,0))) -> 0 | H53: 0 | I53: 0 | J53: 0 | K53: 0 | L53: 0 | M53: 0 | N53: 0 | O53: 0 | P53: 0 | Q53: 0 | R53: 0 | S53: 0 | T53: 0 | U53: 0 | V53: 0 | W53: 0 | X53: 0 | Y53: 0 | Z53: 0 | AA53: 0 | AB53: 0 | AC53: 0 | AD53: 0 | AE53: 0 | AF53: 0 | AG53: 0 | AH53: 0 | AI53: 0 | AJ53: 0 | AK53: 0 | AL53: 0 | AM53: =+(IF($A53="","",IF($D53>MONTH(AM$16)-MONTH(InicioFuncion)+12*(YEAR(AM$16)-YEAR(InicioFuncion))+1,0,IF($E53<=(MONTH(AM$16)-MONTH(InicioFuncion)+12*(YEAR(AM$16)-YEAR(InicioFuncion)))-$D53,0,IF(AM$15>$B$9,0,IF((YEAR($B$8)-YEAR($B$7))*12+(MONTH($B$8)-MONTH($B$7))+$E$14<=AL$14,$C53))))*HLOOKUP(YEAR(AM$16),$E$3:$O$5,3,0))) -> 0 | AN53: 0 | AO53: 0 | AP53: 0 | AQ53: 0 | AR53: 0 | AS53: 0 | AT53: 0 | AU53: 0 | AV53: 0 | AW53: 0 | AX53: 0 | AY53: 0 | AZ53: 0 | BA53: 0 | BB53: 0 | BC53: 0 | BD53: 0 | BE53: 0 | BF53: 0 | BG53: 0 | BH53: 0 | BI53: 0 | BJ53: 0 | BK53: 0 | BL53: 0 | BM53: 0 | BN53: 0 | BO53: 0 | BP53: 0 | BQ53: 0 | BR53: 0 | BS53: =+(IF($A53="","",IF($D53>MONTH(BS$16)-MONTH(InicioFuncion)+12*(YEAR(BS$16)-YEAR(InicioFuncion))+1,0,IF($E53<=(MONTH(BS$16)-MONTH(InicioFuncion)+12*(YEAR(BS$16)-YEAR(InicioFuncion)))-$D53,0,IF(BS$15>$B$9,0,IF((YEAR($B$8)-YEAR($B$7))*12+(MONTH($B$8)-MONTH($B$7))+$E$14<=BR$14,$C53))))*HLOOKUP(YEAR(BS$16),$E$3:$O$5,3,0))) -> 0 | BT53: 0 | BU53: 0 | BV53: 0 | BW53: 0 | BX53: 0 | BY53: 0 | BZ53: 0 | CA53: 0 | CB53: 0 | CC53: 0 | CD53: 0 | CE53: 0 | CF53: 0 | CG53: 0 | CH53: 0 | CI53: 0 | CJ53: 0 | CK53: 0 | CL53: 0 | CM53: 0 | CN53: 0 | CO53: 0 | CP53: 0 | CQ53: 0 | CR53: 0 | CS53: 0 | CT53: 0 | CU53: 0 | CV53: 0 | CW53: 0 | CX53: 0 | CY53: =+(IF($A53="","",IF($D53>MONTH(CY$16)-MONTH(InicioFuncion)+12*(YEAR(CY$16)-YEAR(InicioFuncion))+1,0,IF($E53<=(MONTH(CY$16)-MONTH(InicioFuncion)+12*(YEAR(CY$16)-YEAR(InicioFuncion)))-$D53,0,IF(CY$15>$B$9,0,IF((YEAR($B$8)-YEAR($B$7))*12+(MONTH($B$8)-MONTH($B$7))+$E$14<=CX$14,$C53))))*HLOOKUP(YEAR(CY$16),$E$3:$O$5,3,0))) -> 0 | CZ53: 0 | DA53: 0 | DB53: 0 | DC53: 0 | DD53: 0 | DE53: 0 | DF53: 0 | DG53: 0 | DH53: 0 | DI53: 0 | DJ53: 0 | DK53: 0 | DL53: 0 | DM53: 0 | DN53: 0 | DO53: 0 | DP53: 0 | DQ53: 0 | DR53: 0 | DS53: 0 | DT53: 0 | DU53: 0 | DV53: 0
A54: Licencias MW MinTIC | C54: =+IF('Parametros tecnológicos'!C22="S",SUMIFS(ValoresMercado,Conceptos,A54),0) -> 1571182.768 | E54: 56 | F54: 0 | G54: =+(IF($A54="","",IF($D54>MONTH(G$16)-MONTH(InicioFuncion)+12*(YEAR(G$16)-YEAR(InicioFuncion))+1,0,IF($E54<=(MONTH(G$16)-MONTH(InicioFuncion)+12*(YEAR(G$16)-YEAR(InicioFuncion)))-$D54+IF($D54<>"",1,0),0,IF(G$15>$B$9,0,IF((YEAR($B$8)-YEAR($B$7))*12+(MONTH($B$8)-MONTH($B$7))+$E$14<=F$14,$C54))))*HLOOKUP(YEAR(G$16),$E$3:$O$5,3,0))) -> 0 | H54: 1571182.768 | I54: 1571182.768 | J54: 1571182.768 | K54: 1571182.768 | L54: 1571182.768 | M54: 1571182.768 | N54: 1618318.251 | O54: 1618318.251 | P54: 1618318.251 | Q54: 1618318.251 | R54: 1618318.251 | S54: 1618318.251 | T54: 1618318.251 | U54: 1618318.251 | V54: 1618318.251 | W54: 1618318.251 | X54: 1618318.251 | Y54: 1618318.251 | Z54: 1666867.799 | AA54: 1666867.799 | AB54: 1666867.799 | AC54: 1666867.799 | AD54: 1666867.799 | AE54: 1666867.799 | AF54: 1666867.799 | AG54: 1666867.799 | AH54: 1666867.799 | AI54: 1666867.799 | AJ54: 1666867.799 | AK54: 1666867.799 | AL54: 1716873.833 | AM54: =+(IF($A54="","",IF($D54>MONTH(AM$16)-MONTH(InicioFuncion)+12*(YEAR(AM$16)-YEAR(InicioFuncion))+1,0,IF($E54<=(MONTH(AM$16)-MONTH(InicioFuncion)+12*(YEAR(AM$16)-YEAR(InicioFuncion)))-$D54+IF($D54<>"",1,0),0,IF(AM$15>$B$9,0,IF((YEAR($B$8)-YEAR($B$7))*12+(MONTH($B$8)-MONTH($B$7))+$E$14<=AL$14,$C54))))*HLOOKUP(YEAR(AM$16),$E$3:$O$5,3,0))) -> 1716873.833 | AN54: 1716873.833 | AO54: 1716873.833 | AP54: 1716873.833 | AQ54: 1716873.833 | AR54: 1716873.833 | AS54: 1716873.833 | AT54: 1716873.833 | AU54: 1716873.833 | AV54: 1716873.833 | AW54: 1716873.833 | AX54: 1768380.047 | AY54: 1768380.047 | AZ54: 1768380.047 | BA54: 1768380.047 | BB54: 1768380.047 | BC54: 1768380.047 | BD54: 1768380.047 | BE54: 1768380.047 | BF54: 1768380.047 | BG54: 1768380.047 | BH54: 1768380.047 | BI54: 1768380.047 | BJ54: 1821431.449 | BK54: 0 | BL54: 0 | BM54: 0 | BN54: 0 | BO54: 0 | BP54: 0 | BQ54: 0 | BR54: 0 | BS54: =+(IF($A54="","",IF($D54>MONTH(BS$16)-MONTH(InicioFuncion)+12*(YEAR(BS$16)-YEAR(InicioFuncion))+1,0,IF($E54<=(MONTH(BS$16)-MONTH(InicioFuncion)+12*(YEAR(BS$16)-YEAR(InicioFuncion)))-$D54+IF($D54<>"",1,0),0,IF(BS$15>$B$9,0,IF((YEAR($B$8)-YEAR($B$7))*12+(MONTH($B$8)-MONTH($B$7))+$E$14<=BR$14,$C54))))*HLOOKUP(YEAR(BS$16),$E$3:$O$5,3,0))) -> 0 | BT54: 0 | BU54: 0 | BV54: 0 | BW54: 0 | BX54: 0 | BY54: 0 | BZ54: 0 | CA54: 0 | CB54: 0 | CC54: 0 | CD54: 0 | CE54: 0 | CF54: 0 | CG54: 0 | CH54: 0 | CI54: 0 | CJ54: 0 | CK54: 0 | CL54: 0 | CM54: 0 | CN54: 0 | CO54: 0 | CP54: 0 | CQ54: 0 | CR54: 0 | CS54: 0 | CT54: 0 | CU54: 0 | CV54: 0 | CW54: 0 | CX54: 0 | CY54: =+(IF($A54="","",IF($D54>MONTH(CY$16)-MONTH(InicioFuncion)+12*(YEAR(CY$16)-YEAR(InicioFuncion))+1,0,IF($E54<=(MONTH(CY$16)-MONTH(InicioFuncion)+12*(YEAR(CY$16)-YEAR(InicioFuncion)))-$D54+IF($D54<>"",1,0),0,IF(CY$15>$B$9,0,IF((YEAR($B$8)-YEAR($B$7))*12+(MONTH($B$8)-MONTH($B$7))+$E$14<=CX$14,$C54))))*HLOOKUP(YEAR(CY$16),$E$3:$O$5,3,0))) -> 0 | CZ54: 0 | DA54: 0 | DB54: 0 | DC54: 0 | DD54: 0 | DE54: 0 | DF54: 0 | DG54: 0 | DH54: 0 | DI54: 0 | DJ54: 0 | DK54: 0 | DL54: 0 | DM54: 0 | DN54: 0 | DO54: 0 | DP54: 0 | DQ54: 0 | DR54: 0 | DS54: 0 | DT54: 0 | DU54: 0 | DV54: 0
A55: Energia Electrica - menos de 3 meses | C55: =+IF('Parametros tecnológicos'!C34="S",0,SUMIFS(ValoresMercado,Conceptos,A55)/3) -> 2905000 | E55: 3 | F55: 0 | G55: =+(IF($A55="","",IF($D55>MONTH(G$16)-MONTH(InicioFuncion)+12*(YEAR(G$16)-YEAR(InicioFuncion))+1,0,IF($E55<=(MONTH(G$16)-MONTH(InicioFuncion)+12*(YEAR(G$16)-YEAR(InicioFuncion)))-$D55+IF($D55<>"",1,0),0,IF(G$15>$B$9,0,IF((YEAR($B$8)-YEAR($B$7))*12+(MONTH($B$8)-MONTH($B$7))+$E$14<=F$14,$C55))))*HLOOKUP(YEAR(G$16),$E$3:$O$5,3,0))) -> 0 | H55: 2905000 | I55: 2905000 | J55: 2905000 | K55: 0 | L55: 0 | M55: 0 | N55: 0 | O55: 0 | P55: 0 | Q55: 0 | R55: 0 | S55: 0 | T55: 0 | U55: 0 | V55: 0 | W55: 0 | X55: 0 | Y55: 0 | Z55: 0 | AA55: 0 | AB55: 0 | AC55: 0 | AD55: 0 | AE55: 0 | AF55: 0 | AG55: 0 | AH55: 0 | AI55: 0 | AJ55: 0 | AK55: 0 | AL55: 0 | AM55: =+(IF($A55="","",IF($D55>MONTH(AM$16)-MONTH(InicioFuncion)+12*(YEAR(AM$16)-YEAR(InicioFuncion))+1,0,IF($E55<=(MONTH(AM$16)-MONTH(InicioFuncion)+12*(YEAR(AM$16)-YEAR(InicioFuncion)))-$D55+IF($D55<>"",1,0),0,IF(AM$15>$B$9,0,IF((YEAR($B$8)-YEAR($B$7))*12+(MONTH($B$8)-MONTH($B$7))+$E$14<=AL$14,$C55))))*HLOOKUP(YEAR(AM$16),$E$3:$O$5,3,0))) -> 0 | AN55: 0 | AO55: 0 | AP55: 0 | AQ55: 0 | AR55: 0 | AS55: 0 | AT55: 0 | AU55: 0 | AV55: 0 | AW55: 0 | AX55: 0 | AY55: 0 | AZ55: 0 | BA55: 0 | BB55: 0 | BC55: 0 | BD55: 0 | BE55: 0 | BF55: 0 | BG55: 0 | BH55: 0 | BI55: 0 | BJ55: 0 | BK55: 0 | BL55: 0 | BM55: 0 | BN55: 0 | BO55: 0 | BP55: 0 | BQ55: 0 | BR55: 0 | BS55: =+(IF($A55="","",IF($D55>MONTH(BS$16)-MONTH(InicioFuncion)+12*(YEAR(BS$16)-YEAR(InicioFuncion))+1,0,IF($E55<=(MONTH(BS$16)-MONTH(InicioFuncion)+12*(YEAR(BS$16)-YEAR(InicioFuncion)))-$D55+IF($D55<>"",1,0),0,IF(BS$15>$B$9,0,IF((YEAR($B$8)-YEAR($B$7))*12+(MONTH($B$8)-MONTH($B$7))+$E$14<=BR$14,$C55))))*HLOOKUP(YEAR(BS$16),$E$3:$O$5,3,0))) -> 0 | BT55: 0 | BU55: 0 | BV55: 0 | BW55: 0 | BX55: 0 | BY55: 0 | BZ55: 0 | CA55: 0 | CB55: 0 | CC55: 0 | CD55: 0 | CE55: 0 | CF55: 0 | CG55: 0 | CH55: 0 | CI55: 0 | CJ55: 0 | CK55: 0 | CL55: 0 | CM55: 0 | CN55: 0 | CO55: 0 | CP55: 0 | CQ55: 0 | CR55: 0 | CS55: 0 | CT55: 0 | CU55: 0 | CV55: 0 | CW55: 0 | CX55: 0 | CY55: =+(IF($A55="","",IF($D55>MONTH(CY$16)-MONTH(InicioFuncion)+12*(YEAR(CY$16)-YEAR(InicioFuncion))+1,0,IF($E55<=(MONTH(CY$16)-MONTH(InicioFuncion)+12*(YEAR(CY$16)-YEAR(InicioFuncion)))-$D55+IF($D55<>"",1,0),0,IF(CY$15>$B$9,0,IF((YEAR($B$8)-YEAR($B$7))*12+(MONTH($B$8)-MONTH($B$7))+$E$14<=CX$14,$C55))))*HLOOKUP(YEAR(CY$16),$E$3:$O$5,3,0))) -> 0 | CZ55: 0 | DA55: 0 | DB55: 0 | DC55: 0 | DD55: 0 | DE55: 0 | DF55: 0 | DG55: 0 | DH55: 0 | DI55: 0 | DJ55: 0 | DK55: 0 | DL55: 0 | DM55: 0 | DN55: 0 | DO55: 0 | DP55: 0 | DQ55: 0 | DR55: 0 | DS55: 0 | DT55: 0 | DU55: 0 | DV55: 0
A56: Seguros | C56: =+SUMIFS(ValoresMercado,Conceptos,A56) -> 5052.984 | E56: 56 | F56: 0 | G56: =+(IF($A56="","",IF($D56>MONTH(G$16)-MONTH(InicioFuncion)+12*(YEAR(G$16)-YEAR(InicioFuncion))+1,0,IF($E56<=(MONTH(G$16)-MONTH(InicioFuncion)+12*(YEAR(G$16)-YEAR(InicioFuncion)))-$D56+IF($D56<>"",1,0),0,IF(G$15>$B$9,0,IF((YEAR($B$8)-YEAR($B$7))*12+(MONTH($B$8)-MONTH($B$7))+$E$14<=F$14,$C56))))*HLOOKUP(YEAR(G$16),$E$3:$O$5,3,0))) -> 0 | H56: 5052.984 | I56: 5052.984 | J56: 5052.984 | K56: 5052.984 | L56: 5052.984 | M56: 5052.984 | N56: 5204.57352 | O56: 5204.57352 | P56: 5204.57352 | Q56: 5204.57352 | R56: 5204.57352 | S56: 5204.57352 | T56: 5204.57352 | U56: 5204.57352 | V56: 5204.57352 | W56: 5204.57352 | X56: 5204.57352 | Y56: 5204.57352 | Z56: 5360.710726 | AA56: 5360.710726 | AB56: 5360.710726 | AC56: 5360.710726 | AD56: 5360.710726 | AE56: 5360.710726 | AF56: 5360.710726 | AG56: 5360.710726 | AH56: 5360.710726 | AI56: 5360.710726 | AJ56: 5360.710726 | AK56: 5360.710726 | AL56: 5521.532047 | AM56: =+(IF($A56="","",IF($D56>MONTH(AM$16)-MONTH(InicioFuncion)+12*(YEAR(AM$16)-YEAR(InicioFuncion))+1,0,IF($E56<=(MONTH(AM$16)-MONTH(InicioFuncion)+12*(YEAR(AM$16)-YEAR(InicioFuncion)))-$D56+IF($D56<>"",1,0),0,IF(AM$15>$B$9,0,IF((YEAR($B$8)-YEAR($B$7))*12+(MONTH($B$8)-MONTH($B$7))+$E$14<=AL$14,$C56))))*HLOOKUP(YEAR(AM$16),$E$3:$O$5,3,0))) -> 5521.532047 | AN56: 5521.532047 | AO56: 5521.532047 | AP56: 5521.532047 | AQ56: 5521.532047 | AR56: 5521.532047 | AS56: 5521.532047 | AT56: 5521.532047 | AU56: 5521.532047 | AV56: 5521.532047 | AW56: 5521.532047 | AX56: 5687.178009 | AY56: 5687.178009 | AZ56: 5687.178009 | BA56: 5687.178009 | BB56: 5687.178009 | BC56: 5687.178009 | BD56: 5687.178009 | BE56: 5687.178009 | BF56: 5687.178009 | BG56: 5687.178009 | BH56: 5687.178009 | BI56: 5687.178009 | BJ56: 5857.793349 | BK56: 0 | BL56: 0 | BM56: 0 | BN56: 0 | BO56: 0 | BP56: 0 | BQ56: 0 | BR56: 0 | BS56: =+(IF($A56="","",IF($D56>MONTH(BS$16)-MONTH(InicioFuncion)+12*(YEAR(BS$16)-YEAR(InicioFuncion))+1,0,IF($E56<=(MONTH(BS$16)-MONTH(InicioFuncion)+12*(YEAR(BS$16)-YEAR(InicioFuncion)))-$D56+IF($D56<>"",1,0),0,IF(BS$15>$B$9,0,IF((YEAR($B$8)-YEAR($B$7))*12+(MONTH($B$8)-MONTH($B$7))+$E$14<=BR$14,$C56))))*HLOOKUP(YEAR(BS$16),$E$3:$O$5,3,0))) -> 0 | BT56: 0 | BU56: 0 | BV56: 0 | BW56: 0 | BX56: 0 | BY56: 0 | BZ56: 0 | CA56: 0 | CB56: 0 | CC56: 0 | CD56: 0 | CE56: 0 | CF56: 0 | CG56: 0 | CH56: 0 | CI56: 0 | CJ56: 0 | CK56: 0 | CL56: 0 | CM56: 0 | CN56: 0 | CO56: 0 | CP56: 0 | CQ56: 0 | CR56: 0 | CS56: 0 | CT56: 0 | CU56: 0 | CV56: 0 | CW56: 0 | CX56: 0 | CY56: =+(IF($A56="","",IF($D56>MONTH(CY$16)-MONTH(InicioFuncion)+12*(YEAR(CY$16)-YEAR(InicioFuncion))+1,0,IF($E56<=(MONTH(CY$16)-MONTH(InicioFuncion)+12*(YEAR(CY$16)-YEAR(InicioFuncion)))-$D56+IF($D56<>"",1,0),0,IF(CY$15>$B$9,0,IF((YEAR($B$8)-YEAR($B$7))*12+(MONTH($B$8)-MONTH($B$7))+$E$14<=CX$14,$C56))))*HLOOKUP(YEAR(CY$16),$E$3:$O$5,3,0))) -> 0 | CZ56: 0 | DA56: 0 | DB56: 0 | DC56: 0 | DD56: 0 | DE56: 0 | DF56: 0 | DG56: 0 | DH56: 0 | DI56: 0 | DJ56: 0 | DK56: 0 | DL56: 0 | DM56: 0 | DN56: 0 | DO56: 0 | DP56: 0 | DQ56: 0 | DR56: 0 | DS56: 0 | DT56: 0 | DU56: 0 | DV56: 0
A57: Monitoreo y Gestión | C57: =+SUMIFS(ValoresMercado,Conceptos,A57) -> 190000 | E57: 56 | F57: 0 | G57: =+(IF($A57="","",IF($D57>MONTH(G$16)-MONTH(InicioFuncion)+12*(YEAR(G$16)-YEAR(InicioFuncion))+1,0,IF($E57<=(MONTH(G$16)-MONTH(InicioFuncion)+12*(YEAR(G$16)-YEAR(InicioFuncion)))-$D57+IF($D57<>"",1,0),0,IF(G$15>$B$9,0,IF((YEAR($B$8)-YEAR($B$7))*12+(MONTH($B$8)-MONTH($B$7))+$E$14<=F$14,$C57))))*HLOOKUP(YEAR(G$16),$E$3:$O$5,3,0))) -> 0 | H57: 190000 | I57: 190000 | J57: 190000 | K57: 190000 | L57: 190000 | M57: 190000 | N57: 195700 | O57: 195700 | P57: 195700 | Q57: 195700 | R57: 195700 | S57: 195700 | T57: 195700 | U57: 195700 | V57: 195700 | W57: 195700 | X57: 195700 | Y57: 195700 | Z57: 201571 | AA57: 201571 | AB57: 201571 | AC57: 201571 | AD57: 201571 | AE57: 201571 | AF57: 201571 | AG57: 201571 | AH57: 201571 | AI57: 201571 | AJ57: 201571 | AK57: 201571 | AL57: 207618.13 | AM57: =+(IF($A57="","",IF($D57>MONTH(AM$16)-MONTH(InicioFuncion)+12*(YEAR(AM$16)-YEAR(InicioFuncion))+1,0,IF($E57<=(MONTH(AM$16)-MONTH(InicioFuncion)+12*(YEAR(AM$16)-YEAR(InicioFuncion)))-$D57+IF($D57<>"",1,0),0,IF(AM$15>$B$9,0,IF((YEAR($B$8)-YEAR($B$7))*12+(MONTH($B$8)-MONTH($B$7))+$E$14<=AL$14,$C57))))*HLOOKUP(YEAR(AM$16),$E$3:$O$5,3,0))) -> 207618.13 | AN57: 207618.13 | AO57: 207618.13 | AP57: 207618.13 | AQ57: 207618.13 | AR57: 207618.13 | AS57: 207618.13 | AT57: 207618.13 | AU57: 207618.13 | AV57: 207618.13 | AW57: 207618.13 | AX57: 213846.6739 | AY57: 213846.6739 | AZ57: 213846.6739 | BA57: 213846.6739 | BB57: 213846.6739 | BC57: 213846.6739 | BD57: 213846.6739 | BE57: 213846.6739 | BF57: 213846.6739 | BG57: 213846.6739 | BH57: 213846.6739 | BI57: 213846.6739 | BJ57: 220262.0741 | BK57: 0 | BL57: 0 | BM57: 0 | BN57: 0 | BO57: 0 | BP57: 0 | BQ57: 0 | BR57: 0 | BS57: =+(IF($A57="","",IF($D57>MONTH(BS$16)-MONTH(InicioFuncion)+12*(YEAR(BS$16)-YEAR(InicioFuncion))+1,0,IF($E57<=(MONTH(BS$16)-MONTH(InicioFuncion)+12*(YEAR(BS$16)-YEAR(InicioFuncion)))-$D57+IF($D57<>"",1,0),0,IF(BS$15>$B$9,0,IF((YEAR($B$8)-YEAR($B$7))*12+(MONTH($B$8)-MONTH($B$7))+$E$14<=BR$14,$C57))))*HLOOKUP(YEAR(BS$16),$E$3:$O$5,3,0))) -> 0 | BT57: 0 | BU57: 0 | BV57: 0 | BW57: 0 | BX57: 0 | BY57: 0 | BZ57: 0 | CA57: 0 | CB57: 0 | CC57: 0 | CD57: 0 | CE57: 0 | CF57: 0 | CG57: 0 | CH57: 0 | CI57: 0 | CJ57: 0 | CK57: 0 | CL57: 0 | CM57: 0 | CN57: 0 | CO57: 0 | CP57: 0 | CQ57: 0 | CR57: 0 | CS57: 0 | CT57: 0 | CU57: 0 | CV57: 0 | CW57: 0 | CX57: 0 | CY57: =+(IF($A57="","",IF($D57>MONTH(CY$16)-MONTH(InicioFuncion)+12*(YEAR(CY$16)-YEAR(InicioFuncion))+1,0,IF($E57<=(MONTH(CY$16)-MONTH(InicioFuncion)+12*(YEAR(CY$16)-YEAR(InicioFuncion)))-$D57+IF($D57<>"",1,0),0,IF(CY$15>$B$9,0,IF((YEAR($B$8)-YEAR($B$7))*12+(MONTH($B$8)-MONTH($B$7))+$E$14<=CX$14,$C57))))*HLOOKUP(YEAR(CY$16),$E$3:$O$5,3,0))) -> 0 | CZ57: 0 | DA57: 0 | DB57: 0 | DC57: 0 | DD57: 0 | DE57: 0 | DF57: 0 | DG57: 0 | DH57: 0 | DI57: 0 | DJ57: 0 | DK57: 0 | DL57: 0 | DM57: 0 | DN57: 0 | DO57: 0 | DP57: 0 | DQ57: 0 | DR57: 0 | DS57: 0 | DT57: 0 | DU57: 0 | DV57: 0
A58: RED ENERGÍA MT | E58: 56 | F58: 0 | G58: =+(IF($A58="","",IF($D58>MONTH(G$16)-MONTH(InicioFuncion)+12*(YEAR(G$16)-YEAR(InicioFuncion))+1,0,IF($E58<=(MONTH(G$16)-MONTH(InicioFuncion)+12*(YEAR(G$16)-YEAR(InicioFuncion)))-$D58,0,IF(G$15>$B$9,0,IF((YEAR($B$8)-YEAR($B$7))*12+(MONTH($B$8)-MONTH($B$7))+$E$14<=F$14,$C58))))*HLOOKUP(YEAR(G$16),$E$3:$O$5,3,0))) -> 0 | H58: 0 | I58: 0 | J58: 0 | K58: 0 | L58: 0 | M58: 0 | N58: 0 | O58: 0 | P58: 0 | Q58: 0 | R58: 0 | S58: 0 | T58: 0 | U58: 0 | V58: 0 | W58: 0 | X58: 0 | Y58: 0 | Z58: 0 | AA58: 0 | AB58: 0 | AC58: 0 | AD58: 0 | AE58: 0 | AF58: 0 | AG58: 0 | AH58: 0 | AI58: 0 | AJ58: 0 | AK58: 0 | AL58: 0 | AM58: =+(IF($A58="","",IF($D58>MONTH(AM$16)-MONTH(InicioFuncion)+12*(YEAR(AM$16)-YEAR(InicioFuncion))+1,0,IF($E58<=(MONTH(AM$16)-MONTH(InicioFuncion)+12*(YEAR(AM$16)-YEAR(InicioFuncion)))-$D58,0,IF(AM$15>$B$9,0,IF((YEAR($B$8)-YEAR($B$7))*12+(MONTH($B$8)-MONTH($B$7))+$E$14<=AL$14,$C58))))*HLOOKUP(YEAR(AM$16),$E$3:$O$5,3,0))) -> 0 | AN58: 0 | AO58: 0 | AP58: 0 | AQ58: 0 | AR58: 0 | AS58: 0 | AT58: 0 | AU58: 0 | AV58: 0 | AW58: 0 | AX58: 0 | AY58: 0 | AZ58: 0 | BA58: 0 | BB58: 0 | BC58: 0 | BD58: 0 | BE58: 0 | BF58: 0 | BG58: 0 | BH58: 0 | BI58: 0 | BJ58: 0 | BK58: 0 | BL58: 0 | BM58: 0 | BN58: 0 | BO58: 0 | BP58: 0 | BQ58: 0 | BR58: 0 | BS58: =+(IF($A58="","",IF($D58>MONTH(BS$16)-MONTH(InicioFuncion)+12*(YEAR(BS$16)-YEAR(InicioFuncion))+1,0,IF($E58<=(MONTH(BS$16)-MONTH(InicioFuncion)+12*(YEAR(BS$16)-YEAR(InicioFuncion)))-$D58,0,IF(BS$15>$B$9,0,IF((YEAR($B$8)-YEAR($B$7))*12+(MONTH($B$8)-MONTH($B$7))+$E$14<=BR$14,$C58))))*HLOOKUP(YEAR(BS$16),$E$3:$O$5,3,0))) -> 0 | BT58: 0 | BU58: 0 | BV58: 0 | BW58: 0 | BX58: 0 | BY58: 0 | BZ58: 0 | CA58: 0 | CB58: 0 | CC58: 0 | CD58: 0 | CE58: 0 | CF58: 0 | CG58: 0 | CH58: 0 | CI58: 0 | CJ58: 0 | CK58: 0 | CL58: 0 | CM58: 0 | CN58: 0 | CO58: 0 | CP58: 0 | CQ58: 0 | CR58: 0 | CS58: 0 | CT58: 0 | CU58: 0 | CV58: 0 | CW58: 0 | CX58: 0 | CY58: =+(IF($A58="","",IF($D58>MONTH(CY$16)-MONTH(InicioFuncion)+12*(YEAR(CY$16)-YEAR(InicioFuncion))+1,0,IF($E58<=(MONTH(CY$16)-MONTH(InicioFuncion)+12*(YEAR(CY$16)-YEAR(InicioFuncion)))-$D58,0,IF(CY$15>$B$9,0,IF((YEAR($B$8)-YEAR($B$7))*12+(MONTH($B$8)-MONTH($B$7))+$E$14<=CX$14,$C58))))*HLOOKUP(YEAR(CY$16),$E$3:$O$5,3,0))) -> 0 | CZ58: 0 | DA58: 0 | DB58: 0 | DC58: 0 | DD58: 0 | DE58: 0 | DF58: 0 | DG58: 0 | DH58: 0 | DI58: 0 | DJ58: 0 | DK58: 0 | DL58: 0 | DM58: 0 | DN58: 0 | DO58: 0 | DP58: 0 | DQ58: 0 | DR58: 0 | DS58: 0 | DT58: 0 | DU58: 0 | DV58: 0
A59: ="Terreno "&Tipo_Terreno&" - "&"Trasiegos" -> Terreno Plano - Trasiegos | B59: =+IF(Tipologia_Campo="FTTH",0,SUMIFS(ValoresMercado,Conceptos,A59,Relacion,DistanciaEnergiaSTD,Tipo,TipoEspecifico,Terreno_Energia,Tipo_Terreno,KW_Energia,KW_EnergiaValor)) -> 1079896.667 | E59: 56 | F59: =+IF($A59="","",IF($D59=F$15,$B59+IF(MONTH($B$8)-MONTH($B$7)+$E$14=E$14,$C59,0),0)) -> 1079896.667 | G59: 0 | H59: 0 | I59: 0 | J59: 0 | K59: 0 | L59: 0 | M59: 0 | N59: 0 | O59: 0 | P59: 0 | Q59: 0 | R59: 0 | S59: 0 | T59: 0 | U59: 0 | V59: 0 | W59: 0 | X59: 0 | Y59: 0 | Z59: 0 | AA59: 0 | AB59: 0 | AC59: 0 | AD59: 0 | AE59: 0 | AF59: 0 | AG59: 0 | AH59: 0 | AI59: 0 | AJ59: 0 | AK59: 0 | AL59: 0 | AM59: 0 | AN59: 0 | AO59: 0 | AP59: 0 | AQ59: 0 | AR59: 0 | AS59: 0 | AT59: 0 | AU59: 0 | AV59: 0 | AW59: 0 | AX59: 0 | AY59: 0 | AZ59: 0 | BA59: 0 | BB59: 0 | BC59: 0 | BD59: 0 | BE59: 0 | BF59: 0 | BG59: 0 | BH59: 0 | BI59: 0 | BJ59: 0 | BK59: 0 | BL59: 0 | BM59: 0 | BN59: 0 | BO59: 0 | BP59: 0 | BQ59: 0 | BR59: =+IF($A59="","",IF($D59=BR$15,$B59+IF(MONTH($B$8)-MONTH($B$7)+$E$14=BQ$14,$C59,0),0)) -> 0 | BS59: 0 | BT59: 0 | BU59: 0 | BV59: 0 | BW59: 0 | BX59: 0 | BY59: 0 | BZ59: 0 | CA59: 0 | CB59: 0 | CC59: 0 | CD59: 0 | CE59: 0 | CF59: 0 | CG59: 0 | CH59: 0 | CI59: 0 | CJ59: 0 | CK59: 0 | CL59: 0 | CM59: 0 | CN59: 0 | CO59: 0 | CP59: 0 | CQ59: 0 | CR59: 0 | CS59: 0 | CT59: 0 | CU59: 0 | CV59: 0 | CW59: 0 | CX59: 0 | CY59: 0 | CZ59: 0 | DA59: 0 | DB59: 0 | DC59: 0 | DD59: 0 | DE59: 0 | DF59: 0 | DG59: 0 | DH59: 0 | DI59: 0 | DJ59: 0 | DK59: 0 | DL59: 0 | DM59: 0 | DN59: 0 | DO59: 0 | DP59: 0 | DQ59: 0 | DR59: 0 | DS59: 0 | DT59: 0 | DU59: 0 | DV59: 0
A60: ="Terreno "&Tipo_Terreno&" - "&"Cableados Mt" -> Terreno Plano - Cableados Mt | B60: =+IF(Tipologia_Campo="FTTH",0,SUMIFS(ValoresMercado,Conceptos,A60,Relacion,DistanciaEnergiaSTD,Tipo,TipoEspecifico,Terreno_Energia,Tipo_Terreno,KW_Energia,KW_EnergiaValor)) -> 9319531.063 | E60: 56 | F60: =+IF($A60="","",IF($D60=F$15,$B60+IF(MONTH($B$8)-MONTH($B$7)+$E$14=E$14,$C60,0),0)) -> 9319531.063 | G60: 0 | H60: 0 | I60: 0 | J60: 0 | K60: 0 | L60: 0 | M60: 0 | N60: 0 | O60: 0 | P60: 0 | Q60: 0 | R60: 0 | S60: 0 | T60: 0 | U60: 0 | V60: 0 | W60: 0 | X60: 0 | Y60: 0 | Z60: 0 | AA60: 0 | AB60: 0 | AC60: 0 | AD60: 0 | AE60: 0 | AF60: 0 | AG60: 0 | AH60: 0 | AI60: 0 | AJ60: 0 | AK60: 0 | AL60: 0 | AM60: 0 | AN60: 0 | AO60: 0 | AP60: 0 | AQ60: 0 | AR60: 0 | AS60: 0 | AT60: 0 | AU60: 0 | AV60: 0 | AW60: 0 | AX60: 0 | AY60: 0 | AZ60: 0 | BA60: 0 | BB60: 0 | BC60: 0 | BD60: 0 | BE60: 0 | BF60: 0 | BG60: 0 | BH60: 0 | BI60: 0 | BJ60: 0 | BK60: 0 | BL60: 0 | BM60: 0 | BN60: 0 | BO60: 0 | BP60: 0 | BQ60: 0 | BR60: 0 | BS60: 0 | BT60: 0 | BU60: 0 | BV60: 0 | BW60: 0 | BX60: 0 | BY60: 0 | BZ60: 0 | CA60: 0 | CB60: 0 | CC60: 0 | CD60: 0 | CE60: 0 | CF60: 0 | CG60: 0 | CH60: 0 | CI60: 0 | CJ60: 0 | CK60: 0 | CL60: 0 | CM60: 0 | CN60: 0 | CO60: 0 | CP60: 0 | CQ60: 0 | CR60: 0 | CS60: 0 | CT60: 0 | CU60: 0 | CV60: 0 | CW60: 0 | CX60: 0 | CY60: 0 | CZ60: 0 | DA60: 0 | DB60: 0 | DC60: 0 | DD60: 0 | DE60: 0 | DF60: 0 | DG60: 0 | DH60: 0 | DI60: 0 | DJ60: 0 | DK60: 0 | DL60: 0 | DM60: 0 | DN60: 0 | DO60: 0 | DP60: 0 | DQ60: 0 | DR60: 0 | DS60: 0 | DT60: 0 | DU60: 0 | DV60: 0
A61: =+"Terreno "&Tipo_Terreno&" - "&"Diseños, Planos" -> Terreno Plano - Diseños, Planos | B61: =+IF(Tipologia_Campo="FTTH",0,SUMIFS(ValoresMercado,Conceptos,A61,Relacion,DistanciaEnergiaSTD,Tipo,TipoEspecifico,Terreno_Energia,Tipo_Terreno,KW_Energia,KW_EnergiaValor)) -> 2218858.442 | E61: 56 | F61: 2218858.442 | G61: 0 | H61: 0 | I61: 0 | J61: 0 | K61: 0 | L61: 0 | M61: 0 | N61: 0 | O61: 0 | P61: 0 | Q61: 0 | R61: 0 | S61: 0 | T61: 0 | U61: 0 | V61: 0 | W61: 0 | X61: 0 | Y61: 0 | Z61: 0 | AA61: 0 | AB61: 0 | AC61: 0 | AD61: 0 | AE61: 0 | AF61: 0 | AG61: 0 | AH61: 0 | AI61: 0 | AJ61: 0 | AK61: 0 | AL61: 0 | AM61: 0 | AN61: 0 | AO61: 0 | AP61: 0 | AQ61: 0 | AR61: 0 | AS61: 0 | AT61: 0 | AU61: 0 | AV61: 0 | AW61: 0 | AX61: 0 | AY61: 0 | AZ61: 0 | BA61: 0 | BB61: 0 | BC61: 0 | BD61: 0 | BE61: 0 | BF61: 0 | BG61: 0 | BH61: 0 | BI61: 0 | BJ61: 0 | BK61: 0 | BL61: 0 | BM61: 0 | BN61: 0 | BO61: 0 | BP61: 0 | BQ61: 0 | BR61: 0 | BS61: 0 | BT61: 0 | BU61: 0 | BV61: 0 | BW61: 0 | BX61: 0 | BY61: 0 | BZ61: 0 | CA61: 0 | CB61: 0 | CC61: 0 | CD61: 0 | CE61: 0 | CF61: 0 | CG61: 0 | CH61: 0 | CI61: 0 | CJ61: 0 | CK61: 0 | CL61: 0 | CM61: 0 | CN61: 0 | CO61: 0 | CP61: 0 | CQ61: 0 | CR61: 0 | CS61: 0 | CT61: 0 | CU61: 0 | CV61: 0 | CW61: 0 | CX61: 0 | CY61: 0 | CZ61: 0 | DA61: 0 | DB61: 0 | DC61: 0 | DD61: 0 | DE61: 0 | DF61: 0 | DG61: 0 | DH61: 0 | DI61: 0 | DJ61: 0 | DK61: 0 | DL61: 0 | DM61: 0 | DN61: 0 | DO61: 0 | DP61: 0 | DQ61: 0 | DR61: 0 | DS61: 0 | DT61: 0 | DU61: 0 | DV61: 0
A62: Mto Pararrayos, Tierra | C62: =+IF(Tipologia_Campo="FTTH",0,SUMIFS(ValoresMercado,Conceptos,A62,Relacion,DistanciaEnergiaSTD,Tipo,TipoEspecifico,KW_Energia,KW_EnergiaValor)/12) -> 25130.875 | E62: 56 | F62: 0 | G62: =+(IF($A62="","",IF(G$15>12,IF($D62>MONTH(G$16)-MONTH(InicioFuncion)+12*(YEAR(G$16)-YEAR(InicioFuncion))+1,0,IF($E62<=(MONTH(G$16)-MONTH(InicioFuncion)+12*(YEAR(G$16)-YEAR(InicioFuncion)))-$D62+IF($D62<>"",1,0),0,IF(G$15>$B$9,0,IF((YEAR($B$8)-YEAR($B$7))*12+(MONTH($B$8)-MONTH($B$7))+$E$14<=F$14,$C62))))*HLOOKUP(YEAR(G$16),$E$3:$O$5,3,0),0))) -> 0 | H62: =+(IF($A62="","",IF(H$15>12,IF($D62>MONTH(H$16)-MONTH(InicioFuncion)+12*(YEAR(H$16)-YEAR(InicioFuncion))+1,0,IF($E62<=(MONTH(H$16)-MONTH(InicioFuncion)+12*(YEAR(H$16)-YEAR(InicioFuncion)))-$D62+IF($D62<>"",1,0),0,IF(H$15>$B$9,0,IF((YEAR($B$8)-YEAR($B$7))*12+(MONTH($B$8)-MONTH($B$7))+$E$14<=G$14,$C62))))*HLOOKUP(YEAR(H$16),$E$3:$O$5,3,0),0))) -> 0 | I62: =+(IF($A62="","",IF(I$15>12,IF($D62>MONTH(I$16)-MONTH(InicioFuncion)+12*(YEAR(I$16)-YEAR(InicioFuncion))+1,0,IF($E62<=(MONTH(I$16)-MONTH(InicioFuncion)+12*(YEAR(I$16)-YEAR(InicioFuncion)))-$D62+IF($D62<>"",1,0),0,IF(I$15>$B$9,0,IF((YEAR($B$8)-YEAR($B$7))*12+(MONTH($B$8)-MONTH($B$7))+$E$14<=H$14,$C62))))*HLOOKUP(YEAR(I$16),$E$3:$O$5,3,0),0))) -> 0 | J62: =+(IF($A62="","",IF(J$15>12,IF($D62>MONTH(J$16)-MONTH(InicioFuncion)+12*(YEAR(J$16)-YEAR(InicioFuncion))+1,0,IF($E62<=(MONTH(J$16)-MONTH(InicioFuncion)+12*(YEAR(J$16)-YEAR(InicioFuncion)))-$D62+IF($D62<>"",1,0),0,IF(J$15>$B$9,0,IF((YEAR($B$8)-YEAR($B$7))*12+(MONTH($B$8)-MONTH($B$7))+$E$14<=I$14,$C62))))*HLOOKUP(YEAR(J$16),$E$3:$O$5,3,0),0))) -> 0 | K62: =+(IF($A62="","",IF(K$15>12,IF($D62>MONTH(K$16)-MONTH(InicioFuncion)+12*(YEAR(K$16)-YEAR(InicioFuncion))+1,0,IF($E62<=(MONTH(K$16)-MONTH(InicioFuncion)+12*(YEAR(K$16)-YEAR(InicioFuncion)))-$D62+IF($D62<>"",1,0),0,IF(K$15>$B$9,0,IF((YEAR($B$8)-YEAR($B$7))*12+(MONTH($B$8)-MONTH($B$7))+$E$14<=J$14,$C62))))*HLOOKUP(YEAR(K$16),$E$3:$O$5,3,0),0))) -> 0 | L62: =+(IF($A62="","",IF(L$15>12,IF($D62>MONTH(L$16)-MONTH(InicioFuncion)+12*(YEAR(L$16)-YEAR(InicioFuncion))+1,0,IF($E62<=(MONTH(L$16)-MONTH(InicioFuncion)+12*(YEAR(L$16)-YEAR(InicioFuncion)))-$D62+IF($D62<>"",1,0),0,IF(L$15>$B$9,0,IF((YEAR($B$8)-YEAR($B$7))*12+(MONTH($B$8)-MONTH($B$7))+$E$14<=K$14,$C62))))*HLOOKUP(YEAR(L$16),$E$3:$O$5,3,0),0))) -> 0 | M62: =+(IF($A62="","",IF(M$15>12,IF($D62>MONTH(M$16)-MONTH(InicioFuncion)+12*(YEAR(M$16)-YEAR(InicioFuncion))+1,0,IF($E62<=(MONTH(M$16)-MONTH(InicioFuncion)+12*(YEAR(M$16)-YEAR(InicioFuncion)))-$D62+IF($D62<>"",1,0),0,IF(M$15>$B$9,0,IF((YEAR($B$8)-YEAR($B$7))*12+(MONTH($B$8)-MONTH($B$7))+$E$14<=L$14,$C62))))*HLOOKUP(YEAR(M$16),$E$3:$O$5,3,0),0))) -> 0 | N62: =+(IF($A62="","",IF(N$15>12,IF($D62>MONTH(N$16)-MONTH(InicioFuncion)+12*(YEAR(N$16)-YEAR(InicioFuncion))+1,0,IF($E62<=(MONTH(N$16)-MONTH(InicioFuncion)+12*(YEAR(N$16)-YEAR(InicioFuncion)))-$D62+IF($D62<>"",1,0),0,IF(N$15>$B$9,0,IF((YEAR($B$8)-YEAR($B$7))*12+(MONTH($B$8)-MONTH($B$7))+$E$14<=M$14,$C62))))*HLOOKUP(YEAR(N$16),$E$3:$O$5,3,0),0))) -> 0 | O62: =+(IF($A62="","",IF(O$15>12,IF($D62>MONTH(O$16)-MONTH(InicioFuncion)+12*(YEAR(O$16)-YEAR(InicioFuncion))+1,0,IF($E62<=(MONTH(O$16)-MONTH(InicioFuncion)+12*(YEAR(O$16)-YEAR(InicioFuncion)))-$D62+IF($D62<>"",1,0),0,IF(O$15>$B$9,0,IF((YEAR($B$8)-YEAR($B$7))*12+(MONTH($B$8)-MONTH($B$7))+$E$14<=N$14,$C62))))*HLOOKUP(YEAR(O$16),$E$3:$O$5,3,0),0))) -> 0 | P62: =+(IF($A62="","",IF(P$15>12,IF($D62>MONTH(P$16)-MONTH(InicioFuncion)+12*(YEAR(P$16)-YEAR(InicioFuncion))+1,0,IF($E62<=(MONTH(P$16)-MONTH(InicioFuncion)+12*(YEAR(P$16)-YEAR(InicioFuncion)))-$D62+IF($D62<>"",1,0),0,IF(P$15>$B$9,0,IF((YEAR($B$8)-YEAR($B$7))*12+(MONTH($B$8)-MONTH($B$7))+$E$14<=O$14,$C62))))*HLOOKUP(YEAR(P$16),$E$3:$O$5,3,0),0))) -> 0 | Q62: =+(IF($A62="","",IF(Q$15>12,IF($D62>MONTH(Q$16)-MONTH(InicioFuncion)+12*(YEAR(Q$16)-YEAR(InicioFuncion))+1,0,IF($E62<=(MONTH(Q$16)-MONTH(InicioFuncion)+12*(YEAR(Q$16)-YEAR(InicioFuncion)))-$D62+IF($D62<>"",1,0),0,IF(Q$15>$B$9,0,IF((YEAR($B$8)-YEAR($B$7))*12+(MONTH($B$8)-MONTH($B$7))+$E$14<=P$14,$C62))))*HLOOKUP(YEAR(Q$16),$E$3:$O$5,3,0),0))) -> 0 | R62: =+(IF($A62="","",IF(R$15>12,IF($D62>MONTH(R$16)-MONTH(InicioFuncion)+12*(YEAR(R$16)-YEAR(InicioFuncion))+1,0,IF($E62<=(MONTH(R$16)-MONTH(InicioFuncion)+12*(YEAR(R$16)-YEAR(InicioFuncion)))-$D62+IF($D62<>"",1,0),0,IF(R$15>$B$9,0,IF((YEAR($B$8)-YEAR($B$7))*12+(MONTH($B$8)-MONTH($B$7))+$E$14<=Q$14,$C62))))*HLOOKUP(YEAR(R$16),$E$3:$O$5,3,0),0))) -> 0 | S62: =+(IF($A62="","",IF(S$15>12,IF($D62>MONTH(S$16)-MONTH(InicioFuncion)+12*(YEAR(S$16)-YEAR(InicioFuncion))+1,0,IF($E62<=(MONTH(S$16)-MONTH(InicioFuncion)+12*(YEAR(S$16)-YEAR(InicioFuncion)))-$D62+IF($D62<>"",1,0),0,IF(S$15>$B$9,0,IF((YEAR($B$8)-YEAR($B$7))*12+(MONTH($B$8)-MONTH($B$7))+$E$14<=R$14,$C62))))*HLOOKUP(YEAR(S$16),$E$3:$O$5,3,0),0))) -> 25884.80125 | T62: =+(IF($A62="","",IF(T$15>12,IF($D62>MONTH(T$16)-MONTH(InicioFuncion)+12*(YEAR(T$16)-YEAR(InicioFuncion))+1,0,IF($E62<=(MONTH(T$16)-MONTH(InicioFuncion)+12*(YEAR(T$16)-YEAR(InicioFuncion)))-$D62+IF($D62<>"",1,0),0,IF(T$15>$B$9,0,IF((YEAR($B$8)-YEAR($B$7))*12+(MONTH($B$8)-MONTH($B$7))+$E$14<=S$14,$C62))))*HLOOKUP(YEAR(T$16),$E$3:$O$5,3,0),0))) -> 25884.80125 | U62: =+(IF($A62="","",IF(U$15>12,IF($D62>MONTH(U$16)-MONTH(InicioFuncion)+12*(YEAR(U$16)-YEAR(InicioFuncion))+1,0,IF($E62<=(MONTH(U$16)-MONTH(InicioFuncion)+12*(YEAR(U$16)-YEAR(InicioFuncion)))-$D62+IF($D62<>"",1,0),0,IF(U$15>$B$9,0,IF((YEAR($B$8)-YEAR($B$7))*12+(MONTH($B$8)-MONTH($B$7))+$E$14<=T$14,$C62))))*HLOOKUP(YEAR(U$16),$E$3:$O$5,3,0),0))) -> 25884.80125 | V62: =+(IF($A62="","",IF(V$15>12,IF($D62>MONTH(V$16)-MONTH(InicioFuncion)+12*(YEAR(V$16)-YEAR(InicioFuncion))+1,0,IF($E62<=(MONTH(V$16)-MONTH(InicioFuncion)+12*(YEAR(V$16)-YEAR(InicioFuncion)))-$D62+IF($D62<>"",1,0),0,IF(V$15>$B$9,0,IF((YEAR($B$8)-YEAR($B$7))*12+(MONTH($B$8)-MONTH($B$7))+$E$14<=U$14,$C62))))*HLOOKUP(YEAR(V$16),$E$3:$O$5,3,0),0))) -> 25884.80125 | W62: =+(IF($A62="","",IF(W$15>12,IF($D62>MONTH(W$16)-MONTH(InicioFuncion)+12*(YEAR(W$16)-YEAR(InicioFuncion))+1,0,IF($E62<=(MONTH(W$16)-MONTH(InicioFuncion)+12*(YEAR(W$16)-YEAR(InicioFuncion)))-$D62+IF($D62<>"",1,0),0,IF(W$15>$B$9,0,IF((YEAR($B$8)-YEAR($B$7))*12+(MONTH($B$8)-MONTH($B$7))+$E$14<=V$14,$C62))))*HLOOKUP(YEAR(W$16),$E$3:$O$5,3,0),0))) -> 25884.80125 | X62: =+(IF($A62="","",IF(X$15>12,IF($D62>MONTH(X$16)-MONTH(InicioFuncion)+12*(YEAR(X$16)-YEAR(InicioFuncion))+1,0,IF($E62<=(MONTH(X$16)-MONTH(InicioFuncion)+12*(YEAR(X$16)-YEAR(InicioFuncion)))-$D62+IF($D62<>"",1,0),0,IF(X$15>$B$9,0,IF((YEAR($B$8)-YEAR($B$7))*12+(MONTH($B$8)-MONTH($B$7))+$E$14<=W$14,$C62))))*HLOOKUP(YEAR(X$16),$E$3:$O$5,3,0),0))) -> 25884.80125 | Y62: =+(IF($A62="","",IF(Y$15>12,IF($D62>MONTH(Y$16)-MONTH(InicioFuncion)+12*(YEAR(Y$16)-YEAR(InicioFuncion))+1,0,IF($E62<=(MONTH(Y$16)-MONTH(InicioFuncion)+12*(YEAR(Y$16)-YEAR(InicioFuncion)))-$D62+IF($D62<>"",1,0),0,IF(Y$15>$B$9,0,IF((YEAR($B$8)-YEAR($B$7))*12+(MONTH($B$8)-MONTH($B$7))+$E$14<=X$14,$C62))))*HLOOKUP(YEAR(Y$16),$E$3:$O$5,3,0),0))) -> 25884.80125 | Z62: =+(IF($A62="","",IF(Z$15>12,IF($D62>MONTH(Z$16)-MONTH(InicioFuncion)+12*(YEAR(Z$16)-YEAR(InicioFuncion))+1,0,IF($E62<=(MONTH(Z$16)-MONTH(InicioFuncion)+12*(YEAR(Z$16)-YEAR(InicioFuncion)))-$D62+IF($D62<>"",1,0),0,IF(Z$15>$B$9,0,IF((YEAR($B$8)-YEAR($B$7))*12+(MONTH($B$8)-MONTH($B$7))+$E$14<=Y$14,$C62))))*HLOOKUP(YEAR(Z$16),$E$3:$O$5,3,0),0))) -> 26661.34529 | AA62: =+(IF($A62="","",IF(AA$15>12,IF($D62>MONTH(AA$16)-MONTH(InicioFuncion)+12*(YEAR(AA$16)-YEAR(InicioFuncion))+1,0,IF($E62<=(MONTH(AA$16)-MONTH(InicioFuncion)+12*(YEAR(AA$16)-YEAR(InicioFuncion)))-$D62+IF($D62<>"",1,0),0,IF(AA$15>$B$9,0,IF((YEAR($B$8)-YEAR($B$7))*12+(MONTH($B$8)-MONTH($B$7))+$E$14<=Z$14,$C62))))*HLOOKUP(YEAR(AA$16),$E$3:$O$5,3,0),0))) -> 26661.34529 | AB62: =+(IF($A62="","",IF(AB$15>12,IF($D62>MONTH(AB$16)-MONTH(InicioFuncion)+12*(YEAR(AB$16)-YEAR(InicioFuncion))+1,0,IF($E62<=(MONTH(AB$16)-MONTH(InicioFuncion)+12*(YEAR(AB$16)-YEAR(InicioFuncion)))-$D62+IF($D62<>"",1,0),0,IF(AB$15>$B$9,0,IF((YEAR($B$8)-YEAR($B$7))*12+(MONTH($B$8)-MONTH($B$7))+$E$14<=AA$14,$C62))))*HLOOKUP(YEAR(AB$16),$E$3:$O$5,3,0),0))) -> 26661.34529 | AC62: =+(IF($A62="","",IF(AC$15>12,IF($D62>MONTH(AC$16)-MONTH(InicioFuncion)+12*(YEAR(AC$16)-YEAR(InicioFuncion))+1,0,IF($E62<=(MONTH(AC$16)-MONTH(InicioFuncion)+12*(YEAR(AC$16)-YEAR(InicioFuncion)))-$D62+IF($D62<>"",1,0),0,IF(AC$15>$B$9,0,IF((YEAR($B$8)-YEAR($B$7))*12+(MONTH($B$8)-MONTH($B$7))+$E$14<=AB$14,$C62))))*HLOOKUP(YEAR(AC$16),$E$3:$O$5,3,0),0))) -> 26661.34529 | AD62: =+(IF($A62="","",IF(AD$15>12,IF($D62>MONTH(AD$16)-MONTH(InicioFuncion)+12*(YEAR(AD$16)-YEAR(InicioFuncion))+1,0,IF($E62<=(MONTH(AD$16)-MONTH(InicioFuncion)+12*(YEAR(AD$16)-YEAR(InicioFuncion)))-$D62+IF($D62<>"",1,0),0,IF(AD$15>$B$9,0,IF((YEAR($B$8)-YEAR($B$7))*12+(MONTH($B$8)-MONTH($B$7))+$E$14<=AC$14,$C62))))*HLOOKUP(YEAR(AD$16),$E$3:$O$5,3,0),0))) -> 26661.34529 | AE62: =+(IF($A62="","",IF(AE$15>12,IF($D62>MONTH(AE$16)-MONTH(InicioFuncion)+12*(YEAR(AE$16)-YEAR(InicioFuncion))+1,0,IF($E62<=(MONTH(AE$16)-MONTH(InicioFuncion)+12*(YEAR(AE$16)-YEAR(InicioFuncion)))-$D62+IF($D62<>"",1,0),0,IF(AE$15>$B$9,0,IF((YEAR($B$8)-YEAR($B$7))*12+(MONTH($B$8)-MONTH($B$7))+$E$14<=AD$14,$C62))))*HLOOKUP(YEAR(AE$16),$E$3:$O$5,3,0),0))) -> 26661.34529 | AF62: =+(IF($A62="","",IF(AF$15>12,IF($D62>MONTH(AF$16)-MONTH(InicioFuncion)+12*(YEAR(AF$16)-YEAR(InicioFuncion))+1,0,IF($E62<=(MONTH(AF$16)-MONTH(InicioFuncion)+12*(YEAR(AF$16)-YEAR(InicioFuncion)))-$D62+IF($D62<>"",1,0),0,IF(AF$15>$B$9,0,IF((YEAR($B$8)-YEAR($B$7))*12+(MONTH($B$8)-MONTH($B$7))+$E$14<=AE$14,$C62))))*HLOOKUP(YEAR(AF$16),$E$3:$O$5,3,0),0))) -> 26661.34529 | AG62: =+(IF($A62="","",IF(AG$15>12,IF($D62>MONTH(AG$16)-MONTH(InicioFuncion)+12*(YEAR(AG$16)-YEAR(InicioFuncion))+1,0,IF($E62<=(MONTH(AG$16)-MONTH(InicioFuncion)+12*(YEAR(AG$16)-YEAR(InicioFuncion)))-$D62+IF($D62<>"",1,0),0,IF(AG$15>$B$9,0,IF((YEAR($B$8)-YEAR($B$7))*12+(MONTH($B$8)-MONTH($B$7))+$E$14<=AF$14,$C62))))*HLOOKUP(YEAR(AG$16),$E$3:$O$5,3,0),0))) -> 26661.34529 | AH62: =+(IF($A62="","",IF(AH$15>12,IF($D62>MONTH(AH$16)-MONTH(InicioFuncion)+12*(YEAR(AH$16)-YEAR(InicioFuncion))+1,0,IF($E62<=(MONTH(AH$16)-MONTH(InicioFuncion)+12*(YEAR(AH$16)-YEAR(InicioFuncion)))-$D62+IF($D62<>"",1,0),0,IF(AH$15>$B$9,0,IF((YEAR($B$8)-YEAR($B$7))*12+(MONTH($B$8)-MONTH($B$7))+$E$14<=AG$14,$C62))))*HLOOKUP(YEAR(AH$16),$E$3:$O$5,3,0),0))) -> 26661.34529 | AI62: =+(IF($A62="","",IF(AI$15>12,IF($D62>MONTH(AI$16)-MONTH(InicioFuncion)+12*(YEAR(AI$16)-YEAR(InicioFuncion))+1,0,IF($E62<=(MONTH(AI$16)-MONTH(InicioFuncion)+12*(YEAR(AI$16)-YEAR(InicioFuncion)))-$D62+IF($D62<>"",1,0),0,IF(AI$15>$B$9,0,IF((YEAR($B$8)-YEAR($B$7))*12+(MONTH($B$8)-MONTH($B$7))+$E$14<=AH$14,$C62))))*HLOOKUP(YEAR(AI$16),$E$3:$O$5,3,0),0))) -> 26661.34529 | AJ62: =+(IF($A62="","",IF(AJ$15>12,IF($D62>MONTH(AJ$16)-MONTH(InicioFuncion)+12*(YEAR(AJ$16)-YEAR(InicioFuncion))+1,0,IF($E62<=(MONTH(AJ$16)-MONTH(InicioFuncion)+12*(YEAR(AJ$16)-YEAR(InicioFuncion)))-$D62+IF($D62<>"",1,0),0,IF(AJ$15>$B$9,0,IF((YEAR($B$8)-YEAR($B$7))*12+(MONTH($B$8)-MONTH($B$7))+$E$14<=AI$14,$C62))))*HLOOKUP(YEAR(AJ$16),$E$3:$O$5,3,0),0))) -> 26661.34529 | AK62: =+(IF($A62="","",IF(AK$15>12,IF($D62>MONTH(AK$16)-MONTH(InicioFuncion)+12*(YEAR(AK$16)-YEAR(InicioFuncion))+1,0,IF($E62<=(MONTH(AK$16)-MONTH(InicioFuncion)+12*(YEAR(AK$16)-YEAR(InicioFuncion)))-$D62+IF($D62<>"",1,0),0,IF(AK$15>$B$9,0,IF((YEAR($B$8)-YEAR($B$7))*12+(MONTH($B$8)-MONTH($B$7))+$E$14<=AJ$14,$C62))))*HLOOKUP(YEAR(AK$16),$E$3:$O$5,3,0),0))) -> 26661.34529 | AL62: =+(IF($A62="","",IF(AL$15>12,IF($D62>MONTH(AL$16)-MONTH(InicioFuncion)+12*(YEAR(AL$16)-YEAR(InicioFuncion))+1,0,IF($E62<=(MONTH(AL$16)-MONTH(InicioFuncion)+12*(YEAR(AL$16)-YEAR(InicioFuncion)))-$D62+IF($D62<>"",1,0),0,IF(AL$15>$B$9,0,IF((YEAR($B$8)-YEAR($B$7))*12+(MONTH($B$8)-MONTH($B$7))+$E$14<=AK$14,$C62))))*HLOOKUP(YEAR(AL$16),$E$3:$O$5,3,0),0))) -> 27461.18565 | AM62: =+(IF($A62="","",IF(AM$15>12,IF($D62>MONTH(AM$16)-MONTH(InicioFuncion)+12*(YEAR(AM$16)-YEAR(InicioFuncion))+1,0,IF($E62<=(MONTH(AM$16)-MONTH(InicioFuncion)+12*(YEAR(AM$16)-YEAR(InicioFuncion)))-$D62+IF($D62<>"",1,0),0,IF(AM$15>$B$9,0,IF((YEAR($B$8)-YEAR($B$7))*12+(MONTH($B$8)-MONTH($B$7))+$E$14<=AL$14,$C62))))*HLOOKUP(YEAR(AM$16),$E$3:$O$5,3,0),0))) -> 27461.18565 | AN62: =+(IF($A62="","",IF(AN$15>12,IF($D62>MONTH(AN$16)-MONTH(InicioFuncion)+12*(YEAR(AN$16)-YEAR(InicioFuncion))+1,0,IF($E62<=(MONTH(AN$16)-MONTH(InicioFuncion)+12*(YEAR(AN$16)-YEAR(InicioFuncion)))-$D62+IF($D62<>"",1,0),0,IF(AN$15>$B$9,0,IF((YEAR($B$8)-YEAR($B$7))*12+(MONTH($B$8)-MONTH($B$7))+$E$14<=AM$14,$C62))))*HLOOKUP(YEAR(AN$16),$E$3:$O$5,3,0),0))) -> 27461.18565 | AO62: =+(IF($A62="","",IF(AO$15>12,IF($D62>MONTH(AO$16)-MONTH(InicioFuncion)+12*(YEAR(AO$16)-YEAR(InicioFuncion))+1,0,IF($E62<=(MONTH(AO$16)-MONTH(InicioFuncion)+12*(YEAR(AO$16)-YEAR(InicioFuncion)))-$D62+IF($D62<>"",1,0),0,IF(AO$15>$B$9,0,IF((YEAR($B$8)-YEAR($B$7))*12+(MONTH($B$8)-MONTH($B$7))+$E$14<=AN$14,$C62))))*HLOOKUP(YEAR(AO$16),$E$3:$O$5,3,0),0))) -> 27461.18565 | AP62: =+(IF($A62="","",IF(AP$15>12,IF($D62>MONTH(AP$16)-MONTH(InicioFuncion)+12*(YEAR(AP$16)-YEAR(InicioFuncion))+1,0,IF($E62<=(MONTH(AP$16)-MONTH(InicioFuncion)+12*(YEAR(AP$16)-YEAR(InicioFuncion)))-$D62+IF($D62<>"",1,0),0,IF(AP$15>$B$9,0,IF((YEAR($B$8)-YEAR($B$7))*12+(MONTH($B$8)-MONTH($B$7))+$E$14<=AO$14,$C62))))*HLOOKUP(YEAR(AP$16),$E$3:$O$5,3,0),0))) -> 27461.18565 | AQ62: =+(IF($A62="","",IF(AQ$15>12,IF($D62>MONTH(AQ$16)-MONTH(InicioFuncion)+12*(YEAR(AQ$16)-YEAR(InicioFuncion))+1,0,IF($E62<=(MONTH(AQ$16)-MONTH(InicioFuncion)+12*(YEAR(AQ$16)-YEAR(InicioFuncion)))-$D62+IF($D62<>"",1,0),0,IF(AQ$15>$B$9,0,IF((YEAR($B$8)-YEAR($B$7))*12+(MONTH($B$8)-MONTH($B$7))+$E$14<=AP$14,$C62))))*HLOOKUP(YEAR(AQ$16),$E$3:$O$5,3,0),0))) -> 27461.18565 | AR62: =+(IF($A62="","",IF(AR$15>12,IF($D62>MONTH(AR$16)-MONTH(InicioFuncion)+12*(YEAR(AR$16)-YEAR(InicioFuncion))+1,0,IF($E62<=(MONTH(AR$16)-MONTH(InicioFuncion)+12*(YEAR(AR$16)-YEAR(InicioFuncion)))-$D62+IF($D62<>"",1,0),0,IF(AR$15>$B$9,0,IF((YEAR($B$8)-YEAR($B$7))*12+(MONTH($B$8)-MONTH($B$7))+$E$14<=AQ$14,$C62))))*HLOOKUP(YEAR(AR$16),$E$3:$O$5,3,0),0))) -> 27461.18565 | AS62: =+(IF($A62="","",IF(AS$15>12,IF($D62>MONTH(AS$16)-MONTH(InicioFuncion)+12*(YEAR(AS$16)-YEAR(InicioFuncion))+1,0,IF($E62<=(MONTH(AS$16)-MONTH(InicioFuncion)+12*(YEAR(AS$16)-YEAR(InicioFuncion)))-$D62+IF($D62<>"",1,0),0,IF(AS$15>$B$9,0,IF((YEAR($B$8)-YEAR($B$7))*12+(MONTH($B$8)-MONTH($B$7))+$E$14<=AR$14,$C62))))*HLOOKUP(YEAR(AS$16),$E$3:$O$5,3,0),0))) -> 27461.18565 | AT62: =+(IF($A62="","",IF(AT$15>12,IF($D62>MONTH(AT$16)-MONTH(InicioFuncion)+12*(YEAR(AT$16)-YEAR(InicioFuncion))+1,0,IF($E62<=(MONTH(AT$16)-MONTH(InicioFuncion)+12*(YEAR(AT$16)-YEAR(InicioFuncion)))-$D62+IF($D62<>"",1,0),0,IF(AT$15>$B$9,0,IF((YEAR($B$8)-YEAR($B$7))*12+(MONTH($B$8)-MONTH($B$7))+$E$14<=AS$14,$C62))))*HLOOKUP(YEAR(AT$16),$E$3:$O$5,3,0),0))) -> 27461.18565 | AU62: =+(IF($A62="","",IF(AU$15>12,IF($D62>MONTH(AU$16)-MONTH(InicioFuncion)+12*(YEAR(AU$16)-YEAR(InicioFuncion))+1,0,IF($E62<=(MONTH(AU$16)-MONTH(InicioFuncion)+12*(YEAR(AU$16)-YEAR(InicioFuncion)))-$D62+IF($D62<>"",1,0),0,IF(AU$15>$B$9,0,IF((YEAR($B$8)-YEAR($B$7))*12+(MONTH($B$8)-MONTH($B$7))+$E$14<=AT$14,$C62))))*HLOOKUP(YEAR(AU$16),$E$3:$O$5,3,0),0))) -> 27461.18565 | AV62: =+(IF($A62="","",IF(AV$15>12,IF($D62>MONTH(AV$16)-MONTH(InicioFuncion)+12*(YEAR(AV$16)-YEAR(InicioFuncion))+1,0,IF($E62<=(MONTH(AV$16)-MONTH(InicioFuncion)+12*(YEAR(AV$16)-YEAR(InicioFuncion)))-$D62+IF($D62<>"",1,0),0,IF(AV$15>$B$9,0,IF((YEAR($B$8)-YEAR($B$7))*12+(MONTH($B$8)-MONTH($B$7))+$E$14<=AU$14,$C62))))*HLOOKUP(YEAR(AV$16),$E$3:$O$5,3,0),0))) -> 27461.18565 | AW62: =+(IF($A62="","",IF(AW$15>12,IF($D62>MONTH(AW$16)-MONTH(InicioFuncion)+12*(YEAR(AW$16)-YEAR(InicioFuncion))+1,0,IF($E62<=(MONTH(AW$16)-MONTH(InicioFuncion)+12*(YEAR(AW$16)-YEAR(InicioFuncion)))-$D62+IF($D62<>"",1,0),0,IF(AW$15>$B$9,0,IF((YEAR($B$8)-YEAR($B$7))*12+(MONTH($B$8)-MONTH($B$7))+$E$14<=AV$14,$C62))))*HLOOKUP(YEAR(AW$16),$E$3:$O$5,3,0),0))) -> 27461.18565 | AX62: =+(IF($A62="","",IF(AX$15>12,IF($D62>MONTH(AX$16)-MONTH(InicioFuncion)+12*(YEAR(AX$16)-YEAR(InicioFuncion))+1,0,IF($E62<=(MONTH(AX$16)-MONTH(InicioFuncion)+12*(YEAR(AX$16)-YEAR(InicioFuncion)))-$D62+IF($D62<>"",1,0),0,IF(AX$15>$B$9,0,IF((YEAR($B$8)-YEAR($B$7))*12+(MONTH($B$8)-MONTH($B$7))+$E$14<=AW$14,$C62))))*HLOOKUP(YEAR(AX$16),$E$3:$O$5,3,0),0))) -> 28285.02122 | AY62: =+(IF($A62="","",IF(AY$15>12,IF($D62>MONTH(AY$16)-MONTH(InicioFuncion)+12*(YEAR(AY$16)-YEAR(InicioFuncion))+1,0,IF($E62<=(MONTH(AY$16)-MONTH(InicioFuncion)+12*(YEAR(AY$16)-YEAR(InicioFuncion)))-$D62+IF($D62<>"",1,0),0,IF(AY$15>$B$9,0,IF((YEAR($B$8)-YEAR($B$7))*12+(MONTH($B$8)-MONTH($B$7))+$E$14<=AX$14,$C62))))*HLOOKUP(YEAR(AY$16),$E$3:$O$5,3,0),0))) -> 28285.02122 | AZ62: =+(IF($A62="","",IF(AZ$15>12,IF($D62>MONTH(AZ$16)-MONTH(InicioFuncion)+12*(YEAR(AZ$16)-YEAR(InicioFuncion))+1,0,IF($E62<=(MONTH(AZ$16)-MONTH(InicioFuncion)+12*(YEAR(AZ$16)-YEAR(InicioFuncion)))-$D62+IF($D62<>"",1,0),0,IF(AZ$15>$B$9,0,IF((YEAR($B$8)-YEAR($B$7))*12+(MONTH($B$8)-MONTH($B$7))+$E$14<=AY$14,$C62))))*HLOOKUP(YEAR(AZ$16),$E$3:$O$5,3,0),0))) -> 28285.02122 | BA62: =+(IF($A62="","",IF(BA$15>12,IF($D62>MONTH(BA$16)-MONTH(InicioFuncion)+12*(YEAR(BA$16)-YEAR(InicioFuncion))+1,0,IF($E62<=(MONTH(BA$16)-MONTH(InicioFuncion)+12*(YEAR(BA$16)-YEAR(InicioFuncion)))-$D62+IF($D62<>"",1,0),0,IF(BA$15>$B$9,0,IF((YEAR($B$8)-YEAR($B$7))*12+(MONTH($B$8)-MONTH($B$7))+$E$14<=AZ$14,$C62))))*HLOOKUP(YEAR(BA$16),$E$3:$O$5,3,0),0))) -> 28285.02122 | BB62: =+(IF($A62="","",IF(BB$15>12,IF($D62>MONTH(BB$16)-MONTH(InicioFuncion)+12*(YEAR(BB$16)-YEAR(InicioFuncion))+1,0,IF($E62<=(MONTH(BB$16)-MONTH(InicioFuncion)+12*(YEAR(BB$16)-YEAR(InicioFuncion)))-$D62+IF($D62<>"",1,0),0,IF(BB$15>$B$9,0,IF((YEAR($B$8)-YEAR($B$7))*12+(MONTH($B$8)-MONTH($B$7))+$E$14<=BA$14,$C62))))*HLOOKUP(YEAR(BB$16),$E$3:$O$5,3,0),0))) -> 28285.02122 | BC62: =+(IF($A62="","",IF(BC$15>12,IF($D62>MONTH(BC$16)-MONTH(InicioFuncion)+12*(YEAR(BC$16)-YEAR(InicioFuncion))+1,0,IF($E62<=(MONTH(BC$16)-MONTH(InicioFuncion)+12*(YEAR(BC$16)-YEAR(InicioFuncion)))-$D62+IF($D62<>"",1,0),0,IF(BC$15>$B$9,0,IF((YEAR($B$8)-YEAR($B$7))*12+(MONTH($B$8)-MONTH($B$7))+$E$14<=BB$14,$C62))))*HLOOKUP(YEAR(BC$16),$E$3:$O$5,3,0),0))) -> 28285.02122 | BD62: =+(IF($A62="","",IF(BD$15>12,IF($D62>MONTH(BD$16)-MONTH(InicioFuncion)+12*(YEAR(BD$16)-YEAR(InicioFuncion))+1,0,IF($E62<=(MONTH(BD$16)-MONTH(InicioFuncion)+12*(YEAR(BD$16)-YEAR(InicioFuncion)))-$D62+IF($D62<>"",1,0),0,IF(BD$15>$B$9,0,IF((YEAR($B$8)-YEAR($B$7))*12+(MONTH($B$8)-MONTH($B$7))+$E$14<=BC$14,$C62))))*HLOOKUP(YEAR(BD$16),$E$3:$O$5,3,0),0))) -> 28285.02122 | BE62: =+(IF($A62="","",IF(BE$15>12,IF($D62>MONTH(BE$16)-MONTH(InicioFuncion)+12*(YEAR(BE$16)-YEAR(InicioFuncion))+1,0,IF($E62<=(MONTH(BE$16)-MONTH(InicioFuncion)+12*(YEAR(BE$16)-YEAR(InicioFuncion)))-$D62+IF($D62<>"",1,0),0,IF(BE$15>$B$9,0,IF((YEAR($B$8)-YEAR($B$7))*12+(MONTH($B$8)-MONTH($B$7))+$E$14<=BD$14,$C62))))*HLOOKUP(YEAR(BE$16),$E$3:$O$5,3,0),0))) -> 28285.02122 | BF62: =+(IF($A62="","",IF(BF$15>12,IF($D62>MONTH(BF$16)-MONTH(InicioFuncion)+12*(YEAR(BF$16)-YEAR(InicioFuncion))+1,0,IF($E62<=(MONTH(BF$16)-MONTH(InicioFuncion)+12*(YEAR(BF$16)-YEAR(InicioFuncion)))-$D62+IF($D62<>"",1,0),0,IF(BF$15>$B$9,0,IF((YEAR($B$8)-YEAR($B$7))*12+(MONTH($B$8)-MONTH($B$7))+$E$14<=BE$14,$C62))))*HLOOKUP(YEAR(BF$16),$E$3:$O$5,3,0),0))) -> 28285.02122 | BG62: =+(IF($A62="","",IF(BG$15>12,IF($D62>MONTH(BG$16)-MONTH(InicioFuncion)+12*(YEAR(BG$16)-YEAR(InicioFuncion))+1,0,IF($E62<=(MONTH(BG$16)-MONTH(InicioFuncion)+12*(YEAR(BG$16)-YEAR(InicioFuncion)))-$D62+IF($D62<>"",1,0),0,IF(BG$15>$B$9,0,IF((YEAR($B$8)-YEAR($B$7))*12+(MONTH($B$8)-MONTH($B$7))+$E$14<=BF$14,$C62))))*HLOOKUP(YEAR(BG$16),$E$3:$O$5,3,0),0))) -> 28285.02122 | BH62: =+(IF($A62="","",IF(BH$15>12,IF($D62>MONTH(BH$16)-MONTH(InicioFuncion)+12*(YEAR(BH$16)-YEAR(InicioFuncion))+1,0,IF($E62<=(MONTH(BH$16)-MONTH(InicioFuncion)+12*(YEAR(BH$16)-YEAR(InicioFuncion)))-$D62+IF($D62<>"",1,0),0,IF(BH$15>$B$9,0,IF((YEAR($B$8)-YEAR($B$7))*12+(MONTH($B$8)-MONTH($B$7))+$E$14<=BG$14,$C62))))*HLOOKUP(YEAR(BH$16),$E$3:$O$5,3,0),0))) -> 28285.02122 | BI62: =+(IF($A62="","",IF(BI$15>12,IF($D62>MONTH(BI$16)-MONTH(InicioFuncion)+12*(YEAR(BI$16)-YEAR(InicioFuncion))+1,0,IF($E62<=(MONTH(BI$16)-MONTH(InicioFuncion)+12*(YEAR(BI$16)-YEAR(InicioFuncion)))-$D62+IF($D62<>"",1,0),0,IF(BI$15>$B$9,0,IF((YEAR($B$8)-YEAR($B$7))*12+(MONTH($B$8)-MONTH($B$7))+$E$14<=BH$14,$C62))))*HLOOKUP(YEAR(BI$16),$E$3:$O$5,3,0),0))) -> 28285.02122 | BJ62: =+(IF($A62="","",IF(BJ$15>12,IF($D62>MONTH(BJ$16)-MONTH(InicioFuncion)+12*(YEAR(BJ$16)-YEAR(InicioFuncion))+1,0,IF($E62<=(MONTH(BJ$16)-MONTH(InicioFuncion)+12*(YEAR(BJ$16)-YEAR(InicioFuncion)))-$D62+IF($D62<>"",1,0),0,IF(BJ$15>$B$9,0,IF((YEAR($B$8)-YEAR($B$7))*12+(MONTH($B$8)-MONTH($B$7))+$E$14<=BI$14,$C62))))*HLOOKUP(YEAR(BJ$16),$E$3:$O$5,3,0),0))) -> 29133.57185 | BK62: =+(IF($A62="","",IF(BK$15>12,IF($D62>MONTH(BK$16)-MONTH(InicioFuncion)+12*(YEAR(BK$16)-YEAR(InicioFuncion))+1,0,IF($E62<=(MONTH(BK$16)-MONTH(InicioFuncion)+12*(YEAR(BK$16)-YEAR(InicioFuncion)))-$D62+IF($D62<>"",1,0),0,IF(BK$15>$B$9,0,IF((YEAR($B$8)-YEAR($B$7))*12+(MONTH($B$8)-MONTH($B$7))+$E$14<=BJ$14,$C62))))*HLOOKUP(YEAR(BK$16),$E$3:$O$5,3,0),0))) -> 0 | BL62: =+(IF($A62="","",IF(BL$15>12,IF($D62>MONTH(BL$16)-MONTH(InicioFuncion)+12*(YEAR(BL$16)-YEAR(InicioFuncion))+1,0,IF($E62<=(MONTH(BL$16)-MONTH(InicioFuncion)+12*(YEAR(BL$16)-YEAR(InicioFuncion)))-$D62+IF($D62<>"",1,0),0,IF(BL$15>$B$9,0,IF((YEAR($B$8)-YEAR($B$7))*12+(MONTH($B$8)-MONTH($B$7))+$E$14<=BK$14,$C62))))*HLOOKUP(YEAR(BL$16),$E$3:$O$5,3,0),0))) -> 0 | BM62: =+(IF($A62="","",IF(BM$15>12,IF($D62>MONTH(BM$16)-MONTH(InicioFuncion)+12*(YEAR(BM$16)-YEAR(InicioFuncion))+1,0,IF($E62<=(MONTH(BM$16)-MONTH(InicioFuncion)+12*(YEAR(BM$16)-YEAR(InicioFuncion)))-$D62+IF($D62<>"",1,0),0,IF(BM$15>$B$9,0,IF((YEAR($B$8)-YEAR($B$7))*12+(MONTH($B$8)-MONTH($B$7))+$E$14<=BL$14,$C62))))*HLOOKUP(YEAR(BM$16),$E$3:$O$5,3,0),0))) -> 0 | BN62: =+(IF($A62="","",IF(BN$15>12,IF($D62>MONTH(BN$16)-MONTH(InicioFuncion)+12*(YEAR(BN$16)-YEAR(InicioFuncion))+1,0,IF($E62<=(MONTH(BN$16)-MONTH(InicioFuncion)+12*(YEAR(BN$16)-YEAR(InicioFuncion)))-$D62+IF($D62<>"",1,0),0,IF(BN$15>$B$9,0,IF((YEAR($B$8)-YEAR($B$7))*12+(MONTH($B$8)-MONTH($B$7))+$E$14<=BM$14,$C62))))*HLOOKUP(YEAR(BN$16),$E$3:$O$5,3,0),0))) -> 0 | BO62: =+(IF($A62="","",IF(BO$15>12,IF($D62>MONTH(BO$16)-MONTH(InicioFuncion)+12*(YEAR(BO$16)-YEAR(InicioFuncion))+1,0,IF($E62<=(MONTH(BO$16)-MONTH(InicioFuncion)+12*(YEAR(BO$16)-YEAR(InicioFuncion)))-$D62+IF($D62<>"",1,0),0,IF(BO$15>$B$9,0,IF((YEAR($B$8)-YEAR($B$7))*12+(MONTH($B$8)-MONTH($B$7))+$E$14<=BN$14,$C62))))*HLOOKUP(YEAR(BO$16),$E$3:$O$5,3,0),0))) -> 0 | BP62: =+(IF($A62="","",IF(BP$15>12,IF($D62>MONTH(BP$16)-MONTH(InicioFuncion)+12*(YEAR(BP$16)-YEAR(InicioFuncion))+1,0,IF($E62<=(MONTH(BP$16)-MONTH(InicioFuncion)+12*(YEAR(BP$16)-YEAR(InicioFuncion)))-$D62+IF($D62<>"",1,0),0,IF(BP$15>$B$9,0,IF((YEAR($B$8)-YEAR($B$7))*12+(MONTH($B$8)-MONTH($B$7))+$E$14<=BO$14,$C62))))*HLOOKUP(YEAR(BP$16),$E$3:$O$5,3,0),0))) -> 0 | BQ62: =+(IF($A62="","",IF(BQ$15>12,IF($D62>MONTH(BQ$16)-MONTH(InicioFuncion)+12*(YEAR(BQ$16)-YEAR(InicioFuncion))+1,0,IF($E62<=(MONTH(BQ$16)-MONTH(InicioFuncion)+12*(YEAR(BQ$16)-YEAR(InicioFuncion)))-$D62+IF($D62<>"",1,0),0,IF(BQ$15>$B$9,0,IF((YEAR($B$8)-YEAR($B$7))*12+(MONTH($B$8)-MONTH($B$7))+$E$14<=BP$14,$C62))))*HLOOKUP(YEAR(BQ$16),$E$3:$O$5,3,0),0))) -> 0 | BR62: =+(IF($A62="","",IF(BR$15>12,IF($D62>MONTH(BR$16)-MONTH(InicioFuncion)+12*(YEAR(BR$16)-YEAR(InicioFuncion))+1,0,IF($E62<=(MONTH(BR$16)-MONTH(InicioFuncion)+12*(YEAR(BR$16)-YEAR(InicioFuncion)))-$D62+IF($D62<>"",1,0),0,IF(BR$15>$B$9,0,IF((YEAR($B$8)-YEAR($B$7))*12+(MONTH($B$8)-MONTH($B$7))+$E$14<=BQ$14,$C62))))*HLOOKUP(YEAR(BR$16),$E$3:$O$5,3,0),0))) -> 0 | BS62: =+(IF($A62="","",IF(BS$15>12,IF($D62>MONTH(BS$16)-MONTH(InicioFuncion)+12*(YEAR(BS$16)-YEAR(InicioFuncion))+1,0,IF($E62<=(MONTH(BS$16)-MONTH(InicioFuncion)+12*(YEAR(BS$16)-YEAR(InicioFuncion)))-$D62+IF($D62<>"",1,0),0,IF(BS$15>$B$9,0,IF((YEAR($B$8)-YEAR($B$7))*12+(MONTH($B$8)-MONTH($B$7))+$E$14<=BR$14,$C62))))*HLOOKUP(YEAR(BS$16),$E$3:$O$5,3,0),0))) -> 0 | BT62: =+(IF($A62="","",IF(BT$15>12,IF($D62>MONTH(BT$16)-MONTH(InicioFuncion)+12*(YEAR(BT$16)-YEAR(InicioFuncion))+1,0,IF($E62<=(MONTH(BT$16)-MONTH(InicioFuncion)+12*(YEAR(BT$16)-YEAR(InicioFuncion)))-$D62+IF($D62<>"",1,0),0,IF(BT$15>$B$9,0,IF((YEAR($B$8)-YEAR($B$7))*12+(MONTH($B$8)-MONTH($B$7))+$E$14<=BS$14,$C62))))*HLOOKUP(YEAR(BT$16),$E$3:$O$5,3,0),0))) -> 0 | BU62: =+(IF($A62="","",IF(BU$15>12,IF($D62>MONTH(BU$16)-MONTH(InicioFuncion)+12*(YEAR(BU$16)-YEAR(InicioFuncion))+1,0,IF($E62<=(MONTH(BU$16)-MONTH(InicioFuncion)+12*(YEAR(BU$16)-YEAR(InicioFuncion)))-$D62+IF($D62<>"",1,0),0,IF(BU$15>$B$9,0,IF((YEAR($B$8)-YEAR($B$7))*12+(MONTH($B$8)-MONTH($B$7))+$E$14<=BT$14,$C62))))*HLOOKUP(YEAR(BU$16),$E$3:$O$5,3,0),0))) -> 0 | BV62: =+(IF($A62="","",IF(BV$15>12,IF($D62>MONTH(BV$16)-MONTH(InicioFuncion)+12*(YEAR(BV$16)-YEAR(InicioFuncion))+1,0,IF($E62<=(MONTH(BV$16)-MONTH(InicioFuncion)+12*(YEAR(BV$16)-YEAR(InicioFuncion)))-$D62+IF($D62<>"",1,0),0,IF(BV$15>$B$9,0,IF((YEAR($B$8)-YEAR($B$7))*12+(MONTH($B$8)-MONTH($B$7))+$E$14<=BU$14,$C62))))*HLOOKUP(YEAR(BV$16),$E$3:$O$5,3,0),0))) -> 0 | BW62: =+(IF($A62="","",IF(BW$15>12,IF($D62>MONTH(BW$16)-MONTH(InicioFuncion)+12*(YEAR(BW$16)-YEAR(InicioFuncion))+1,0,IF($E62<=(MONTH(BW$16)-MONTH(InicioFuncion)+12*(YEAR(BW$16)-YEAR(InicioFuncion)))-$D62+IF($D62<>"",1,0),0,IF(BW$15>$B$9,0,IF((YEAR($B$8)-YEAR($B$7))*12+(MONTH($B$8)-MONTH($B$7))+$E$14<=BV$14,$C62))))*HLOOKUP(YEAR(BW$16),$E$3:$O$5,3,0),0))) -> 0 | BX62: =+(IF($A62="","",IF(BX$15>12,IF($D62>MONTH(BX$16)-MONTH(InicioFuncion)+12*(YEAR(BX$16)-YEAR(InicioFuncion))+1,0,IF($E62<=(MONTH(BX$16)-MONTH(InicioFuncion)+12*(YEAR(BX$16)-YEAR(InicioFuncion)))-$D62+IF($D62<>"",1,0),0,IF(BX$15>$B$9,0,IF((YEAR($B$8)-YEAR($B$7))*12+(MONTH($B$8)-MONTH($B$7))+$E$14<=BW$14,$C62))))*HLOOKUP(YEAR(BX$16),$E$3:$O$5,3,0),0))) -> 0 | BY62: =+(IF($A62="","",IF(BY$15>12,IF($D62>MONTH(BY$16)-MONTH(InicioFuncion)+12*(YEAR(BY$16)-YEAR(InicioFuncion))+1,0,IF($E62<=(MONTH(BY$16)-MONTH(InicioFuncion)+12*(YEAR(BY$16)-YEAR(InicioFuncion)))-$D62+IF($D62<>"",1,0),0,IF(BY$15>$B$9,0,IF((YEAR($B$8)-YEAR($B$7))*12+(MONTH($B$8)-MONTH($B$7))+$E$14<=BX$14,$C62))))*HLOOKUP(YEAR(BY$16),$E$3:$O$5,3,0),0))) -> 0 | BZ62: =+(IF($A62="","",IF(BZ$15>12,IF($D62>MONTH(BZ$16)-MONTH(InicioFuncion)+12*(YEAR(BZ$16)-YEAR(InicioFuncion))+1,0,IF($E62<=(MONTH(BZ$16)-MONTH(InicioFuncion)+12*(YEAR(BZ$16)-YEAR(InicioFuncion)))-$D62+IF($D62<>"",1,0),0,IF(BZ$15>$B$9,0,IF((YEAR($B$8)-YEAR($B$7))*12+(MONTH($B$8)-MONTH($B$7))+$E$14<=BY$14,$C62))))*HLOOKUP(YEAR(BZ$16),$E$3:$O$5,3,0),0))) -> 0 | CA62: =+(IF($A62="","",IF(CA$15>12,IF($D62>MONTH(CA$16)-MONTH(InicioFuncion)+12*(YEAR(CA$16)-YEAR(InicioFuncion))+1,0,IF($E62<=(MONTH(CA$16)-MONTH(InicioFuncion)+12*(YEAR(CA$16)-YEAR(InicioFuncion)))-$D62+IF($D62<>"",1,0),0,IF(CA$15>$B$9,0,IF((YEAR($B$8)-YEAR($B$7))*12+(MONTH($B$8)-MONTH($B$7))+$E$14<=BZ$14,$C62))))*HLOOKUP(YEAR(CA$16),$E$3:$O$5,3,0),0))) -> 0 | CB62: =+(IF($A62="","",IF(CB$15>12,IF($D62>MONTH(CB$16)-MONTH(InicioFuncion)+12*(YEAR(CB$16)-YEAR(InicioFuncion))+1,0,IF($E62<=(MONTH(CB$16)-MONTH(InicioFuncion)+12*(YEAR(CB$16)-YEAR(InicioFuncion)))-$D62+IF($D62<>"",1,0),0,IF(CB$15>$B$9,0,IF((YEAR($B$8)-YEAR($B$7))*12+(MONTH($B$8)-MONTH($B$7))+$E$14<=CA$14,$C62))))*HLOOKUP(YEAR(CB$16),$E$3:$O$5,3,0),0))) -> 0 | CC62: =+(IF($A62="","",IF(CC$15>12,IF($D62>MONTH(CC$16)-MONTH(InicioFuncion)+12*(YEAR(CC$16)-YEAR(InicioFuncion))+1,0,IF($E62<=(MONTH(CC$16)-MONTH(InicioFuncion)+12*(YEAR(CC$16)-YEAR(InicioFuncion)))-$D62+IF($D62<>"",1,0),0,IF(CC$15>$B$9,0,IF((YEAR($B$8)-YEAR($B$7))*12+(MONTH($B$8)-MONTH($B$7))+$E$14<=CB$14,$C62))))*HLOOKUP(YEAR(CC$16),$E$3:$O$5,3,0),0))) -> 0 | CD62: =+(IF($A62="","",IF(CD$15>12,IF($D62>MONTH(CD$16)-MONTH(InicioFuncion)+12*(YEAR(CD$16)-YEAR(InicioFuncion))+1,0,IF($E62<=(MONTH(CD$16)-MONTH(InicioFuncion)+12*(YEAR(CD$16)-YEAR(InicioFuncion)))-$D62+IF($D62<>"",1,0),0,IF(CD$15>$B$9,0,IF((YEAR($B$8)-YEAR($B$7))*12+(MONTH($B$8)-MONTH($B$7))+$E$14<=CC$14,$C62))))*HLOOKUP(YEAR(CD$16),$E$3:$O$5,3,0),0))) -> 0 | CE62: =+(IF($A62="","",IF(CE$15>12,IF($D62>MONTH(CE$16)-MONTH(InicioFuncion)+12*(YEAR(CE$16)-YEAR(InicioFuncion))+1,0,IF($E62<=(MONTH(CE$16)-MONTH(InicioFuncion)+12*(YEAR(CE$16)-YEAR(InicioFuncion)))-$D62+IF($D62<>"",1,0),0,IF(CE$15>$B$9,0,IF((YEAR($B$8)-YEAR($B$7))*12+(MONTH($B$8)-MONTH($B$7))+$E$14<=CD$14,$C62))))*HLOOKUP(YEAR(CE$16),$E$3:$O$5,3,0),0))) -> 0 | CF62: =+(IF($A62="","",IF(CF$15>12,IF($D62>MONTH(CF$16)-MONTH(InicioFuncion)+12*(YEAR(CF$16)-YEAR(InicioFuncion))+1,0,IF($E62<=(MONTH(CF$16)-MONTH(InicioFuncion)+12*(YEAR(CF$16)-YEAR(InicioFuncion)))-$D62+IF($D62<>"",1,0),0,IF(CF$15>$B$9,0,IF((YEAR($B$8)-YEAR($B$7))*12+(MONTH($B$8)-MONTH($B$7))+$E$14<=CE$14,$C62))))*HLOOKUP(YEAR(CF$16),$E$3:$O$5,3,0),0))) -> 0 | CG62: =+(IF($A62="","",IF(CG$15>12,IF($D62>MONTH(CG$16)-MONTH(InicioFuncion)+12*(YEAR(CG$16)-YEAR(InicioFuncion))+1,0,IF($E62<=(MONTH(CG$16)-MONTH(InicioFuncion)+12*(YEAR(CG$16)-YEAR(InicioFuncion)))-$D62+IF($D62<>"",1,0),0,IF(CG$15>$B$9,0,IF((YEAR($B$8)-YEAR($B$7))*12+(MONTH($B$8)-MONTH($B$7))+$E$14<=CF$14,$C62))))*HLOOKUP(YEAR(CG$16),$E$3:$O$5,3,0),0))) -> 0 | CH62: =+(IF($A62="","",IF(CH$15>12,IF($D62>MONTH(CH$16)-MONTH(InicioFuncion)+12*(YEAR(CH$16)-YEAR(InicioFuncion))+1,0,IF($E62<=(MONTH(CH$16)-MONTH(InicioFuncion)+12*(YEAR(CH$16)-YEAR(InicioFuncion)))-$D62+IF($D62<>"",1,0),0,IF(CH$15>$B$9,0,IF((YEAR($B$8)-YEAR($B$7))*12+(MONTH($B$8)-MONTH($B$7))+$E$14<=CG$14,$C62))))*HLOOKUP(YEAR(CH$16),$E$3:$O$5,3,0),0))) -> 0 | CI62: =+(IF($A62="","",IF(CI$15>12,IF($D62>MONTH(CI$16)-MONTH(InicioFuncion)+12*(YEAR(CI$16)-YEAR(InicioFuncion))+1,0,IF($E62<=(MONTH(CI$16)-MONTH(InicioFuncion)+12*(YEAR(CI$16)-YEAR(InicioFuncion)))-$D62+IF($D62<>"",1,0),0,IF(CI$15>$B$9,0,IF((YEAR($B$8)-YEAR($B$7))*12+(MONTH($B$8)-MONTH($B$7))+$E$14<=CH$14,$C62))))*HLOOKUP(YEAR(CI$16),$E$3:$O$5,3,0),0))) -> 0 | CJ62: =+(IF($A62="","",IF(CJ$15>12,IF($D62>MONTH(CJ$16)-MONTH(InicioFuncion)+12*(YEAR(CJ$16)-YEAR(InicioFuncion))+1,0,IF($E62<=(MONTH(CJ$16)-MONTH(InicioFuncion)+12*(YEAR(CJ$16)-YEAR(InicioFuncion)))-$D62+IF($D62<>"",1,0),0,IF(CJ$15>$B$9,0,IF((YEAR($B$8)-YEAR($B$7))*12+(MONTH($B$8)-MONTH($B$7))+$E$14<=CI$14,$C62))))*HLOOKUP(YEAR(CJ$16),$E$3:$O$5,3,0),0))) -> 0 | CK62: =+(IF($A62="","",IF(CK$15>12,IF($D62>MONTH(CK$16)-MONTH(InicioFuncion)+12*(YEAR(CK$16)-YEAR(InicioFuncion))+1,0,IF($E62<=(MONTH(CK$16)-MONTH(InicioFuncion)+12*(YEAR(CK$16)-YEAR(InicioFuncion)))-$D62+IF($D62<>"",1,0),0,IF(CK$15>$B$9,0,IF((YEAR($B$8)-YEAR($B$7))*12+(MONTH($B$8)-MONTH($B$7))+$E$14<=CJ$14,$C62))))*HLOOKUP(YEAR(CK$16),$E$3:$O$5,3,0),0))) -> 0 | CL62: =+(IF($A62="","",IF(CL$15>12,IF($D62>MONTH(CL$16)-MONTH(InicioFuncion)+12*(YEAR(CL$16)-YEAR(InicioFuncion))+1,0,IF($E62<=(MONTH(CL$16)-MONTH(InicioFuncion)+12*(YEAR(CL$16)-YEAR(InicioFuncion)))-$D62+IF($D62<>"",1,0),0,IF(CL$15>$B$9,0,IF((YEAR($B$8)-YEAR($B$7))*12+(MONTH($B$8)-MONTH($B$7))+$E$14<=CK$14,$C62))))*HLOOKUP(YEAR(CL$16),$E$3:$O$5,3,0),0))) -> 0 | CM62: =+(IF($A62="","",IF(CM$15>12,IF($D62>MONTH(CM$16)-MONTH(InicioFuncion)+12*(YEAR(CM$16)-YEAR(InicioFuncion))+1,0,IF($E62<=(MONTH(CM$16)-MONTH(InicioFuncion)+12*(YEAR(CM$16)-YEAR(InicioFuncion)))-$D62+IF($D62<>"",1,0),0,IF(CM$15>$B$9,0,IF((YEAR($B$8)-YEAR($B$7))*12+(MONTH($B$8)-MONTH($B$7))+$E$14<=CL$14,$C62))))*HLOOKUP(YEAR(CM$16),$E$3:$O$5,3,0),0))) -> 0 | CN62: =+(IF($A62="","",IF(CN$15>12,IF($D62>MONTH(CN$16)-MONTH(InicioFuncion)+12*(YEAR(CN$16)-YEAR(InicioFuncion))+1,0,IF($E62<=(MONTH(CN$16)-MONTH(InicioFuncion)+12*(YEAR(CN$16)-YEAR(InicioFuncion)))-$D62+IF($D62<>"",1,0),0,IF(CN$15>$B$9,0,IF((YEAR($B$8)-YEAR($B$7))*12+(MONTH($B$8)-MONTH($B$7))+$E$14<=CM$14,$C62))))*HLOOKUP(YEAR(CN$16),$E$3:$O$5,3,0),0))) -> 0 | CO62: =+(IF($A62="","",IF(CO$15>12,IF($D62>MONTH(CO$16)-MONTH(InicioFuncion)+12*(YEAR(CO$16)-YEAR(InicioFuncion))+1,0,IF($E62<=(MONTH(CO$16)-MONTH(InicioFuncion)+12*(YEAR(CO$16)-YEAR(InicioFuncion)))-$D62+IF($D62<>"",1,0),0,IF(CO$15>$B$9,0,IF((YEAR($B$8)-YEAR($B$7))*12+(MONTH($B$8)-MONTH($B$7))+$E$14<=CN$14,$C62))))*HLOOKUP(YEAR(CO$16),$E$3:$O$5,3,0),0))) -> 0 | CP62: =+(IF($A62="","",IF(CP$15>12,IF($D62>MONTH(CP$16)-MONTH(InicioFuncion)+12*(YEAR(CP$16)-YEAR(InicioFuncion))+1,0,IF($E62<=(MONTH(CP$16)-MONTH(InicioFuncion)+12*(YEAR(CP$16)-YEAR(InicioFuncion)))-$D62+IF($D62<>"",1,0),0,IF(CP$15>$B$9,0,IF((YEAR($B$8)-YEAR($B$7))*12+(MONTH($B$8)-MONTH($B$7))+$E$14<=CO$14,$C62))))*HLOOKUP(YEAR(CP$16),$E$3:$O$5,3,0),0))) -> 0 | CQ62: =+(IF($A62="","",IF(CQ$15>12,IF($D62>MONTH(CQ$16)-MONTH(InicioFuncion)+12*(YEAR(CQ$16)-YEAR(InicioFuncion))+1,0,IF($E62<=(MONTH(CQ$16)-MONTH(InicioFuncion)+12*(YEAR(CQ$16)-YEAR(InicioFuncion)))-$D62+IF($D62<>"",1,0),0,IF(CQ$15>$B$9,0,IF((YEAR($B$8)-YEAR($B$7))*12+(MONTH($B$8)-MONTH($B$7))+$E$14<=CP$14,$C62))))*HLOOKUP(YEAR(CQ$16),$E$3:$O$5,3,0),0))) -> 0 | CR62: =+(IF($A62="","",IF(CR$15>12,IF($D62>MONTH(CR$16)-MONTH(InicioFuncion)+12*(YEAR(CR$16)-YEAR(InicioFuncion))+1,0,IF($E62<=(MONTH(CR$16)-MONTH(InicioFuncion)+12*(YEAR(CR$16)-YEAR(InicioFuncion)))-$D62+IF($D62<>"",1,0),0,IF(CR$15>$B$9,0,IF((YEAR($B$8)-YEAR($B$7))*12+(MONTH($B$8)-MONTH($B$7))+$E$14<=CQ$14,$C62))))*HLOOKUP(YEAR(CR$16),$E$3:$O$5,3,0),0))) -> 0 | CS62: =+(IF($A62="","",IF(CS$15>12,IF($D62>MONTH(CS$16)-MONTH(InicioFuncion)+12*(YEAR(CS$16)-YEAR(InicioFuncion))+1,0,IF($E62<=(MONTH(CS$16)-MONTH(InicioFuncion)+12*(YEAR(CS$16)-YEAR(InicioFuncion)))-$D62+IF($D62<>"",1,0),0,IF(CS$15>$B$9,0,IF((YEAR($B$8)-YEAR($B$7))*12+(MONTH($B$8)-MONTH($B$7))+$E$14<=CR$14,$C62))))*HLOOKUP(YEAR(CS$16),$E$3:$O$5,3,0),0))) -> 0 | CT62: =+(IF($A62="","",IF(CT$15>12,IF($D62>MONTH(CT$16)-MONTH(InicioFuncion)+12*(YEAR(CT$16)-YEAR(InicioFuncion))+1,0,IF($E62<=(MONTH(CT$16)-MONTH(InicioFuncion)+12*(YEAR(CT$16)-YEAR(InicioFuncion)))-$D62+IF($D62<>"",1,0),0,IF(CT$15>$B$9,0,IF((YEAR($B$8)-YEAR($B$7))*12+(MONTH($B$8)-MONTH($B$7))+$E$14<=CS$14,$C62))))*HLOOKUP(YEAR(CT$16),$E$3:$O$5,3,0),0))) -> 0 | CU62: =+(IF($A62="","",IF(CU$15>12,IF($D62>MONTH(CU$16)-MONTH(InicioFuncion)+12*(YEAR(CU$16)-YEAR(InicioFuncion))+1,0,IF($E62<=(MONTH(CU$16)-MONTH(InicioFuncion)+12*(YEAR(CU$16)-YEAR(InicioFuncion)))-$D62+IF($D62<>"",1,0),0,IF(CU$15>$B$9,0,IF((YEAR($B$8)-YEAR($B$7))*12+(MONTH($B$8)-MONTH($B$7))+$E$14<=CT$14,$C62))))*HLOOKUP(YEAR(CU$16),$E$3:$O$5,3,0),0))) -> 0 | CV62: =+(IF($A62="","",IF(CV$15>12,IF($D62>MONTH(CV$16)-MONTH(InicioFuncion)+12*(YEAR(CV$16)-YEAR(InicioFuncion))+1,0,IF($E62<=(MONTH(CV$16)-MONTH(InicioFuncion)+12*(YEAR(CV$16)-YEAR(InicioFuncion)))-$D62+IF($D62<>"",1,0),0,IF(CV$15>$B$9,0,IF((YEAR($B$8)-YEAR($B$7))*12+(MONTH($B$8)-MONTH($B$7))+$E$14<=CU$14,$C62))))*HLOOKUP(YEAR(CV$16),$E$3:$O$5,3,0),0))) -> 0 | CW62: =+(IF($A62="","",IF(CW$15>12,IF($D62>MONTH(CW$16)-MONTH(InicioFuncion)+12*(YEAR(CW$16)-YEAR(InicioFuncion))+1,0,IF($E62<=(MONTH(CW$16)-MONTH(InicioFuncion)+12*(YEAR(CW$16)-YEAR(InicioFuncion)))-$D62+IF($D62<>"",1,0),0,IF(CW$15>$B$9,0,IF((YEAR($B$8)-YEAR($B$7))*12+(MONTH($B$8)-MONTH($B$7))+$E$14<=CV$14,$C62))))*HLOOKUP(YEAR(CW$16),$E$3:$O$5,3,0),0))) -> 0 | CX62: =+(IF($A62="","",IF(CX$15>12,IF($D62>MONTH(CX$16)-MONTH(InicioFuncion)+12*(YEAR(CX$16)-YEAR(InicioFuncion))+1,0,IF($E62<=(MONTH(CX$16)-MONTH(InicioFuncion)+12*(YEAR(CX$16)-YEAR(InicioFuncion)))-$D62+IF($D62<>"",1,0),0,IF(CX$15>$B$9,0,IF((YEAR($B$8)-YEAR($B$7))*12+(MONTH($B$8)-MONTH($B$7))+$E$14<=CW$14,$C62))))*HLOOKUP(YEAR(CX$16),$E$3:$O$5,3,0),0))) -> 0 | CY62: =+(IF($A62="","",IF(CY$15>12,IF($D62>MONTH(CY$16)-MONTH(InicioFuncion)+12*(YEAR(CY$16)-YEAR(InicioFuncion))+1,0,IF($E62<=(MONTH(CY$16)-MONTH(InicioFuncion)+12*(YEAR(CY$16)-YEAR(InicioFuncion)))-$D62+IF($D62<>"",1,0),0,IF(CY$15>$B$9,0,IF((YEAR($B$8)-YEAR($B$7))*12+(MONTH($B$8)-MONTH($B$7))+$E$14<=CX$14,$C62))))*HLOOKUP(YEAR(CY$16),$E$3:$O$5,3,0),0))) -> 0 | CZ62: =+(IF($A62="","",IF(CZ$15>12,IF($D62>MONTH(CZ$16)-MONTH(InicioFuncion)+12*(YEAR(CZ$16)-YEAR(InicioFuncion))+1,0,IF($E62<=(MONTH(CZ$16)-MONTH(InicioFuncion)+12*(YEAR(CZ$16)-YEAR(InicioFuncion)))-$D62+IF($D62<>"",1,0),0,IF(CZ$15>$B$9,0,IF((YEAR($B$8)-YEAR($B$7))*12+(MONTH($B$8)-MONTH($B$7))+$E$14<=CY$14,$C62))))*HLOOKUP(YEAR(CZ$16),$E$3:$O$5,3,0),0))) -> 0 | DA62: =+(IF($A62="","",IF(DA$15>12,IF($D62>MONTH(DA$16)-MONTH(InicioFuncion)+12*(YEAR(DA$16)-YEAR(InicioFuncion))+1,0,IF($E62<=(MONTH(DA$16)-MONTH(InicioFuncion)+12*(YEAR(DA$16)-YEAR(InicioFuncion)))-$D62+IF($D62<>"",1,0),0,IF(DA$15>$B$9,0,IF((YEAR($B$8)-YEAR($B$7))*12+(MONTH($B$8)-MONTH($B$7))+$E$14<=CZ$14,$C62))))*HLOOKUP(YEAR(DA$16),$E$3:$O$5,3,0),0))) -> 0 | DB62: =+(IF($A62="","",IF(DB$15>12,IF($D62>MONTH(DB$16)-MONTH(InicioFuncion)+12*(YEAR(DB$16)-YEAR(InicioFuncion))+1,0,IF($E62<=(MONTH(DB$16)-MONTH(InicioFuncion)+12*(YEAR(DB$16)-YEAR(InicioFuncion)))-$D62+IF($D62<>"",1,0),0,IF(DB$15>$B$9,0,IF((YEAR($B$8)-YEAR($B$7))*12+(MONTH($B$8)-MONTH($B$7))+$E$14<=DA$14,$C62))))*HLOOKUP(YEAR(DB$16),$E$3:$O$5,3,0),0))) -> 0 | DC62: =+(IF($A62="","",IF(DC$15>12,IF($D62>MONTH(DC$16)-MONTH(InicioFuncion)+12*(YEAR(DC$16)-YEAR(InicioFuncion))+1,0,IF($E62<=(MONTH(DC$16)-MONTH(InicioFuncion)+12*(YEAR(DC$16)-YEAR(InicioFuncion)))-$D62+IF($D62<>"",1,0),0,IF(DC$15>$B$9,0,IF((YEAR($B$8)-YEAR($B$7))*12+(MONTH($B$8)-MONTH($B$7))+$E$14<=DB$14,$C62))))*HLOOKUP(YEAR(DC$16),$E$3:$O$5,3,0),0))) -> 0 | DD62: =+(IF($A62="","",IF(DD$15>12,IF($D62>MONTH(DD$16)-MONTH(InicioFuncion)+12*(YEAR(DD$16)-YEAR(InicioFuncion))+1,0,IF($E62<=(MONTH(DD$16)-MONTH(InicioFuncion)+12*(YEAR(DD$16)-YEAR(InicioFuncion)))-$D62+IF($D62<>"",1,0),0,IF(DD$15>$B$9,0,IF((YEAR($B$8)-YEAR($B$7))*12+(MONTH($B$8)-MONTH($B$7))+$E$14<=DC$14,$C62))))*HLOOKUP(YEAR(DD$16),$E$3:$O$5,3,0),0))) -> 0 | DE62: =+(IF($A62="","",IF(DE$15>12,IF($D62>MONTH(DE$16)-MONTH(InicioFuncion)+12*(YEAR(DE$16)-YEAR(InicioFuncion))+1,0,IF($E62<=(MONTH(DE$16)-MONTH(InicioFuncion)+12*(YEAR(DE$16)-YEAR(InicioFuncion)))-$D62+IF($D62<>"",1,0),0,IF(DE$15>$B$9,0,IF((YEAR($B$8)-YEAR($B$7))*12+(MONTH($B$8)-MONTH($B$7))+$E$14<=DD$14,$C62))))*HLOOKUP(YEAR(DE$16),$E$3:$O$5,3,0),0))) -> 0 | DF62: =+(IF($A62="","",IF(DF$15>12,IF($D62>MONTH(DF$16)-MONTH(InicioFuncion)+12*(YEAR(DF$16)-YEAR(InicioFuncion))+1,0,IF($E62<=(MONTH(DF$16)-MONTH(InicioFuncion)+12*(YEAR(DF$16)-YEAR(InicioFuncion)))-$D62+IF($D62<>"",1,0),0,IF(DF$15>$B$9,0,IF((YEAR($B$8)-YEAR($B$7))*12+(MONTH($B$8)-MONTH($B$7))+$E$14<=DE$14,$C62))))*HLOOKUP(YEAR(DF$16),$E$3:$O$5,3,0),0))) -> 0 | DG62: =+(IF($A62="","",IF(DG$15>12,IF($D62>MONTH(DG$16)-MONTH(InicioFuncion)+12*(YEAR(DG$16)-YEAR(InicioFuncion))+1,0,IF($E62<=(MONTH(DG$16)-MONTH(InicioFuncion)+12*(YEAR(DG$16)-YEAR(InicioFuncion)))-$D62+IF($D62<>"",1,0),0,IF(DG$15>$B$9,0,IF((YEAR($B$8)-YEAR($B$7))*12+(MONTH($B$8)-MONTH($B$7))+$E$14<=DF$14,$C62))))*HLOOKUP(YEAR(DG$16),$E$3:$O$5,3,0),0))) -> 0 | DH62: =+(IF($A62="","",IF(DH$15>12,IF($D62>MONTH(DH$16)-MONTH(InicioFuncion)+12*(YEAR(DH$16)-YEAR(InicioFuncion))+1,0,IF($E62<=(MONTH(DH$16)-MONTH(InicioFuncion)+12*(YEAR(DH$16)-YEAR(InicioFuncion)))-$D62+IF($D62<>"",1,0),0,IF(DH$15>$B$9,0,IF((YEAR($B$8)-YEAR($B$7))*12+(MONTH($B$8)-MONTH($B$7))+$E$14<=DG$14,$C62))))*HLOOKUP(YEAR(DH$16),$E$3:$O$5,3,0),0))) -> 0 | DI62: =+(IF($A62="","",IF(DI$15>12,IF($D62>MONTH(DI$16)-MONTH(InicioFuncion)+12*(YEAR(DI$16)-YEAR(InicioFuncion))+1,0,IF($E62<=(MONTH(DI$16)-MONTH(InicioFuncion)+12*(YEAR(DI$16)-YEAR(InicioFuncion)))-$D62+IF($D62<>"",1,0),0,IF(DI$15>$B$9,0,IF((YEAR($B$8)-YEAR($B$7))*12+(MONTH($B$8)-MONTH($B$7))+$E$14<=DH$14,$C62))))*HLOOKUP(YEAR(DI$16),$E$3:$O$5,3,0),0))) -> 0 | DJ62: =+(IF($A62="","",IF(DJ$15>12,IF($D62>MONTH(DJ$16)-MONTH(InicioFuncion)+12*(YEAR(DJ$16)-YEAR(InicioFuncion))+1,0,IF($E62<=(MONTH(DJ$16)-MONTH(InicioFuncion)+12*(YEAR(DJ$16)-YEAR(InicioFuncion)))-$D62+IF($D62<>"",1,0),0,IF(DJ$15>$B$9,0,IF((YEAR($B$8)-YEAR($B$7))*12+(MONTH($B$8)-MONTH($B$7))+$E$14<=DI$14,$C62))))*HLOOKUP(YEAR(DJ$16),$E$3:$O$5,3,0),0))) -> 0 | DK62: =+(IF($A62="","",IF(DK$15>12,IF($D62>MONTH(DK$16)-MONTH(InicioFuncion)+12*(YEAR(DK$16)-YEAR(InicioFuncion))+1,0,IF($E62<=(MONTH(DK$16)-MONTH(InicioFuncion)+12*(YEAR(DK$16)-YEAR(InicioFuncion)))-$D62+IF($D62<>"",1,0),0,IF(DK$15>$B$9,0,IF((YEAR($B$8)-YEAR($B$7))*12+(MONTH($B$8)-MONTH($B$7))+$E$14<=DJ$14,$C62))))*HLOOKUP(YEAR(DK$16),$E$3:$O$5,3,0),0))) -> 0 | DL62: =+(IF($A62="","",IF(DL$15>12,IF($D62>MONTH(DL$16)-MONTH(InicioFuncion)+12*(YEAR(DL$16)-YEAR(InicioFuncion))+1,0,IF($E62<=(MONTH(DL$16)-MONTH(InicioFuncion)+12*(YEAR(DL$16)-YEAR(InicioFuncion)))-$D62+IF($D62<>"",1,0),0,IF(DL$15>$B$9,0,IF((YEAR($B$8)-YEAR($B$7))*12+(MONTH($B$8)-MONTH($B$7))+$E$14<=DK$14,$C62))))*HLOOKUP(YEAR(DL$16),$E$3:$O$5,3,0),0))) -> 0 | DM62: =+(IF($A62="","",IF(DM$15>12,IF($D62>MONTH(DM$16)-MONTH(InicioFuncion)+12*(YEAR(DM$16)-YEAR(InicioFuncion))+1,0,IF($E62<=(MONTH(DM$16)-MONTH(InicioFuncion)+12*(YEAR(DM$16)-YEAR(InicioFuncion)))-$D62+IF($D62<>"",1,0),0,IF(DM$15>$B$9,0,IF((YEAR($B$8)-YEAR($B$7))*12+(MONTH($B$8)-MONTH($B$7))+$E$14<=DL$14,$C62))))*HLOOKUP(YEAR(DM$16),$E$3:$O$5,3,0),0))) -> 0 | DN62: =+(IF($A62="","",IF(DN$15>12,IF($D62>MONTH(DN$16)-MONTH(InicioFuncion)+12*(YEAR(DN$16)-YEAR(InicioFuncion))+1,0,IF($E62<=(MONTH(DN$16)-MONTH(InicioFuncion)+12*(YEAR(DN$16)-YEAR(InicioFuncion)))-$D62+IF($D62<>"",1,0),0,IF(DN$15>$B$9,0,IF((YEAR($B$8)-YEAR($B$7))*12+(MONTH($B$8)-MONTH($B$7))+$E$14<=DM$14,$C62))))*HLOOKUP(YEAR(DN$16),$E$3:$O$5,3,0),0))) -> 0 | DO62: =+(IF($A62="","",IF(DO$15>12,IF($D62>MONTH(DO$16)-MONTH(InicioFuncion)+12*(YEAR(DO$16)-YEAR(InicioFuncion))+1,0,IF($E62<=(MONTH(DO$16)-MONTH(InicioFuncion)+12*(YEAR(DO$16)-YEAR(InicioFuncion)))-$D62+IF($D62<>"",1,0),0,IF(DO$15>$B$9,0,IF((YEAR($B$8)-YEAR($B$7))*12+(MONTH($B$8)-MONTH($B$7))+$E$14<=DN$14,$C62))))*HLOOKUP(YEAR(DO$16),$E$3:$O$5,3,0),0))) -> 0 | DP62: =+(IF($A62="","",IF(DP$15>12,IF($D62>MONTH(DP$16)-MONTH(InicioFuncion)+12*(YEAR(DP$16)-YEAR(InicioFuncion))+1,0,IF($E62<=(MONTH(DP$16)-MONTH(InicioFuncion)+12*(YEAR(DP$16)-YEAR(InicioFuncion)))-$D62+IF($D62<>"",1,0),0,IF(DP$15>$B$9,0,IF((YEAR($B$8)-YEAR($B$7))*12+(MONTH($B$8)-MONTH($B$7))+$E$14<=DO$14,$C62))))*HLOOKUP(YEAR(DP$16),$E$3:$O$5,3,0),0))) -> 0 | DQ62: =+(IF($A62="","",IF(DQ$15>12,IF($D62>MONTH(DQ$16)-MONTH(InicioFuncion)+12*(YEAR(DQ$16)-YEAR(InicioFuncion))+1,0,IF($E62<=(MONTH(DQ$16)-MONTH(InicioFuncion)+12*(YEAR(DQ$16)-YEAR(InicioFuncion)))-$D62+IF($D62<>"",1,0),0,IF(DQ$15>$B$9,0,IF((YEAR($B$8)-YEAR($B$7))*12+(MONTH($B$8)-MONTH($B$7))+$E$14<=DP$14,$C62))))*HLOOKUP(YEAR(DQ$16),$E$3:$O$5,3,0),0))) -> 0 | DR62: =+(IF($A62="","",IF(DR$15>12,IF($D62>MONTH(DR$16)-MONTH(InicioFuncion)+12*(YEAR(DR$16)-YEAR(InicioFuncion))+1,0,IF($E62<=(MONTH(DR$16)-MONTH(InicioFuncion)+12*(YEAR(DR$16)-YEAR(InicioFuncion)))-$D62+IF($D62<>"",1,0),0,IF(DR$15>$B$9,0,IF((YEAR($B$8)-YEAR($B$7))*12+(MONTH($B$8)-MONTH($B$7))+$E$14<=DQ$14,$C62))))*HLOOKUP(YEAR(DR$16),$E$3:$O$5,3,0),0))) -> 0 | DS62: =+(IF($A62="","",IF(DS$15>12,IF($D62>MONTH(DS$16)-MONTH(InicioFuncion)+12*(YEAR(DS$16)-YEAR(InicioFuncion))+1,0,IF($E62<=(MONTH(DS$16)-MONTH(InicioFuncion)+12*(YEAR(DS$16)-YEAR(InicioFuncion)))-$D62+IF($D62<>"",1,0),0,IF(DS$15>$B$9,0,IF((YEAR($B$8)-YEAR($B$7))*12+(MONTH($B$8)-MONTH($B$7))+$E$14<=DR$14,$C62))))*HLOOKUP(YEAR(DS$16),$E$3:$O$5,3,0),0))) -> 0 | DT62: =+(IF($A62="","",IF(DT$15>12,IF($D62>MONTH(DT$16)-MONTH(InicioFuncion)+12*(YEAR(DT$16)-YEAR(InicioFuncion))+1,0,IF($E62<=(MONTH(DT$16)-MONTH(InicioFuncion)+12*(YEAR(DT$16)-YEAR(InicioFuncion)))-$D62+IF($D62<>"",1,0),0,IF(DT$15>$B$9,0,IF((YEAR($B$8)-YEAR($B$7))*12+(MONTH($B$8)-MONTH($B$7))+$E$14<=DS$14,$C62))))*HLOOKUP(YEAR(DT$16),$E$3:$O$5,3,0),0))) -> 0 | DU62: =+(IF($A62="","",IF(DU$15>12,IF($D62>MONTH(DU$16)-MONTH(InicioFuncion)+12*(YEAR(DU$16)-YEAR(InicioFuncion))+1,0,IF($E62<=(MONTH(DU$16)-MONTH(InicioFuncion)+12*(YEAR(DU$16)-YEAR(InicioFuncion)))-$D62+IF($D62<>"",1,0),0,IF(DU$15>$B$9,0,IF((YEAR($B$8)-YEAR($B$7))*12+(MONTH($B$8)-MONTH($B$7))+$E$14<=DT$14,$C62))))*HLOOKUP(YEAR(DU$16),$E$3:$O$5,3,0),0))) -> 0 | DV62: =+(IF($A62="","",IF(DV$15>12,IF($D62>MONTH(DV$16)-MONTH(InicioFuncion)+12*(YEAR(DV$16)-YEAR(InicioFuncion))+1,0,IF($E62<=(MONTH(DV$16)-MONTH(InicioFuncion)+12*(YEAR(DV$16)-YEAR(InicioFuncion)))-$D62+IF($D62<>"",1,0),0,IF(DV$15>$B$9,0,IF((YEAR($B$8)-YEAR($B$7))*12+(MONTH($B$8)-MONTH($B$7))+$E$14<=DU$14,$C62))))*HLOOKUP(YEAR(DV$16),$E$3:$O$5,3,0),0))) -> 0
A63: Mto Podas | C63: =+IF(Tipologia_Campo="FTTH",0,SUMIFS(ValoresMercado,Conceptos,A63,Relacion,DistanciaEnergiaSTD,Tipo,TipoEspecifico,KW_Energia,KW_EnergiaValor)/12) -> 282224.565 | E63: 56 | F63: 0 | G63: 0 | H63: 0 | I63: 0 | J63: 0 | K63: 0 | L63: 0 | M63: 0 | N63: 0 | O63: 0 | P63: 0 | Q63: 0 | R63: 0 | S63: 290691.3019 | T63: 290691.3019 | U63: 290691.3019 | V63: 290691.3019 | W63: 290691.3019 | X63: 290691.3019 | Y63: 290691.3019 | Z63: 299412.041 | AA63: 299412.041 | AB63: 299412.041 | AC63: 299412.041 | AD63: 299412.041 | AE63: 299412.041 | AF63: 299412.041 | AG63: 299412.041 | AH63: 299412.041 | AI63: 299412.041 | AJ63: 299412.041 | AK63: 299412.041 | AL63: 308394.4022 | AM63: 308394.4022 | AN63: 308394.4022 | AO63: 308394.4022 | AP63: 308394.4022 | AQ63: 308394.4022 | AR63: 308394.4022 | AS63: 308394.4022 | AT63: 308394.4022 | AU63: 308394.4022 | AV63: 308394.4022 | AW63: 308394.4022 | AX63: 317646.2343 | AY63: 317646.2343 | AZ63: 317646.2343 | BA63: 317646.2343 | BB63: 317646.2343 | BC63: 317646.2343 | BD63: 317646.2343 | BE63: 317646.2343 | BF63: 317646.2343 | BG63: 317646.2343 | BH63: 317646.2343 | BI63: 317646.2343 | BJ63: 327175.6213 | BK63: 0 | BL63: 0 | BM63: 0 | BN63: 0 | BO63: 0 | BP63: 0 | BQ63: 0 | BR63: 0 | BS63: 0 | BT63: 0 | BU63: 0 | BV63: 0 | BW63: 0 | BX63: 0 | BY63: 0 | BZ63: 0 | CA63: 0 | CB63: 0 | CC63: 0 | CD63: 0 | CE63: 0 | CF63: 0 | CG63: 0 | CH63: 0 | CI63: 0 | CJ63: 0 | CK63: 0 | CL63: 0 | CM63: 0 | CN63: 0 | CO63: 0 | CP63: 0 | CQ63: 0 | CR63: 0 | CS63: 0 | CT63: 0 | CU63: 0 | CV63: 0 | CW63: 0 | CX63: 0 | CY63: 0 | CZ63: 0 | DA63: 0 | DB63: 0 | DC63: 0 | DD63: 0 | DE63: 0 | DF63: 0 | DG63: 0 | DH63: 0 | DI63: 0 | DJ63: 0 | DK63: 0 | DL63: 0 | DM63: 0 | DN63: 0 | DO63: 0 | DP63: 0 | DQ63: 0 | DR63: 0 | DS63: 0 | DT63: 0 | DU63: 0 | DV63: 0
A64: Mto Red De Mt (Postes, Lar) | C64: =+IF(Tipologia_Campo="FTTH",0,SUMIFS(ValoresMercado,Conceptos,A64,Relacion,DistanciaEnergiaSTD,Tipo,TipoEspecifico,KW_Energia,KW_EnergiaValor)/12) -> 41666.66667 | E64: 56 | F64: 0 | G64: 0 | H64: 0 | I64: 0 | J64: 0 | K64: 0 | L64: 0 | M64: 0 | N64: 0 | O64: 0 | P64: 0 | Q64: 0 | R64: 0 | S64: 42916.66667 | T64: 42916.66667 | U64: 42916.66667 | V64: 42916.66667 | W64: 42916.66667 | X64: 42916.66667 | Y64: 42916.66667 | Z64: 44204.16667 | AA64: 44204.16667 | AB64: 44204.16667 | AC64: 44204.16667 | AD64: 44204.16667 | AE64: 44204.16667 | AF64: 44204.16667 | AG64: 44204.16667 | AH64: 44204.16667 | AI64: 44204.16667 | AJ64: 44204.16667 | AK64: 44204.16667 | AL64: 45530.29167 | AM64: 45530.29167 | AN64: 45530.29167 | AO64: 45530.29167 | AP64: 45530.29167 | AQ64: 45530.29167 | AR64: 45530.29167 | AS64: 45530.29167 | AT64: 45530.29167 | AU64: 45530.29167 | AV64: 45530.29167 | AW64: 45530.29167 | AX64: 46896.20042 | AY64: 46896.20042 | AZ64: 46896.20042 | BA64: 46896.20042 | BB64: 46896.20042 | BC64: 46896.20042 | BD64: 46896.20042 | BE64: 46896.20042 | BF64: 46896.20042 | BG64: 46896.20042 | BH64: 46896.20042 | BI64: 46896.20042 | BJ64: 48303.08643 | BK64: 0 | BL64: 0 | BM64: 0 | BN64: 0 | BO64: 0 | BP64: 0 | BQ64: 0 | BR64: 0 | BS64: 0 | BT64: 0 | BU64: 0 | BV64: 0 | BW64: 0 | BX64: 0 | BY64: 0 | BZ64: 0 | CA64: 0 | CB64: 0 | CC64: 0 | CD64: 0 | CE64: 0 | CF64: 0 | CG64: 0 | CH64: 0 | CI64: 0 | CJ64: 0 | CK64: 0 | CL64: 0 | CM64: 0 | CN64: 0 | CO64: 0 | CP64: 0 | CQ64: 0 | CR64: 0 | CS64: 0 | CT64: 0 | CU64: 0 | CV64: 0 | CW64: 0 | CX64: 0 | CY64: 0 | CZ64: 0 | DA64: 0 | DB64: 0 | DC64: 0 | DD64: 0 | DE64: 0 | DF64: 0 | DG64: 0 | DH64: 0 | DI64: 0 | DJ64: 0 | DK64: 0 | DL64: 0 | DM64: 0 | DN64: 0 | DO64: 0 | DP64: 0 | DQ64: 0 | DR64: 0 | DS64: 0 | DT64: 0 | DU64: 0 | DV64: 0
A65: Mto Transformador | C65: =+IF(Tipologia_Campo="FTTH",0,SUMIFS(ValoresMercado,Conceptos,A65,Relacion,DistanciaEnergiaSTD,Tipo,TipoEspecifico,KW_Energia,KW_EnergiaValor)/12) -> 327575.1267 | E65: 56 | F65: 0 | G65: 0 | H65: 0 | I65: 0 | J65: 0 | K65: 0 | L65: 0 | M65: 0 | N65: 0 | O65: 0 | P65: 0 | Q65: 0 | R65: 0 | S65: 337402.3805 | T65: 337402.3805 | U65: 337402.3805 | V65: 337402.3805 | W65: 337402.3805 | X65: 337402.3805 | Y65: 337402.3805 | Z65: 347524.4519 | AA65: 347524.4519 | AB65: 347524.4519 | AC65: 347524.4519 | AD65: 347524.4519 | AE65: 347524.4519 | AF65: 347524.4519 | AG65: 347524.4519 | AH65: 347524.4519 | AI65: 347524.4519 | AJ65: 347524.4519 | AK65: 347524.4519 | AL65: 357950.1854 | AM65: 357950.1854 | AN65: 357950.1854 | AO65: 357950.1854 | AP65: 357950.1854 | AQ65: 357950.1854 | AR65: 357950.1854 | AS65: 357950.1854 | AT65: 357950.1854 | AU65: 357950.1854 | AV65: 357950.1854 | AW65: 357950.1854 | AX65: 368688.691 | AY65: 368688.691 | AZ65: 368688.691 | BA65: 368688.691 | BB65: 368688.691 | BC65: 368688.691 | BD65: 368688.691 | BE65: 368688.691 | BF65: 368688.691 | BG65: 368688.691 | BH65: 368688.691 | BI65: 368688.691 | BJ65: 379749.3517 | BK65: 0 | BL65: 0 | BM65: 0 | BN65: 0 | BO65: 0 | BP65: 0 | BQ65: 0 | BR65: 0 | BS65: 0 | BT65: 0 | BU65: 0 | BV65: 0 | BW65: 0 | BX65: 0 | BY65: 0 | BZ65: 0 | CA65: 0 | CB65: 0 | CC65: 0 | CD65: 0 | CE65: 0 | CF65: 0 | CG65: 0 | CH65: 0 | CI65: 0 | CJ65: 0 | CK65: 0 | CL65: 0 | CM65: 0 | CN65: 0 | CO65: 0 | CP65: 0 | CQ65: 0 | CR65: 0 | CS65: 0 | CT65: 0 | CU65: 0 | CV65: 0 | CW65: 0 | CX65: 0 | CY65: 0 | CZ65: 0 | DA65: 0 | DB65: 0 | DC65: 0 | DD65: 0 | DE65: 0 | DF65: 0 | DG65: 0 | DH65: 0 | DI65: 0 | DJ65: 0 | DK65: 0 | DL65: 0 | DM65: 0 | DN65: 0 | DO65: 0 | DP65: 0 | DQ65: 0 | DR65: 0 | DS65: 0 | DT65: 0 | DU65: 0 | DV65: 0
A66: =+"Terreno "&Tipo_Terreno&" - "&"Tramite conexión y permisos" -> Terreno Plano - Tramite conexión y permisos | B66: =+IF(Tipologia_Campo="FTTH",0,SUMIFS(ValoresMercado,Conceptos,A66,Relacion,DistanciaEnergiaSTD,Tipo,TipoEspecifico,Terreno_Energia,Tipo_Terreno,KW_Energia,KW_EnergiaValor)) -> 778384.1628 | E66: 56 | F66: =+IF($A66="","",IF($D66=F$15,$B66+IF(MONTH($B$8)-MONTH($B$7)+$E$14=E$14,$C66,0),0)) -> 778384.1628 | G66: 0 | H66: 0 | I66: 0 | J66: 0 | K66: 0 | L66: 0 | M66: 0 | N66: 0 | O66: 0 | P66: 0 | Q66: 0 | R66: 0 | S66: 0 | T66: 0 | U66: 0 | V66: 0 | W66: 0 | X66: 0 | Y66: 0 | Z66: 0 | AA66: 0 | AB66: 0 | AC66: 0 | AD66: 0 | AE66: 0 | AF66: 0 | AG66: 0 | AH66: 0 | AI66: 0 | AJ66: 0 | AK66: 0 | AL66: 0 | AM66: 0 | AN66: 0 | AO66: 0 | AP66: 0 | AQ66: 0 | AR66: 0 | AS66: 0 | AT66: 0 | AU66: 0 | AV66: 0 | AW66: 0 | AX66: 0 | AY66: 0 | AZ66: 0 | BA66: 0 | BB66: 0 | BC66: 0 | BD66: 0 | BE66: 0 | BF66: 0 | BG66: 0 | BH66: 0 | BI66: 0 | BJ66: 0 | BK66: 0 | BL66: 0 | BM66: 0 | BN66: 0 | BO66: 0 | BP66: 0 | BQ66: 0 | BR66: =+IF($A66="","",IF($D66=BR$15,$B66+IF(MONTH($B$8)-MONTH($B$7)+$E$14=BQ$14,$C66,0),0)) -> 0 | BS66: 0 | BT66: 0 | BU66: 0 | BV66: 0 | BW66: 0 | BX66: 0 | BY66: 0 | BZ66: 0 | CA66: 0 | CB66: 0 | CC66: 0 | CD66: 0 | CE66: 0 | CF66: 0 | CG66: 0 | CH66: 0 | CI66: 0 | CJ66: 0 | CK66: 0 | CL66: 0 | CM66: 0 | CN66: 0 | CO66: 0 | CP66: 0 | CQ66: 0 | CR66: 0 | CS66: 0 | CT66: 0 | CU66: 0 | CV66: 0 | CW66: 0 | CX66: 0 | CY66: 0 | CZ66: 0 | DA66: 0 | DB66: 0 | DC66: 0 | DD66: 0 | DE66: 0 | DF66: 0 | DG66: 0 | DH66: 0 | DI66: 0 | DJ66: 0 | DK66: 0 | DL66: 0 | DM66: 0 | DN66: 0 | DO66: 0 | DP66: 0 | DQ66: 0 | DR66: 0 | DS66: 0 | DT66: 0 | DU66: 0 | DV66: 0
A67: =+"Terreno "&Tipo_Terreno&" - "&"Asesoria y Certificacion RETIE" -> Terreno Plano - Asesoria y Certificacion RETIE | B67: 3086218.547 | E67: 56 | F67: =+IF($A67="","",IF($D67=F$15,$B67+IF(MONTH($B$8)-MONTH($B$7)+$E$14=E$14,$C67,0),0)) -> 3086218.547 | G67: 0 | H67: 0 | I67: 0 | J67: 0 | K67: 0 | L67: 0 | M67: 0 | N67: 0 | O67: 0 | P67: 0 | Q67: 0 | R67: 0 | S67: 0 | T67: 0 | U67: 0 | V67: 0 | W67: 0 | X67: 0 | Y67: 0 | Z67: 0 | AA67: 0 | AB67: 0 | AC67: 0 | AD67: 0 | AE67: 0 | AF67: 0 | AG67: 0 | AH67: 0 | AI67: 0 | AJ67: 0 | AK67: 0 | AL67: 0 | AM67: 0 | AN67: 0 | AO67: 0 | AP67: 0 | AQ67: 0 | AR67: 0 | AS67: 0 | AT67: 0 | AU67: 0 | AV67: 0 | AW67: 0 | AX67: 0 | AY67: 0 | AZ67: 0 | BA67: 0 | BB67: 0 | BC67: 0 | BD67: 0 | BE67: 0 | BF67: 0 | BG67: 0 | BH67: 0 | BI67: 0 | BJ67: 0 | BK67: 0 | BL67: 0 | BM67: 0 | BN67: 0 | BO67: 0 | BP67: 0 | BQ67: 0 | BR67: 0 | BS67: 0 | BT67: 0 | BU67: 0 | BV67: 0 | BW67: 0 | BX67: 0 | BY67: 0 | BZ67: 0 | CA67: 0 | CB67: 0 | CC67: 0 | CD67: 0 | CE67: 0 | CF67: 0 | CG67: 0 | CH67: 0 | CI67: 0 | CJ67: 0 | CK67: 0 | CL67: 0 | CM67: 0 | CN67: 0 | CO67: 0 | CP67: 0 | CQ67: 0 | CR67: 0 | CS67: 0 | CT67: 0 | CU67: 0 | CV67: 0 | CW67: 0 | CX67: 0 | CY67: 0 | CZ67: 0 | DA67: 0 | DB67: 0 | DC67: 0 | DD67: 0 | DE67: 0 | DF67: 0 | DG67: 0 | DH67: 0 | DI67: 0 | DJ67: 0 | DK67: 0 | DL67: 0 | DM67: 0 | DN67: 0 | DO67: 0 | DP67: 0 | DQ67: 0 | DR67: 0 | DS67: 0 | DT67: 0 | DU67: 0 | DV67: 0
A68: =+"Terreno "&Tipo_Terreno&" - "&"Transformador Kw" -> Terreno Plano - Transformador Kw | B68: 6691474.095 | E68: 56 | F68: 6691474.095 | G68: 0 | H68: 0 | I68: 0 | J68: 0 | K68: 0 | L68: 0 | M68: 0 | N68: 0 | O68: 0 | P68: 0 | Q68: 0 | R68: 0 | S68: 0 | T68: 0 | U68: 0 | V68: 0 | W68: 0 | X68: 0 | Y68: 0 | Z68: 0 | AA68: 0 | AB68: 0 | AC68: 0 | AD68: 0 | AE68: 0 | AF68: 0 | AG68: 0 | AH68: 0 | AI68: 0 | AJ68: 0 | AK68: 0 | AL68: 0 | AM68: 0 | AN68: 0 | AO68: 0 | AP68: 0 | AQ68: 0 | AR68: 0 | AS68: 0 | AT68: 0 | AU68: 0 | AV68: 0 | AW68: 0 | AX68: 0 | AY68: 0 | AZ68: 0 | BA68: 0 | BB68: 0 | BC68: 0 | BD68: 0 | BE68: 0 | BF68: 0 | BG68: 0 | BH68: 0 | BI68: 0 | BJ68: 0 | BK68: 0 | BL68: 0 | BM68: 0 | BN68: 0 | BO68: 0 | BP68: 0 | BQ68: 0 | BR68: 0 | BS68: 0 | BT68: 0 | BU68: 0 | BV68: 0 | BW68: 0 | BX68: 0 | BY68: 0 | BZ68: 0 | CA68: 0 | CB68: 0 | CC68: 0 | CD68: 0 | CE68: 0 | CF68: 0 | CG68: 0 | CH68: 0 | CI68: 0 | CJ68: 0 | CK68: 0 | CL68: 0 | CM68: 0 | CN68: 0 | CO68: 0 | CP68: 0 | CQ68: 0 | CR68: 0 | CS68: 0 | CT68: 0 | CU68: 0 | CV68: 0 | CW68: 0 | CX68: 0 | CY68: 0 | CZ68: 0 | DA68: 0 | DB68: 0 | DC68: 0 | DD68: 0 | DE68: 0 | DF68: 0 | DG68: 0 | DH68: 0 | DI68: 0 | DJ68: 0 | DK68: 0 | DL68: 0 | DM68: 0 | DN68: 0 | DO68: 0 | DP68: 0 | DQ68: 0 | DR68: 0 | DS68: 0 | DT68: 0 | DU68: 0 | DV68: 0
A69: =+"Terreno "&Tipo_Terreno&" - "&"Derechos de conexión" -> Terreno Plano - Derechos de conexión | B69: 460286.4442 | E69: 56 | F69: 460286.4442 | G69: 0 | H69: 0 | I69: 0 | J69: 0 | K69: 0 | L69: 0 | M69: 0 | N69: 0 | O69: 0 | P69: 0 | Q69: 0 | R69: 0 | S69: 0 | T69: 0 | U69: 0 | V69: 0 | W69: 0 | X69: 0 | Y69: 0 | Z69: 0 | AA69: 0 | AB69: 0 | AC69: 0 | AD69: 0 | AE69: 0 | AF69: 0 | AG69: 0 | AH69: 0 | AI69: 0 | AJ69: 0 | AK69: 0 | AL69: 0 | AM69: 0 | AN69: 0 | AO69: 0 | AP69: 0 | AQ69: 0 | AR69: 0 | AS69: 0 | AT69: 0 | AU69: 0 | AV69: 0 | AW69: 0 | AX69: 0 | AY69: 0 | AZ69: 0 | BA69: 0 | BB69: 0 | BC69: 0 | BD69: 0 | BE69: 0 | BF69: 0 | BG69: 0 | BH69: 0 | BI69: 0 | BJ69: 0 | BK69: 0 | BL69: 0 | BM69: 0 | BN69: 0 | BO69: 0 | BP69: 0 | BQ69: 0 | BR69: 0 | BS69: 0 | BT69: 0 | BU69: 0 | BV69: 0 | BW69: 0 | BX69: 0 | BY69: 0 | BZ69: 0 | CA69: 0 | CB69: 0 | CC69: 0 | CD69: 0 | CE69: 0 | CF69: 0 | CG69: 0 | CH69: 0 | CI69: 0 | CJ69: 0 | CK69: 0 | CL69: 0 | CM69: 0 | CN69: 0 | CO69: 0 | CP69: 0 | CQ69: 0 | CR69: 0 | CS69: 0 | CT69: 0 | CU69: 0 | CV69: 0 | CW69: 0 | CX69: 0 | CY69: 0 | CZ69: 0 | DA69: 0 | DB69: 0 | DC69: 0 | DD69: 0 | DE69: 0 | DF69: 0 | DG69: 0 | DH69: 0 | DI69: 0 | DJ69: 0 | DK69: 0 | DL69: 0 | DM69: 0 | DN69: 0 | DO69: 0 | DP69: 0 | DQ69: 0 | DR69: 0 | DS69: 0 | DT69: 0 | DU69: 0 | DV69: 0
A70: =+"Terreno "&Tipo_Terreno&" - "&"Maniobras en conexión" -> Terreno Plano - Maniobras en conexión | B70: 1653418.396 | E70: 56 | F70: 1653418.396 | G70: 0 | H70: 0 | I70: =+IF($A70="","",IF($D70=I$15,$B70+IF(MONTH($B$8)-MONTH($B$7)+$E$14=H$14,$C70,0),0)) -> 0 | J70: 0 | K70: 0 | L70: 0 | M70: 0 | N70: 0 | O70: 0 | P70: 0 | Q70: 0 | R70: 0 | S70: 0 | T70: 0 | U70: 0 | V70: 0 | W70: 0 | X70: 0 | Y70: 0 | Z70: 0 | AA70: 0 | AB70: 0 | AC70: 0 | AD70: 0 | AE70: 0 | AF70: 0 | AG70: 0 | AH70: 0 | AI70: 0 | AJ70: 0 | AK70: 0 | AL70: 0 | AM70: 0 | AN70: 0 | AO70: 0 | AP70: 0 | AQ70: 0 | AR70: 0 | AS70: 0 | AT70: 0 | AU70: 0 | AV70: 0 | AW70: 0 | AX70: 0 | AY70: 0 | AZ70: 0 | BA70: 0 | BB70: 0 | BC70: 0 | BD70: 0 | BE70: 0 | BF70: 0 | BG70: 0 | BH70: 0 | BI70: 0 | BJ70: 0 | BK70: 0 | BL70: 0 | BM70: 0 | BN70: 0 | BO70: 0 | BP70: 0 | BQ70: 0 | BR70: 0 | BS70: 0 | BT70: 0 | BU70: 0 | BV70: 0 | BW70: 0 | BX70: 0 | BY70: 0 | BZ70: 0 | CA70: 0 | CB70: 0 | CC70: 0 | CD70: 0 | CE70: 0 | CF70: 0 | CG70: 0 | CH70: 0 | CI70: 0 | CJ70: 0 | CK70: 0 | CL70: 0 | CM70: 0 | CN70: 0 | CO70: 0 | CP70: 0 | CQ70: 0 | CR70: 0 | CS70: 0 | CT70: =+IF($A70="","",IF($D70=CT$15,$B70+IF(MONTH($B$8)-MONTH($B$7)+$E$14=CS$14,$C70,0),0)) -> 0 | CU70: 0 | CV70: 0 | CW70: 0 | CX70: 0 | CY70: 0 | CZ70: 0 | DA70: 0 | DB70: 0 | DC70: 0 | DD70: 0 | DE70: 0 | DF70: 0 | DG70: 0 | DH70: 0 | DI70: 0 | DJ70: 0 | DK70: 0 | DL70: 0 | DM70: 0 | DN70: 0 | DO70: 0 | DP70: 0 | DQ70: 0 | DR70: 0 | DS70: 0 | DT70: 0 | DU70: 0 | DV70: 0
A71: =+"Terreno "&Tipo_Terreno&" - "&"Parrarayos, Malla" -> Terreno Plano - Parrarayos, Malla | B71: 5165519.73 | E71: 56 | F71: 5165519.73 | G71: 0 | H71: 0 | I71: 0 | J71: 0 | K71: 0 | L71: 0 | M71: 0 | N71: 0 | O71: 0 | P71: 0 | Q71: 0 | R71: 0 | S71: 0 | T71: 0 | U71: 0 | V71: 0 | W71: 0 | X71: 0 | Y71: 0 | Z71: 0 | AA71: 0 | AB71: 0 | AC71: 0 | AD71: 0 | AE71: 0 | AF71: 0 | AG71: 0 | AH71: 0 | AI71: 0 | AJ71: 0 | AK71: 0 | AL71: 0 | AM71: 0 | AN71: 0 | AO71: 0 | AP71: 0 | AQ71: 0 | AR71: 0 | AS71: 0 | AT71: 0 | AU71: 0 | AV71: 0 | AW71: 0 | AX71: 0 | AY71: 0 | AZ71: 0 | BA71: 0 | BB71: 0 | BC71: 0 | BD71: 0 | BE71: 0 | BF71: 0 | BG71: 0 | BH71: 0 | BI71: 0 | BJ71: 0 | BK71: 0 | BL71: 0 | BM71: 0 | BN71: 0 | BO71: 0 | BP71: 0 | BQ71: 0 | BR71: 0 | BS71: 0 | BT71: 0 | BU71: 0 | BV71: 0 | BW71: 0 | BX71: 0 | BY71: 0 | BZ71: 0 | CA71: 0 | CB71: 0 | CC71: 0 | CD71: 0 | CE71: 0 | CF71: 0 | CG71: 0 | CH71: 0 | CI71: 0 | CJ71: 0 | CK71: 0 | CL71: 0 | CM71: 0 | CN71: 0 | CO71: 0 | CP71: 0 | CQ71: 0 | CR71: 0 | CS71: 0 | CT71: 0 | CU71: 0 | CV71: 0 | CW71: 0 | CX71: 0 | CY71: 0 | CZ71: 0 | DA71: 0 | DB71: 0 | DC71: 0 | DD71: 0 | DE71: 0 | DF71: 0 | DG71: 0 | DH71: 0 | DI71: 0 | DJ71: 0 | DK71: 0 | DL71: 0 | DM71: 0 | DN71: 0 | DO71: 0 | DP71: 0 | DQ71: 0 | DR71: 0 | DS71: 0 | DT71: 0 | DU71: 0 | DV71: 0
A72: =+"Terreno "&Tipo_Terreno&" - "&"Paso Cruceta Lar" -> Terreno Plano - Paso Cruceta Lar | B72: 5626782.563 | E72: 56 | F72: =+IF($A72="","",IF($D72=F$15,$B72+IF(MONTH($B$8)-MONTH($B$7)+$E$14=E$14,$C72,0),0)) -> 5626782.563 | G72: 0 | H72: 0 | I72: 0 | J72: 0 | K72: 0 | L72: 0 | M72: 0 | N72: 0 | O72: 0 | P72: 0 | Q72: 0 | R72: 0 | S72: 0 | T72: 0 | U72: 0 | V72: 0 | W72: 0 | X72: 0 | Y72: 0 | Z72: 0 | AA72: 0 | AB72: 0 | AC72: 0 | AD72: 0 | AE72: 0 | AF72: 0 | AG72: 0 | AH72: 0 | AI72: 0 | AJ72: 0 | AK72: 0 | AL72: 0 | AM72: 0 | AN72: 0 | AO72: 0 | AP72: 0 | AQ72: 0 | AR72: 0 | AS72: 0 | AT72: 0 | AU72: 0 | AV72: 0 | AW72: 0 | AX72: 0 | AY72: 0 | AZ72: 0 | BA72: 0 | BB72: 0 | BC72: 0 | BD72: 0 | BE72: 0 | BF72: 0 | BG72: 0 | BH72: 0 | BI72: 0 | BJ72: 0 | BK72: 0 | BL72: 0 | BM72: 0 | BN72: 0 | BO72: 0 | BP72: 0 | BQ72: 0 | BR72: 0 | BS72: 0 | BT72: 0 | BU72: 0 | BV72: 0 | BW72: 0 | BX72: 0 | BY72: 0 | BZ72: 0 | CA72: 0 | CB72: 0 | CC72: 0 | CD72: 0 | CE72: 0 | CF72: 0 | CG72: 0 | CH72: 0 | CI72: 0 | CJ72: 0 | CK72: 0 | CL72: 0 | CM72: 0 | CN72: 0 | CO72: 0 | CP72: 0 | CQ72: 0 | CR72: 0 | CS72: 0 | CT72: 0 | CU72: 0 | CV72: 0 | CW72: 0 | CX72: 0 | CY72: 0 | CZ72: 0 | DA72: 0 | DB72: 0 | DC72: 0 | DD72: 0 | DE72: 0 | DF72: 0 | DG72: 0 | DH72: 0 | DI72: 0 | DJ72: 0 | DK72: 0 | DL72: 0 | DM72: 0 | DN72: 0 | DO72: 0 | DP72: 0 | DQ72: 0 | DR72: 0 | DS72: 0 | DT72: 0 | DU72: 0 | DV72: 0
A73: =+"Terreno "&Tipo_Terreno&" - "&"Servidumbres" -> Terreno Plano - Servidumbres | B73: 494190 | E73: 56 | F73: 494190 | G73: 0 | H73: 0 | I73: 0 | J73: 0 | K73: 0 | L73: 0 | M73: 0 | N73: 0 | O73: 0 | P73: 0 | Q73: 0 | R73: 0 | S73: 0 | T73: 0 | U73: 0 | V73: 0 | W73: 0 | X73: 0 | Y73: 0 | Z73: 0 | AA73: 0 | AB73: 0 | AC73: 0 | AD73: 0 | AE73: 0 | AF73: 0 | AG73: 0 | AH73: 0 | AI73: 0 | AJ73: 0 | AK73: 0 | AL73: 0 | AM73: 0 | AN73: 0 | AO73: 0 | AP73: 0 | AQ73: 0 | AR73: 0 | AS73: 0 | AT73: 0 | AU73: 0 | AV73: 0 | AW73: 0 | AX73: 0 | AY73: 0 | AZ73: 0 | BA73: 0 | BB73: 0 | BC73: 0 | BD73: 0 | BE73: 0 | BF73: 0 | BG73: 0 | BH73: 0 | BI73: 0 | BJ73: 0 | BK73: 0 | BL73: 0 | BM73: 0 | BN73: 0 | BO73: 0 | BP73: 0 | BQ73: 0 | BR73: 0 | BS73: 0 | BT73: 0 | BU73: 0 | BV73: 0 | BW73: 0 | BX73: 0 | BY73: 0 | BZ73: 0 | CA73: 0 | CB73: 0 | CC73: 0 | CD73: 0 | CE73: 0 | CF73: 0 | CG73: 0 | CH73: 0 | CI73: 0 | CJ73: 0 | CK73: 0 | CL73: 0 | CM73: 0 | CN73: 0 | CO73: 0 | CP73: 0 | CQ73: 0 | CR73: 0 | CS73: 0 | CT73: 0 | CU73: 0 | CV73: 0 | CW73: 0 | CX73: 0 | CY73: 0 | CZ73: 0 | DA73: 0 | DB73: 0 | DC73: 0 | DD73: 0 | DE73: 0 | DF73: 0 | DG73: 0 | DH73: 0 | DI73: 0 | DJ73: 0 | DK73: 0 | DL73: 0 | DM73: 0 | DN73: 0 | DO73: 0 | DP73: 0 | DQ73: 0 | DR73: 0 | DS73: 0 | DT73: 0 | DU73: 0 | DV73: 0
A74: =+"Terreno "&Tipo_Terreno&" - "&"Soportes (Postes)" -> Terreno Plano - Soportes (Postes) | B74: 7360575.831 | E74: 56 | F74: 7360575.831 | G74: 0 | H74: 0 | I74: 0 | J74: 0 | K74: 0 | L74: 0 | M74: 0 | N74: 0 | O74: 0 | P74: 0 | Q74: 0 | R74: 0 | S74: 0 | T74: 0 | U74: 0 | V74: 0 | W74: 0 | X74: 0 | Y74: 0 | Z74: 0 | AA74: 0 | AB74: 0 | AC74: 0 | AD74: 0 | AE74: 0 | AF74: 0 | AG74: 0 | AH74: 0 | AI74: 0 | AJ74: 0 | AK74: 0 | AL74: 0 | AM74: 0 | AN74: 0 | AO74: 0 | AP74: 0 | AQ74: 0 | AR74: 0 | AS74: 0 | AT74: 0 | AU74: 0 | AV74: 0 | AW74: 0 | AX74: 0 | AY74: 0 | AZ74: 0 | BA74: 0 | BB74: 0 | BC74: 0 | BD74: 0 | BE74: 0 | BF74: 0 | BG74: 0 | BH74: 0 | BI74: 0 | BJ74: 0 | BK74: 0 | BL74: 0 | BM74: 0 | BN74: 0 | BO74: 0 | BP74: =+IF($A74="","",IF($D74=BP$15,$B74+IF(MONTH($B$8)-MONTH($B$7)+$E$14=BO$14,$C74,0),0)) -> 0 | BQ74: 0 | BR74: 0 | BS74: 0 | BT74: 0 | BU74: 0 | BV74: 0 | BW74: 0 | BX74: 0 | BY74: 0 | BZ74: 0 | CA74: 0 | CB74: 0 | CC74: 0 | CD74: 0 | CE74: 0 | CF74: 0 | CG74: 0 | CH74: 0 | CI74: 0 | CJ74: 0 | CK74: 0 | CL74: 0 | CM74: 0 | CN74: 0 | CO74: 0 | CP74: 0 | CQ74: 0 | CR74: 0 | CS74: 0 | CT74: 0 | CU74: 0 | CV74: 0 | CW74: 0 | CX74: 0 | CY74: 0 | CZ74: 0 | DA74: 0 | DB74: 0 | DC74: 0 | DD74: 0 | DE74: 0 | DF74: 0 | DG74: 0 | DH74: 0 | DI74: 0 | DJ74: 0 | DK74: 0 | DL74: 0 | DM74: 0 | DN74: 0 | DO74: 0 | DP74: 0 | DQ74: 0 | DR74: 0 | DS74: 0 | DT74: 0 | DU74: 0 | DV74: 0
A75: Valor Consumo De Energia Kwh | C75: =+IF(Tipologia_Campo="FTTH",0,SUMIFS(ValoresMercado,Conceptos,A75,Relacion,DistanciaRedEnergia,Tipo,TipoEspecifico,KW_Energia,KW_EnergiaValor)) -> 2160000 | E75: 56 | F75: 0 | G75: =+(IF($A75="","",IF($D75>MONTH(G$16)-MONTH(InicioFuncion)+12*(YEAR(G$16)-YEAR(InicioFuncion))+1,0,IF($E75<=(MONTH(G$16)-MONTH(InicioFuncion)+12*(YEAR(G$16)-YEAR(InicioFuncion)))-$D75+IF($D75<>"",1,0),0,IF(G$15>$B$9,0,IF((YEAR($B$8)-YEAR($B$7))*12+(MONTH($B$8)-MONTH($B$7))+$E$14<=F$14,$C75))))*HLOOKUP(YEAR(G$16),$E$3:$O$5,3,0))) -> 0 | H75: 2160000 | I75: 2160000 | J75: 2160000 | K75: 2160000 | L75: 2160000 | M75: 2160000 | N75: 2224800 | O75: 2224800 | P75: 2224800 | Q75: 2224800 | R75: 2224800 | S75: 2224800 | T75: 2224800 | U75: 2224800 | V75: 2224800 | W75: 2224800 | X75: 2224800 | Y75: 2224800 | Z75: 2291544 | AA75: 2291544 | AB75: 2291544 | AC75: 2291544 | AD75: 2291544 | AE75: 2291544 | AF75: 2291544 | AG75: 2291544 | AH75: 2291544 | AI75: 2291544 | AJ75: 2291544 | AK75: 2291544 | AL75: 2360290.32 | AM75: =+(IF($A75="","",IF($D75>MONTH(AM$16)-MONTH(InicioFuncion)+12*(YEAR(AM$16)-YEAR(InicioFuncion))+1,0,IF($E75<=(MONTH(AM$16)-MONTH(InicioFuncion)+12*(YEAR(AM$16)-YEAR(InicioFuncion)))-$D75+IF($D75<>"",1,0),0,IF(AM$15>$B$9,0,IF((YEAR($B$8)-YEAR($B$7))*12+(MONTH($B$8)-MONTH($B$7))+$E$14<=AL$14,$C75))))*HLOOKUP(YEAR(AM$16),$E$3:$O$5,3,0))) -> 2360290.32 | AN75: 2360290.32 | AO75: 2360290.32 | AP75: 2360290.32 | AQ75: 2360290.32 | AR75: 2360290.32 | AS75: 2360290.32 | AT75: 2360290.32 | AU75: 2360290.32 | AV75: 2360290.32 | AW75: 2360290.32 | AX75: 2431099.03 | AY75: 2431099.03 | AZ75: 2431099.03 | BA75: 2431099.03 | BB75: 2431099.03 | BC75: 2431099.03 | BD75: 2431099.03 | BE75: 2431099.03 | BF75: 2431099.03 | BG75: 2431099.03 | BH75: 2431099.03 | BI75: 2431099.03 | BJ75: 2504032 | BK75: 0 | BL75: 0 | BM75: 0 | BN75: 0 | BO75: 0 | BP75: 0 | BQ75: 0 | BR75: 0 | BS75: =+(IF($A75="","",IF($D75>MONTH(BS$16)-MONTH(InicioFuncion)+12*(YEAR(BS$16)-YEAR(InicioFuncion))+1,0,IF($E75<=(MONTH(BS$16)-MONTH(InicioFuncion)+12*(YEAR(BS$16)-YEAR(InicioFuncion)))-$D75+IF($D75<>"",1,0),0,IF(BS$15>$B$9,0,IF((YEAR($B$8)-YEAR($B$7))*12+(MONTH($B$8)-MONTH($B$7))+$E$14<=BR$14,$C75))))*HLOOKUP(YEAR(BS$16),$E$3:$O$5,3,0))) -> 0 | BT75: 0 | BU75: 0 | BV75: 0 | BW75: 0 | BX75: 0 | BY75: 0 | BZ75: 0 | CA75: 0 | CB75: 0 | CC75: 0 | CD75: 0 | CE75: 0 | CF75: 0 | CG75: 0 | CH75: 0 | CI75: 0 | CJ75: 0 | CK75: 0 | CL75: 0 | CM75: 0 | CN75: 0 | CO75: 0 | CP75: 0 | CQ75: 0 | CR75: 0 | CS75: 0 | CT75: 0 | CU75: 0 | CV75: 0 | CW75: 0 | CX75: 0 | CY75: =+(IF($A75="","",IF($D75>MONTH(CY$16)-MONTH(InicioFuncion)+12*(YEAR(CY$16)-YEAR(InicioFuncion))+1,0,IF($E75<=(MONTH(CY$16)-MONTH(InicioFuncion)+12*(YEAR(CY$16)-YEAR(InicioFuncion)))-$D75+IF($D75<>"",1,0),0,IF(CY$15>$B$9,0,IF((YEAR($B$8)-YEAR($B$7))*12+(MONTH($B$8)-MONTH($B$7))+$E$14<=CX$14,$C75))))*HLOOKUP(YEAR(CY$16),$E$3:$O$5,3,0))) -> 0 | CZ75: 0 | DA75: 0 | DB75: 0 | DC75: 0 | DD75: 0 | DE75: 0 | DF75: 0 | DG75: 0 | DH75: 0 | DI75: 0 | DJ75: 0 | DK75: 0 | DL75: 0 | DM75: 0 | DN75: 0 | DO75: 0 | DP75: 0 | DQ75: 0 | DR75: 0 | DS75: 0 | DT75: 0 | DU75: 0 | DV75: 0
A76: TOTAL CAPEX MEDIA TENSIÓN | B76: =+SUM(B59:B74) -> 43935135.94
A77: FTTH | E77: =+MesesReconocimiento -> 56 | F77: =+IF($A77="","",IF($D77=F$15,$B77+IF(MONTH($B$8)-MONTH($B$7)+$E$14=E$14,$C77,0),0)) -> 0 | G77: 0 | H77: 0 | I77: 0 | J77: 0 | K77: 0 | L77: 0 | M77: 0 | N77: 0 | O77: 0 | P77: 0 | Q77: 0 | R77: 0 | S77: 0 | T77: 0 | U77: 0 | V77: 0 | W77: 0 | X77: 0 | Y77: 0 | Z77: 0 | AA77: 0 | AB77: 0 | AC77: 0 | AD77: 0 | AE77: 0 | AF77: 0 | AG77: 0 | AH77: 0 | AI77: 0 | AJ77: 0 | AK77: 0 | AL77: 0 | AM77: 0 | AN77: 0 | AO77: 0 | AP77: 0 | AQ77: 0 | AR77: 0 | AS77: 0 | AT77: 0 | AU77: 0 | AV77: 0 | AW77: 0 | AX77: 0 | AY77: 0 | AZ77: 0 | BA77: 0 | BB77: 0 | BC77: 0 | BD77: 0 | BE77: 0 | BF77: 0 | BG77: 0 | BH77: 0 | BI77: 0 | BJ77: 0 | BK77: 0 | BL77: 0 | BM77: 0 | BN77: 0 | BO77: 0 | BP77: 0 | BQ77: 0 | BR77: =+IF($A77="","",IF($D77=BR$15,$B77+IF(MONTH($B$8)-MONTH($B$7)+$E$14=BQ$14,$C77,0),0)) -> 0 | BS77: 0 | BT77: 0 | BU77: 0 | BV77: 0 | BW77: 0 | BX77: 0 | BY77: 0 | BZ77: 0 | CA77: 0 | CB77: 0 | CC77: 0 | CD77: 0 | CE77: 0 | CF77: 0 | CG77: 0 | CH77: 0 | CI77: 0 | CJ77: 0 | CK77: 0 | CL77: 0 | CM77: 0 | CN77: 0 | CO77: 0 | CP77: 0 | CQ77: 0 | CR77: 0 | CS77: 0 | CT77: 0 | CU77: 0 | CV77: 0 | CW77: 0 | CX77: 0 | CY77: 0 | CZ77: 0 | DA77: 0 | DB77: 0 | DC77: 0 | DD77: 0 | DE77: 0 | DF77: 0 | DG77: 0 | DH77: 0 | DI77: 0 | DJ77: 0 | DK77: 0 | DL77: 0 | DM77: 0 | DN77: 0 | DO77: 0 | DP77: 0 | DQ77: 0 | DR77: 0 | DS77: 0 | DT77: 0 | DU77: 0 | DV77: 0
A78: Splitter óptico | B78: =+IF(Tipologia_Campo="FTTH",Detalle!P968,0) -> 0 | E78: 56 | F78: =+IF($A78="","",IF($D78=F$15,$B78+IF(MONTH($B$8)-MONTH($B$7)+$E$14=E$14,$C78,0),0)) -> 0 | G78: 0 | H78: 0 | I78: 0 | J78: 0 | K78: 0 | L78: 0 | M78: 0 | N78: 0 | O78: 0 | P78: 0 | Q78: 0 | R78: 0 | S78: 0 | T78: 0 | U78: 0 | V78: 0 | W78: 0 | X78: 0 | Y78: 0 | Z78: 0 | AA78: 0 | AB78: 0 | AC78: 0 | AD78: 0 | AE78: 0 | AF78: 0 | AG78: 0 | AH78: 0 | AI78: 0 | AJ78: 0 | AK78: 0 | AL78: 0 | AM78: 0 | AN78: 0 | AO78: 0 | AP78: 0 | AQ78: 0 | AR78: 0 | AS78: 0 | AT78: 0 | AU78: 0 | AV78: 0 | AW78: 0 | AX78: 0 | AY78: 0 | AZ78: 0 | BA78: 0 | BB78: 0 | BC78: 0 | BD78: 0 | BE78: 0 | BF78: 0 | BG78: 0 | BH78: 0 | BI78: 0 | BJ78: 0 | BK78: 0 | BL78: 0 | BM78: 0 | BN78: 0 | BO78: 0 | BP78: 0 | BQ78: 0 | BR78: 0 | BS78: 0 | BT78: 0 | BU78: 0 | BV78: 0 | BW78: 0 | BX78: 0 | BY78: 0 | BZ78: 0 | CA78: 0 | CB78: 0 | CC78: 0 | CD78: 0 | CE78: 0 | CF78: 0 | CG78: 0 | CH78: 0 | CI78: 0 | CJ78: 0 | CK78: 0 | CL78: 0 | CM78: 0 | CN78: 0 | CO78: 0 | CP78: 0 | CQ78: 0 | CR78: 0 | CS78: 0 | CT78: 0 | CU78: 0 | CV78: 0 | CW78: 0 | CX78: 0 | CY78: 0 | CZ78: 0 | DA78: 0 | DB78: 0 | DC78: 0 | DD78: 0 | DE78: 0 | DF78: 0 | DG78: 0 | DH78: 0 | DI78: 0 | DJ78: 0 | DK78: 0 | DL78: 0 | DM78: 0 | DN78: 0 | DO78: 0 | DP78: 0 | DQ78: 0 | DR78: 0 | DS78: 0 | DT78: 0 | DU78: 0 | DV78: 0
A79: OLT | B79: =++IF(Tipologia_Campo="FTTH",Detalle!P969,0) -> 0 | E79: 56 | F79: 0 | G79: 0 | H79: 0 | I79: 0 | J79: 0 | K79: 0 | L79: 0 | M79: 0 | N79: 0 | O79: 0 | P79: 0 | Q79: 0 | R79: 0 | S79: 0 | T79: 0 | U79: 0 | V79: 0 | W79: 0 | X79: 0 | Y79: 0 | Z79: 0 | AA79: 0 | AB79: 0 | AC79: 0 | AD79: 0 | AE79: 0 | AF79: 0 | AG79: 0 | AH79: 0 | AI79: 0 | AJ79: 0 | AK79: 0 | AL79: 0 | AM79: 0 | AN79: 0 | AO79: 0 | AP79: 0 | AQ79: 0 | AR79: 0 | AS79: 0 | AT79: 0 | AU79: 0 | AV79: 0 | AW79: 0 | AX79: 0 | AY79: 0 | AZ79: 0 | BA79: 0 | BB79: 0 | BC79: 0 | BD79: 0 | BE79: 0 | BF79: 0 | BG79: 0 | BH79: 0 | BI79: 0 | BJ79: 0 | BK79: 0 | BL79: 0 | BM79: 0 | BN79: 0 | BO79: 0 | BP79: 0 | BQ79: 0 | BR79: 0 | BS79: 0 | BT79: 0 | BU79: 0 | BV79: 0 | BW79: 0 | BX79: 0 | BY79: 0 | BZ79: 0 | CA79: 0 | CB79: 0 | CC79: 0 | CD79: 0 | CE79: 0 | CF79: 0 | CG79: 0 | CH79: 0 | CI79: 0 | CJ79: 0 | CK79: 0 | CL79: 0 | CM79: 0 | CN79: 0 | CO79: 0 | CP79: 0 | CQ79: 0 | CR79: 0 | CS79: 0 | CT79: 0 | CU79: 0 | CV79: 0 | CW79: 0 | CX79: 0 | CY79: 0 | CZ79: 0 | DA79: 0 | DB79: 0 | DC79: 0 | DD79: 0 | DE79: 0 | DF79: 0 | DG79: 0 | DH79: 0 | DI79: 0 | DJ79: 0 | DK79: 0 | DL79: 0 | DM79: 0 | DN79: 0 | DO79: 0 | DP79: 0 | DQ79: 0 | DR79: 0 | DS79: 0 | DT79: 0 | DU79: 0 | DV79: 0
A80: Firewall & Caché Server | B80: =++IF(Tipologia_Campo="FTTH",Detalle!P970,0) -> 0 | E80: 56 | F80: 0 | G80: 0 | H80: 0 | I80: 0 | J80: 0 | K80: 0 | L80: 0 | M80: 0 | N80: 0 | O80: 0 | P80: 0 | Q80: 0 | R80: 0 | S80: 0 | T80: 0 | U80: 0 | V80: 0 | W80: 0 | X80: 0 | Y80: 0 | Z80: 0 | AA80: 0 | AB80: 0 | AC80: 0 | AD80: 0 | AE80: 0 | AF80: 0 | AG80: 0 | AH80: 0 | AI80: 0 | AJ80: 0 | AK80: 0 | AL80: 0 | AM80: 0 | AN80: 0 | AO80: 0 | AP80: 0 | AQ80: 0 | AR80: 0 | AS80: 0 | AT80: 0 | AU80: 0 | AV80: 0 | AW80: 0 | AX80: 0 | AY80: 0 | AZ80: 0 | BA80: 0 | BB80: 0 | BC80: 0 | BD80: 0 | BE80: 0 | BF80: 0 | BG80: 0 | BH80: 0 | BI80: 0 | BJ80: 0 | BK80: 0 | BL80: 0 | BM80: 0 | BN80: 0 | BO80: 0 | BP80: 0 | BQ80: 0 | BR80: 0 | BS80: 0 | BT80: 0 | BU80: 0 | BV80: 0 | BW80: 0 | BX80: 0 | BY80: 0 | BZ80: 0 | CA80: 0 | CB80: 0 | CC80: 0 | CD80: 0 | CE80: 0 | CF80: 0 | CG80: 0 | CH80: 0 | CI80: 0 | CJ80: 0 | CK80: 0 | CL80: 0 | CM80: 0 | CN80: 0 | CO80: 0 | CP80: 0 | CQ80: 0 | CR80: 0 | CS80: 0 | CT80: 0 | CU80: 0 | CV80: 0 | CW80: 0 | CX80: 0 | CY80: 0 | CZ80: 0 | DA80: 0 | DB80: 0 | DC80: 0 | DD80: 0 | DE80: 0 | DF80: 0 | DG80: 0 | DH80: 0 | DI80: 0 | DJ80: 0 | DK80: 0 | DL80: 0 | DM80: 0 | DN80: 0 | DO80: 0 | DP80: 0 | DQ80: 0 | DR80: 0 | DS80: 0 | DT80: 0 | DU80: 0 | DV80: 0
A81: Poste Servidumbre / 5 Años | B81: =++IF(Tipologia_Campo="FTTH",Detalle!P971,0) -> 0 | E81: 56 | F81: 0 | G81: 0 | H81: 0 | I81: =+IF($A81="","",IF($D81=I$15,$B81+IF(MONTH($B$8)-MONTH($B$7)+$E$14=H$14,$C81,0),0)) -> 0 | J81: 0 | K81: 0 | L81: 0 | M81: 0 | N81: 0 | O81: 0 | P81: 0 | Q81: 0 | R81: 0 | S81: 0 | T81: 0 | U81: 0 | V81: 0 | W81: 0 | X81: 0 | Y81: 0 | Z81: 0 | AA81: 0 | AB81: 0 | AC81: 0 | AD81: 0 | AE81: 0 | AF81: 0 | AG81: 0 | AH81: 0 | AI81: 0 | AJ81: 0 | AK81: 0 | AL81: 0 | AM81: 0 | AN81: 0 | AO81: 0 | AP81: 0 | AQ81: 0 | AR81: 0 | AS81: 0 | AT81: 0 | AU81: 0 | AV81: 0 | AW81: 0 | AX81: 0 | AY81: 0 | AZ81: 0 | BA81: 0 | BB81: 0 | BC81: 0 | BD81: 0 | BE81: 0 | BF81: 0 | BG81: 0 | BH81: 0 | BI81: 0 | BJ81: 0 | BK81: 0 | BL81: 0 | BM81: 0 | BN81: 0 | BO81: 0 | BP81: 0 | BQ81: 0 | BR81: 0 | BS81: 0 | BT81: 0 | BU81: 0 | BV81: 0 | BW81: 0 | BX81: 0 | BY81: 0 | BZ81: 0 | CA81: 0 | CB81: 0 | CC81: 0 | CD81: 0 | CE81: 0 | CF81: 0 | CG81: 0 | CH81: 0 | CI81: 0 | CJ81: 0 | CK81: 0 | CL81: 0 | CM81: 0 | CN81: 0 | CO81: 0 | CP81: 0 | CQ81: 0 | CR81: 0 | CS81: 0 | CT81: =+IF($A81="","",IF($D81=CT$15,$B81+IF(MONTH($B$8)-MONTH($B$7)+$E$14=CS$14,$C81,0),0)) -> 0 | CU81: 0 | CV81: 0 | CW81: 0 | CX81: 0 | CY81: 0 | CZ81: 0 | DA81: 0 | DB81: 0 | DC81: 0 | DD81: 0 | DE81: 0 | DF81: 0 | DG81: 0 | DH81: 0 | DI81: 0 | DJ81: 0 | DK81: 0 | DL81: 0 | DM81: 0 | DN81: 0 | DO81: 0 | DP81: 0 | DQ81: 0 | DR81: 0 | DS81: 0 | DT81: 0 | DU81: 0 | DV81: 0
A82: Cable óptico (48 hilos) Troncal/Km (Instalado) | B82: =++IF(Tipologia_Campo="FTTH",Detalle!P972,0) -> 0 | E82: 56 | F82: 0 | G82: 0 | H82: 0 | I82: 0 | J82: 0 | K82: 0 | L82: 0 | M82: 0 | N82: 0 | O82: 0 | P82: 0 | Q82: 0 | R82: 0 | S82: 0 | T82: 0 | U82: 0 | V82: 0 | W82: 0 | X82: 0 | Y82: 0 | Z82: 0 | AA82: 0 | AB82: 0 | AC82: 0 | AD82: 0 | AE82: 0 | AF82: 0 | AG82: 0 | AH82: 0 | AI82: 0 | AJ82: 0 | AK82: 0 | AL82: 0 | AM82: 0 | AN82: 0 | AO82: 0 | AP82: 0 | AQ82: 0 | AR82: 0 | AS82: 0 | AT82: 0 | AU82: 0 | AV82: 0 | AW82: 0 | AX82: 0 | AY82: 0 | AZ82: 0 | BA82: 0 | BB82: 0 | BC82: 0 | BD82: 0 | BE82: 0 | BF82: 0 | BG82: 0 | BH82: 0 | BI82: 0 | BJ82: 0 | BK82: 0 | BL82: 0 | BM82: 0 | BN82: 0 | BO82: 0 | BP82: 0 | BQ82: 0 | BR82: 0 | BS82: 0 | BT82: 0 | BU82: 0 | BV82: 0 | BW82: 0 | BX82: 0 | BY82: 0 | BZ82: 0 | CA82: 0 | CB82: 0 | CC82: 0 | CD82: 0 | CE82: 0 | CF82: 0 | CG82: 0 | CH82: 0 | CI82: 0 | CJ82: 0 | CK82: 0 | CL82: 0 | CM82: 0 | CN82: 0 | CO82: 0 | CP82: 0 | CQ82: 0 | CR82: 0 | CS82: 0 | CT82: 0 | CU82: 0 | CV82: 0 | CW82: 0 | CX82: 0 | CY82: 0 | CZ82: 0 | DA82: 0 | DB82: 0 | DC82: 0 | DD82: 0 | DE82: 0 | DF82: 0 | DG82: 0 | DH82: 0 | DI82: 0 | DJ82: 0 | DK82: 0 | DL82: 0 | DM82: 0 | DN82: 0 | DO82: 0 | DP82: 0 | DQ82: 0 | DR82: 0 | DS82: 0 | DT82: 0 | DU82: 0 | DV82: 0
A83: Cable óptico Acometida /Mt | B83: =++IF(Tipologia_Campo="FTTH",Detalle!P973,0) -> 0 | E83: 56 | F83: =+IF($A83="","",IF($D83=F$15,$B83+IF(MONTH($B$8)-MONTH($B$7)+$E$14=E$14,$C83,0),0)) -> 0 | G83: 0 | H83: 0 | I83: 0 | J83: 0 | K83: 0 | L83: 0 | M83: 0 | N83: 0 | O83: 0 | P83: 0 | Q83: 0 | R83: 0 | S83: 0 | T83: 0 | U83: 0 | V83: 0 | W83: 0 | X83: 0 | Y83: 0 | Z83: 0 | AA83: 0 | AB83: 0 | AC83: 0 | AD83: 0 | AE83: 0 | AF83: 0 | AG83: 0 | AH83: 0 | AI83: 0 | AJ83: 0 | AK83: 0 | AL83: 0 | AM83: 0 | AN83: 0 | AO83: 0 | AP83: 0 | AQ83: 0 | AR83: 0 | AS83: 0 | AT83: 0 | AU83: 0 | AV83: 0 | AW83: 0 | AX83: 0 | AY83: 0 | AZ83: 0 | BA83: 0 | BB83: 0 | BC83: 0 | BD83: 0 | BE83: 0 | BF83: 0 | BG83: 0 | BH83: 0 | BI83: 0 | BJ83: 0 | BK83: 0 | BL83: 0 | BM83: 0 | BN83: 0 | BO83: 0 | BP83: 0 | BQ83: 0 | BR83: 0 | BS83: 0 | BT83: 0 | BU83: 0 | BV83: 0 | BW83: 0 | BX83: 0 | BY83: 0 | BZ83: 0 | CA83: 0 | CB83: 0 | CC83: 0 | CD83: 0 | CE83: 0 | CF83: 0 | CG83: 0 | CH83: 0 | CI83: 0 | CJ83: 0 | CK83: 0 | CL83: 0 | CM83: 0 | CN83: 0 | CO83: 0 | CP83: 0 | CQ83: 0 | CR83: 0 | CS83: 0 | CT83: 0 | CU83: 0 | CV83: 0 | CW83: 0 | CX83: 0 | CY83: 0 | CZ83: 0 | DA83: 0 | DB83: 0 | DC83: 0 | DD83: 0 | DE83: 0 | DF83: 0 | DG83: 0 | DH83: 0 | DI83: 0 | DJ83: 0 | DK83: 0 | DL83: 0 | DM83: 0 | DN83: 0 | DO83: 0 | DP83: 0 | DQ83: 0 | DR83: 0 | DS83: 0 | DT83: 0 | DU83: 0 | DV83: 0
A84: Pigtail | B84: =++IF(Tipologia_Campo="FTTH",Detalle!P974,0) -> 0 | E84: 56 | F84: 0 | G84: 0 | H84: 0 | I84: 0 | J84: 0 | K84: 0 | L84: 0 | M84: 0 | N84: 0 | O84: 0 | P84: 0 | Q84: 0 | R84: 0 | S84: 0 | T84: 0 | U84: 0 | V84: 0 | W84: 0 | X84: 0 | Y84: 0 | Z84: 0 | AA84: 0 | AB84: 0 | AC84: 0 | AD84: 0 | AE84: 0 | AF84: 0 | AG84: 0 | AH84: 0 | AI84: 0 | AJ84: 0 | AK84: 0 | AL84: 0 | AM84: 0 | AN84: 0 | AO84: 0 | AP84: 0 | AQ84: 0 | AR84: 0 | AS84: 0 | AT84: 0 | AU84: 0 | AV84: 0 | AW84: 0 | AX84: 0 | AY84: 0 | AZ84: 0 | BA84: 0 | BB84: 0 | BC84: 0 | BD84: 0 | BE84: 0 | BF84: 0 | BG84: 0 | BH84: 0 | BI84: 0 | BJ84: 0 | BK84: 0 | BL84: 0 | BM84: 0 | BN84: 0 | BO84: 0 | BP84: 0 | BQ84: 0 | BR84: 0 | BS84: 0 | BT84: 0 | BU84: 0 | BV84: 0 | BW84: 0 | BX84: 0 | BY84: 0 | BZ84: 0 | CA84: 0 | CB84: 0 | CC84: 0 | CD84: 0 | CE84: 0 | CF84: 0 | CG84: 0 | CH84: 0 | CI84: 0 | CJ84: 0 | CK84: 0 | CL84: 0 | CM84: 0 | CN84: 0 | CO84: 0 | CP84: 0 | CQ84: 0 | CR84: 0 | CS84: 0 | CT84: 0 | CU84: 0 | CV84: 0 | CW84: 0 | CX84: 0 | CY84: 0 | CZ84: 0 | DA84: 0 | DB84: 0 | DC84: 0 | DD84: 0 | DE84: 0 | DF84: 0 | DG84: 0 | DH84: 0 | DI84: 0 | DJ84: 0 | DK84: 0 | DL84: 0 | DM84: 0 | DN84: 0 | DO84: 0 | DP84: 0 | DQ84: 0 | DR84: 0 | DS84: 0 | DT84: 0 | DU84: 0 | DV84: 0
A85: ONT | B85: =++IF(Tipologia_Campo="FTTH",Detalle!P975,0) -> 0 | E85: 56 | F85: 0 | G85: 0 | H85: 0 | I85: 0 | J85: 0 | K85: 0 | L85: 0 | M85: 0 | N85: 0 | O85: 0 | P85: 0 | Q85: 0 | R85: 0 | S85: 0 | T85: 0 | U85: 0 | V85: 0 | W85: 0 | X85: 0 | Y85: 0 | Z85: 0 | AA85: 0 | AB85: 0 | AC85: 0 | AD85: 0 | AE85: 0 | AF85: 0 | AG85: 0 | AH85: 0 | AI85: 0 | AJ85: 0 | AK85: 0 | AL85: 0 | AM85: 0 | AN85: 0 | AO85: 0 | AP85: 0 | AQ85: 0 | AR85: 0 | AS85: 0 | AT85: 0 | AU85: 0 | AV85: 0 | AW85: 0 | AX85: 0 | AY85: 0 | AZ85: 0 | BA85: 0 | BB85: 0 | BC85: 0 | BD85: 0 | BE85: 0 | BF85: 0 | BG85: 0 | BH85: 0 | BI85: 0 | BJ85: 0 | BK85: 0 | BL85: 0 | BM85: 0 | BN85: 0 | BO85: 0 | BP85: =+IF($A85="","",IF($D85=BP$15,$B85+IF(MONTH($B$8)-MONTH($B$7)+$E$14=BO$14,$C85,0),0)) -> 0 | BQ85: 0 | BR85: 0 | BS85: 0 | BT85: 0 | BU85: 0 | BV85: 0 | BW85: 0 | BX85: 0 | BY85: 0 | BZ85: 0 | CA85: 0 | CB85: 0 | CC85: 0 | CD85: 0 | CE85: 0 | CF85: 0 | CG85: 0 | CH85: 0 | CI85: 0 | CJ85: 0 | CK85: 0 | CL85: 0 | CM85: 0 | CN85: 0 | CO85: 0 | CP85: 0 | CQ85: 0 | CR85: 0 | CS85: 0 | CT85: 0 | CU85: 0 | CV85: 0 | CW85: 0 | CX85: 0 | CY85: 0 | CZ85: 0 | DA85: 0 | DB85: 0 | DC85: 0 | DD85: 0 | DE85: 0 | DF85: 0 | DG85: 0 | DH85: 0 | DI85: 0 | DJ85: 0 | DK85: 0 | DL85: 0 | DM85: 0 | DN85: 0 | DO85: 0 | DP85: 0 | DQ85: 0 | DR85: 0 | DS85: 0 | DT85: 0 | DU85: 0 | DV85: 0
A86: Materiales instalación FTTH | B86: =++IF(Tipologia_Campo="FTTH",Detalle!P979,0) -> 0 | E86: 56 | F86: 0 | G86: 0 | H86: 0 | I86: 0 | J86: 0 | K86: 0 | L86: 0 | M86: 0 | N86: 0 | O86: 0 | P86: 0 | Q86: 0 | R86: 0 | S86: 0 | T86: 0 | U86: 0 | V86: =+IF($A86="","",IF($D86=V$15,$B86+IF(MONTH($B$8)-MONTH($B$7)+$E$14=U$14,$C86,0),0)) -> 0 | W86: 0 | X86: 0 | Y86: 0 | Z86: 0 | AA86: 0 | AB86: 0 | AC86: 0 | AD86: 0 | AE86: 0 | AF86: 0 | AG86: 0 | AH86: 0 | AI86: 0 | AJ86: 0 | AK86: 0 | AL86: 0 | AM86: 0 | AN86: 0 | AO86: 0 | AP86: 0 | AQ86: 0 | AR86: 0 | AS86: 0 | AT86: 0 | AU86: 0 | AV86: 0 | AW86: 0 | AX86: 0 | AY86: 0 | AZ86: 0 | BA86: 0 | BB86: 0 | BC86: 0 | BD86: 0 | BE86: 0 | BF86: 0 | BG86: 0 | BH86: 0 | BI86: 0 | BJ86: 0 | BK86: 0 | BL86: 0 | BM86: 0 | BN86: 0 | BO86: 0 | BP86: 0 | BQ86: 0 | BR86: 0 | BS86: 0 | BT86: 0 | BU86: =+IF($A86="","",IF($D86=BU$15,$B86+IF(MONTH($B$8)-MONTH($B$7)+$E$14=BT$14,$C86,0),0)) -> 0 | BV86: 0 | BW86: 0 | BX86: 0 | BY86: 0 | BZ86: 0 | CA86: 0 | CB86: 0 | CC86: 0 | CD86: 0 | CE86: 0 | CF86: 0 | CG86: 0 | CH86: 0 | CI86: 0 | CJ86: 0 | CK86: 0 | CL86: 0 | CM86: 0 | CN86: 0 | CO86: 0 | CP86: 0 | CQ86: 0 | CR86: 0 | CS86: 0 | CT86: 0 | CU86: 0 | CV86: 0 | CW86: 0 | CX86: 0 | CY86: 0 | CZ86: 0 | DA86: 0 | DB86: 0 | DC86: 0 | DD86: 0 | DE86: 0 | DF86: 0 | DG86: 0 | DH86: 0 | DI86: 0 | DJ86: 0 | DK86: 0 | DL86: 0 | DM86: 0 | DN86: 0 | DO86: 0 | DP86: 0 | DQ86: 0 | DR86: 0 | DS86: 0 | DT86: 0 | DU86: 0 | DV86: 0
A87: Costo Transporte (Mbps) | C87: =++IF(Tipologia_Campo="FTTH",Detalle!$P$978,0) -> 0 | E87: 56 | F87: =+IF($A87="","",$B87+IF(MONTH($B$8)-MONTH($B$7)+$E$14=E$14,$C87,0)) -> 0 | G87: =+(IF($A87="","",IF($D87>MONTH(G$16)-MONTH(InicioFuncion)+12*(YEAR(G$16)-YEAR(InicioFuncion))+1,0,IF($E87<=(MONTH(G$16)-MONTH(InicioFuncion)+12*(YEAR(G$16)-YEAR(InicioFuncion)))-$D87+IF($D87<>"",1,0),0,IF(G$15>$B$9,0,IF((YEAR($B$8)-YEAR($B$7))*12+(MONTH($B$8)-MONTH($B$7))+$E$14<=F$14,$C87))))*HLOOKUP(YEAR(G$16),$E$3:$O$5,3,0))) -> 0 | H87: 0 | I87: 0 | J87: 0 | K87: 0 | L87: 0 | M87: 0 | N87: 0 | O87: 0 | P87: 0 | Q87: 0 | R87: 0 | S87: 0 | T87: 0 | U87: 0 | V87: 0 | W87: 0 | X87: 0 | Y87: 0 | Z87: 0 | AA87: 0 | AB87: 0 | AC87: 0 | AD87: 0 | AE87: 0 | AF87: 0 | AG87: 0 | AH87: 0 | AI87: 0 | AJ87: 0 | AK87: 0 | AL87: 0 | AM87: =+(IF($A87="","",IF($D87>MONTH(AM$16)-MONTH(InicioFuncion)+12*(YEAR(AM$16)-YEAR(InicioFuncion))+1,0,IF($E87<=(MONTH(AM$16)-MONTH(InicioFuncion)+12*(YEAR(AM$16)-YEAR(InicioFuncion)))-$D87+IF($D87<>"",1,0),0,IF(AM$15>$B$9,0,IF((YEAR($B$8)-YEAR($B$7))*12+(MONTH($B$8)-MONTH($B$7))+$E$14<=AL$14,$C87))))*HLOOKUP(YEAR(AM$16),$E$3:$O$5,3,0))) -> 0 | AN87: 0 | AO87: 0 | AP87: 0 | AQ87: 0 | AR87: 0 | AS87: 0 | AT87: 0 | AU87: 0 | AV87: 0 | AW87: 0 | AX87: 0 | AY87: 0 | AZ87: 0 | BA87: 0 | BB87: 0 | BC87: 0 | BD87: 0 | BE87: 0 | BF87: 0 | BG87: 0 | BH87: 0 | BI87: 0 | BJ87: 0 | BK87: 0 | BL87: 0 | BM87: 0 | BN87: 0 | BO87: 0 | BP87: 0 | BQ87: 0 | BR87: 0 | BS87: =+(IF($A87="","",IF($D87>MONTH(BS$16)-MONTH(InicioFuncion)+12*(YEAR(BS$16)-YEAR(InicioFuncion))+1,0,IF($E87<=(MONTH(BS$16)-MONTH(InicioFuncion)+12*(YEAR(BS$16)-YEAR(InicioFuncion)))-$D87+IF($D87<>"",1,0),0,IF(BS$15>$B$9,0,IF((YEAR($B$8)-YEAR($B$7))*12+(MONTH($B$8)-MONTH($B$7))+$E$14<=BR$14,$C87))))*HLOOKUP(YEAR(BS$16),$E$3:$O$5,3,0))) -> 0 | BT87: 0 | BU87: 0 | BV87: 0 | BW87: 0 | BX87: 0 | BY87: 0 | BZ87: 0 | CA87: 0 | CB87: 0 | CC87: 0 | CD87: 0 | CE87: 0 | CF87: 0 | CG87: 0 | CH87: 0 | CI87: 0 | CJ87: 0 | CK87: 0 | CL87: 0 | CM87: 0 | CN87: 0 | CO87: 0 | CP87: 0 | CQ87: 0 | CR87: 0 | CS87: 0 | CT87: 0 | CU87: 0 | CV87: 0 | CW87: 0 | CX87: 0 | CY87: =+(IF($A87="","",IF($D87>MONTH(CY$16)-MONTH(InicioFuncion)+12*(YEAR(CY$16)-YEAR(InicioFuncion))+1,0,IF($E87<=(MONTH(CY$16)-MONTH(InicioFuncion)+12*(YEAR(CY$16)-YEAR(InicioFuncion)))-$D87+IF($D87<>"",1,0),0,IF(CY$15>$B$9,0,IF((YEAR($B$8)-YEAR($B$7))*12+(MONTH($B$8)-MONTH($B$7))+$E$14<=CX$14,$C87))))*HLOOKUP(YEAR(CY$16),$E$3:$O$5,3,0))) -> 0 | CZ87: 0 | DA87: 0 | DB87: 0 | DC87: 0 | DD87: 0 | DE87: 0 | DF87: 0 | DG87: 0 | DH87: 0 | DI87: 0 | DJ87: 0 | DK87: 0 | DL87: 0 | DM87: 0 | DN87: 0 | DO87: 0 | DP87: 0 | DQ87: 0 | DR87: 0 | DS87: 0 | DT87: 0 | DU87: 0 | DV87: 0
A88: Satelital | E88: 56 | F88: =+IF($A88="","",$B88+IF(MONTH($B$8)-MONTH($B$7)+$E$14=E$14,$C88,0)) -> 0 | G88: =+(IF($A88="","",IF($D88>MONTH(G$16)-MONTH(InicioFuncion)+12*(YEAR(G$16)-YEAR(InicioFuncion))+1,0,IF($E88<=(MONTH(G$16)-MONTH(InicioFuncion)+12*(YEAR(G$16)-YEAR(InicioFuncion)))-$D88,0,IF(G$15>$B$9,0,IF((YEAR($B$8)-YEAR($B$7))*12+(MONTH($B$8)-MONTH($B$7))+$E$14<=F$14,$C88))))*HLOOKUP(YEAR(G$16),$E$3:$O$5,3,0))) -> 0 | H88: 0 | I88: 0 | J88: 0 | K88: 0 | L88: 0 | M88: 0 | N88: 0 | O88: 0 | P88: 0 | Q88: 0 | R88: 0 | S88: 0 | T88: 0 | U88: 0 | V88: 0 | W88: 0 | X88: 0 | Y88: 0 | Z88: 0 | AA88: 0 | AB88: 0 | AC88: 0 | AD88: 0 | AE88: 0 | AF88: 0 | AG88: 0 | AH88: 0 | AI88: 0 | AJ88: 0 | AK88: 0 | AL88: 0 | AM88: =+(IF($A88="","",IF($D88>MONTH(AM$16)-MONTH(InicioFuncion)+12*(YEAR(AM$16)-YEAR(InicioFuncion))+1,0,IF($E88<=(MONTH(AM$16)-MONTH(InicioFuncion)+12*(YEAR(AM$16)-YEAR(InicioFuncion)))-$D88,0,IF(AM$15>$B$9,0,IF((YEAR($B$8)-YEAR($B$7))*12+(MONTH($B$8)-MONTH($B$7))+$E$14<=AL$14,$C88))))*HLOOKUP(YEAR(AM$16),$E$3:$O$5,3,0))) -> 0 | AN88: 0 | AO88: 0 | AP88: 0 | AQ88: 0 | AR88: 0 | AS88: 0 | AT88: 0 | AU88: 0 | AV88: 0 | AW88: 0 | AX88: 0 | AY88: 0 | AZ88: 0 | BA88: 0 | BB88: 0 | BC88: 0 | BD88: 0 | BE88: 0 | BF88: 0 | BG88: 0 | BH88: 0 | BI88: 0 | BJ88: 0 | BK88: 0 | BL88: 0 | BM88: 0 | BN88: 0 | BO88: 0 | BP88: 0 | BQ88: 0 | BR88: 0 | BS88: =+(IF($A88="","",IF($D88>MONTH(BS$16)-MONTH(InicioFuncion)+12*(YEAR(BS$16)-YEAR(InicioFuncion))+1,0,IF($E88<=(MONTH(BS$16)-MONTH(InicioFuncion)+12*(YEAR(BS$16)-YEAR(InicioFuncion)))-$D88,0,IF(BS$15>$B$9,0,IF((YEAR($B$8)-YEAR($B$7))*12+(MONTH($B$8)-MONTH($B$7))+$E$14<=BR$14,$C88))))*HLOOKUP(YEAR(BS$16),$E$3:$O$5,3,0))) -> 0 | BT88: 0 | BU88: 0 | BV88: 0 | BW88: 0 | BX88: 0 | BY88: 0 | BZ88: 0 | CA88: 0 | CB88: 0 | CC88: 0 | CD88: 0 | CE88: 0 | CF88: 0 | CG88: 0 | CH88: 0 | CI88: 0 | CJ88: 0 | CK88: 0 | CL88: 0 | CM88: 0 | CN88: 0 | CO88: 0 | CP88: 0 | CQ88: 0 | CR88: 0 | CS88: 0 | CT88: 0 | CU88: 0 | CV88: 0 | CW88: 0 | CX88: 0 | CY88: =+(IF($A88="","",IF($D88>MONTH(CY$16)-MONTH(InicioFuncion)+12*(YEAR(CY$16)-YEAR(InicioFuncion))+1,0,IF($E88<=(MONTH(CY$16)-MONTH(InicioFuncion)+12*(YEAR(CY$16)-YEAR(InicioFuncion)))-$D88,0,IF(CY$15>$B$9,0,IF((YEAR($B$8)-YEAR($B$7))*12+(MONTH($B$8)-MONTH($B$7))+$E$14<=CX$14,$C88))))*HLOOKUP(YEAR(CY$16),$E$3:$O$5,3,0))) -> 0 | CZ88: 0 | DA88: 0 | DB88: 0 | DC88: 0 | DD88: 0 | DE88: 0 | DF88: 0 | DG88: 0 | DH88: 0 | DI88: 0 | DJ88: 0 | DK88: 0 | DL88: 0 | DM88: 0 | DN88: 0 | DO88: 0 | DP88: 0 | DQ88: 0 | DR88: 0 | DS88: 0 | DT88: 0 | DU88: 0 | DV88: 0
A89: Plan satelital | C89: =+IF(Tipologia_Campo="LTE No Lic BH Satelital",Detalle!H963,0) -> 0 | E89: 56 | F89: 0 | G89: =+(IF($A89="","",IF($D89>MONTH(G$16)-MONTH(InicioFuncion)+12*(YEAR(G$16)-YEAR(InicioFuncion))+1,0,IF($E89<=(MONTH(G$16)-MONTH(InicioFuncion)+12*(YEAR(G$16)-YEAR(InicioFuncion)))-$D89+IF($D89<>"",1,0),0,IF(G$15>$B$9,0,IF((YEAR($B$8)-YEAR($B$7))*12+(MONTH($B$8)-MONTH($B$7))+$E$14<=F$14,$C89))))*HLOOKUP(YEAR(G$16),$E$3:$O$5,3,0))) -> 0 | H89: 0 | I89: 0 | J89: 0 | K89: 0 | L89: 0 | M89: 0 | N89: 0 | O89: 0 | P89: 0 | Q89: 0 | R89: 0 | S89: 0 | T89: 0 | U89: 0 | V89: 0 | W89: 0 | X89: 0 | Y89: 0 | Z89: 0 | AA89: 0 | AB89: 0 | AC89: 0 | AD89: 0 | AE89: 0 | AF89: 0 | AG89: 0 | AH89: 0 | AI89: 0 | AJ89: 0 | AK89: 0 | AL89: 0 | AM89: =+(IF($A89="","",IF($D89>MONTH(AM$16)-MONTH(InicioFuncion)+12*(YEAR(AM$16)-YEAR(InicioFuncion))+1,0,IF($E89<=(MONTH(AM$16)-MONTH(InicioFuncion)+12*(YEAR(AM$16)-YEAR(InicioFuncion)))-$D89+IF($D89<>"",1,0),0,IF(AM$15>$B$9,0,IF((YEAR($B$8)-YEAR($B$7))*12+(MONTH($B$8)-MONTH($B$7))+$E$14<=AL$14,$C89))))*HLOOKUP(YEAR(AM$16),$E$3:$O$5,3,0))) -> 0 | AN89: 0 | AO89: 0 | AP89: 0 | AQ89: 0 | AR89: 0 | AS89: 0 | AT89: 0 | AU89: 0 | AV89: 0 | AW89: 0 | AX89: 0 | AY89: 0 | AZ89: 0 | BA89: 0 | BB89: 0 | BC89: 0 | BD89: 0 | BE89: 0 | BF89: 0 | BG89: 0 | BH89: 0 | BI89: 0 | BJ89: 0 | BK89: 0 | BL89: 0 | BM89: 0 | BN89: 0 | BO89: 0 | BP89: 0 | BQ89: 0 | BR89: 0 | BS89: =+(IF($A89="","",IF($D89>MONTH(BS$16)-MONTH(InicioFuncion)+12*(YEAR(BS$16)-YEAR(InicioFuncion))+1,0,IF($E89<=(MONTH(BS$16)-MONTH(InicioFuncion)+12*(YEAR(BS$16)-YEAR(InicioFuncion)))-$D89+IF($D89<>"",1,0),0,IF(BS$15>$B$9,0,IF((YEAR($B$8)-YEAR($B$7))*12+(MONTH($B$8)-MONTH($B$7))+$E$14<=BR$14,$C89))))*HLOOKUP(YEAR(BS$16),$E$3:$O$5,3,0))) -> 0 | BT89: 0 | BU89: 0 | BV89: 0 | BW89: 0 | BX89: 0 | BY89: 0 | BZ89: 0 | CA89: 0 | CB89: 0 | CC89: 0 | CD89: 0 | CE89: 0 | CF89: 0 | CG89: 0 | CH89: 0 | CI89: 0 | CJ89: 0 | CK89: 0 | CL89: 0 | CM89: 0 | CN89: 0 | CO89: 0 | CP89: 0 | CQ89: 0 | CR89: 0 | CS89: 0 | CT89: 0 | CU89: 0 | CV89: 0 | CW89: 0 | CX89: 0 | CY89: =+(IF($A89="","",IF($D89>MONTH(CY$16)-MONTH(InicioFuncion)+12*(YEAR(CY$16)-YEAR(InicioFuncion))+1,0,IF($E89<=(MONTH(CY$16)-MONTH(InicioFuncion)+12*(YEAR(CY$16)-YEAR(InicioFuncion)))-$D89+IF($D89<>"",1,0),0,IF(CY$15>$B$9,0,IF((YEAR($B$8)-YEAR($B$7))*12+(MONTH($B$8)-MONTH($B$7))+$E$14<=CX$14,$C89))))*HLOOKUP(YEAR(CY$16),$E$3:$O$5,3,0))) -> 0 | CZ89: 0 | DA89: 0 | DB89: 0 | DC89: 0 | DD89: 0 | DE89: 0 | DF89: 0 | DG89: 0 | DH89: 0 | DI89: 0 | DJ89: 0 | DK89: 0 | DL89: 0 | DM89: 0 | DN89: 0 | DO89: 0 | DP89: 0 | DQ89: 0 | DR89: 0 | DS89: 0 | DT89: 0 | DU89: 0 | DV89: 0
A90: Cargo de activacion | B90: =+IF(Tipologia_Campo="LTE No Lic BH Satelital",Detalle!H964,0) -> 0 | E90: 56 | F90: =+IF($A90="","",IF($D90=F$15,$B90+IF(MONTH($B$8)-MONTH($B$7)+$E$14=E$14,$C90,0),0)) -> 0 | G90: 0 | H90: 0 | I90: 0 | J90: 0 | K90: 0 | L90: 0 | M90: 0 | N90: 0 | O90: 0 | P90: 0 | Q90: 0 | R90: 0 | S90: 0 | T90: 0 | U90: 0 | V90: 0 | W90: 0 | X90: 0 | Y90: 0 | Z90: 0 | AA90: 0 | AB90: 0 | AC90: 0 | AD90: 0 | AE90: 0 | AF90: 0 | AG90: 0 | AH90: 0 | AI90: 0 | AJ90: 0 | AK90: 0 | AL90: 0 | AM90: 0 | AN90: 0 | AO90: 0 | AP90: 0 | AQ90: 0 | AR90: 0 | AS90: 0 | AT90: 0 | AU90: 0 | AV90: 0 | AW90: 0 | AX90: 0 | AY90: 0 | AZ90: 0 | BA90: 0 | BB90: 0 | BC90: 0 | BD90: 0 | BE90: 0 | BF90: 0 | BG90: 0 | BH90: 0 | BI90: 0 | BJ90: 0 | BK90: 0 | BL90: 0 | BM90: 0 | BN90: 0 | BO90: 0 | BP90: 0 | BQ90: 0 | BR90: =+IF($A90="","",IF($D90=BR$15,$B90+IF(MONTH($B$8)-MONTH($B$7)+$E$14=BQ$14,$C90,0),0)) -> 0 | BS90: 0 | BT90: 0 | BU90: 0 | BV90: 0 | BW90: 0 | BX90: 0 | BY90: 0 | BZ90: 0 | CA90: 0 | CB90: 0 | CC90: 0 | CD90: 0 | CE90: 0 | CF90: 0 | CG90: 0 | CH90: 0 | CI90: 0 | CJ90: 0 | CK90: 0 | CL90: 0 | CM90: 0 | CN90: 0 | CO90: 0 | CP90: 0 | CQ90: 0 | CR90: 0 | CS90: 0 | CT90: 0 | CU90: 0 | CV90: 0 | CW90: 0 | CX90: 0 | CY90: 0 | CZ90: 0 | DA90: 0 | DB90: 0 | DC90: 0 | DD90: 0 | DE90: 0 | DF90: 0 | DG90: 0 | DH90: 0 | DI90: 0 | DJ90: 0 | DK90: 0 | DL90: 0 | DM90: 0 | DN90: 0 | DO90: 0 | DP90: 0 | DQ90: 0 | DR90: 0 | DS90: 0 | DT90: 0 | DU90: 0 | DV90: 0
